{"text_format":"1","workbook":"xlsx","n_sheets":15,"sheets":["MACRO","INSTRELEC","INSTRMAN","INSTRTRP","MAINPAGE","ELECTRONIC","MANUAL","TRANSPORT","CommentsList","CredCodeList","Reference","UnitElec","Upload","UnitManual","ProdList"],"not_rendered":{"charts":0,"images":2,"macros":1,"external_links":0,"defined_names":33,"comments":1,"pivot_tables":0},"unopened":[],"bounds":{"document_bytes":16777216,"sheet_cells":100000,"rows_first":2000,"rows_last":500,"rows_between":2000,"halvings":0,"cell_chars":16384,"cell_head_chars":4096},"cells_cut":0,"cells_raw":0,"read":"whole","date_system":"1900"}

{"sheet":"MACRO","index":0,"n_rows":33,"n_cols":9,"rows_kept":33,"cut":false,"hidden":false,"merged":[[1,0,1,10]]}
[]
["BLOOD AND COMPONENT CREDIT REQUEST FORM"]
[]
["To use this credit form, you must ensure MACROS are ENABLED. The below image shows you how to enable macros in excel."]
["Follow the instructions provided, then click the 'DONE' button. If clicking the DONE button does nothing, then you have not enabled macros."]
[]
[]
[]
[]
[]
[]
[]
[]
[]
[]
[]
[]
[]
[]
[]
[]
[]
[]
[]
[]
[]
[]
[]
[]
[]
[]
[null,null,null,null,null,null,null,null,"Please contact your NHSBT Customer Service Manager"]
[null,null,null,null,null,null,null,null,"should you have any issues using this Credit Request form."]

{"sheet":"INSTRELEC","index":1,"n_rows":33,"n_cols":1,"rows_kept":33,"cut":false,"hidden":false,"merged":[[1,0,1,9],[0,0,0,9],[3,0,3,8]]}
["INSTRUCTIONS FOR USING THE ELECTRONIC CREDIT REQUEST "]
["FOR BLOOD AND COMPONENTS ISSUED BY NHSBT"]
[]
["This is to be submitted electronically, in excel format, ONCE a month."]
[]
["On the 'ELECTRONIC' tab in this workbook"]
[]
["1) Click the 'Click HERE' button to scan in your barcodes for the product you want crediting"]
["On the popup that appears, select each section in turn and then scan in the appropriate barcode"]
["When done, click the 'Load Unit Details to Request Form' button. (click Close button if you do not want to enter the details)"]
[]
["2) Continue to do the same with any other products, or when finished, click the close button"]
[]
["3) Populate the 'Returned' column using the drop down list in the cell (choose YES if you have sent back the product)"]
[]
["4) Populate the 'CSM Informed' column using the drop down list in the cell (choose YES if you have informed your local Customer Service Manager)"]
[]
["5) Populate the 'Credit Code' column using the drop down list in the cell"]
[]
["6) Select a 'Comment/Reason' from the drop down list as to why you are claiming the credit."]
[]
["7) SAVE this workbook, and add any other products you require a credit for over the month."]
[]
["8) Submit this workbook to NHSBT via the button on the MAINPAGE tab, ONCE A MONTH"]
["Pressing the Submit button will email a copy of this workbook to bloodcredits@nhsbt.nhs.uk"]
[]
["This credit request will NOT be accepted in any other format than in excel, and only once a month from each customer"]
["(if you have more credits than the 25 rows given, please use another copy of the workbook and submit the two together)"]
[]
["If any errors occur during use of this, please complete the manual credit form instead, and feel free to send"]
["an email to the above account explaining what the error is."]
[]
["(if you have more credits than the 25 rows given, please use another copy of the workbook and submit the two together)"]

{"sheet":"INSTRMAN","index":2,"n_rows":35,"n_cols":1,"rows_kept":35,"cut":false,"hidden":false,"merged":[[0,0,0,9],[1,0,1,9],[3,0,3,8]]}
["INSTRUCTIONS FOR USING THE MANUAL CREDIT REQUEST "]
["FOR BLOOD AND COMPONENTS ISSUED BY NHSBT"]
[]
["This is to be submitted electronically, in excel format, ONCE a month."]
[]
["On the 'MANUAL' tab in this workbook"]
[]
["1) Choose Product Type from the dropdown list"]
[]
["2) Choose the product from the drop down list (this list is restricted based on the product type you chose)"]
["There are 2 rows at the bottom of the sheet (rows 33 & 34) should the product you want a credit for not be in the list."]
[]
["3) Enter the ISBT number"]
[]
["4) The 'Check' column will tell you if you have entered this correctly (based on a check character \\ length of code entered)"]
[]
["5) Populate the Expiry Date "]
[]
["6) Populate the product Group"]
[]
["7) Under the Returned column, choose Yes if you have returned the product to NHSBT"]
[]
["8) Populate the 'CSM Informed' column using the drop down list in the cell (choose YES if you have informed your local Customer Service Manager)"]
[]
["9) Populate the 'Credit Code' column using the drop down list in the cell"]
[]
["10) Select a 'Comment/Reason' from the drop down list as to why you are claiming the credit."]
[]
["11) SAVE this workbook, and add any other products you require a credit for over the month."]
[]
["12) Submit this workbook to NHSBT via the button on the MAINPAGE tab, ONCE A MONTH"]
["Pressing the Submit button will email a copy of this workbook to bloodcredits@nhsbt.nhs.uk"]
[]
["This credit request will NOT be accepted in any other format than in excel, and only once a month from each customer"]
["(if you have more credits than the 25 rows given, please use another copy of the workbook and submit the two together)"]

{"sheet":"INSTRTRP","index":3,"n_rows":24,"n_cols":1,"rows_kept":24,"cut":false,"hidden":false,"merged":[[3,0,3,8],[0,0,0,11],[1,0,1,11]]}
["INSTRUCTIONS FOR USING THE TRANSPORT CREDIT REQUEST "]
["FOR BLOOD AND COMPONENTS ISSUED BY NHSBT"]
[]
["This is to be submitted electronically, in excel format, ONCE a month."]
[]
["On the 'TRANSPORT' tab in this workbook"]
[]
["1) Enter your Request No \\ Delivery Note Number (9 digits) "]
[]
["2) The 'Check' column will tell you if you have entered this correctly (based on length of code entered)"]
[]
["3) Select the delivery type requested for credit e.g. Adhoc, Collect, Emergency"]
[]
["4) Populate the 'CSM Informed' column using the drop down list in the cell (choose YES if you have informed your local Customer Service Manager)"]
[]
["5) Select a 'Comment/Reason' from the drop down list as to why you are claiming the credit."]
[]
["6) SAVE this workbook, and add any other products you require a credit for over the month."]
[]
["7) Submit this workbook to NHSBT via the button on the MAINPAGE tab, ONCE A MONTH"]
["Pressing the Submit button will email a copy of this workbook to bloodcredits@nhsbt.nhs.uk"]
[]
["This credit request will NOT be accepted in any other format than in excel, and only once a month from each customer"]
["(if you have more credits than the 25 rows given, please use another copy of the workbook and submit the two together)"]

{"sheet":"MAINPAGE","index":4,"n_rows":27,"n_cols":9,"rows_kept":27,"cut":false,"hidden":false,"merged":[[7,3,7,7],[11,2,11,5],[4,1,4,11],[25,0,25,12],[26,0,26,11]]}
[]
[]
[]
[]
[null,"BLOOD AND COMPONENT CREDIT REQUEST FORM"]
[]
[]
[null,"Please enter your Pulse No in the yellow box ->",null,{"$f":"IF(C$8=\"\",\"\",VLOOKUP(C$8,Reference!AB:AC,2,FALSE))","v":""},null,null,null,null,{"$f":"IF(ISERROR(D8),\"Enter valid Pulse number eg A123\",\"\")","v":""}]
[]
[null,"Please choose month and year in the yellow boxes ->"]
[]
[null,"Please enter your email address should we need to contact you in yellow box ->"]
[]
[]
[]
[]
[]
[]
[]
[]
[]
[]
[]
[]
[]
["Do not add additional products to this spreadsheet once you have submitted it. "]
["You need to download and start a completely new credit form for each month."]

{"sheet":"ELECTRONIC","index":5,"n_rows":26,"n_cols":10,"rows_kept":26,"cut":false,"hidden":false,"merged":[]}
["Hospital name","ISBT Unit Number","Product","Expiry Date","Group","Returned","CSM Informed","Credit Code","Comments/Reason"]
[{"$f":"IF(MAINPAGE!$C$8=\"\",\"\",VLOOKUP(MAINPAGE!$C$8,Reference!AB:AC,2,FALSE))","v":""},{"$f":"UnitElec!D20","v":{"$error":"#N/A"}},{"$f":"UnitElec!D22","v":{"$error":"#N/A"}},{"$f":"UnitElec!D23","v":{"$error":"#VALUE!"}},{"$f":"UnitElec!D21","v":{"$error":"#VALUE!"}},null,null,null,null,{"$f":"VLOOKUP(C2,Reference!N:Q,4,FALSE)","v":{"$error":"#N/A"}}]
[{"$f":"IF(MAINPAGE!$C$8=\"\",\"\",VLOOKUP(MAINPAGE!$C$8,Reference!AB:AC,2,FALSE))","v":""},{"$f":"UnitElec!I20","v":{"$error":"#N/A"}},{"$f":"UnitElec!I22","v":{"$error":"#N/A"}},{"$f":"UnitElec!I23","v":{"$error":"#VALUE!"}},{"$f":"UnitElec!I21","v":{"$error":"#VALUE!"}},null,null,null,null,{"$f":"VLOOKUP(C3,Reference!N:Q,4,FALSE)","v":{"$error":"#N/A"}}]
[{"$f":"IF(MAINPAGE!$C$8=\"\",\"\",VLOOKUP(MAINPAGE!$C$8,Reference!AB:AC,2,FALSE))","v":""},{"$f":"UnitElec!N20","v":{"$error":"#N/A"}},{"$f":"UnitElec!N22","v":{"$error":"#N/A"}},{"$f":"UnitElec!N23","v":{"$error":"#VALUE!"}},{"$f":"UnitElec!N21","v":{"$error":"#VALUE!"}},null,null,null,null,{"$f":"VLOOKUP(C4,Reference!N:Q,4,FALSE)","v":{"$error":"#N/A"}}]
[{"$f":"IF(MAINPAGE!$C$8=\"\",\"\",VLOOKUP(MAINPAGE!$C$8,Reference!AB:AC,2,FALSE))","v":""},{"$f":"UnitElec!T20","v":{"$error":"#N/A"}},{"$f":"UnitElec!T22","v":{"$error":"#N/A"}},{"$f":"UnitElec!T23","v":{"$error":"#VALUE!"}},{"$f":"UnitElec!T21","v":{"$error":"#VALUE!"}},null,null,null,null,{"$f":"VLOOKUP(C5,Reference!N:Q,4,FALSE)","v":{"$error":"#N/A"}}]
[{"$f":"IF(MAINPAGE!$C$8=\"\",\"\",VLOOKUP(MAINPAGE!$C$8,Reference!AB:AC,2,FALSE))","v":""},{"$f":"UnitElec!Z20","v":{"$error":"#N/A"}},{"$f":"UnitElec!Z22","v":{"$error":"#N/A"}},{"$f":"UnitElec!Z23","v":{"$error":"#VALUE!"}},{"$f":"UnitElec!Z21","v":{"$error":"#VALUE!"}},null,null,null,null,{"$f":"VLOOKUP(C6,Reference!N:Q,4,FALSE)","v":{"$error":"#N/A"}}]
[{"$f":"IF(MAINPAGE!$C$8=\"\",\"\",VLOOKUP(MAINPAGE!$C$8,Reference!AB:AC,2,FALSE))","v":""},{"$f":"UnitElec!AF20","v":{"$error":"#N/A"}},{"$f":"UnitElec!AF22","v":{"$error":"#N/A"}},{"$f":"UnitElec!AF23","v":{"$error":"#VALUE!"}},{"$f":"UnitElec!AF21","v":{"$error":"#VALUE!"}},null,null,null,null,{"$f":"VLOOKUP(C7,Reference!N:Q,4,FALSE)","v":{"$error":"#N/A"}}]
[{"$f":"IF(MAINPAGE!$C$8=\"\",\"\",VLOOKUP(MAINPAGE!$C$8,Reference!AB:AC,2,FALSE))","v":""},{"$f":"UnitElec!AL20","v":{"$error":"#N/A"}},{"$f":"UnitElec!AL22","v":{"$error":"#N/A"}},{"$f":"UnitElec!AL23","v":{"$error":"#VALUE!"}},{"$f":"UnitElec!AL21","v":{"$error":"#VALUE!"}},null,null,null,null,{"$f":"VLOOKUP(C8,Reference!N:Q,4,FALSE)","v":{"$error":"#N/A"}}]
[{"$f":"IF(MAINPAGE!$C$8=\"\",\"\",VLOOKUP(MAINPAGE!$C$8,Reference!AB:AC,2,FALSE))","v":""},{"$f":"UnitElec!AQ20","v":{"$error":"#N/A"}},{"$f":"UnitElec!AQ22","v":{"$error":"#N/A"}},{"$f":"UnitElec!AQ23","v":{"$error":"#VALUE!"}},{"$f":"UnitElec!AQ21","v":{"$error":"#VALUE!"}},null,null,null,null,{"$f":"VLOOKUP(C9,Reference!N:Q,4,FALSE)","v":{"$error":"#N/A"}}]
[{"$f":"IF(MAINPAGE!$C$8=\"\",\"\",VLOOKUP(MAINPAGE!$C$8,Reference!AB:AC,2,FALSE))","v":""},{"$f":"UnitElec!AW20","v":{"$error":"#N/A"}},{"$f":"UnitElec!AW22","v":{"$error":"#N/A"}},{"$f":"UnitElec!AW23","v":{"$error":"#VALUE!"}},{"$f":"UnitElec!AW21","v":{"$error":"#VALUE!"}},null,null,null,null,{"$f":"VLOOKUP(C10,Reference!N:Q,4,FALSE)","v":{"$error":"#N/A"}}]
[{"$f":"IF(MAINPAGE!$C$8=\"\",\"\",VLOOKUP(MAINPAGE!$C$8,Reference!AB:AC,2,FALSE))","v":""},{"$f":"UnitElec!BC20","v":{"$error":"#N/A"}},{"$f":"UnitElec!BC22","v":{"$error":"#N/A"}},{"$f":"UnitElec!BC23","v":{"$error":"#VALUE!"}},{"$f":"UnitElec!BC21","v":{"$error":"#VALUE!"}},null,null,null,null,{"$f":"VLOOKUP(C11,Reference!N:Q,4,FALSE)","v":{"$error":"#N/A"}}]
[{"$f":"IF(MAINPAGE!$C$8=\"\",\"\",VLOOKUP(MAINPAGE!$C$8,Reference!AB:AC,2,FALSE))","v":""},{"$f":"UnitElec!$BI20","v":{"$error":"#N/A"}},{"$f":"UnitElec!$BI22","v":{"$error":"#N/A"}},{"$f":"UnitElec!$BI23","v":{"$error":"#VALUE!"}},{"$f":"UnitElec!$BI21","v":{"$error":"#VALUE!"}},null,null,null,null,{"$f":"VLOOKUP(C12,Reference!N:Q,4,FALSE)","v":{"$error":"#N/A"}}]
[{"$f":"IF(MAINPAGE!$C$8=\"\",\"\",VLOOKUP(MAINPAGE!$C$8,Reference!AB:AC,2,FALSE))","v":""},{"$f":"UnitElec!$BO20","v":{"$error":"#N/A"}},{"$f":"UnitElec!$BO22","v":{"$error":"#N/A"}},{"$f":"UnitElec!$BO23","v":{"$error":"#VALUE!"}},{"$f":"UnitElec!$BO21","v":{"$error":"#VALUE!"}},null,null,null,null,{"$f":"VLOOKUP(C13,Reference!N:Q,4,FALSE)","v":{"$error":"#N/A"}}]
[{"$f":"IF(MAINPAGE!$C$8=\"\",\"\",VLOOKUP(MAINPAGE!$C$8,Reference!AB:AC,2,FALSE))","v":""},{"$f":"UnitElec!$BU20","v":{"$error":"#N/A"}},{"$f":"UnitElec!$BU22","v":{"$error":"#N/A"}},{"$f":"UnitElec!$BU23","v":{"$error":"#VALUE!"}},{"$f":"UnitElec!$BU21","v":{"$error":"#VALUE!"}},null,null,null,null,{"$f":"VLOOKUP(C14,Reference!N:Q,4,FALSE)","v":{"$error":"#N/A"}}]
[{"$f":"IF(MAINPAGE!$C$8=\"\",\"\",VLOOKUP(MAINPAGE!$C$8,Reference!AB:AC,2,FALSE))","v":""},{"$f":"UnitElec!$CA20","v":{"$error":"#N/A"}},{"$f":"UnitElec!$CA22","v":{"$error":"#N/A"}},{"$f":"UnitElec!$CA23","v":{"$error":"#VALUE!"}},{"$f":"UnitElec!$CA21","v":{"$error":"#VALUE!"}},null,null,null,null,{"$f":"VLOOKUP(C15,Reference!N:Q,4,FALSE)","v":{"$error":"#N/A"}}]
[{"$f":"IF(MAINPAGE!$C$8=\"\",\"\",VLOOKUP(MAINPAGE!$C$8,Reference!AB:AC,2,FALSE))","v":""},{"$f":"UnitElec!$CG20","v":{"$error":"#N/A"}},{"$f":"UnitElec!$CG22","v":{"$error":"#N/A"}},{"$f":"UnitElec!$CG23","v":{"$error":"#VALUE!"}},{"$f":"UnitElec!$CG21","v":{"$error":"#VALUE!"}},null,null,null,null,{"$f":"VLOOKUP(C16,Reference!N:Q,4,FALSE)","v":{"$error":"#N/A"}}]
[{"$f":"IF(MAINPAGE!$C$8=\"\",\"\",VLOOKUP(MAINPAGE!$C$8,Reference!AB:AC,2,FALSE))","v":""},{"$f":"UnitElec!$CM20","v":{"$error":"#N/A"}},{"$f":"UnitElec!$CM22","v":{"$error":"#N/A"}},{"$f":"UnitElec!$CM23","v":{"$error":"#VALUE!"}},{"$f":"UnitElec!$CM21","v":{"$error":"#VALUE!"}},null,null,null,null,{"$f":"VLOOKUP(C17,Reference!N:Q,4,FALSE)","v":{"$error":"#N/A"}}]
[{"$f":"IF(MAINPAGE!$C$8=\"\",\"\",VLOOKUP(MAINPAGE!$C$8,Reference!AB:AC,2,FALSE))","v":""},{"$f":"UnitElec!$CS20","v":{"$error":"#N/A"}},{"$f":"UnitElec!$CS22","v":{"$error":"#N/A"}},{"$f":"UnitElec!$CS23","v":{"$error":"#VALUE!"}},{"$f":"UnitElec!$CS21","v":{"$error":"#VALUE!"}},null,null,null,null,{"$f":"VLOOKUP(C18,Reference!N:Q,4,FALSE)","v":{"$error":"#N/A"}}]
[{"$f":"IF(MAINPAGE!$C$8=\"\",\"\",VLOOKUP(MAINPAGE!$C$8,Reference!AB:AC,2,FALSE))","v":""},{"$f":"UnitElec!$CY20","v":{"$error":"#N/A"}},{"$f":"UnitElec!$CY22","v":{"$error":"#N/A"}},{"$f":"UnitElec!$CY23","v":{"$error":"#VALUE!"}},{"$f":"UnitElec!$CY21","v":{"$error":"#VALUE!"}},null,null,null,null,{"$f":"VLOOKUP(C19,Reference!N:Q,4,FALSE)","v":{"$error":"#N/A"}}]
[{"$f":"IF(MAINPAGE!$C$8=\"\",\"\",VLOOKUP(MAINPAGE!$C$8,Reference!AB:AC,2,FALSE))","v":""},{"$f":"UnitElec!$DE20","v":{"$error":"#N/A"}},{"$f":"UnitElec!$DE22","v":{"$error":"#N/A"}},{"$f":"UnitElec!$DE23","v":{"$error":"#VALUE!"}},{"$f":"UnitElec!$DE21","v":{"$error":"#VALUE!"}},null,null,null,null,{"$f":"VLOOKUP(C20,Reference!N:Q,4,FALSE)","v":{"$error":"#N/A"}}]
[{"$f":"IF(MAINPAGE!$C$8=\"\",\"\",VLOOKUP(MAINPAGE!$C$8,Reference!AB:AC,2,FALSE))","v":""},{"$f":"UnitElec!$DK20","v":{"$error":"#N/A"}},{"$f":"UnitElec!$DK22","v":{"$error":"#N/A"}},{"$f":"UnitElec!$DK23","v":{"$error":"#VALUE!"}},{"$f":"UnitElec!$DK21","v":{"$error":"#VALUE!"}},null,null,null,null,{"$f":"VLOOKUP(C21,Reference!N:Q,4,FALSE)","v":{"$error":"#N/A"}}]
[{"$f":"IF(MAINPAGE!$C$8=\"\",\"\",VLOOKUP(MAINPAGE!$C$8,Reference!AB:AC,2,FALSE))","v":""},{"$f":"UnitElec!$DQ20","v":{"$error":"#N/A"}},{"$f":"UnitElec!$DQ22","v":{"$error":"#N/A"}},{"$f":"UnitElec!$DQ23","v":{"$error":"#VALUE!"}},{"$f":"UnitElec!$DQ21","v":{"$error":"#VALUE!"}},null,null,null,null,{"$f":"VLOOKUP(C22,Reference!N:Q,4,FALSE)","v":{"$error":"#N/A"}}]
[{"$f":"IF(MAINPAGE!$C$8=\"\",\"\",VLOOKUP(MAINPAGE!$C$8,Reference!AB:AC,2,FALSE))","v":""},{"$f":"UnitElec!$DW20","v":{"$error":"#N/A"}},{"$f":"UnitElec!$DW22","v":{"$error":"#N/A"}},{"$f":"UnitElec!$DW23","v":{"$error":"#VALUE!"}},{"$f":"UnitElec!$DW21","v":{"$error":"#VALUE!"}},null,null,null,null,{"$f":"VLOOKUP(C23,Reference!N:Q,4,FALSE)","v":{"$error":"#N/A"}}]
[{"$f":"IF(MAINPAGE!$C$8=\"\",\"\",VLOOKUP(MAINPAGE!$C$8,Reference!AB:AC,2,FALSE))","v":""},{"$f":"UnitElec!$EC20","v":{"$error":"#N/A"}},{"$f":"UnitElec!$EC22","v":{"$error":"#N/A"}},{"$f":"UnitElec!$EC23","v":{"$error":"#VALUE!"}},{"$f":"UnitElec!$EC21","v":{"$error":"#VALUE!"}},null,null,null,null,{"$f":"VLOOKUP(C24,Reference!N:Q,4,FALSE)","v":{"$error":"#N/A"}}]
[{"$f":"IF(MAINPAGE!$C$8=\"\",\"\",VLOOKUP(MAINPAGE!$C$8,Reference!AB:AC,2,FALSE))","v":""},{"$f":"UnitElec!$EI20","v":{"$error":"#N/A"}},{"$f":"UnitElec!$EI22","v":{"$error":"#N/A"}},{"$f":"UnitElec!$EI23","v":{"$error":"#VALUE!"}},{"$f":"UnitElec!$EI21","v":{"$error":"#VALUE!"}},null,null,null,null,{"$f":"VLOOKUP(C25,Reference!N:Q,4,FALSE)","v":{"$error":"#N/A"}}]
[{"$f":"IF(MAINPAGE!$C$8=\"\",\"\",VLOOKUP(MAINPAGE!$C$8,Reference!AB:AC,2,FALSE))","v":""},{"$f":"UnitElec!$EO20","v":{"$error":"#N/A"}},{"$f":"UnitElec!$EO22","v":{"$error":"#N/A"}},{"$f":"UnitElec!$EO23","v":{"$error":"#VALUE!"}},{"$f":"UnitElec!$EO21","v":{"$error":"#VALUE!"}},null,null,null,null,{"$f":"VLOOKUP(C26,Reference!N:Q,4,FALSE)","v":{"$error":"#N/A"}}]

{"sheet":"MANUAL","index":6,"n_rows":34,"n_cols":11,"rows_kept":34,"cut":false,"hidden":false,"merged":[]}
["Hospital Name","Product Type","Product ","ISBT 128 Unit Number (14 digits)","Check","Expiry Date (dd/mm/yy)","Group","Returned","CSM Informed","Credit Code","Comments/Reason"]
[{"$f":"IF(MAINPAGE!$C$8=\"\",\"\",VLOOKUP(MAINPAGE!$C$8,Reference!AB:AC,2,FALSE))","v":""},null,null,null,{"$f":"IF(D2=\"\",\"\",IF(AND(D2<>\"\",OR(B2=\"\",C2=\"\")),\"COLUMN B AND C NEED COMPLETING\",IF(LEN(D2)<>14,\"ERROR,  14 CHARACTERS FOR ISBT NUMBER\",IF(RIGHT(D2,1)=TEXT(UnitManual!C$23,\"0\"),\"ISBT OK\",\"ERROR - ISBT No ENTERED INCORRECTLY\"))))","v":""}]
[{"$f":"IF(MAINPAGE!$C$8=\"\",\"\",VLOOKUP(MAINPAGE!$C$8,Reference!AB:AC,2,FALSE))","v":""},null,null,null,{"$f":"IF(D3=\"\",\"\",IF(AND(D3<>\"\",OR(B3=\"\",C3=\"\")),\"COLUMN B AND C NEED COMPLETING\",IF(LEN(D3)<>14,\"ERROR,  14 CHARACTERS FOR ISBT NUMBER\",IF(RIGHT(D3,1)=TEXT(UnitManual!H$23,\"0\"),\"ISBT OK\",\"ERROR - ISBT No ENTERED INCORRECTLY\"))))","v":""}]
[{"$f":"IF(MAINPAGE!$C$8=\"\",\"\",VLOOKUP(MAINPAGE!$C$8,Reference!AB:AC,2,FALSE))","v":""},null,null,null,{"$f":"IF(D4=\"\",\"\",IF(AND(D4<>\"\",OR(B4=\"\",C4=\"\")),\"COLUMN B AND C NEED COMPLETING\",IF(LEN(D4)<>14,\"ERROR,  14 CHARACTERS FOR ISBT NUMBER\",IF(RIGHT(D4,1)=TEXT(UnitManual!M$23,\"0\"),\"ISBT OK\",\"ERROR - ISBT No ENTERED INCORRECTLY\"))))","v":""}]
[{"$f":"IF(MAINPAGE!$C$8=\"\",\"\",VLOOKUP(MAINPAGE!$C$8,Reference!AB:AC,2,FALSE))","v":""},null,null,null,{"$f":"IF(D5=\"\",\"\",IF(AND(D5<>\"\",OR(B5=\"\",C5=\"\")),\"COLUMN B AND C NEED COMPLETING\",IF(LEN(D5)<>14,\"ERROR,  14 CHARACTERS FOR ISBT NUMBER\",IF(RIGHT(D5,1)=TEXT(UnitManual!S$23,\"0\"),\"ISBT OK\",\"ERROR - ISBT No ENTERED INCORRECTLY\"))))","v":""}]
[{"$f":"IF(MAINPAGE!$C$8=\"\",\"\",VLOOKUP(MAINPAGE!$C$8,Reference!AB:AC,2,FALSE))","v":""},null,null,null,{"$f":"IF(D6=\"\",\"\",IF(AND(D6<>\"\",OR(B6=\"\",C6=\"\")),\"COLUMN B AND C NEED COMPLETING\",IF(LEN(D6)<>14,\"ERROR,  14 CHARACTERS FOR ISBT NUMBER\",IF(RIGHT(D6,1)=TEXT(UnitManual!Y$23,\"0\"),\"ISBT OK\",\"ERROR - ISBT No ENTERED INCORRECTLY\"))))","v":""}]
[{"$f":"IF(MAINPAGE!$C$8=\"\",\"\",VLOOKUP(MAINPAGE!$C$8,Reference!AB:AC,2,FALSE))","v":""},null,null,null,{"$f":"IF(D7=\"\",\"\",IF(AND(D7<>\"\",OR(B7=\"\",C7=\"\")),\"COLUMN B AND C NEED COMPLETING\",IF(LEN(D7)<>14,\"ERROR,  14 CHARACTERS FOR ISBT NUMBER\",IF(RIGHT(D7,1)=TEXT(UnitManual!AE$23,\"0\"),\"ISBT OK\",\"ERROR - ISBT No ENTERED INCORRECTLY\"))))","v":""}]
[{"$f":"IF(MAINPAGE!$C$8=\"\",\"\",VLOOKUP(MAINPAGE!$C$8,Reference!AB:AC,2,FALSE))","v":""},null,null,null,{"$f":"IF(D8=\"\",\"\",IF(AND(D8<>\"\",OR(B8=\"\",C8=\"\")),\"COLUMN B AND C NEED COMPLETING\",IF(LEN(D8)<>14,\"ERROR,  14 CHARACTERS FOR ISBT NUMBER\",IF(RIGHT(D8,1)=TEXT(UnitManual!AK$23,\"0\"),\"ISBT OK\",\"ERROR - ISBT No ENTERED INCORRECTLY\"))))","v":""}]
[{"$f":"IF(MAINPAGE!$C$8=\"\",\"\",VLOOKUP(MAINPAGE!$C$8,Reference!AB:AC,2,FALSE))","v":""},null,null,null,{"$f":"IF(D9=\"\",\"\",IF(AND(D9<>\"\",OR(B9=\"\",C9=\"\")),\"COLUMN B AND C NEED COMPLETING\",IF(LEN(D9)<>14,\"ERROR,  14 CHARACTERS FOR ISBT NUMBER\",IF(RIGHT(D9,1)=TEXT(UnitManual!AP$23,\"0\"),\"ISBT OK\",\"ERROR - ISBT No ENTERED INCORRECTLY\"))))","v":""}]
[{"$f":"IF(MAINPAGE!$C$8=\"\",\"\",VLOOKUP(MAINPAGE!$C$8,Reference!AB:AC,2,FALSE))","v":""},null,null,null,{"$f":"IF(D10=\"\",\"\",IF(AND(D10<>\"\",OR(B10=\"\",C10=\"\")),\"COLUMN B AND C NEED COMPLETING\",IF(LEN(D10)<>14,\"ERROR,  14 CHARACTERS FOR ISBT NUMBER\",IF(RIGHT(D10,1)=TEXT(UnitManual!AV$23,\"0\"),\"ISBT OK\",\"ERROR - ISBT No ENTERED INCORRECTLY\"))))","v":""}]
[{"$f":"IF(MAINPAGE!$C$8=\"\",\"\",VLOOKUP(MAINPAGE!$C$8,Reference!AB:AC,2,FALSE))","v":""},null,null,null,{"$f":"IF(D11=\"\",\"\",IF(AND(D11<>\"\",OR(B11=\"\",C11=\"\")),\"COLUMN B AND C NEED COMPLETING\",IF(LEN(D11)<>14,\"ERROR,  14 CHARACTERS FOR ISBT NUMBER\",IF(RIGHT(D11,1)=TEXT(UnitManual!BB$23,\"0\"),\"ISBT OK\",\"ERROR - ISBT No ENTERED INCORRECTLY\"))))","v":""}]
[{"$f":"IF(MAINPAGE!$C$8=\"\",\"\",VLOOKUP(MAINPAGE!$C$8,Reference!AB:AC,2,FALSE))","v":""},null,null,null,{"$f":"IF(D12=\"\",\"\",IF(AND(D12<>\"\",OR(B12=\"\",C12=\"\")),\"COLUMN B AND C NEED COMPLETING\",IF(LEN(D12)<>14,\"ERROR,  14 CHARACTERS FOR ISBT NUMBER\",IF(RIGHT(D12,1)=TEXT(UnitManual!BH$23,\"0\"),\"ISBT OK\",\"ERROR - ISBT No ENTERED INCORRECTLY\"))))","v":""}]
[{"$f":"IF(MAINPAGE!$C$8=\"\",\"\",VLOOKUP(MAINPAGE!$C$8,Reference!AB:AC,2,FALSE))","v":""},null,null,null,{"$f":"IF(D13=\"\",\"\",IF(AND(D13<>\"\",OR(B13=\"\",C13=\"\")),\"COLUMN B AND C NEED COMPLETING\",IF(LEN(D13)<>14,\"ERROR,  14 CHARACTERS FOR ISBT NUMBER\",IF(RIGHT(D13,1)=TEXT(UnitManual!BN$23,\"0\"),\"ISBT OK\",\"ERROR - ISBT No ENTERED INCORRECTLY\"))))","v":""}]
[{"$f":"IF(MAINPAGE!$C$8=\"\",\"\",VLOOKUP(MAINPAGE!$C$8,Reference!AB:AC,2,FALSE))","v":""},null,null,null,{"$f":"IF(D14=\"\",\"\",IF(AND(D14<>\"\",OR(B14=\"\",C14=\"\")),\"COLUMN B AND C NEED COMPLETING\",IF(LEN(D14)<>14,\"ERROR,  14 CHARACTERS FOR ISBT NUMBER\",IF(RIGHT(D14,1)=TEXT(UnitManual!BT$23,\"0\"),\"ISBT OK\",\"ERROR - ISBT No ENTERED INCORRECTLY\"))))","v":""}]
[{"$f":"IF(MAINPAGE!$C$8=\"\",\"\",VLOOKUP(MAINPAGE!$C$8,Reference!AB:AC,2,FALSE))","v":""},null,null,null,{"$f":"IF(D15=\"\",\"\",IF(AND(D15<>\"\",OR(B15=\"\",C15=\"\")),\"COLUMN B AND C NEED COMPLETING\",IF(LEN(D15)<>14,\"ERROR,  14 CHARACTERS FOR ISBT NUMBER\",IF(RIGHT(D15,1)=TEXT(UnitManual!BZ$23,\"0\"),\"ISBT OK\",\"ERROR - ISBT No ENTERED INCORRECTLY\"))))","v":""}]
[{"$f":"IF(MAINPAGE!$C$8=\"\",\"\",VLOOKUP(MAINPAGE!$C$8,Reference!AB:AC,2,FALSE))","v":""},null,null,null,{"$f":"IF(D16=\"\",\"\",IF(AND(D16<>\"\",OR(B16=\"\",C16=\"\")),\"COLUMN B AND C NEED COMPLETING\",IF(LEN(D16)<>14,\"ERROR,  14 CHARACTERS FOR ISBT NUMBER\",IF(RIGHT(D16,1)=TEXT(UnitManual!CF$23,\"0\"),\"ISBT OK\",\"ERROR - ISBT No ENTERED INCORRECTLY\"))))","v":""}]
[{"$f":"IF(MAINPAGE!$C$8=\"\",\"\",VLOOKUP(MAINPAGE!$C$8,Reference!AB:AC,2,FALSE))","v":""},null,null,null,{"$f":"IF(D17=\"\",\"\",IF(AND(D17<>\"\",OR(B17=\"\",C17=\"\")),\"COLUMN B AND C NEED COMPLETING\",IF(LEN(D17)<>14,\"ERROR,  14 CHARACTERS FOR ISBT NUMBER\",IF(RIGHT(D17,1)=TEXT(UnitManual!CL$23,\"0\"),\"ISBT OK\",\"ERROR - ISBT No ENTERED INCORRECTLY\"))))","v":""}]
[{"$f":"IF(MAINPAGE!$C$8=\"\",\"\",VLOOKUP(MAINPAGE!$C$8,Reference!AB:AC,2,FALSE))","v":""},null,null,null,{"$f":"IF(D18=\"\",\"\",IF(AND(D18<>\"\",OR(B18=\"\",C18=\"\")),\"COLUMN B AND C NEED COMPLETING\",IF(LEN(D18)<>14,\"ERROR,  14 CHARACTERS FOR ISBT NUMBER\",IF(RIGHT(D18,1)=TEXT(UnitManual!CR$23,\"0\"),\"ISBT OK\",\"ERROR - ISBT No ENTERED INCORRECTLY\"))))","v":""}]
[{"$f":"IF(MAINPAGE!$C$8=\"\",\"\",VLOOKUP(MAINPAGE!$C$8,Reference!AB:AC,2,FALSE))","v":""},null,null,null,{"$f":"IF(D19=\"\",\"\",IF(AND(D19<>\"\",OR(B19=\"\",C19=\"\")),\"COLUMN B AND C NEED COMPLETING\",IF(LEN(D19)<>14,\"ERROR,  14 CHARACTERS FOR ISBT NUMBER\",IF(RIGHT(D19,1)=TEXT(UnitManual!CX$23,\"0\"),\"ISBT OK\",\"ERROR - ISBT No ENTERED INCORRECTLY\"))))","v":""}]
[{"$f":"IF(MAINPAGE!$C$8=\"\",\"\",VLOOKUP(MAINPAGE!$C$8,Reference!AB:AC,2,FALSE))","v":""},null,null,null,{"$f":"IF(D20=\"\",\"\",IF(AND(D20<>\"\",OR(B20=\"\",C20=\"\")),\"COLUMN B AND C NEED COMPLETING\",IF(LEN(D20)<>14,\"ERROR,  14 CHARACTERS FOR ISBT NUMBER\",IF(RIGHT(D20,1)=TEXT(UnitManual!DD$23,\"0\"),\"ISBT OK\",\"ERROR - ISBT No ENTERED INCORRECTLY\"))))","v":""}]
[{"$f":"IF(MAINPAGE!$C$8=\"\",\"\",VLOOKUP(MAINPAGE!$C$8,Reference!AB:AC,2,FALSE))","v":""},null,null,null,{"$f":"IF(D21=\"\",\"\",IF(AND(D21<>\"\",OR(B21=\"\",C21=\"\")),\"COLUMN B AND C NEED COMPLETING\",IF(LEN(D21)<>14,\"ERROR,  14 CHARACTERS FOR ISBT NUMBER\",IF(RIGHT(D21,1)=TEXT(UnitManual!DJ$23,\"0\"),\"ISBT OK\",\"ERROR - ISBT No ENTERED INCORRECTLY\"))))","v":""}]
[{"$f":"IF(MAINPAGE!$C$8=\"\",\"\",VLOOKUP(MAINPAGE!$C$8,Reference!AB:AC,2,FALSE))","v":""},null,null,null,{"$f":"IF(D22=\"\",\"\",IF(AND(D22<>\"\",OR(B22=\"\",C22=\"\")),\"COLUMN B AND C NEED COMPLETING\",IF(LEN(D22)<>14,\"ERROR,  14 CHARACTERS FOR ISBT NUMBER\",IF(RIGHT(D22,1)=TEXT(UnitManual!DP$23,\"0\"),\"ISBT OK\",\"ERROR - ISBT No ENTERED INCORRECTLY\"))))","v":""}]
[{"$f":"IF(MAINPAGE!$C$8=\"\",\"\",VLOOKUP(MAINPAGE!$C$8,Reference!AB:AC,2,FALSE))","v":""},null,null,null,{"$f":"IF(D23=\"\",\"\",IF(AND(D23<>\"\",OR(B23=\"\",C23=\"\")),\"COLUMN B AND C NEED COMPLETING\",IF(LEN(D23)<>14,\"ERROR,  14 CHARACTERS FOR ISBT NUMBER\",IF(RIGHT(D23,1)=TEXT(UnitManual!DV$23,\"0\"),\"ISBT OK\",\"ERROR - ISBT No ENTERED INCORRECTLY\"))))","v":""}]
[{"$f":"IF(MAINPAGE!$C$8=\"\",\"\",VLOOKUP(MAINPAGE!$C$8,Reference!AB:AC,2,FALSE))","v":""},null,null,null,{"$f":"IF(D24=\"\",\"\",IF(AND(D24<>\"\",OR(B24=\"\",C24=\"\")),\"COLUMN B AND C NEED COMPLETING\",IF(LEN(D24)<>14,\"ERROR,  14 CHARACTERS FOR ISBT NUMBER\",IF(RIGHT(D24,1)=TEXT(UnitManual!EB$23,\"0\"),\"ISBT OK\",\"ERROR - ISBT No ENTERED INCORRECTLY\"))))","v":""}]
[{"$f":"IF(MAINPAGE!$C$8=\"\",\"\",VLOOKUP(MAINPAGE!$C$8,Reference!AB:AC,2,FALSE))","v":""},null,null,null,{"$f":"IF(D25=\"\",\"\",IF(AND(D25<>\"\",OR(B25=\"\",C25=\"\")),\"COLUMN B AND C NEED COMPLETING\",IF(LEN(D25)<>14,\"ERROR,  14 CHARACTERS FOR ISBT NUMBER\",IF(RIGHT(D25,1)=TEXT(UnitManual!EH$23,\"0\"),\"ISBT OK\",\"ERROR - ISBT No ENTERED INCORRECTLY\"))))","v":""}]
[{"$f":"IF(MAINPAGE!$C$8=\"\",\"\",VLOOKUP(MAINPAGE!$C$8,Reference!AB:AC,2,FALSE))","v":""},null,null,null,{"$f":"IF(D26=\"\",\"\",IF(AND(D26<>\"\",OR(B26=\"\",C26=\"\")),\"COLUMN B AND C NEED COMPLETING\",IF(LEN(D26)<>14,\"ERROR,  14 CHARACTERS FOR ISBT NUMBER\",IF(RIGHT(D26,1)=TEXT(UnitManual!EN$23,\"0\"),\"ISBT OK\",\"ERROR - ISBT No ENTERED INCORRECTLY\"))))","v":""}]
[]
[]
[]
[]
[]
["If the product you wish to have credited is not in the above drop down lists, please enter in FULL the product type, name and details in the rows below."]
[{"$f":"IF(MAINPAGE!$C$8=\"\",\"\",VLOOKUP(MAINPAGE!$C$8,Reference!AB:AC,2,FALSE))","v":""},null,null,null,{"$f":"IF(D33=\"\",\"\",IF(AND(D33<>\"\",OR(B33=\"\",C33=\"\")),\"COLUMN B AND C NEED COMPLETING\",IF(LEN(D33)<>14,\"ERROR,  14 CHARACTERS FOR ISBT NUMBER\",IF(RIGHT(D33,1)=TEXT(UnitManual!ET$23,\"0\"),\"ISBT OK\",\"ERROR - ISBT No ENTERED INCORRECTLY\"))))","v":""}]
[{"$f":"IF(MAINPAGE!$C$8=\"\",\"\",VLOOKUP(MAINPAGE!$C$8,Reference!AB:AC,2,FALSE))","v":""},null,null,null,{"$f":"IF(D34=\"\",\"\",IF(AND(D34<>\"\",OR(B34=\"\",C34=\"\")),\"COLUMN B AND C NEED COMPLETING\",IF(LEN(D34)<>14,\"ERROR,  14 CHARACTERS FOR ISBT NUMBER\",IF(RIGHT(D34,1)=TEXT(UnitManual!EZ$23,\"0\"),\"ISBT OK\",\"ERROR - ISBT No ENTERED INCORRECTLY\"))))","v":""}]

{"sheet":"TRANSPORT","index":7,"n_rows":26,"n_cols":6,"rows_kept":26,"cut":false,"hidden":false,"merged":[]}
["Hospital Name","Request No \\ Delivery Note Number (9 Digits)","Check","Credit Code","CSM Informed","Comments/Reason"]
[{"$f":"IF(MAINPAGE!$C$8=\"\",\"\",VLOOKUP(MAINPAGE!$C$8,Reference!AB:AC,2,FALSE))","v":""},null,{"$f":"IF(B2=\"\",\"\",IF(LEN(B2)<>9,\"ERROR,  9 CHARACTERS FOR REQUEST NUMBER\",\"TRANSPORT NUMBER OK\"))","v":""}]
[{"$f":"IF(MAINPAGE!$C$8=\"\",\"\",VLOOKUP(MAINPAGE!$C$8,Reference!AB:AC,2,FALSE))","v":""},null,{"$f":"IF(B3=\"\",\"\",IF(LEN(B3)<>9,\"ERROR,  9 CHARACTERS FOR REQUEST NUMBER\",\"TRANSPORT NUMBER OK\"))","v":""}]
[{"$f":"IF(MAINPAGE!$C$8=\"\",\"\",VLOOKUP(MAINPAGE!$C$8,Reference!AB:AC,2,FALSE))","v":""},null,{"$f":"IF(B4=\"\",\"\",IF(LEN(B4)<>9,\"ERROR,  9 CHARACTERS FOR REQUEST NUMBER\",\"TRANSPORT NUMBER OK\"))","v":""}]
[{"$f":"IF(MAINPAGE!$C$8=\"\",\"\",VLOOKUP(MAINPAGE!$C$8,Reference!AB:AC,2,FALSE))","v":""},null,""]
[{"$f":"IF(MAINPAGE!$C$8=\"\",\"\",VLOOKUP(MAINPAGE!$C$8,Reference!AB:AC,2,FALSE))","v":""},null,""]
[{"$f":"IF(MAINPAGE!$C$8=\"\",\"\",VLOOKUP(MAINPAGE!$C$8,Reference!AB:AC,2,FALSE))","v":""},null,""]
[{"$f":"IF(MAINPAGE!$C$8=\"\",\"\",VLOOKUP(MAINPAGE!$C$8,Reference!AB:AC,2,FALSE))","v":""},null,""]
[{"$f":"IF(MAINPAGE!$C$8=\"\",\"\",VLOOKUP(MAINPAGE!$C$8,Reference!AB:AC,2,FALSE))","v":""},null,""]
[{"$f":"IF(MAINPAGE!$C$8=\"\",\"\",VLOOKUP(MAINPAGE!$C$8,Reference!AB:AC,2,FALSE))","v":""},null,""]
[{"$f":"IF(MAINPAGE!$C$8=\"\",\"\",VLOOKUP(MAINPAGE!$C$8,Reference!AB:AC,2,FALSE))","v":""},null,""]
[{"$f":"IF(MAINPAGE!$C$8=\"\",\"\",VLOOKUP(MAINPAGE!$C$8,Reference!AB:AC,2,FALSE))","v":""},null,""]
[{"$f":"IF(MAINPAGE!$C$8=\"\",\"\",VLOOKUP(MAINPAGE!$C$8,Reference!AB:AC,2,FALSE))","v":""},null,""]
[{"$f":"IF(MAINPAGE!$C$8=\"\",\"\",VLOOKUP(MAINPAGE!$C$8,Reference!AB:AC,2,FALSE))","v":""},null,""]
[{"$f":"IF(MAINPAGE!$C$8=\"\",\"\",VLOOKUP(MAINPAGE!$C$8,Reference!AB:AC,2,FALSE))","v":""},null,""]
[{"$f":"IF(MAINPAGE!$C$8=\"\",\"\",VLOOKUP(MAINPAGE!$C$8,Reference!AB:AC,2,FALSE))","v":""},null,""]
[{"$f":"IF(MAINPAGE!$C$8=\"\",\"\",VLOOKUP(MAINPAGE!$C$8,Reference!AB:AC,2,FALSE))","v":""},null,""]
[{"$f":"IF(MAINPAGE!$C$8=\"\",\"\",VLOOKUP(MAINPAGE!$C$8,Reference!AB:AC,2,FALSE))","v":""},null,""]
[{"$f":"IF(MAINPAGE!$C$8=\"\",\"\",VLOOKUP(MAINPAGE!$C$8,Reference!AB:AC,2,FALSE))","v":""},null,""]
[{"$f":"IF(MAINPAGE!$C$8=\"\",\"\",VLOOKUP(MAINPAGE!$C$8,Reference!AB:AC,2,FALSE))","v":""},null,""]
[{"$f":"IF(MAINPAGE!$C$8=\"\",\"\",VLOOKUP(MAINPAGE!$C$8,Reference!AB:AC,2,FALSE))","v":""},null,""]
[{"$f":"IF(MAINPAGE!$C$8=\"\",\"\",VLOOKUP(MAINPAGE!$C$8,Reference!AB:AC,2,FALSE))","v":""},null,""]
[{"$f":"IF(MAINPAGE!$C$8=\"\",\"\",VLOOKUP(MAINPAGE!$C$8,Reference!AB:AC,2,FALSE))","v":""},null,""]
[{"$f":"IF(MAINPAGE!$C$8=\"\",\"\",VLOOKUP(MAINPAGE!$C$8,Reference!AB:AC,2,FALSE))","v":""},null,""]
[{"$f":"IF(MAINPAGE!$C$8=\"\",\"\",VLOOKUP(MAINPAGE!$C$8,Reference!AB:AC,2,FALSE))","v":""},null,""]
[{"$f":"IF(MAINPAGE!$C$8=\"\",\"\",VLOOKUP(MAINPAGE!$C$8,Reference!AB:AC,2,FALSE))","v":""},null,""]

{"sheet":"CommentsList","index":8,"n_rows":15,"n_cols":17,"rows_kept":15,"cut":false,"hidden":true,"merged":[]}
["Cryo","Split on thaw/Hole in pack",null,"FFP","Split on thaw/Hole in pack",null,"Platelet","Adval: CMV/HLA/HPA/IRR",null,"RBC","Adval: CMV/IRR",null,"Gran","Adval: CMV/IRR",null,"Transport","Order arrived on a routine run"]
["Cryo","Port problem",null,"FFP","Port problem",null,"Platelet","Hole/Tear in bag",null,"RBC","Hole/Tear in bag",null,"Gran","Visual Abnormality",null,null,"Order coloaded with an ad hoc"]
["Cryo","Discoloured/Lipaemic",null,"FFP","Discoloured/Lipaemic",null,"Platelet","Port problem",null,"RBC","Port problem",null,"Gran","Pack Defect",null,null,"Routine delivery requested"]
["Cryo","Lumpy/White Flakes",null,"FFP","Aggregates/White Flakes",null,"Platelet","Red cell contamination",null,"RBC","Damaged/Contaminated in transit",null,"Gran","Short expiry",null,null,"Other"]
["Cryo ","Labelling/Barcode error",null,"FFP","Labelling/Barcode error",null,"Platelet","Discoloured/Lipaemic/Turbid",null,"RBC","Haemolysed",null,"Gran","Labelling/Barcode error"]
["Cryo ","Cold chain error",null,"FFP","Cold chain error",null,"Platelet","Aggregates/White flakes",null,"RBC","Clotted",null,"Gran","Cold chain error/Wrong PCMs used"]
["Cryo ","Recall",null,"FFP","Recall",null,"Platelet","Labelling/Barcode error",null,"RBC","Discoloured/ Lipaemic/ White flakes",null,"Gran","Recall"]
["Cryo ","Other",null,"FFP","Other",null,"Platelet","Short expiry",null,"RBC","DAT Positive",null,"Gran","Other"]
[null,null,null,null,null,null,"Platelet","Cold chain error/Wrong PCMs used",null,"RBC","Labelling/Barcode error"]
[null,null,null,null,null,null,"Platelet","Recall",null,"RBC","Short expiry"]
[null,null,null,null,null,null,"Platelet","Other",null,"RBC","Cold chain error/Wrong PCMs used"]
[null,null,null,null,null,null,null,null,null,"RBC","Recall"]
[null,null,null,null,null,null,null,null,null,"RBC","UAB"]
[null,null,null,null,null,null,null,null,null,"RBC","WRC"]
[null,null,null,null,null,null,null,null,null,"RBC","Other"]

{"sheet":"CredCodeList","index":9,"n_rows":8,"n_cols":21,"rows_kept":8,"cut":false,"hidden":true,"merged":[]}
["Cryo","DAC = Damaged Cryo","DAC",null,"FFP","DAF = Damaged FFP","DAF",null,"Platelet","CMV = Premium for CMV",{"$f":"LEFT(J1,3)","v":"CMV"},null,"RBC","CMV = Premium for CMV",{"$f":"LEFT(N1,3)","v":"CMV"},null,"Gran","CMV = Premium for CMV","CMV",null,"ADH"]
["Cryo","PAC = Packaging error","PAC",null,"FFP","PAC = Packaging error","PAC",null,"Platelet","DAP = Damaged Platelet","DAP",null,"RBC","DAR = Damaged RBC","DAR",null,"Gran","IRR = Premium for Irradiated","IRR",null,"COL"]
["Cryo","REC = Recalled Product","REC",null,"FFP","REC = Recalled Product","REC",null,"Platelet","HLA = Premium for HLA","HLA",null,"RBC","DAT = Positive DAT","DAT",null,"Gran","PAC = Packaging error","PAC",null,"EMG"]
[null,null,null,null,null,null,null,null,"Platelet","HPA = Premium for HPA",{"$f":"LEFT(J4,3)","v":"HPA"},null,"RBC","IRR = Premium for Irradiated","IRR",null,"Gran","REC = Recalled Product","REC"]
[null,null,null,null,null,null,null,null,"Platelet","IRR = Premium for Irradiated","IRR",null,"RBC","PAC = Packaging error","PAC"]
[null,null,null,null,null,null,null,null,"Platelet","PAC = Packaging error","PAC",null,"RBC","REC = Recalled Product","REC"]
[null,null,null,null,null,null,null,null,"Platelet","REC = Recalled Product","REC",null,"RBC","UAB = Unused Group AB Redcell","UAB"]
[null,null,null,null,null,null,null,null,null,null,null,null,"RBC","WRC = Premium for washed red cell","WRC"]

{"sheet":"Reference","index":10,"n_rows":334,"n_cols":32,"rows_kept":334,"cut":false,"hidden":true,"merged":[]}
["Code","EyeReadable",null,null,null,null,"GroupCode","Group","GroupCode","Code",null,"Type","ProductBarcode","Product Desc (short)","Product Desc (Long)","ProdCode","Type",null,"Choice",null,"Month",null,"Year",null,"Credit",null,null,"Pulse Code","Hospital Name","Centre",null,"Product Type"]
[0,0,null,0,null,null,6,"A Rh D Neg",6," A-",null,"RBC",153,"Whole Blood CPD",null,"0012","RBC",null,"Yes",null,"Jan",null,2024,null,"DAC = Damaged Cryo",{"$f":"LEFT(Y2,3)","v":"DAC"},null,9906,"EDINBURGH BTC",null,null,"RBC"]
[1,1,null,1,null,null,17,"B Rh D Neg",17," B-",null,"RBC",257,"Whole Blood CPD LD",null,"00L2","RBC",null,"No",null,"Feb",null,{"$f":"W2+1","v":2025},null,"DAF = Damaged FFP",{"$f":"LEFT(Y3,3)","v":"DAF"},null,9910,"INVERNESS BTC",null,null,"Platelet"]
[2,2,null,2,null,null,28,"AB Rh D Neg",28,"AB-",null,"RBC",267,"Whole Blood CPD1 LD",null,"00L1","RBC",null,null,null,"Mar",null,{"$f":"W3+1","v":2026},null,"DAP = Damaged Platelet","DAP",null,9917,"DUNDEE BTC",null,null,"Cryo"]
[3,3,null,3,null,null,51,"O Rh D Pos",51," O+",null,"RBC",4316,"Red Cells AS LD IRR PK1",null,"G057","RBC",null,null,null,"Apr",null,{"$f":"W4+1","v":2027},null,"DAR = Damaged RBC",{"$f":"LEFT(Y5,3)","v":"DAR"},null,9918,"BELFAST BTC",null,null,"FFP"]
[4,4,null,4,null,null,62,"A Rh D Pos",62," A+",null,"RBC",4317,"Red Cells AS LD IRR PK2","","G058","RBC",null,null,null,"May",null,{"$f":"W5+1","v":2028},null,"DAT = Positive DAT","DAT",null,9921,"Welsh Blood Service",null,null,"Gran"]
[5,5,null,5,null,null,73,"B Rh D Pos",73," B+",null,"RBC",4333,"Red Cells AD LD","RED CELLS IN ADDITIVE SOLUTION  LD (0054)","0054","RBC",null,null,null,"Jun",null,null,null,"HLA = Premium for HLA","HLA",null,9923,"WEST OF SCOTLAND BTS"]
[6,6,null,6,null,null,84,"AB Rh D Pos",84,"AB+",null,"RBC",4454,"Red Cells CPD LD","RED CELLS (CPD)  LD (0053)","0053","RBC",null,null,null,"Jul",null,null,null,"HPA = Premium for HPA","HPA",null,9924,"ABERDEEN BTC"]
[7,7,null,7,null,null,95,"O Rh D Neg",95," O-",null,"RBC",4464,"Red Cells CPDA1 LD","","0051","RBC",null,null,null,"Aug",null,null,null,"IRR = Premium for Irradiatied","IRR",null,9926,"Defence Blood Supply Depot","Birmingham"]
[8,8,null,8,null,null,null,null,null,null,null,"Cryo",10170,"Cryo LD","CRYOPRECIPITATE  LD (L531)","L531","Cryo",null,null,null,"Sep",null,null,null,"MIS = Miscellaneous","MIS",null,9930,"BTSB DUBLIN"]
[9,9,null,9,null,null,null,null,null,null,null,"Cryo",10190,"Cryo Pooled LD","LD POOLED CRYO (L571)","L571","Cryo",null,null,null,"Oct",null,null,null,"PAC = Packaging error","PAC",null,"C001","Bradford Royal Infirmary","Barnsley"]
[10,"A","a",10,"a",null,null,null,null,null,null,"Platelet",12030,"Plts APH LD","","0379","Platelet",null,null,null,"Nov",null,null,null,"REC = Recalled Product","REC",null,"C003","Harrogate District Hospital","Barnsley"]
[11,"B","b",11,"b",null,null,null,null,null,null,"Platelet",12769,"Plts Pool LD","","0378","Platelet",null,null,null,"Dec",null,null,null,"UAB = Unused Group AB Redcell","UAB",null,"C004","Airedale General Hospital","Barnsley"]
[12,"C","c",12,"c",null,null,null,null,null,null,"Platelet",12789,"Plts Pool LD Ext Life","PLATELETS POOLED LD  EXTENDED LIFE (L376)","L376","Platelet"]
[13,"D","d",13,"d",null,null,null,null,null,null,"Platelet",12964,"Plts LD For IUT (Hyperconc)","","0N81","Platelet",null,null,null,null,null,null,null,null,null,null,"C008","Pinderfields General Hospital","Barnsley"]
[14,"E","e",14,"e",null,null,null,null,null,null,"FFP",18260,"FFP","","0F15","FFP",null,null,null,null,null,null,null,null,null,null,"C010","York District Hospital","Barnsley"]
[15,"F","f",15,"f",null,null,null,null,null,null,"FFP",18291,"FFP LD PK1","","LF11","FFP",null,null,null,null,null,null,null,null,null,null,"C011","Huddersfield Royal Infirmary","Barnsley"]
[16,"G","g",16,"g",null,null,null,null,null,null,"FFP",18292,"FFP LD PK2","","LF12","FFP",null,null,null,null,null,null,null,null,null,null,"C012","Calderdale Royal Hospital","Barnsley"]
[17,"H","h",17,"h",null,null,null,null,null,null,"FFP",18300,"FFP LD","FRESH FROZEN PLASMA  LD (LF15)","LF15","FFP",null,null,null,null,null,null,null,null,null,null,"C013","Dewsbury and District Hospital","Barnsley"]
[18,"I","i",18,"i",null,null,null,null,null,null,"FFP",18320,"FFP LD","FRESH FROZEN PLASMA  LD (L553)","L553","FFP",null,null,null,null,null,null,null,null,null,null,"C014","Scarborough Hospital","Barnsley"]
[19,"J","j",19,"j",null,null,null,null,null,null,"FFP",18321,"FFP LD PCK1","FRESH FROZEN PLASMA  LD PK1 (L554)","L554","FFP",null,null,null,null,null,null,null,null,null,null,"C016","Hull Royal Infirmary","Barnsley"]
[20,"K","k",20,"k",null,null,null,null,null,null,"FFP",18322,"FFP LD PCK2","FRESH FROZEN PLASMA  LD PK2 (L555)","L555","FFP",null,null,null,null,null,null,null,null,null,null,"C019","Leeds General Infirmary","Barnsley"]
[21,"L","l",21,"l",null,null,null,null,null,null,"FFP",18360,"FFP Large Vol","","0F14","FFP",null,null,null,null,null,null,null,null,null,null,"C020","St James' University Hospital","Barnsley"]
[22,"M","m",22,"m",null,null,null,null,null,null,"FFP",18470,"FFP LD CD","","L561","FFP",null,null,null,null,null,null,null,null,null,null,"C064","Spire Hull and East Riding","Barnsley"]
[23,"N","n",23,"n",null,null,null,null,null,null,"Cryo ",29981,"Cryo LD Neontal use (UK) ","CRYOPRECIPITATE FOR NEONATES, LD (L534)","L534","RBC",null,null,null,null,null,null,null,null,null,null,"C025","SPIRE Hospital Leeds","Barnsley"]
[24,"O","o",24,"o",null,null,null,null,null,null,"RBC",30002,"Whole Blood CPDA1 Autologous","","0Y51","Platelet",null,null,null,null,null,null,null,null,null,null,"C048","Castle Hill Hospital","Barnsley"]
[25,"P","p",25,"p",null,null,null,null,null,null,"Platelet",30031,"Plts Neo LD PL/AD Sol Pack1","PLTS NEO LD PL/AD SOL 1 (0S11)","0S11","Platelet",null,null,null,null,null,null,null,null,null,null,"C138","Leeds Nuffield Hospital","Barnsley"]
[26,"Q","q",26,"q",null,null,null,null,null,null,"Platelet",30032,"Plts Neo LD PL/AD Sol Pack2","PLTS NEO LD PL/AD SOL 2 (0S12)","0S12","Platelet",null,null,null,null,null,null,null,null,null,null,"D001","Barnsley District General Hospital","Barnsley"]
[27,"R","r",27,"r",null,null,null,null,null,null,"Platelet",30033,"Plts Neo LD PL/AD Sol Pack3","PLTS NEO LD PL/AD SOL 3 (0S13)","0S13","Platelet",null,null,null,null,null,null,null,null,null,null,"D002","Pilgrim Hospital, (Boston)","Barnsley"]
[28,"S","s",28,"s",null,null,null,null,null,null,"Platelet",30034,"Plts Neo LD PL/AD Sol Pack4","PLTS NEO LD PL/AD SOL 4 (0S14)","0S14","Platelet",null,null,null,null,null,null,null,null,null,null,"D003","Chesterfield and North Derbyshire Royal Hospital","Barnsley"]
[29,"T","t",29,"t",null,null,null,null,null,null,"Platelet",30035,"Plts Neo LD PL/AD Sol Pack5","PLTS NEO LD PL/AD SOL 5 (0S15)","0S15","Platelet",null,null,null,null,null,null,null,null,null,null,"D004","Royal Derby Hospital","Barnsley"]
[30,"U","u",30,"u",null,null,null,null,null,null,"Platelet",30036,"Plts Neo LD PL/AD Sol Pack6","PLTS NEO LD PL/AD SOL 6 (0S16)","0S16","Platelet",null,null,null,null,null,null,null,null,null,null,"D006","Doncaster Royal Infirmary","Barnsley"]
[31,"V","v",31,"v",null,null,null,null,null,null,"Platelet",30037,"Plts Neo LD PL/AD Sol Pack7","PLTS NEO LD PL/AD SOL 7 (0S17)","0S17","Platelet",null,null,null,null,null,null,null,null,null,null,"D007","Grantham and District Hospital","Barnsley"]
[32,"W","w",32,"w",null,null,null,null,null,null,"Platelet",30038,"Plts Neo LD PL/AD Sol Pack8","PLTS NEO LD PL/AD SOL 8 (0S18)","0S18","Platelet",null,null,null,null,null,null,null,null,null,null,"D008","Diana Princess of Wales Hospital, Grimsby","Barnsley"]
[33,"X","x",33,"x",null,null,null,null,null,null,"Platelet",30051,"Plts Neo LD PL/AD Irraditaed Pack1","PLTS NEO LD PL/AD IRRADIATED 1 (GS11)","GS11","Platelet",null,null,null,null,null,null,null,null,null,null,"D010","Leicester General Hospital","Barnsley"]
[34,"Y","y",34,"y",null,null,null,null,null,null,"Platelet",30052,"Plts Neo LD PL/AD Irraditaed Pack2","PLTS NEO LD PL/AD IRRADIATED 2 (GS12)","GS12","Platelet",null,null,null,null,null,null,null,null,null,null,"D011","Glenfield General Hospital","Barnsley"]
[35,"Z","z",35,"z",null,null,null,null,null,null,"Platelet",30053,"Plts Neo LD PL/AD Irraditaed Pack3","PLTS NEO LD PL/AD IRRADIATED 3 (GS13)","GS13","Platelet",null,null,null,null,null,null,null,null,null,null,"D012","University Hospital Leicester","Barnsley"]
[36,"*","*",36,"*",null,null,null,null,null,null,"Platelet",30054,"Plts Neo LD PL/AD Irraditaed Pack4","PLTS NEO LD PL/AD IRRADIATED 4 (GS14)","GS14","Platelet",null,null,null,null,null,null,null,null,null,null,"D013","Lincoln County Hospital","Barnsley"]
[37,0,null,null,null,null,null,null,null,null,null,"Platelet",30055,"Plts Neo LD PL/AD Irraditaed Pack5","PLTS NEO LD PL/AD IRRADIATED 5 (GS15)","GS15","Platelet",null,null,null,null,null,null,null,null,null,null,"D015","Kings Mill Hospital","Barnsley"]
[38,1,null,null,null,null,null,null,null,null,null,"Platelet",30056,"Plts Neo LD PL/AD Irraditaed Pack6","PLTS NEO LD PL/AD IRRADIATED 6 (GS16)","GS16","Platelet",null,null,null,null,null,null,null,null,null,null,"D016","Nottingham University Hospital - City Campus","Barnsley"]
[null,null,null,null,null,null,null,null,null,null,null,"Platelet",30057,"Plts Neo LD PL/AD Irraditaed Pack7","PLTS NEO LD PL/AD IRRADIATED 7 (GS17)","GS17","Platelet",null,null,null,null,null,null,null,null,null,null,"D017","Nottingham University Hospital - Queens Campus","Barnsley"]
[null,null,null,null,null,null,null,null,null,null,null,"Platelet",30058,"Plts Neo LD PL/AD Irraditaed Pack8","PLTS NEO LD PL/AD IRRADIATED 8 (GS18)","GS18","RBC",null,null,null,null,null,null,null,null,null,null,"D018","Rotherham District General Hospital","Barnsley"]
[null,null,null,null,null,null,null,null,null,null,null,"RBC",40003,"Red Cells CPDA1 IRR","","GY34","RBC",null,null,null,null,null,null,null,null,null,null,"D019","Scunthorpe Hospital","Barnsley"]
[null,null,null,null,null,null,null,null,null,null,null,"RBC",40018,"Red Cells CPD LD IRR","RED CELLS (CPD)  LD, IRRADIATED (GY35)","GY35","RBC",null,null,null,null,null,null,null,null,null,null,"D020","Sheffield Children's Hospital","Barnsley"]
[null,null,null,null,null,null,null,null,null,null,null,"RBC",40257,"Whole Blood CPD LD IRR","","G0L2","RBC",null,null,null,null,null,null,null,null,null,null,"D021","Royal Hallamshire Hospital","Barnsley"]
[null,null,null,null,null,null,null,null,null,null,null,"RBC",40267,"Whole Blood CPDA1 LD IRR","","G0L1","RBC",null,null,null,null,null,null,null,null,null,null,"D022","Northern General Hospital","Barnsley"]
[null,null,null,null,null,null,null,null,null,null,null,"RBC",40350,"Red Cells CPD IRR","RED CELLS (CPD)  IRRADIATED LD (GX22)","GX22","RBC",null,null,null,null,null,null,null,null,null,null,"D024","The Newark Hospital","Barnsley"]
[null,null,null,null,null,null,null,null,null,null,null,"RBC",40360,"Red Cells CPDA1 IRR","","GX21","Platelet",null,null,null,null,null,null,null,null,null,null,"D025","Bassetlaw District General Hospital","Barnsley"]
[null,null,null,null,null,null,null,null,null,null,null,"Platelet",40778,"Plts APH LD IRR PK9","","GU19","Platelet",null,null,null,null,null,null,null,null,null,null,"D181","Danum Lodge Clinic","Barnsley"]
[null,null,null,null,null,null,null,null,null,null,null,"Platelet",40779,"Plts APH LD IRR PKA","","GU21","Platelet",null,null,null,null,null,null,null,null,null,null,"D183","Circle Health Group Thornbury Hospital","Barnsley"]
[null,null,null,null,null,null,null,null,null,null,null,"Platelet",40780,"Plts APH LD IRR PKB","","GU22","Platelet",null,null,null,null,null,null,null,null,null,null,"D184","Spire Hospital  Leicester","Barnsley"]
[null,null,null,null,null,null,null,null,null,null,null,"Platelet",40781,"Plts APH LD IRR PKC","","GU23","Platelet",null,null,null,null,null,null,null,null,null,null,"H010","SPIRE Little Aston Hospital","Birmingham"]
[null,null,null,null,null,null,null,null,null,null,null,"Platelet",42030,"Plts APH LD IRR","","G379","Platelet",null,null,null,null,null,null,null,null,null,null,"H011","Birmingham Childrens Hospital NHS Foundation Trust","Birmingham"]
[null,null,null,null,null,null,null,null,null,null,null,"Platelet",42769,"Plts Pool LD IRR","","G378","Platelet",null,null,null,null,null,null,null,null,null,null,"H014","Queen's Hospital, Burton on Trent","Birmingham"]
[null,null,null,null,null,null,null,null,null,null,null,"Platelet",42964,"Plts HyperConc IR","PLATELETS  HYPERCONCENTRATED, IRRADIATED LD (GN81)","GN81","RBC",null,null,null,null,null,null,null,null,null,null,"H015","Birmingham Women's Hospital","Birmingham"]
[null,null,null,null,null,null,null,null,null,null,null,"RBC",44333,"Red Cells AS LD IRR","RED CELLS IN ADDITIVE SOLUTION  LD, IRRADIATED (G054)","G054","RBC",null,null,null,null,null,null,null,null,null,null,"H019","Circle Health Group Droitwich Spa Hospital","Birmingham"]
[null,null,null,null,null,null,null,null,null,null,null,"RBC",44454,"Red Cells CPD LD IRR","","G053","RBC",null,null,null,null,null,null,null,null,null,null,"H020","City Hospital Birmingham","Birmingham"]
[null,null,null,null,null,null,null,null,null,null,null,"RBC",44464,"Red Cells CPDA1 LD IRR","","G051","RBC",null,null,null,null,null,null,null,null,null,null,"H021","Birmingham Heartlands Hospital","Birmingham"]
[null,null,null,null,null,null,null,null,null,null,null,"RBC",44666,"Whole Blood CPDA1 LD IRR","","GL17","RBC",null,null,null,null,null,null,null,null,null,null,"H022","Birmingham Nuffield Hospital","Birmingham"]
[null,null,null,null,null,null,null,null,null,null,null,"RBC",44667,"Whole Blood CPDA1 LD IRR","","GL18","RBC",null,null,null,null,null,null,null,null,null,null,"H023","Good Hope Hospital","Birmingham"]
[null,null,null,null,null,null,null,null,null,null,null,"RBC",45250,"Red Cells CPD LD IRR PK1","","GC21","RBC",null,null,null,null,null,null,null,null,null,null,"H024","County Hospital","Birmingham"]
[null,null,null,null,null,null,null,null,null,null,null,"RBC",45251,"Red Cells CPD LD IRR PK2","","GC22","RBC",null,null,null,null,null,null,null,null,null,null,"H025","Kidderminster Hospital","Birmingham"]
[null,null,null,null,null,null,null,null,null,null,null,"RBC",45252,"Red Cells CPD LD IRR PK3","","GC23","RBC",null,null,null,null,null,null,null,null,null,null,"H026","George Eliot Hospital","Birmingham"]
[null,null,null,null,null,null,null,null,null,null,null,"RBC",45253,"Red Cells CPD LD IRR PK4","","GC24","RBC",null,null,null,null,null,null,null,null,null,null,"H027","North Staffordshire Nuffield Hospital","Birmingham"]
[null,null,null,null,null,null,null,null,null,null,null,"RBC",45254,"Red Cells CPD LD IRR PK5","","GC25","RBC",null,null,null,null,null,null,null,null,null,null,"H029","Oswestry Orthopaedic Hospital","Birmingham"]
[null,null,null,null,null,null,null,null,null,null,null,"RBC",45255,"Red Cells CPD LD IRR PK6","","GC26","RBC",null,null,null,null,null,null,null,null,null,null,"H030","Circle Health Group The Priory Hospital","Birmingham"]
[null,null,null,null,null,null,null,null,null,null,null,"RBC",45256,"Red Cells CPD LD IRR PK7","","GC27","RBC",null,null,null,null,null,null,null,null,null,null,"H031","University Hospital - Queen Elizabeth","Birmingham"]
[null,null,null,null,null,null,null,null,null,null,null,"RBC",45257,"Red Cells CPD LD IRR PK8","","GC28","RBC",null,null,null,null,null,null,null,null,null,null,"H032","Alexandra Hospital Redditch","Birmingham"]
[null,null,null,null,null,null,null,null,null,null,null,"RBC",45260,"Red Cells PR LD IRR PK1","","GC11","RBC",null,null,null,null,null,null,null,null,null,null,"H033","Russell's Hall Hospital","Birmingham"]
[null,null,null,null,null,null,null,null,null,null,null,"RBC",45261,"Red Cells PR LD IRR PK2","","GC12","RBC",null,null,null,null,null,null,null,null,null,null,"H035","Hospital of St Cross, Rugby","Birmingham"]
[null,null,null,null,null,null,null,null,null,null,null,"RBC",45262,"Red Cells PR LD IRR PK13","","GC13","RBC",null,null,null,null,null,null,null,null,null,null,"H036","Royal Shrewsbury Hospital","Birmingham"]
[null,null,null,null,null,null,null,null,null,null,null,"RBC",45263,"Red Cells PR LD IRR PK4","","GC14","RBC",null,null,null,null,null,null,null,null,null,null,"H037","Sandwell District General Hospital","Birmingham"]
[null,null,null,null,null,null,null,null,null,null,null,"RBC",45264,"Red Cells PR LD IRR PK5","","GC15","RBC",null,null,null,null,null,null,null,null,null,null,"H039","Staffordshire General Infirmary","Birmingham"]
[null,null,null,null,null,null,null,null,null,null,null,"RBC",45265,"Red Cells PR LD IRR PK6","","GC16","RBC",null,null,null,null,null,null,null,null,null,null,"H040","Nuffield Shrewsbury Hospital","Birmingham"]
[null,null,null,null,null,null,null,null,null,null,null,"RBC",45266,"Red Cells PR LD IRR PK7","","GC17","RBC",null,null,null,null,null,null,null,null,null,null,"H041","University Hospital of North Staffordshire","Birmingham"]
[null,null,null,null,null,null,null,null,null,null,null,"RBC",45267,"Red Cells PR LD IRR PK8","","GC18","Gran",null,null,null,null,null,null,null,null,null,null,"H043","Solihull Hospital","Birmingham"]
[null,null,null,null,null,null,null,null,null,null,null,"Gran",46435,"GRANULOCYTES APHERESIS  IRRADIATED  DO NOT AGITATE","GRANULOCYTES APHERESIS  IRRADIATED  DO NOT AGITATE (G352)","G352","Gran",null,null,null,null,null,null,null,null,null,null,"H044","SPIRE Parkway Hospital","Birmingham"]
[null,null,null,null,null,null,null,null,null,null,null,"Gran",46460,"LEUCOCYTES, BUFFY COAT  IRRADIATED","LEUCOCYTES, BUFFY COAT  IRRADIATED (G351)","G351","RBC",null,null,null,null,null,null,null,null,null,null,"H046","Princess Royal Hospital, (Telford)","Birmingham"]
[null,null,null,null,null,null,null,null,null,null,null,"RBC",46531,"RED CELLS IN SAGM, Washed, Manual Prep","RED CELLS IN SAGM, Washed, Manual Prep","0076","RBC",null,null,null,null,null,null,null,null,null,null,"H047","University Hospitals Coventry & Warwickshire","Birmingham"]
[null,null,null,null,null,null,null,null,null,null,null,"RBC",46532,"RED CELLS IN SAGM, Washed, IRR, Manual Prep","RED CELLS IN SAGM, Washed, IRR, Manual Prep (G076)","G076","RBC",null,null,null,null,null,null,null,null,null,null,"H048","Warwick Hospital","Birmingham"]
[null,null,null,null,null,null,null,null,null,null,null,"RBC",46830,"Red Cells AS LD IRR PK1","RED CELLS IN ADDITIVE SOLUTION  LD, IRR NEO PCK1 (GB21)","GB21","RBC",null,null,null,null,null,null,null,null,null,null,"H049","Walsall Manor Hospital","Birmingham"]
[null,null,null,null,null,null,null,null,null,null,null,"RBC",46831,"Red Cells AS LD IRR PK2","RED CELLS IN ADDITIVE SOLUTION  LD, IRR NEO PCK2 (GB22)","GB22","RBC",null,null,null,null,null,null,null,null,null,null,"H050","New Cross Hospital","Birmingham"]
[null,null,null,null,null,null,null,null,null,null,null,"RBC",46832,"Red Cells AS LD IRR PK3","RED CELLS IN ADDITIVE SOLUTION  LD, IRR NEO PCK3 (GB23)","GB23","RBC",null,null,null,null,null,null,null,null,null,null,"H051","Warwickshire Nuffield Hospital","Birmingham"]
[null,null,null,null,null,null,null,null,null,null,null,"RBC",46833,"Red Cells AS LD IRR PK4","RED CELLS IN ADDITIVE SOLUTION  LD, IRR NEO PCK4 (GB24)","GB24","RBC",null,null,null,null,null,null,null,null,null,null,"H052","Worcestershire Royal Hospital","Birmingham"]
[null,null,null,null,null,null,null,null,null,null,null,"RBC",46834,"Red Cells AS LD IRR PK5","RED CELLS IN ADDITIVE SOLUTION  LD, IRR NEO PCK5 (GB25)","GB25","RBC",null,null,null,null,null,null,null,null,null,null,"H053","Nuffield Health Wolverhampton Hub Hospital","Birmingham"]
[null,null,null,null,null,null,null,null,null,null,null,"RBC",46835,"Red Cells AS LD IRR PK6","RED CELLS IN ADDITIVE SOLUTION  LD, IRR NEO PCK6 (GB26)","GB26","RBC",null,null,null,null,null,null,null,null,null,null,"H092","Ramsay Priory Hospital","Birmingham"]
[null,null,null,null,null,null,null,null,null,null,null,"RBC",46836,"Red Cells AS LD IRR PK7","","GB27","RBC",null,null,null,null,null,null,null,null,null,null,"K003","Fairfield General Hospital","Manchester"]
[null,null,null,null,null,null,null,null,null,null,null,"RBC",46837,"Red Cells AS LD IRR PK8","","GB28","Platelet",null,null,null,null,null,null,null,null,null,null,"M014","Royal Bolton Hospital","Manchester"]
[null,null,null,null,null,null,null,null,null,null,null,"Platelet",48231,"Plts APH LD IRR PK1","","GU11","Platelet",null,null,null,null,null,null,null,null,null,null,"M015","Ramsay Renacres Hospital","Manchester"]
[null,null,null,null,null,null,null,null,null,null,null,"Platelet",48232,"Plts APH LD IRR PK2","","GU12","Platelet",null,null,null,null,null,null,null,null,null,null,"M020","Christie Hospital","Manchester"]
[null,null,null,null,null,null,null,null,null,null,null,"Platelet",48233,"Plts APH LD IRR PK3","","GU13","Platelet",null,null,null,null,null,null,null,null,null,null,"M022","Salford Royal Hospital","Manchester"]
[null,null,null,null,null,null,null,null,null,null,null,"Platelet",48234,"Plts APH LD IRR PK4","","GU14","Platelet",null,null,null,null,null,null,null,null,null,null,"M026","Leighton Hospital","Manchester"]
[null,null,null,null,null,null,null,null,null,null,null,"Platelet",48235,"Plts APH LD IRR PK5","","GU15","Platelet",null,null,null,null,null,null,null,null,null,null,"M028","Macclesfield District General Hospital","Manchester"]
[null,null,null,null,null,null,null,null,null,null,null,"Platelet",48236,"Plts APH LD IRR PK6","","GU16","Platelet",null,null,null,null,null,null,null,null,null,null,"M029","Ramsey Euxton Hall Hospital","Manchester"]
[null,null,null,null,null,null,null,null,null,null,null,"Platelet",48237,"Plts APH LD IRR PK7","","GU17","Platelet",null,null,null,null,null,null,null,null,null,null,"M032","North Manchester General Hospital","Manchester"]
[null,null,null,null,null,null,null,null,null,null,null,"Platelet",48238,"Plts APH LD IRR PK8","","GU18","Platelet",null,null,null,null,null,null,null,null,null,null,"M036","Royal Oldham Hospital","Manchester"]
[null,null,null,null,null,null,null,null,null,null,null,"Platelet",48340,"Plts APH LD IRR PK1","","G371","Platelet",null,null,null,null,null,null,null,null,null,null,"M040","Stepping Hill Hospital","Manchester"]
[null,null,null,null,null,null,null,null,null,null,null,"Platelet",48341,"Plts APH LD IRR PK2","","G372","Platelet",null,null,null,null,null,null,null,null,null,null,"M041","Ramsay Oaklands Hospital","Manchester"]
[null,null,null,null,null,null,null,null,null,null,null,"Platelet",48342,"Plts APH LD IRR PK3","","G373","Platelet",null,null,null,null,null,null,null,null,null,null,"M042","Tameside General Hospital","Manchester"]
[null,null,null,null,null,null,null,null,null,null,null,"Platelet",48343,"Plts APH LD IRR PK4","","G374","Platelet",null,null,null,null,null,null,null,null,null,null,"M044","Trafford General Hospital","Manchester"]
[null,null,null,null,null,null,null,null,null,null,null,"Platelet",50778,"Plts APH LD PK9","","0U19","Platelet",null,null,null,null,null,null,null,null,null,null,"M046","Wigan Royal Infirmary","Manchester"]
[null,null,null,null,null,null,null,null,null,null,null,"Platelet",50779,"Plts APH LD PKA","","0U21","Platelet",null,null,null,null,null,null,null,null,null,null,"M050","Wythenshawe Hospital","Manchester"]
[null,null,null,null,null,null,null,null,null,null,null,"Platelet",50780,"Plts APH LD PKB","","0U22","Platelet",null,null,null,null,null,null,null,null,null,null,"M056","Royal Blackburn Hospital","Lancaster"]
[null,null,null,null,null,null,null,null,null,null,null,"Platelet",50781,"Plts APH LD PKC","","0U23","Platelet",null,null,null,null,null,null,null,null,null,null,"M082","SPIRE Hospital Manchester","Manchester"]
[null,null,null,null,null,null,null,null,null,null,null,"Platelet",54231,"Plts APH PL/AD Soln M","","0439","Platelet",null,null,null,null,null,null,null,null,null,null,"M082","SPIRE Manchester","Manchester"]
[null,null,null,null,null,null,null,null,null,null,null,"Platelet",54232,"Plts Pool PL/AD Soln M","","0384","Platelet",null,null,null,null,null,null,null,null,null,null,"M082","Spire Hospital, Manchester","Manchester"]
[null,null,null,null,null,null,null,null,null,null,null,"Platelet",54233,"Plts APH AS IRR PK1","PLATELETS APHERESIS IN ADDITIVE  SOLN IRR LD PCK 1 (G421)","G421","Platelet",null,null,null,null,null,null,null,null,null,null,"M103","Central Manchester Foundation Trust","Manchester"]
[null,null,null,null,null,null,null,null,null,null,null,"Platelet",54234,"Plts APH AS IRR PK2","PLATELETS APHERESIS IN ADDITIVE  SOLN IRR LD PCK 2 (G422)","G422","Platelet",null,null,null,null,null,null,null,null,null,null,"M112","The Doctors Laboratory Ltd, Manchester","Manchester"]
[null,null,null,null,null,null,null,null,null,null,null,"Platelet",54235,"Plts APH AS IRR PK3","PLATELETS APHERESIS IN ADDITIVE  SOLN IRR LD PCK 3 (G423)","G423","Platelet",null,null,null,null,null,null,null,null,null,null,"M174","Chorley and South Ribble District General Hospital","Lancaster"]
[null,null,null,null,null,null,null,null,null,null,null,"Platelet",54236,"Plts APH AS IRR","PLATELETS APHERESIS IN ADDITIVE  SOLUTION IRRAD LD (G429)","G429","Platelet",null,null,null,null,null,null,null,null,null,null,"M192","Noble's Isle of Man Hospital","Liverpool"]
[null,null,null,null,null,null,null,null,null,null,null,"Platelet",54237,"Plts Pool AS IRR PK","PLATELETS POOLED IN ADDITIVE  SOLN  IRRADIATED LD (G383)","G383","Platelet",null,null,null,null,null,null,null,null,null,null,"M201","Blackpool Victoria Hospital","Lancaster"]
[null,null,null,null,null,null,null,null,null,null,null,"Platelet",54238,"Plts APH PL/AD Soln IRR PK1","","G431","Platelet",null,null,null,null,null,null,null,null,null,null,"M202","Royal Lancaster Infirmary","Lancaster"]
[null,null,null,null,null,null,null,null,null,null,null,"Platelet",54239,"Plts APH PL/AD Soln IRR PK2","","G432","Platelet",null,null,null,null,null,null,null,null,null,null,"M204","Royal Preston Hospital","Lancaster"]
[null,null,null,null,null,null,null,null,null,null,null,"Platelet",54240,"Plts APH PL/AD Soln IRR PK3","","G433","Platelet",null,null,null,null,null,null,null,null,null,null,"M205","Furness General Hospital","Lancaster"]
[null,null,null,null,null,null,null,null,null,null,null,"Platelet",54241,"Plts APH PL/AD Soln I","","G439","Platelet",null,null,null,null,null,null,null,null,null,null,"M207","Burnley General Hospital","Lancaster"]
[null,null,null,null,null,null,null,null,null,null,null,"Platelet",54242,"Plts Pool PL/AD Soln IRR PK","","G384","Platelet",null,null,null,null,null,null,null,null,null,null,"M208","Westmorland General Hospital","Lancaster"]
[null,null,null,null,null,null,null,null,null,null,null,"Platelet",54243,"Plts APH AS Pk1","PLATELETS APHERESIS IN  ADDITIVE SOLUTION LD PCK 1 (0421)","0421","Platelet",null,null,null,null,null,null,null,null,null,null,"M301","Alder Hey Children's Hospital","Liverpool"]
[null,null,null,null,null,null,null,null,null,null,null,"Platelet",54244,"Plts APH AS Pk2","PLATELETS APHERESIS IN  ADDITIVE SOLUTION LD PCK 2 (0422)","0422","Platelet",null,null,null,null,null,null,null,null,null,null,"M302","Broadgreen Hospital","Liverpool"]
[null,null,null,null,null,null,null,null,null,null,null,"Platelet",54245,"Plts APH AS Pk3","PLATELETS APHERESIS IN  ADDITIVE SOLUTION LD PCK 3 (0423)","0423","Platelet",null,null,null,null,null,null,null,null,null,null,"M303","Aintree University Hospital","Liverpool"]
[null,null,null,null,null,null,null,null,null,null,null,"Platelet",54246,"Plts APH AS","PLATELETS APHERESIS IN  ADDITIVE SOLUTION (0429)","0429","Platelet",null,null,null,null,null,null,null,null,null,null,"M304","Halton General Hospital","Liverpool"]
[null,null,null,null,null,null,null,null,null,null,null,"Platelet",54247,"Plts Pool AS","PLATELETS POOLED IN ADDITIVE  SOLUTION LD (0383)","0383","Platelet",null,null,null,null,null,null,null,null,null,null,"M305","Liverpool Women's Hospital","Liverpool"]
[null,null,null,null,null,null,null,null,null,null,null,"Platelet",54248,"Plts APH PL/AD Soln P","","0431","Platelet",null,null,null,null,null,null,null,null,null,null,"M307","Ormskirk and District General Hospital","Liverpool"]
[null,null,null,null,null,null,null,null,null,null,null,"Platelet",54249,"Plts APH PL/AD Soln P","","0432","Platelet",null,null,null,null,null,null,null,null,null,null,"M308","Royal Liverpool University Hospital","Liverpool"]
[null,null,null,null,null,null,null,null,null,null,null,"Platelet",54250,"Plts APH PL/AD Soln P","","0433","Cryo",null,null,null,null,null,null,null,null,null,null,"M309","Southport Hospital","Liverpool"]
[null,null,null,null,null,null,null,null,null,null,null,"Cryo",54260,"Cryo LD MB Treated and Removed","CRYO  (NON UK) METHYLENE BLUE REMOVED (LF31)","LF31","RBC",null,null,null,null,null,null,null,null,null,null,"M312","Warrington Hospital","Liverpool"]
[null,null,null,null,null,null,null,null,null,null,null,"RBC",54263,"RED CELLS THAWED/ WASHED  CLOSED SYSTEM PREPN","RED CELLS THAWED/ WASHED  CLOSED SYSTEM PREPN (0072)","0072","FFP",null,null,null,null,null,null,null,null,null,null,"M313","Whiston Hospital","Liverpool"]
[null,null,null,null,null,null,null,null,null,null,null,"FFP",54271,"FFP PAED MBTR NON UK PK1","FFP PAED USE  MB TREATED/REMOVED LD, NON-UK (LF74)","LF74","FFP",null,null,null,null,null,null,null,null,null,null,"M315","Arrowe Park Hospital","Liverpool"]
[null,null,null,null,null,null,null,null,null,null,null,"FFP",54272,"FFP PAED MBTR NON UK PK2","FFP PAED USE  MB TREATED/REMOVED LD, NON-UK PCK 1 (LF71)","LF71","FFP",null,null,null,null,null,null,null,null,null,null,"M317","Countess of Chester Hospital","Liverpool"]
[null,null,null,null,null,null,null,null,null,null,null,"FFP",54273,"FFP PAED MBTR NON UK PK3","FFP PAED USE  MB TREATED/REMOVED LD, NON-UK PCK 2 (LF72)","LF72","FFP",null,null,null,null,null,null,null,null,null,null,"M318","Glan Clwyd Hospital","Liverpool"]
[null,null,null,null,null,null,null,null,null,null,null,"FFP",54274,"FFP PAED MBTR NON UK PK4","FFP PAED USE  MB TREATED/REMOVED LD, NON-UK PCK 3 (LF73)","LF73","FFP",null,null,null,null,null,null,null,null,null,null,"M319","Gwynedd Hospital","Liverpool"]
[null,null,null,null,null,null,null,null,null,null,null,"FFP",54275,"FFP NEONATAL MBTR NON UK ","FFP NEO USE  MB TREATED/REMOVED LD, NON-UK, PCK1 (LF81)","LF81","FFP",null,null,null,null,null,null,null,null,null,null,"M321","Wrexham Maelor Hospital","Liverpool"]
[null,null,null,null,null,null,null,null,null,null,null,"FFP",54276,"FFP NEONATAL MBTR NON UK PK2","FFP NEO USE  MB TREATED/REMOVED LD, NON-UK, PCK2 (LF82)","LF82","FFP",null,null,null,null,null,null,null,null,null,null,"M324","SPIRE Murrayfield Hospital Wirral","Liverpool"]
[null,null,null,null,null,null,null,null,null,null,null,"FFP",54277,"FFP NEONATAL MBTR NON UK PK3","FFP NEO USE  MB TREATED/REMOVED LD, NON-UK, PCK3 (LF83)","LF83","FFP",null,null,null,null,null,null,null,null,null,null,"MB01","AKROTIRI BFPO 57","Birmingham"]
[null,null,null,null,null,null,null,null,null,null,null,"FFP",54278,"FFP NEONATAL MBTR NON UK PK4","FFP NEO USE  MB TREATED/REMOVED LD, NON-UK, PCK4 (LF84)","LF84","FFP",null,null,null,null,null,null,null,null,null,null,"MB02","BELIZE BFPO 12","Birmingham"]
[null,null,null,null,null,null,null,null,null,null,null,"FFP",54279,"FFP NEONATAL MBTR NON UK PK5","FFP NEO USE  MB TREATED/REMOVED LD, NON-UK, PCK5 (LF85)","LF85","FFP",null,null,null,null,null,null,null,null,null,null,"MB03","FALKLANDS BFPO 656","Birmingham"]
[null,null,null,null,null,null,null,null,null,null,null,"FFP",54280,"FFP NEONATAL MBTR NON UK PK6","FFP NEO USE  MB TREATED/REMOVED LD, NON-UK, PCK6 (LF86)","LF86","FFP",null,null,null,null,null,null,null,null,null,null,"MB04","GIBRALTAR BFPO 52","Birmingham"]
[null,null,null,null,null,null,null,null,null,null,null,"FFP",54281,"FFP NEONATAL MBTR NON UK PK7","FFP NEO USE  MB TREATED/REMOVED LD, NON-UK, PCK7 (LF87)","LF87","FFP",null,null,null,null,null,null,null,null,null,null,"MB05","NAIROBI BFPO 10","Birmingham"]
[null,null,null,null,null,null,null,null,null,null,null,"FFP",54282,"FFP NEONATAL MBTR NON UK PK8","FFP NEO USE  MB TREATED/REMOVED LD, NON-UK, PCK8 (LF88)","LF88","FFP",null,null,null,null,null,null,null,null,null,null,"MB06","BRUNEI BFPO 11","Birmingham"]
[null,null,null,null,null,null,null,null,null,null,null,"FFP",54283,"FFP NEONATAL MBTR NON UK PK9","FFP NEO USE  MB TREATED/REMOVED LD, NON-UK, PCK9 (LF89)","LF89","FFP",null,null,null,null,null,null,null,null,null,null,"MB11","VHR1","Birmingham"]
[null,null,null,null,null,null,null,null,null,null,null,"FFP",54284,"FFP NEONATAL MBTR NON UK PKA","FFP NEONATAL USE  MB TREATED/REMOVED LD NONUKPK10 (LF91)","LF91","FFP",null,null,null,null,null,null,null,null,null,null,"MB12","VHR2","Birmingham"]
[null,null,null,null,null,null,null,null,null,null,null,"FFP",54285,"FFP NEONATAL MBTR NON UK PKB","FFP NEONATAL USE  MB TREATED/REMOVED LD NONUKPK11 (LF92)","LF92","FFP",null,null,null,null,null,null,null,null,null,null,"MB13","TMW 1","Birmingham"]
[null,null,null,null,null,null,null,null,null,null,null,"FFP",54286,"FFP NEONATAL MBTR NON UK PKC","FFP NEONATAL USE  MB TREATED/REMOVED LD NONUKPK12 (LF93)","LF93","Platelet",null,null,null,null,null,null,null,null,null,null,"MB15","HM SHIPS 1","Birmingham"]
[null,null,null,null,null,null,null,null,null,null,null,"Platelet",54288,"Platelets Apheresis Leucodeplete Extended Lif","PLATELETS APHERESIS LD  EXTENDED LIFE (0459)","0459","Platelet",null,null,null,null,null,null,null,null,null,null,"MB16","HM SHIPS 2","Birmingham"]
[null,null,null,null,null,null,null,null,null,null,null,"Platelet",54289,"Platelets Apheresis Leucodeplete Extended Lif  Pack 1","PLATELETS APHERESIS LD  EXTENDED LIFE PACK 1 (0451)","0451","Platelet",null,null,null,null,null,null,null,null,null,null,"MB17","TQF","Birmingham"]
[null,null,null,null,null,null,null,null,null,null,null,"Platelet",54290,"Platelets Apheresis Leucodeplete Extended Lif  Pack 2","PLATELETS APHERESIS LD  EXTENDED LIFE PACK 2 (0452)","0452","Platelet",null,null,null,null,null,null,null,null,null,null,"MB19","OPERATION 1","Birmingham"]
[null,null,null,null,null,null,null,null,null,null,null,"Platelet",54291,"Platelets Apheresis Leucodeplete Extended Lif  Pack 3","PLATELETS APHERESIS LD  EXTENDED LIFE PACK 3 (0453)","0453","Platelet",null,null,null,null,null,null,null,null,null,null,"MB20","OPERATION 2","Birmingham"]
[null,null,null,null,null,null,null,null,null,null,null,"Platelet",54292,"Platelets Apheresis Leucodeplete Extended Lif  Irradiated","PLATELETS APHERESIS LD  EXTENDED LIFE IRRADIATED (G459)","G459","Platelet",null,null,null,null,null,null,null,null,null,null,"MB21","SO 1","Birmingham"]
[null,null,null,null,null,null,null,null,null,null,null,"Platelet",54293,"Platelets Apheresis Leucodeplete Extended Lif  Irradiated Pack 1","PLATELETS APHERESIS LD  EXTENDED LIFE IRRAD PCK 1 (G451)","G451","Platelet",null,null,null,null,null,null,null,null,null,null,"MB22","SO 2","Birmingham"]
[null,null,null,null,null,null,null,null,null,null,null,"Platelet",54294,"Platelets Apheresis Leucodeplete Extended Lif  Irradiated Pack 2","PLATELETS APHERESIS LD  EXTENDED LIFE IRRAD PCK 2 (G452)","G452","Platelet",null,null,null,null,null,null,null,null,null,null,"MB23","EXERCISE 1","Birmingham"]
[null,null,null,null,null,null,null,null,null,null,null,"Platelet",54295,"Platelets Apheresis Leucodeplete Extended Lif  Irradiated Pack 3","PLATELETS APHERESIS LD  EXTENDED LIFE IRRAD PCK 3 (G453)","G453","Platelet",null,null,null,null,null,null,null,null,null,null,"MB24","EXERCISE 2","Birmingham"]
[null,null,null,null,null,null,null,null,null,null,null,"Platelet",54296,"Plts Pool LD/EL Irradiated","PLATELETS POOLED LD  EXTENDED LIFE IRRADIATED (G376)","G376","Gran",null,null,null,null,null,null,null,null,null,null,"MB25","AFGHANISTAN OP HERRICK JF MED FACILITY MILIT BASE","Birmingham"]
[null,null,null,null,null,null,null,null,null,null,null,"Gran",54395,"POOLED GRANS PAS IRR","POOLED GRANS PAS IRR (G355)","G355","Platelet",null,null,null,null,null,null,null,null,null,null,"MB31","OP Turus","Birmingham"]
[null,null,null,null,null,null,null,null,null,null,null,"Platelet",54421,"Plts APH LD PL/AD Soln Mix EL","PLT APH OA/PL EXT SINGLE (0449)","0449","Platelet",null,null,null,null,null,null,null,null,null,null,"MB32","Morroco","Birmingham"]
[null,null,null,null,null,null,null,null,null,null,null,"Platelet",54425,"Plts APH LD PL/AD Soln Mix Pack1","","0A11","Platelet",null,null,null,null,null,null,null,null,null,null,"N024","Northumbria Specialist Emergency Care Hospital","Newcastle"]
[null,null,null,null,null,null,null,null,null,null,null,"Platelet",54426,"Plts APH LD PL/AD Soln Mix Pack","","0A12","Platelet",null,null,null,null,null,null,null,null,null,null,"N033","Cumberland Infirmary","Newcastle"]
[null,null,null,null,null,null,null,null,null,null,null,"Platelet",54427,"Plts APH LD PL/AD Soln Mix Pack","","0A13","Platelet",null,null,null,null,null,null,null,null,null,null,"N063","Darlington Memorial Hospital","Newcastle"]
[null,null,null,null,null,null,null,null,null,null,null,"Platelet",54428,"Plts APH LD PL/AD Soln Mix Pack4","","0A14","Platelet",null,null,null,null,null,null,null,null,null,null,"N073","University Hospital of North Durham","Newcastle"]
[null,null,null,null,null,null,null,null,null,null,null,"Platelet",54429,"Plts APH LD PL/AD Soln Mix Pack5","","0A15","Platelet",null,null,null,null,null,null,null,null,null,null,"N083","Freeman Hospital","Newcastle"]
[null,null,null,null,null,null,null,null,null,null,null,"Platelet",54430,"Plts APH LD PL/AD Soln Mix Pack6","","0A16","Platelet",null,null,null,null,null,null,null,null,null,null,"N093","University Hospital of Hartlepool","Newcastle"]
[null,null,null,null,null,null,null,null,null,null,null,"Platelet",54431,"Plts APH LD PL/AD Soln Mix Pack7","","0A17","Platelet",null,null,null,null,null,null,null,null,null,null,"N113","Newcastle Nuffield Hospital","Newcastle"]
[null,null,null,null,null,null,null,null,null,null,null,"Platelet",54432,"Plts APH LD PL/AD Soln Mix Pack8","","0A18","Platelet",null,null,null,null,null,null,null,null,null,null,"N123","James Cook University Hospital Middlesborough","Newcastle"]
[null,null,null,null,null,null,null,null,null,null,null,"Platelet",54433,"Plts APH LD PL/AD Soln Mix Pack9","","0A19","Platelet",null,null,null,null,null,null,null,null,null,null,"N153","University Hospital of North Tees","Newcastle"]
[null,null,null,null,null,null,null,null,null,null,null,"Platelet",54434,"Plts APH LD PL/AD Soln Mix Pack10","","0A21","Platelet",null,null,null,null,null,null,null,null,null,null,"N183","Queen Elizabeth Hospital, (Gateshead)","Newcastle"]
[null,null,null,null,null,null,null,null,null,null,null,"Platelet",54435,"Plts APH LD PL/AD Soln Mix Pack11","","0A22","Platelet",null,null,null,null,null,null,null,null,null,null,"N193","Royal Victoria Infirmary","Newcastle"]
[null,null,null,null,null,null,null,null,null,null,null,"Platelet",54436,"Plts APH LD PL/AD Soln Mix Pack12","","0A23","Platelet",null,null,null,null,null,null,null,null,null,null,"N213","South Tyneside District General Hospital","Newcastle"]
[null,null,null,null,null,null,null,null,null,null,null,"Platelet",54437,"Plts APH LD PL/AD Soln Mix EL Pack1","","OP11","Platelet",null,null,null,null,null,null,null,null,null,null,"N223","Sunderland Royal Hospital","Newcastle"]
[null,null,null,null,null,null,null,null,null,null,null,"Platelet",54438,"Plts APH LD PL/AD Soln Mix EL Pack2","","OP12","Platelet",null,null,null,null,null,null,null,null,null,null,"N233","West Cumberland Hospital","Newcastle"]
[null,null,null,null,null,null,null,null,null,null,null,"Platelet",54439,"Plts APH LD PL/AD Soln Mix EL Pack3","","OP13","Platelet",null,null,null,null,null,null,null,null,null,null,"P114","Royal Marsden Hospital, Fulham Road","Tooting"]
[null,null,null,null,null,null,null,null,null,null,null,"Platelet",54440,"Plts APH LD PL/AD Soln Mix EL Pack","","OP14","Platelet",null,null,null,null,null,null,null,null,null,null,"P119","Medway Maritime Hospital","Tooting"]
[null,null,null,null,null,null,null,null,null,null,null,"Platelet",54441,"Plts APH LD PL/AD Soln Mix EL Pack5","","OP15","Platelet",null,null,null,null,null,null,null,null,null,null,"P122","William Harvey Hospital","Tooting"]
[null,null,null,null,null,null,null,null,null,null,null,"Platelet",54442,"Plts APH LD PL/AD Soln Mix EL Pack6","","OP16","Platelet",null,null,null,null,null,null,null,null,null,null,"P124","Kings College Hospital","Tooting"]
[null,null,null,null,null,null,null,null,null,null,null,"Platelet",54443,"Plts APH LD PL/AD Soln Mix EL Pack7","","OP17","Platelet",null,null,null,null,null,null,null,null,null,null,"P125","Eastbourne District General Hospital","Tooting"]
[null,null,null,null,null,null,null,null,null,null,null,"Platelet",54444,"Plts APH LD PL/AD Soln Mix EL Pack8","","OP18","Platelet",null,null,null,null,null,null,null,null,null,null,"P128","Princess Royal University Hospital,(Farnborough)","Tooting"]
[null,null,null,null,null,null,null,null,null,null,null,"Platelet",54445,"Plts APH LD PL/AD Soln Mix EL Pack9","","OP19","Platelet",null,null,null,null,null,null,null,null,null,null,"P130","Darent Valley Hospital","Tooting"]
[null,null,null,null,null,null,null,null,null,null,null,"Platelet",54446,"Plts APH LD PL/AD Soln Mix EL Pack1","","OP21","Platelet",null,null,null,null,null,null,null,null,null,null,"P133","Queen Elizabeth Hospital, (Woolwich)","Tooting"]
[null,null,null,null,null,null,null,null,null,null,null,"Platelet",54447,"Plts APH LD PL/AD Soln Mix EL Pack1","","OP22","Platelet",null,null,null,null,null,null,null,null,null,null,"P134","Guy's Hospital","Tooting"]
[null,null,null,null,null,null,null,null,null,null,null,"Platelet",54448,"Plts APH LD PL/AD Soln Mix EL Pack1","","OP23","Platelet",null,null,null,null,null,null,null,null,null,null,"P135","The Lewisham Hospital","Tooting"]
[null,null,null,null,null,null,null,null,null,null,null,"Platelet",54449,"Plts APH LD PL/AD Soln Mix Irradiated E","PLTS APH O/P I EXT S (G449)","G449","Platelet",null,null,null,null,null,null,null,null,null,null,"P136","Kent and Canterbury Hospital","Tooting"]
[null,null,null,null,null,null,null,null,null,null,null,"Platelet",54450,"Plts APH LD PL/AD Soln Mix Irradiated E  Pack1","PLTS APH O/P I EXT 1 (G441)","G441","Platelet",null,null,null,null,null,null,null,null,null,null,"P138","Maidstone Hospital","Tooting"]
[null,null,null,null,null,null,null,null,null,null,null,"Platelet",54451,"Plts APH LD PL/AD Soln Mix Irradiated E  Pack2","PLTS APH O/P I EXT 2 (G442)","G442","Platelet",null,null,null,null,null,null,null,null,null,null,"P139","Kent & Sussex Hospital","Tooting"]
[null,null,null,null,null,null,null,null,null,null,null,"Platelet",54452,"Plts APH LD PL/AD Soln Mix Irradiated E  Pack3","PLTS APH O/P I EXT 3 (G443)","G443","Platelet",null,null,null,null,null,null,null,null,null,null,"P142","Queen Mary's Hospital, (Sidcup)","Tooting"]
[null,null,null,null,null,null,null,null,null,null,null,"Platelet",54453,"Plts APH LD PL/AD Soln Mix Irradiated  Pack1","","GA11","Platelet",null,null,null,null,null,null,null,null,null,null,"P143","Conquest Hospital","Tooting"]
[null,null,null,null,null,null,null,null,null,null,null,"Platelet",54454,"Plts APH LD PL/AD Soln Mix Irradiated  Pack2","","GA12","Platelet",null,null,null,null,null,null,null,null,null,null,"P144","Royal Sussex County Hospital","Tooting"]
[null,null,null,null,null,null,null,null,null,null,null,"Platelet",54455,"Plts APH LD PL/AD Soln Mix Irradiated  Pack3","","GA13","Platelet",null,null,null,null,null,null,null,null,null,null,"P145","St. Thomas Hospital","Tooting"]
[null,null,null,null,null,null,null,null,null,null,null,"Platelet",54456,"Plts APH LD PL/AD Soln Mix Irradiated  Pack4","","GA14","Platelet",null,null,null,null,null,null,null,null,null,null,"P147","St. George's Hospital","Tooting"]
[null,null,null,null,null,null,null,null,null,null,null,"Platelet",54457,"Plts APH LD PL/AD Soln Mix Irradiated  Pack5","","GA15","Platelet",null,null,null,null,null,null,null,null,null,null,"P150","Princess Royal Hospital, (Haywards Heath)","Tooting"]
[null,null,null,null,null,null,null,null,null,null,null,"Platelet",54458,"Plts APH LD PL/AD Soln Mix Irradiated  Pack6","","GA16","Platelet",null,null,null,null,null,null,null,null,null,null,"P151","Epsom General Hospital","Tooting"]
[null,null,null,null,null,null,null,null,null,null,null,"Platelet",54459,"Plts APH LD PL/AD Soln Mix Irradiated  Pack7","","GA17","Platelet",null,null,null,null,null,null,null,null,null,null,"P152","Frimley Park Hospital","Tooting"]
[null,null,null,null,null,null,null,null,null,null,null,"Platelet",54460,"Plts APH LD PL/AD Soln Mix Irradiated  Pack8","","GA18","Platelet",null,null,null,null,null,null,null,null,null,null,"P155","Kingston Hospital","Tooting"]
[null,null,null,null,null,null,null,null,null,null,null,"Platelet",54461,"Plts APH LD PL/AD Soln Mix Irradiated  Pack9","","GA19","Platelet",null,null,null,null,null,null,null,null,null,null,"P156","Mayday Hospital","Tooting"]
[null,null,null,null,null,null,null,null,null,null,null,"Platelet",54462,"Plts APH LD PL/AD Soln Mix Irradiated  Pack10","","GA21","Platelet",null,null,null,null,null,null,null,null,null,null,"P157","St. Helier Hospital","Tooting"]
[null,null,null,null,null,null,null,null,null,null,null,"Platelet",54463,"Plts APH LD PL/AD Soln Mix Irradiated  Pack11","","GA22","Platelet",null,null,null,null,null,null,null,null,null,null,"P161","Royal Marsden Hospital, Sutton","Tooting"]
[null,null,null,null,null,null,null,null,null,null,null,"Platelet",54464,"Plts APH LD PL/AD Soln Mix Irradiated  Pack12","","GA23","Platelet",null,null,null,null,null,null,null,null,null,null,"P162","Worthing Hospital","Tooting"]
[null,null,null,null,null,null,null,null,null,null,null,"Platelet",54465,"Plts APH LD PL/AD Soln Mix EL Irradiated  Pack1","","GP11","Platelet",null,null,null,null,null,null,null,null,null,null,"P164","St Peter's Hospital","Tooting"]
[null,null,null,null,null,null,null,null,null,null,null,"Platelet",54466,"Plts APH LD PL/AD Soln Mix EL Irradiated  Pack2","","GP12","Platelet",null,null,null,null,null,null,null,null,null,null,"P165","St. Richard's Hospital","Tooting"]
[null,null,null,null,null,null,null,null,null,null,null,"Platelet",54467,"Plts APH LD PL/AD Soln Mix EL Irradiated  Pack3","","GP13","Platelet",null,null,null,null,null,null,null,null,null,null,"P166","East Surrey Hospital","Tooting"]
[null,null,null,null,null,null,null,null,null,null,null,"Platelet",54468,"Plts APH LD PL/AD Soln Mix EL Irradiated  Pack4","","GP14","Platelet",null,null,null,null,null,null,null,null,null,null,"P216","Nuffield Cambridge","Cambridge"]
[null,null,null,null,null,null,null,null,null,null,null,"Platelet",54469,"Plts APH LD PL/AD Soln Mix EL Irradiated  Pack5","","GP15","Platelet",null,null,null,null,null,null,null,null,null,null,"P248","Queen Elizabeth the Queen Mother Hospital,Margate","Tooting"]
[null,null,null,null,null,null,null,null,null,null,null,"Platelet",54470,"Plts APH LD PL/AD Soln Mix EL Irradiated  Pack6","","GP16","Platelet",null,null,null,null,null,null,null,null,null,null,"P250","Addenbrooke's Hospital","Cambridge"]
[null,null,null,null,null,null,null,null,null,null,null,"Platelet",54471,"Plts APH LD PL/AD Soln Mix EL Irradiated  Pack7","","GP17","Platelet",null,null,null,null,null,null,null,null,null,null,"P251","Hinchingbrooke Hospital","Cambridge"]
[null,null,null,null,null,null,null,null,null,null,null,"Platelet",54472,"Plts APH LD PL/AD Soln Mix EL Irradiated  Pack8","","GP18","Platelet",null,null,null,null,null,null,null,null,null,null,"P252","Ipswich Hospital","Basildon"]
[null,null,null,null,null,null,null,null,null,null,null,"Platelet",54473,"Plts APH LD PL/AD Soln Mix EL Irradiated  Pack9","","GP19","Platelet",null,null,null,null,null,null,null,null,null,null,"P253","James Paget University Hospital","Cambridge"]
[null,null,null,null,null,null,null,null,null,null,null,"Platelet",54474,"Plts APH LD PL/AD Soln Mix EL Irradiated  Pack10","","GP21","Platelet",null,null,null,null,null,null,null,null,null,null,"P254","Queen Elizabeth Hospital, (Kings Lynn)","Cambridge"]
[null,null,null,null,null,null,null,null,null,null,null,"Platelet",54475,"Plts APH LD PL/AD Soln Mix EL Irradiated  Pack11","","GP22","Platelet",null,null,null,null,null,null,null,null,null,null,"P255","Norfolk and Norwich University Hospital","Cambridge"]
[null,null,null,null,null,null,null,null,null,null,null,"Platelet",54476,"Plts APH LD PL/AD Soln Mix EL Irradiated  Pack12","","GP23","Platelet",null,null,null,null,null,null,null,null,null,null,"P256","Papworth Hospital","Cambridge"]
[null,null,null,null,null,null,null,null,null,null,null,"Platelet",54477,"Plts Pooled LD PL/AD Sol Mix EL","PLTS POOL A/P EXT LI (0E83)","0E83","Platelet",null,null,null,null,null,null,null,null,null,null,"P257","Peterborough District Hospital","Cambridge"]
[null,null,null,null,null,null,null,null,null,null,null,"Platelet",54478,"Plts Pooled LD PL/AD Sol Mix EL Irradiated","PLT POOL A/P I EXT L (GE83)","GE83","RBC",null,null,null,null,null,null,null,null,null,null,"P258","West Suffolk Hospital","Cambridge"]
[null,null,null,null,null,null,null,null,null,null,null,"RBC",54481,"Red Cells AS LD","RED CELLS IN ADDITIVE SOLUTION FOR PAEDIATRIC USE (0X25)","0X25","RBC",null,null,null,null,null,null,null,null,null,null,"P261","United States Air Force - Lakenheath","Cambridge"]
[null,null,null,null,null,null,null,null,null,null,null,"RBC",54482,"RED CELLS IN SAG M FOR PAEDIATRIC USE, IRRAD","RED CELLS IN SAG M FOR PAEDIATRIC USE, IRRAD (GX25)","GX25","Cryo",null,null,null,null,null,null,null,null,null,null,"P265","Basildon Hospital","Basildon"]
[null,null,null,null,null,null,null,null,null,null,null,"Cryo",54483,"CRYO POOLED (NON UK) MB REMOVED","CRYO POOLED (NON UK) MB REMOVED (LF54)","LF54","Cryo",null,null,null,null,null,null,null,null,null,null,"P266","Chase Farm Hospital","Colindale"]
[null,null,null,null,null,null,null,null,null,null,null,"Cryo",54487,"CRYO (NON UK) MB REMOVED PACK 1","CRYO (NON UK) MB REMOVED PACK 1 (LF33)","LF33","Cryo",null,null,null,null,null,null,null,null,null,null,"P267","Broomfield Hospital","Basildon"]
[null,null,null,null,null,null,null,null,null,null,null,"Cryo",54488,"CRYO (NON UK) MB REMOVED PACK 2","CRYO (NON UK) MB REMOVED PACK 2 (LF34)","LF34","Cryo",null,null,null,null,null,null,null,null,null,null,"P268","Colchester General Hospital","Basildon"]
[null,null,null,null,null,null,null,null,null,null,null,"Cryo",54489,"CRYO (NON UK) MB REMOVED PACK 3","CRYO (NON UK) MB REMOVED PACK 3 (LF35)","LF35","RBC",null,null,null,null,null,null,null,null,null,null,"P270","Homerton Hospital","Basildon"]
[null,null,null,null,null,null,null,null,null,null,null,"RBC",55250,"Red Cells CPD LD PK1","","0C21","RBC",null,null,null,null,null,null,null,null,null,null,"P271","Harlow Princess Alexandra Hospital","Basildon"]
[null,null,null,null,null,null,null,null,null,null,null,"RBC",55251,"Red Cells CPD LD PK2","","0C22","RBC",null,null,null,null,null,null,null,null,null,null,"P273","King George Hospital","Basildon"]
[null,null,null,null,null,null,null,null,null,null,null,"RBC",55252,"Red Cells CPD LD PK3","","0C23","RBC",null,null,null,null,null,null,null,null,null,null,"P275","Royal London Hospital","Tooting"]
[null,null,null,null,null,null,null,null,null,null,null,"RBC",55253,"Red Cells CPD LD PK4","","0C24","RBC",null,null,null,null,null,null,null,null,null,null,"P278","Circle Health Group London Independent Hospital","Basildon"]
[null,null,null,null,null,null,null,null,null,null,null,"RBC",55254,"Red Cells CPD LD PK5","","0C25","RBC",null,null,null,null,null,null,null,null,null,null,"P279","Newham University Hospital","Basildon"]
[null,null,null,null,null,null,null,null,null,null,null,"RBC",55255,"Red Cells CPD LD PK6","","0C26","RBC",null,null,null,null,null,null,null,null,null,null,"P280","North Middlesex Hospital","Basildon"]
[null,null,null,null,null,null,null,null,null,null,null,"RBC",55260,"Red Cells PR LD PK1","","0C11","RBC",null,null,null,null,null,null,null,null,null,null,"P283","Southend Hospital","Basildon"]
[null,null,null,null,null,null,null,null,null,null,null,"RBC",55261,"Red Cells PR LD PK2","","0C12","RBC",null,null,null,null,null,null,null,null,null,null,"P284","St. Bartholomew's Hospital","Tooting"]
[null,null,null,null,null,null,null,null,null,null,null,"RBC",55262,"Red Cells PR LD PK3","","0C13","RBC",null,null,null,null,null,null,null,null,null,null,"P285","Queen's Hospital (Romford)","Basildon"]
[null,null,null,null,null,null,null,null,null,null,null,"RBC",55263,"Red Cells PR LD PK4","","0C14","RBC",null,null,null,null,null,null,null,null,null,null,"P286","Whipps Cross Hospital","Basildon"]
[null,null,null,null,null,null,null,null,null,null,null,"RBC",55264,"Red Cells PR LD PK5","","0C15","RBC",null,null,null,null,null,null,null,null,null,null,"P287","University College Hospital","Colindale"]
[null,null,null,null,null,null,null,null,null,null,null,"RBC",55265,"Red Cells PR LD PK6","","0C16","RBC",null,null,null,null,null,null,null,null,null,null,"P290","Essex Nuffield Hospital","Basildon"]
[null,null,null,null,null,null,null,null,null,null,null,"RBC",55266,"Red Cells PR LD PK7","","0C17","RBC",null,null,null,null,null,null,null,null,null,null,"P303","SPIRE Hospital Hartswood","Basildon"]
[null,null,null,null,null,null,null,null,null,null,null,"RBC",55267,"Red Cells PR LD PK8","","0C18","RBC",null,null,null,null,null,null,null,null,null,null,"P375","Royal Surrey County Hospital","Tooting"]
[null,null,null,null,null,null,null,null,null,null,null,"RBC",56830,"Red Cells AS LD PK1","RED CELLS IN ADDITIVE SOLN  LD NEO PCK1 (0B21)","0B21","RBC",null,null,null,null,null,null,null,null,null,null,"P490","St. Anthony's Hospital","Tooting"]
[null,null,null,null,null,null,null,null,null,null,null,"RBC",56831,"Red Cells AS LD PK2","RED CELLS IN ADDITIVE SOLN  LD NEO PCK2 (0B22)","0B22","RBC",null,null,null,null,null,null,null,null,null,null,"P491","Woking Nuffield Hospital","Tooting"]
[null,null,null,null,null,null,null,null,null,null,null,"RBC",56832,"Red Cells AS LD PK3","RED CELLS IN ADDITIVE SOLN  LD NEO PCK3 (0B23)","0B23","RBC",null,null,null,null,null,null,null,null,null,null,"P492","Mount Alvernia Hospital","Tooting"]
[null,null,null,null,null,null,null,null,null,null,null,"RBC",56833,"Red Cells AS LD PK4","RED CELLS IN ADDITIVE SOLN  LD NEO PCK4 (0B24)","0B24","RBC",null,null,null,null,null,null,null,null,null,null,"P496","Nuffield Hospital Brighton","Tooting"]
[null,null,null,null,null,null,null,null,null,null,null,"RBC",56834,"Red Cells AS LD PK5","RED CELLS IN ADDITIVE SOLN  LD NEO PCK5 (0B25)","0B25","RBC",null,null,null,null,null,null,null,null,null,null,"P501","SPIRE Alexandra Hospital","Tooting"]
[null,null,null,null,null,null,null,null,null,null,null,"RBC",56835,"Red Cells AS LD PK6","RED CELLS IN ADDITIVE SOLN  LD NEO PCK6 (0B26)","0B26","RBC",null,null,null,null,null,null,null,null,null,null,"P503","Circle Health Group Chaucer Hospital","Tooting"]
[null,null,null,null,null,null,null,null,null,null,null,"RBC",56836,"Red Cells AS LD PK7","","0B27","RBC",null,null,null,null,null,null,null,null,null,null,"P510","Parkside Hospital","Tooting"]
[null,null,null,null,null,null,null,null,null,null,null,"RBC",56837,"Red Cells AS LD PK8","","0B28","Platelet",null,null,null,null,null,null,null,null,null,null,"P511","SPIRE Gatwick Park","Tooting"]
[null,null,null,null,null,null,null,null,null,null,null,"Platelet",58231,"Plts APH LD PK1","","0U11","Platelet",null,null,null,null,null,null,null,null,null,null,"P514","SLOANE","Tooting"]
[null,null,null,null,null,null,null,null,null,null,null,"Platelet",58232,"Plts APH LD PK2","","0U12","Platelet",null,null,null,null,null,null,null,null,null,null,"P515","Circle Health Group Somerfield Hospital","Tooting"]
[null,null,null,null,null,null,null,null,null,null,null,"Platelet",58233,"Plts APH LD PK3","","0U13","Platelet",null,null,null,null,null,null,null,null,null,null,"P518","Tunbridge Wells Nuffield Hospital","Tooting"]
[null,null,null,null,null,null,null,null,null,null,null,"Platelet",58234,"Plts APH LD PK4","","0U14","Platelet",null,null,null,null,null,null,null,null,null,null,"P524","Circle Health Group The Blackheath Hospital","Tooting"]
[null,null,null,null,null,null,null,null,null,null,null,"Platelet",58235,"Plts APH LD PK5","","0U15","Platelet",null,null,null,null,null,null,null,null,null,null,"P527","Circle Health Group Chelsfield Park Hospital","Tooting"]
[null,null,null,null,null,null,null,null,null,null,null,"Platelet",58236,"Plts APH LD PK6","","0U16","Platelet",null,null,null,null,null,null,null,null,null,null,"P601","Barnet General Hospital","Colindale"]
[null,null,null,null,null,null,null,null,null,null,null,"Platelet",58237,"Plts APH LD PK7","","0U17","Platelet",null,null,null,null,null,null,null,null,null,null,"P602","Bedford General Hospital","Colindale"]
[null,null,null,null,null,null,null,null,null,null,null,"Platelet",58238,"Plts APH LD PK8","","0U18","Platelet",null,null,null,null,null,null,null,null,null,null,"P603","Royal Brompton & Harefield NHS Foundation Trust","Colindale"]
[null,null,null,null,null,null,null,null,null,null,null,"Platelet",58340,"Plts APH LD PK1","","0371","Platelet",null,null,null,null,null,null,null,null,null,null,"P604","Central Middlesex Hospital","Colindale"]
[null,null,null,null,null,null,null,null,null,null,null,"Platelet",58341,"Plts APH LD PK2","","0372","Platelet",null,null,null,null,null,null,null,null,null,null,"P605","Charing Cross Hospital","Colindale"]
[null,null,null,null,null,null,null,null,null,null,null,"Platelet",58342,"Plts APH LD PK3","","0373","FFP",null,null,null,null,null,null,null,null,null,null,"P607","Chelsea and Westminster Hospital","Colindale"]
[null,null,null,null,null,null,null,null,null,null,null,"FFP",59711,"FFP NEONATAL PK 5","FFP NEONATAL PACK 5 (LP85)","LP85","FFP",null,null,null,null,null,null,null,null,null,null,"P608","Circle Health Group The Clementine Churchill Hospital","Colindale"]
[null,null,null,null,null,null,null,null,null,null,null,"FFP",59712,"FFP NEONATAL PK 6","FFP NEONATAL PACK 6 (LP86)","LP86","FFP",null,null,null,null,null,null,null,null,null,null,"P609","HCA Laboratories","Colindale"]
[null,null,null,null,null,null,null,null,null,null,null,"FFP",59713,"FFP NEONATAL PK 7","FFP NEONATAL PACK 7 (LP87)","LP87","FFP",null,null,null,null,null,null,null,null,null,null,"P610","Cromwell Hospital","Colindale"]
[null,null,null,null,null,null,null,null,null,null,null,"FFP",59714,"FFP NEONATAL PK 8","FFP NEONATAL PACK 8 (LP88)","LP88","FFP",null,null,null,null,null,null,null,null,null,null,"P611","Ealing General Hospital","Colindale"]
[null,null,null,null,null,null,null,null,null,null,null,"FFP",59715,"FFP NEONATAL PK 9","FFP NEONATAL PACK 9 (LP89)","LP89","FFP",null,null,null,null,null,null,null,null,null,null,"P614","Hammersmith Hospital","Colindale"]
[null,null,null,null,null,null,null,null,null,null,null,"FFP",59716,"FFP NEONATAL PK 10","FFP NEONATAL PACK 10 (LP91)","LP91","FFP",null,null,null,null,null,null,null,null,null,null,"P615","Harefield Hospital","Colindale"]
[null,null,null,null,null,null,null,null,null,null,null,"FFP",59717,"FFP NEONATAL PK 11","FFP NEONATAL PACK 11 (LP92)","LP92","FFP",null,null,null,null,null,null,null,null,null,null,"P617","Hillingdon Hospital","Colindale"]
[null,null,null,null,null,null,null,null,null,null,null,"FFP",59718,"FFP NEONATAL PK 12","FFP NEONATAL PACK 12 (LP93)","LP93","FFP",null,null,null,null,null,null,null,null,null,null,"P619","Lister Hospital, (Stevenage)","Colindale"]
[null,null,null,null,null,null,null,null,null,null,null,"FFP",69601,"FFP NEONATAL PK 1","FFP NEONATAL PACK 1 (LP81)","LP81","FFP",null,null,null,null,null,null,null,null,null,null,"P620","London Bridge Hospital","Colindale"]
[null,null,null,null,null,null,null,null,null,null,null,"FFP",69602,"FFP NEONATAL PK2","FFP NEONATAL PACK 2 (LP82)","LP82","FFP",null,null,null,null,null,null,null,null,null,null,"P621","The London Clinic","Colindale"]
[null,null,null,null,null,null,null,null,null,null,null,"FFP",69603,"FFP NEONATAL PK 3","FFP NEONATAL PACK 3 (LP83)","LP83","FFP",null,null,null,null,null,null,null,null,null,null,"P622","Luton and Dunstable Hospital","Colindale"]
[null,null,null,null,null,null,null,null,null,null,null,"FFP",69604,"FFP NEONATAL PK 4","FFP NEONATAL PACK 4 (LP84)","LP84","FFP",null,null,null,null,null,null,null,null,null,null,"P626","Circle Health Group Cavell Hospital","Colindale"]
[null,null,null,null,null,null,null,null,null,null,null,"FFP",82801,"FFP MBT","","LF43","FFP",null,null,null,null,null,null,null,null,null,null,"P627","Northwick Park Hospital","Colindale"]
[null,null,null,null,null,null,null,null,null,null,null,"FFP",82901,"FFP Neonatal MBTR PK1","","LF61","FFP",null,null,null,null,null,null,null,null,null,null,"P628","Queen Elizabeth II Hospital (Welwyn)","Colindale"]
[null,null,null,null,null,null,null,null,null,null,null,"FFP",82902,"FFP Neonatal MBTR PK2","","LF62","FFP",null,null,null,null,null,null,null,null,null,null,"P630","St Bernards Hospital","Colindale"]
[null,null,null,null,null,null,null,null,null,null,null,"FFP",82903,"FFP Neonatal MBTR PK3","","LF63","FFP",null,null,null,null,null,null,null,null,null,null,"P631","Royal Free Hospital","Colindale"]
[null,null,null,null,null,null,null,null,null,null,null,"FFP",82904,"FFP Neonatal MBTR PK4","","LF64","FFP",null,null,null,null,null,null,null,null,null,null,"P632","Royal National Orthopaedic Hospital","Colindale"]
[null,null,null,null,null,null,null,null,null,null,null,"FFP",82905,"FFP Neonatal MBTR PK5","","LF65","FFP",null,null,null,null,null,null,null,null,null,null,"P633","Great Ormond Street Hospital for Children","Colindale"]
[null,null,null,null,null,null,null,null,null,null,null,"FFP",82906,"FFP Neonatal MBTR PK6","","LF66","FFP",null,null,null,null,null,null,null,null,null,null,"P634","St. John and St. Elizabeth Hospital","Colindale"]
[null,null,null,null,null,null,null,null,null,null,null,"FFP",82907,"FFP Neonatal MBTR PK7","","LF67","FFP",null,null,null,null,null,null,null,null,null,null,"P635","St. Mary's Hospital, (Praed Street)","Colindale"]
[null,null,null,null,null,null,null,null,null,null,null,"FFP",82908,"FFP Neonatal MBTR PK8","","LF68","FFP",null,null,null,null,null,null,null,null,null,null,"P637","Watford General Hospital","Colindale"]
[null,null,null,null,null,null,null,null,null,null,null,"FFP",82910,"FFP Paed MBTR PK1","FFP  PAED USE  MB TREATED/REMOVED LD (LF53)","LF53","FFP",null,null,null,null,null,null,null,null,null,null,"P639","West Middlesex Hospital","Colindale"]
[null,null,null,null,null,null,null,null,null,null,null,"FFP",82911,"FFP Paed MBTR PK2","","LF51","FFP",null,null,null,null,null,null,null,null,null,null,"P640","Whittington Hospital","Colindale"]
[null,null,null,null,null,null,null,null,null,null,null,"FFP",82912,"FFP Paed MBTR PK3","","LF52","FFP",null,null,null,null,null,null,null,null,null,null,"P789","Circle Health Group Ealing","Colindale"]
[null,null,null,null,null,null,null,null,null,null,null,"FFP",90081,"FFP MBT PK1","","LF41","FFP",null,null,null,null,null,null,null,null,null,null,"P801","Ramsay Rivers Hosptial","Colindale"]
[null,null,null,null,null,null,null,null,null,null,null,"FFP",90082,"FFP MBT PK2","","LF42","FFP",null,null,null,null,null,null,null,null,null,null,"P802","Ramsay Blackheath Hospital","Colindale"]
[null,null,null,null,null,null,null,null,null,null,null,"FFP",98260,"FFP 300ml","","0551","FFP",null,null,null,null,null,null,null,null,null,null,"P803","SPIRE Montefiore Hospital","Colindale"]
[null,null,null,null,null,null,null,null,null,null,null,"FFP",98261,"FFP 300ml","","0552","Cryo",null,null,null,null,null,null,null,null,null,null,"P904","Nuffield Health Guildford","Colindale"]
[null,null,null,null,null,null,null,null,null,null,null,null,null,null,null,null,null,null,null,null,null,null,null,null,null,null,null,"S001","SPIRE Hospital Portsmouth","Southampton"]
[null,null,null,null,null,null,null,null,null,null,null,null,null,null,null,null,null,null,null,null,null,null,null,null,null,null,null,"S010","Basingstoke and North Hampshire Hospital","Southampton"]
[null,null,null,null,null,null,null,null,null,null,null,null,null,null,null,null,null,null,null,null,null,null,null,null,null,null,null,"S011","Royal Bournemouth Hospital","Southampton"]
[null,null,null,null,null,null,null,null,null,null,null,null,null,null,null,null,null,null,null,null,null,null,null,null,null,null,null,"S012","St. Mary's Hospital, (Isle of Wight)","Southampton"]
[null,null,null,null,null,null,null,null,null,null,null,null,null,null,null,null,null,null,null,null,null,null,null,null,null,null,null,"S013","Poole General Hospital","Southampton"]
[null,null,null,null,null,null,null,null,null,null,null,null,null,null,null,null,null,null,null,null,null,null,null,null,null,null,null,"S014","Queen Alexandra Hospital, (Cosham)","Southampton"]
[null,null,null,null,null,null,null,null,null,null,null,null,null,null,null,null,null,null,null,null,null,null,null,null,null,null,null,"S015","Royal Hampshire County Hospital","Southampton"]
[null,null,null,null,null,null,null,null,null,null,null,null,null,null,null,null,null,null,null,null,null,null,null,null,null,null,null,"S016","Southampton University Hospital","Southampton"]
[null,null,null,null,null,null,null,null,null,null,null,null,null,null,null,null,null,null,null,null,null,null,null,null,null,null,null,"S017","Salisbury District Hospital","Southampton"]
[null,null,null,null,null,null,null,null,null,null,null,null,null,null,null,null,null,null,null,null,null,null,null,null,null,null,null,"S020","Dorset County Hospital","Southampton"]
[null,null,null,null,null,null,null,null,null,null,null,null,null,null,null,null,null,null,null,null,null,null,null,null,null,null,null,"S022","SPIRE Hospital Southampton","Southampton"]
[null,null,null,null,null,null,null,null,null,null,null,null,null,null,null,null,null,null,null,null,null,null,null,null,null,null,null,"S024","States of Jersey Hospital","Southampton"]
[null,null,null,null,null,null,null,null,null,null,null,null,null,null,null,null,null,null,null,null,null,null,null,null,null,null,null,"S027","Princess Elizabeth Hospital","Southampton"]
[null,null,null,null,null,null,null,null,null,null,null,null,null,null,null,null,null,null,null,null,null,null,null,null,null,null,null,"S028","Nuffield Health Wessex Hospital","Southampton"]
[null,null,null,null,null,null,null,null,null,null,null,null,null,null,null,null,null,null,null,null,null,null,null,null,null,null,null,"T146","Plymouth Nuffield Hospital","Plymouth"]
[null,null,null,null,null,null,null,null,null,null,null,null,null,null,null,null,null,null,null,null,null,null,null,null,null,null,null,"T147","Derriford Hospital","Plymouth"]
[null,null,null,null,null,null,null,null,null,null,null,null,null,null,null,null,null,null,null,null,null,null,null,null,null,null,null,"T150","Bristol Royal Infirmary","Bristol"]
[null,null,null,null,null,null,null,null,null,null,null,null,null,null,null,null,null,null,null,null,null,null,null,null,null,null,null,"T152","Southmead Hospital","Bristol"]
[null,null,null,null,null,null,null,null,null,null,null,null,null,null,null,null,null,null,null,null,null,null,null,null,null,null,null,"T153","Gloucester Royal Hospital","Bristol"]
[null,null,null,null,null,null,null,null,null,null,null,null,null,null,null,null,null,null,null,null,null,null,null,null,null,null,null,"T154","Cheltenham General Hospital","Bristol"]
[null,null,null,null,null,null,null,null,null,null,null,null,null,null,null,null,null,null,null,null,null,null,null,null,null,null,null,"T155","Royal Devon and Exeter Hospital","Plymouth"]
[null,null,null,null,null,null,null,null,null,null,null,null,null,null,null,null,null,null,null,null,null,null,null,null,null,null,null,"T158","Taunton and Somerset Hospital","Bristol"]
[null,null,null,null,null,null,null,null,null,null,null,null,null,null,null,null,null,null,null,null,null,null,null,null,null,null,null,"T160","Torbay Hospital","Plymouth"]
[null,null,null,null,null,null,null,null,null,null,null,null,null,null,null,null,null,null,null,null,null,null,null,null,null,null,null,"T161","Royal United Hospital/ Bath Labs","Bristol"]
[null,null,null,null,null,null,null,null,null,null,null,null,null,null,null,null,null,null,null,null,null,null,null,null,null,null,null,"T162","Yeovil District Hospital","Bristol"]
[null,null,null,null,null,null,null,null,null,null,null,null,null,null,null,null,null,null,null,null,null,null,null,null,null,null,null,"T163","North Devon District Hospital","Plymouth"]
[null,null,null,null,null,null,null,null,null,null,null,null,null,null,null,null,null,null,null,null,null,null,null,null,null,null,null,"T164","Weston General Hospital","Bristol"]
[null,null,null,null,null,null,null,null,null,null,null,null,null,null,null,null,null,null,null,null,null,null,null,null,null,null,null,"T167","Royal Cornwall Hospital Truro","Plymouth"]
[null,null,null,null,null,null,null,null,null,null,null,null,null,null,null,null,null,null,null,null,null,null,null,null,null,null,null,"T169","Bristol Nuffield Hospital","Bristol"]
[null,null,null,null,null,null,null,null,null,null,null,null,null,null,null,null,null,null,null,null,null,null,null,null,null,null,null,"T192","Circle Health Group Bath Clinic","Bristol"]
[null,null,null,null,null,null,null,null,null,null,null,null,null,null,null,null,null,null,null,null,null,null,null,null,null,null,null,"T221","Churchill Hospital","Bristol"]
[null,null,null,null,null,null,null,null,null,null,null,null,null,null,null,null,null,null,null,null,null,null,null,null,null,null,null,"T284","SPIRE Hospital Bristol","Bristol"]
[null,null,null,null,null,null,null,null,null,null,null,null,null,null,null,null,null,null,null,null,null,null,null,null,null,null,null,"T421","Nuffield Health Taunton Hospital","Bristol"]
[null,null,null,null,null,null,null,null,null,null,null,null,null,null,null,null,null,null,null,null,null,null,null,null,null,null,null,"T430","Nuffield Health Exeter Hospital","Bristol"]
[null,null,null,null,null,null,null,null,null,null,null,null,null,null,null,null,null,null,null,null,null,null,null,null,null,null,null,"T476","Ramsay Ridgeway Hospital"]
[null,null,null,null,null,null,null,null,null,null,null,null,null,null,null,null,null,null,null,null,null,null,null,null,null,null,null,"T602","The Manor Hospital (Nuffield)","Oxford"]
[null,null,null,null,null,null,null,null,null,null,null,null,null,null,null,null,null,null,null,null,null,null,null,null,null,null,null,"T604","Horton Hospital","Oxford"]
[null,null,null,null,null,null,null,null,null,null,null,null,null,null,null,null,null,null,null,null,null,null,null,null,null,null,null,"T605","Circle Health Group Chiltern Hospital","Oxford"]
[null,null,null,null,null,null,null,null,null,null,null,null,null,null,null,null,null,null,null,null,null,null,null,null,null,null,null,"T605","Circle Health Group The Chiltern Hospital","Oxford"]
[null,null,null,null,null,null,null,null,null,null,null,null,null,null,null,null,null,null,null,null,null,null,null,null,null,null,null,"T609","Wycombe General Hospital","Oxford"]
[null,null,null,null,null,null,null,null,null,null,null,null,null,null,null,null,null,null,null,null,null,null,null,null,null,null,null,"T610","John Radcliffe","Oxford"]
[null,null,null,null,null,null,null,null,null,null,null,null,null,null,null,null,null,null,null,null,null,null,null,null,null,null,null,"T611","Kettering General Hospital","Oxford"]
[null,null,null,null,null,null,null,null,null,null,null,null,null,null,null,null,null,null,null,null,null,null,null,null,null,null,null,"T613","Milton Keynes General Hospital","Oxford"]
[null,null,null,null,null,null,null,null,null,null,null,null,null,null,null,null,null,null,null,null,null,null,null,null,null,null,null,"T615","Northampton General Hospital","Oxford"]
[null,null,null,null,null,null,null,null,null,null,null,null,null,null,null,null,null,null,null,null,null,null,null,null,null,null,null,"T618","Circle Health Group Princess Margaret Hospital","Oxford"]
[null,null,null,null,null,null,null,null,null,null,null,null,null,null,null,null,null,null,null,null,null,null,null,null,null,null,null,"T618","Circle Health Group The Princess Margaret","Oxford"]
[null,null,null,null,null,null,null,null,null,null,null,null,null,null,null,null,null,null,null,null,null,null,null,null,null,null,null,"T619","Royal Berkshire Hospital","Oxford"]
[null,null,null,null,null,null,null,null,null,null,null,null,null,null,null,null,null,null,null,null,null,null,null,null,null,null,null,"T623","Circle Health Group Ridgeway Hospital ","Oxford"]
[null,null,null,null,null,null,null,null,null,null,null,null,null,null,null,null,null,null,null,null,null,null,null,null,null,null,null,"T624","Stoke Mandeville Hospital","Oxford"]
[null,null,null,null,null,null,null,null,null,null,null,null,null,null,null,null,null,null,null,null,null,null,null,null,null,null,null,"T625","The Great Western Hospital","Oxford"]
[null,null,null,null,null,null,null,null,null,null,null,null,null,null,null,null,null,null,null,null,null,null,null,null,null,null,null,"T628","Wexham Park Hospital","Oxford"]
[null,null,null,null,null,null,null,null,null,null,null,null,null,null,null,null,null,null,null,null,null,null,null,null,null,null,null,"T766","Nuffield Hospital Cheltenham","Bristol"]
[null,null,null,null,null,null,null,null,null,null,null,null,null,null,null,null,null,null,null,null,null,null,null,null,null,null,null,"D186","Spire Nottingham Hospital.","Sheffield"]
[null,null,null,null,null,null,null,null,null,null,null,null,null,null,null,null,null,null,null,null,null,null,null,null,null,null,null,"P808","SPIRE Lea Cambridge","Cambridge"]
[null,null,null,null,null,null,null,null,null,null,null,null,null,null,null,null,null,null,null,null,null,null,null,null,null,null,null,"P810","Royal Papworth Hospital","Cambridge"]
[null,null,null,null,null,null,null,null,null,null,null,null,null,null,null,null,null,null,null,null,null,null,null,null,null,null,null,"P812","Ramsay Springfield Hospital","Basildon"]
[null,null,null,null,null,null,null,null,null,null,null,null,null,null,null,null,null,null,null,null,null,null,null,null,null,null,null,"P801","Rivers Hospital ","Basildon"]
[null,null,null,null,null,null,null,null,null,null,null,null,null,null,null,null,null,null,null,null,null,null,null,null,null,null,null,"H140","Midland Metropolitan University Hospital ","Birmingham"]
[null,null,null,null,null,null,null,null,null,null,null,null,null,null,null,null,null,null,null,null,null,null,null,null,null,null,null,"P816","Spire Centennial Park Pathology","Colindale"]
[null,null,null,null,null,null,null,null,null,null,null,null,null,null,null,null,null,null,null,null,null,null,null,null,null,null,null,"P815","Cleveland Clinic","Tooting"]

{"sheet":"UnitElec","index":11,"n_rows":32,"n_cols":145,"rows_kept":32,"cut":false,"hidden":true,"merged":[]}
[{"$f":"IF(A26=\"\",\"\",IF(LEN(A26)=16,A26,CONCATENATE(\"=\",A26)))","v":""},{"$f":"IF(LEN(B26)=6,1*MID(B26,3,2),1*MID(B26,2,2))","v":{"$error":"#VALUE!"}},{"$f":"IF(LEN(C26)=5,1*C26,IF(LEN(C26)=7,1*MID(C26,2,5),IF(LEN(C26)=9,1*MID(C26,3,5))))","v":false},null,null,{"$f":"IF(A27=\"\",\"\",IF(LEN(A27)=16,A27,CONCATENATE(\"=\",A27)))","v":""},{"$f":"IF(LEN(B27)=6,1*MID(B27,3,2),1*MID(B27,2,2))","v":{"$error":"#VALUE!"}},{"$f":"IF(LEN(C27)=5,1*C27,IF(LEN(C27)=7,1*MID(C27,2,5),IF(LEN(C27)=9,1*MID(C27,3,5))))","v":false},null,null,{"$f":"IF(A28=\"\",\"\",IF(LEN(A28)=16,A28,CONCATENATE(\"=\",A28)))","v":""},{"$f":"IF(LEN(B28)=6,1*MID(B28,3,2),1*MID(B28,2,2))","v":{"$error":"#VALUE!"}},{"$f":"IF(LEN(C28)=5,1*C28,IF(LEN(C28)=7,1*MID(C28,2,5),IF(LEN(C28)=9,1*MID(C28,3,5))))","v":false},null,null,null,{"$f":"IF(A29=\"\",\"\",IF(LEN(A29)=16,A29,CONCATENATE(\"=\",A29)))","v":""},{"$f":"IF(LEN(B29)=6,1*MID(B29,3,2),1*MID(B29,2,2))","v":{"$error":"#VALUE!"}},{"$f":"IF(LEN(C29)=5,1*C29,IF(LEN(C29)=7,1*MID(C29,2,5),IF(LEN(C29)=9,1*MID(C29,3,5))))","v":false},null,null,null,{"$f":"IF(A30=\"\",\"\",IF(LEN(A30)=16,A30,CONCATENATE(\"=\",A30)))","v":""},{"$f":"IF(LEN(B30)=6,1*MID(B30,3,2),1*MID(B30,2,2))","v":{"$error":"#VALUE!"}},{"$f":"IF(LEN(C30)=5,1*C30,IF(LEN(C30)=7,1*MID(C30,2,5),IF(LEN(C30)=9,1*MID(C30,3,5))))","v":false},null,null,null,{"$f":"IF(A31=\"\",\"\",IF(LEN(A31)=16,A31,CONCATENATE(\"=\",A31)))","v":""},{"$f":"IF(LEN(B31)=6,1*MID(B31,3,2),1*MID(B31,2,2))","v":{"$error":"#VALUE!"}},{"$f":"IF(LEN(C31)=5,1*C31,IF(LEN(C31)=7,1*MID(C31,2,5),IF(LEN(C31)=9,1*MID(C31,3,5))))","v":false},null,null,null,{"$f":"IF(A32=\"\",\"\",IF(LEN(A32)=16,A32,CONCATENATE(\"=\",A32)))","v":""},{"$f":"IF(LEN(B32)=6,1*MID(B32,3,2),1*MID(B32,2,2))","v":{"$error":"#VALUE!"}},{"$f":"IF(LEN(C32)=5,1*C32,IF(LEN(C32)=7,1*MID(C32,2,5),IF(LEN(C32)=9,1*MID(C32,3,5))))","v":false},null,null,{"$f":"IF(A33=\"\",\"\",IF(LEN(A33)=16,A33,CONCATENATE(\"=\",A33)))","v":""},{"$f":"IF(LEN(B33)=6,1*MID(B33,3,2),1*MID(B33,2,2))","v":{"$error":"#VALUE!"}},{"$f":"IF(LEN(C33)=5,1*C33,IF(LEN(C33)=7,1*MID(C33,2,5),IF(LEN(C33)=9,1*MID(C33,3,5))))","v":false},null,null,null,{"$f":"IF(A34=\"\",\"\",IF(LEN(A34)=16,A34,CONCATENATE(\"=\",A34)))","v":""},{"$f":"IF(LEN(B34)=6,1*MID(B34,3,2),1*MID(B34,2,2))","v":{"$error":"#VALUE!"}},{"$f":"IF(LEN(C34)=5,1*C34,IF(LEN(C34)=7,1*MID(C34,2,5),IF(LEN(C34)=9,1*MID(C34,3,5))))","v":false},null,null,null,{"$f":"IF(A35=\"\",\"\",IF(LEN(A35)=16,A35,CONCATENATE(\"=\",A35)))","v":""},{"$f":"IF(LEN(B35)=6,1*MID(B35,3,2),1*MID(B35,2,2))","v":{"$error":"#VALUE!"}},{"$f":"IF(LEN(C35)=5,1*C35,IF(LEN(C35)=7,1*MID(C35,2,5),IF(LEN(C35)=9,1*MID(C35,3,5))))","v":false},null,null,null,{"$f":"IF(A36=\"\",\"\",IF(LEN(A36)=16,A36,CONCATENATE(\"=\",A36)))","v":""},{"$f":"IF(LEN(B36)=6,1*MID(B36,3,2),1*MID(B36,2,2))","v":{"$error":"#VALUE!"}},{"$f":"IF(LEN(C36)=5,1*C36,IF(LEN(C36)=7,1*MID(C36,2,5),IF(LEN(C36)=9,1*MID(C36,3,5))))","v":false},null,null,null,{"$f":"IF(A37=\"\",\"\",IF(LEN(A37)=16,A37,CONCATENATE(\"=\",A37)))","v":""},{"$f":"IF(LEN(B37)=6,1*MID(B37,3,2),1*MID(B37,2,2))","v":{"$error":"#VALUE!"}},{"$f":"IF(LEN(C37)=5,1*C37,IF(LEN(C37)=7,1*MID(C37,2,5),IF(LEN(C37)=9,1*MID(C37,3,5))))","v":false},null,null,null,{"$f":"IF(A38=\"\",\"\",IF(LEN(A38)=16,A38,CONCATENATE(\"=\",A38)))","v":""},{"$f":"IF(LEN(B38)=6,1*MID(B38,3,2),1*MID(B38,2,2))","v":{"$error":"#VALUE!"}},{"$f":"IF(LEN(C38)=5,1*C38,IF(LEN(C38)=7,1*MID(C38,2,5),IF(LEN(C38)=9,1*MID(C38,3,5))))","v":false},null,null,null,{"$f":"IF(A39=\"\",\"\",IF(LEN(A39)=16,A39,CONCATENATE(\"=\",A39)))","v":""},{"$f":"IF(LEN(B39)=6,1*MID(B39,3,2),1*MID(B39,2,2))","v":{"$error":"#VALUE!"}},{"$f":"IF(LEN(C39)=5,1*C39,IF(LEN(C39)=7,1*MID(C39,2,5),IF(LEN(C39)=9,1*MID(C39,3,5))))","v":false},null,null,null,{"$f":"IF(A40=\"\",\"\",IF(LEN(A40)=16,A40,CONCATENATE(\"=\",A40)))","v":""},{"$f":"IF(LEN(B40)=6,1*MID(B40,3,2),1*MID(B40,2,2))","v":{"$error":"#VALUE!"}},{"$f":"IF(LEN(C40)=5,1*C40,IF(LEN(C40)=7,1*MID(C40,2,5),IF(LEN(C40)=9,1*MID(C40,3,5))))","v":false},null,null,null,{"$f":"IF(A41=\"\",\"\",IF(LEN(A41)=16,A41,CONCATENATE(\"=\",A41)))","v":""},{"$f":"IF(LEN(B41)=6,1*MID(B41,3,2),1*MID(B41,2,2))","v":{"$error":"#VALUE!"}},{"$f":"IF(LEN(C41)=5,1*C41,IF(LEN(C41)=7,1*MID(C41,2,5),IF(LEN(C41)=9,1*MID(C41,3,5))))","v":false},null,null,null,{"$f":"IF(A42=\"\",\"\",IF(LEN(A42)=16,A42,CONCATENATE(\"=\",A42)))","v":""},{"$f":"IF(LEN(B42)=6,1*MID(B42,3,2),1*MID(B42,2,2))","v":{"$error":"#VALUE!"}},{"$f":"IF(LEN(C42)=5,1*C42,IF(LEN(C42)=7,1*MID(C42,2,5),IF(LEN(C42)=9,1*MID(C42,3,5))))","v":false},null,null,null,{"$f":"IF(A43=\"\",\"\",IF(LEN(A43)=16,A43,CONCATENATE(\"=\",A43)))","v":""},{"$f":"IF(LEN(B43)=6,1*MID(B43,3,2),1*MID(B43,2,2))","v":{"$error":"#VALUE!"}},{"$f":"IF(LEN(C43)=5,1*C43,IF(LEN(C43)=7,1*MID(C43,2,5),IF(LEN(C43)=9,1*MID(C43,3,5))))","v":false},null,null,null,{"$f":"IF(A44=\"\",\"\",IF(LEN(A44)=16,A44,CONCATENATE(\"=\",A44)))","v":""},{"$f":"IF(LEN(B44)=6,1*MID(B44,3,2),1*MID(B44,2,2))","v":{"$error":"#VALUE!"}},{"$f":"IF(LEN(C44)=5,1*C44,IF(LEN(C44)=7,1*MID(C44,2,5),IF(LEN(C44)=9,1*MID(C44,3,5))))","v":false},null,null,null,{"$f":"IF(A45=\"\",\"\",IF(LEN(A45)=16,A45,CONCATENATE(\"=\",A45)))","v":""},{"$f":"IF(LEN(B45)=6,1*MID(B45,3,2),1*MID(B45,2,2))","v":{"$error":"#VALUE!"}},{"$f":"IF(LEN(C45)=5,1*C45,IF(LEN(C45)=7,1*MID(C45,2,5),IF(LEN(C45)=9,1*MID(C45,3,5))))","v":false},null,null,null,{"$f":"IF(A46=\"\",\"\",IF(LEN(A46)=16,A46,CONCATENATE(\"=\",A46)))","v":""},{"$f":"IF(LEN(B46)=6,1*MID(B46,3,2),1*MID(B46,2,2))","v":{"$error":"#VALUE!"}},{"$f":"IF(LEN(C46)=5,1*C46,IF(LEN(C46)=7,1*MID(C46,2,5),IF(LEN(C46)=9,1*MID(C46,3,5))))","v":false},null,null,null,{"$f":"IF(A47=\"\",\"\",IF(LEN(A47)=16,A47,CONCATENATE(\"=\",A47)))","v":""},{"$f":"IF(LEN(B47)=6,1*MID(B47,3,2),1*MID(B47,2,2))","v":{"$error":"#VALUE!"}},{"$f":"IF(LEN(C47)=5,1*C47,IF(LEN(C47)=7,1*MID(C47,2,5),IF(LEN(C47)=9,1*MID(C47,3,5))))","v":false},null,null,null,{"$f":"IF(A48=\"\",\"\",IF(LEN(A48)=16,A48,CONCATENATE(\"=\",A48)))","v":""},{"$f":"IF(LEN(B48)=6,1*MID(B48,3,2),1*MID(B48,2,2))","v":{"$error":"#VALUE!"}},{"$f":"IF(LEN(C48)=5,1*C48,IF(LEN(C48)=7,1*MID(C48,2,5),IF(LEN(C48)=9,1*MID(C48,3,5))))","v":false},null,null,null,{"$f":"IF(A49=\"\",\"\",IF(LEN(A49)=16,A49,CONCATENATE(\"=\",A49)))","v":""},{"$f":"IF(LEN(B49)=6,1*MID(B49,3,2),1*MID(B49,2,2))","v":{"$error":"#VALUE!"}},{"$f":"IF(LEN(C49)=5,1*C49,IF(LEN(C49)=7,1*MID(C49,2,5),IF(LEN(C49)=9,1*MID(C49,3,5))))","v":false},null,null,null,{"$f":"IF(A50=\"\",\"\",IF(LEN(A50)=16,A50,CONCATENATE(\"=\",A50)))","v":""},{"$f":"IF(LEN(B50)=6,1*MID(B50,3,2),1*MID(B50,2,2))","v":{"$error":"#VALUE!"}},{"$f":"IF(LEN(C50)=5,1*C50,IF(LEN(C50)=7,1*MID(C50,2,5),IF(LEN(C50)=9,1*MID(C50,3,5))))","v":false}]
[{"$f":"MID(A1,2,1)","v":""},{"$f":"LOOKUP(A2, Reference!$C12:$D36)","v":{"$error":"#N/A"}},8192,{"$f":"B2*C2","v":{"$error":"#N/A"}},null,{"$f":"MID(F1,2,1)","v":""},{"$f":"LOOKUP(F2, Reference!$C12:$D36)","v":{"$error":"#N/A"}},8192,{"$f":"G2*H2","v":{"$error":"#N/A"}},null,{"$f":"MID(K1,2,1)","v":""},{"$f":"LOOKUP(K2, Reference!$C12:$D36)","v":{"$error":"#N/A"}},8192,{"$f":"L2*M2","v":{"$error":"#N/A"}},null,null,{"$f":"MID(Q1,2,1)","v":""},{"$f":"LOOKUP(Q2, Reference!$C12:$D36)","v":{"$error":"#N/A"}},8192,{"$f":"R2*S2","v":{"$error":"#N/A"}},null,null,{"$f":"MID(W1,2,1)","v":""},{"$f":"LOOKUP(W2, Reference!$C12:$D36)","v":{"$error":"#N/A"}},8192,{"$f":"X2*Y2","v":{"$error":"#N/A"}},null,null,{"$f":"MID(AC1,2,1)","v":""},{"$f":"LOOKUP(AC2, Reference!$C12:$D36)","v":{"$error":"#N/A"}},8192,{"$f":"AD2*AE2","v":{"$error":"#N/A"}},null,null,{"$f":"MID(AI1,2,1)","v":""},{"$f":"LOOKUP(AI2, Reference!$C12:$D36)","v":{"$error":"#N/A"}},8192,{"$f":"AJ2*AK2","v":{"$error":"#N/A"}},null,{"$f":"MID(AN1,2,1)","v":""},{"$f":"LOOKUP(AN2, Reference!$C12:$D36)","v":{"$error":"#N/A"}},8192,{"$f":"AO2*AP2","v":{"$error":"#N/A"}},null,null,{"$f":"MID(AT1,2,1)","v":""},{"$f":"LOOKUP(AT2, Reference!$C12:$D36)","v":{"$error":"#N/A"}},8192,{"$f":"AU2*AV2","v":{"$error":"#N/A"}},null,null,{"$f":"MID(AZ1,2,1)","v":""},{"$f":"LOOKUP(AZ2, Reference!$C12:$D36)","v":{"$error":"#N/A"}},8192,{"$f":"BA2*BB2","v":{"$error":"#N/A"}},null,null,{"$f":"MID(BF1,2,1)","v":""},{"$f":"LOOKUP(BF2, Reference!$C12:$D36)","v":{"$error":"#N/A"}},8192,{"$f":"BG2*BH2","v":{"$error":"#N/A"}},null,null,{"$f":"MID(BL1,2,1)","v":""},{"$f":"LOOKUP(BL2, Reference!$C12:$D36)","v":{"$error":"#N/A"}},8192,{"$f":"BM2*BN2","v":{"$error":"#N/A"}},null,null,{"$f":"MID(BR1,2,1)","v":""},{"$f":"LOOKUP(BR2, Reference!$C12:$D36)","v":{"$error":"#N/A"}},8192,{"$f":"BS2*BT2","v":{"$error":"#N/A"}},null,null,{"$f":"MID(BX1,2,1)","v":""},{"$f":"LOOKUP(BX2, Reference!$C12:$D36)","v":{"$error":"#N/A"}},8192,{"$f":"BY2*BZ2","v":{"$error":"#N/A"}},null,null,{"$f":"MID(CD1,2,1)","v":""},{"$f":"LOOKUP(CD2, Reference!$C12:$D36)","v":{"$error":"#N/A"}},8192,{"$f":"CE2*CF2","v":{"$error":"#N/A"}},null,null,{"$f":"MID(CJ1,2,1)","v":""},{"$f":"LOOKUP(CJ2, Reference!$C12:$D36)","v":{"$error":"#N/A"}},8192,{"$f":"CK2*CL2","v":{"$error":"#N/A"}},null,null,{"$f":"MID(CP1,2,1)","v":""},{"$f":"LOOKUP(CP2, Reference!$C12:$D36)","v":{"$error":"#N/A"}},8192,{"$f":"CQ2*CR2","v":{"$error":"#N/A"}},null,null,{"$f":"MID(CV1,2,1)","v":""},{"$f":"LOOKUP(CV2, Reference!$C12:$D36)","v":{"$error":"#N/A"}},8192,{"$f":"CW2*CX2","v":{"$error":"#N/A"}},null,null,{"$f":"MID(DB1,2,1)","v":""},{"$f":"LOOKUP(DB2, Reference!$C12:$D36)","v":{"$error":"#N/A"}},8192,{"$f":"DC2*DD2","v":{"$error":"#N/A"}},null,null,{"$f":"MID(DH1,2,1)","v":""},{"$f":"LOOKUP(DH2, Reference!$C12:$D36)","v":{"$error":"#N/A"}},8192,{"$f":"DI2*DJ2","v":{"$error":"#N/A"}},null,null,{"$f":"MID(DN1,2,1)","v":""},{"$f":"LOOKUP(DN2, Reference!$C12:$D36)","v":{"$error":"#N/A"}},8192,{"$f":"DO2*DP2","v":{"$error":"#N/A"}},null,null,{"$f":"MID(DT1,2,1)","v":""},{"$f":"LOOKUP(DT2, Reference!$C12:$D36)","v":{"$error":"#N/A"}},8192,{"$f":"DU2*DV2","v":{"$error":"#N/A"}},null,null,{"$f":"MID(DZ1,2,1)","v":""},{"$f":"LOOKUP(DZ2, Reference!$C12:$D36)","v":{"$error":"#N/A"}},8192,{"$f":"EA2*EB2","v":{"$error":"#N/A"}},null,null,{"$f":"MID(EF1,2,1)","v":""},{"$f":"LOOKUP(EF2, Reference!$C12:$D36)","v":{"$error":"#N/A"}},8192,{"$f":"EG2*EH2","v":{"$error":"#N/A"}},null,null,{"$f":"MID(EL1,2,1)","v":""},{"$f":"LOOKUP(EL2, Reference!$C12:$D36)","v":{"$error":"#N/A"}},8192,{"$f":"EM2*EN2","v":{"$error":"#N/A"}}]
[{"$f":"MID(A1,3,1)","v":""},{"$f":"A3","v":""},4096,{"$f":"B3*C3","v":{"$error":"#VALUE!"}},null,{"$f":"MID(F1,3,1)","v":""},{"$f":"F3","v":""},4096,{"$f":"G3*H3","v":{"$error":"#VALUE!"}},null,{"$f":"MID($K1,3,1)","v":""},{"$f":"K3","v":""},4096,{"$f":"L3*M3","v":{"$error":"#VALUE!"}},null,null,{"$f":"MID(Q1,3,1)","v":""},{"$f":"Q3","v":""},4096,{"$f":"R3*S3","v":{"$error":"#VALUE!"}},null,null,{"$f":"MID(W1,3,1)","v":""},{"$f":"W3","v":""},4096,{"$f":"X3*Y3","v":{"$error":"#VALUE!"}},null,null,{"$f":"MID(AC1,3,1)","v":""},{"$f":"AC3","v":""},4096,{"$f":"AD3*AE3","v":{"$error":"#VALUE!"}},null,null,{"$f":"MID(AI1,3,1)","v":""},{"$f":"AI3","v":""},4096,{"$f":"AJ3*AK3","v":{"$error":"#VALUE!"}},null,{"$f":"MID(AN1,3,1)","v":""},{"$f":"AN3","v":""},4096,{"$f":"AO3*AP3","v":{"$error":"#VALUE!"}},null,null,{"$f":"MID(AT1,3,1)","v":""},{"$f":"AT3","v":""},4096,{"$f":"AU3*AV3","v":{"$error":"#VALUE!"}},null,null,{"$f":"MID(AZ1,3,1)","v":""},{"$f":"AZ3","v":""},4096,{"$f":"BA3*BB3","v":{"$error":"#VALUE!"}},null,null,{"$f":"MID(BF1,3,1)","v":""},{"$f":"BF3","v":""},4096,{"$f":"BG3*BH3","v":{"$error":"#VALUE!"}},null,null,{"$f":"MID(BL1,3,1)","v":""},{"$f":"BL3","v":""},4096,{"$f":"BM3*BN3","v":{"$error":"#VALUE!"}},null,null,{"$f":"MID(BR1,3,1)","v":""},{"$f":"BR3","v":""},4096,{"$f":"BS3*BT3","v":{"$error":"#VALUE!"}},null,null,{"$f":"MID(BX1,3,1)","v":""},{"$f":"BX3","v":""},4096,{"$f":"BY3*BZ3","v":{"$error":"#VALUE!"}},null,null,{"$f":"MID(CD1,3,1)","v":""},{"$f":"CD3","v":""},4096,{"$f":"CE3*CF3","v":{"$error":"#VALUE!"}},null,null,{"$f":"MID(CJ1,3,1)","v":""},{"$f":"CJ3","v":""},4096,{"$f":"CK3*CL3","v":{"$error":"#VALUE!"}},null,null,{"$f":"MID(CP1,3,1)","v":""},{"$f":"CP3","v":""},4096,{"$f":"CQ3*CR3","v":{"$error":"#VALUE!"}},null,null,{"$f":"MID(CV1,3,1)","v":""},{"$f":"CV3","v":""},4096,{"$f":"CW3*CX3","v":{"$error":"#VALUE!"}},null,null,{"$f":"MID(DB1,3,1)","v":""},{"$f":"DB3","v":""},4096,{"$f":"DC3*DD3","v":{"$error":"#VALUE!"}},null,null,{"$f":"MID(DH1,3,1)","v":""},{"$f":"DH3","v":""},4096,{"$f":"DI3*DJ3","v":{"$error":"#VALUE!"}},null,null,{"$f":"MID(DN1,3,1)","v":""},{"$f":"DN3","v":""},4096,{"$f":"DO3*DP3","v":{"$error":"#VALUE!"}},null,null,{"$f":"MID(DT1,3,1)","v":""},{"$f":"DT3","v":""},4096,{"$f":"DU3*DV3","v":{"$error":"#VALUE!"}},null,null,{"$f":"MID(DZ1,3,1)","v":""},{"$f":"DZ3","v":""},4096,{"$f":"EA3*EB3","v":{"$error":"#VALUE!"}},null,null,{"$f":"MID(EF1,3,1)","v":""},{"$f":"EF3","v":""},4096,{"$f":"EG3*EH3","v":{"$error":"#VALUE!"}},null,null,{"$f":"MID(EL1,3,1)","v":""},{"$f":"EL3","v":""},4096,{"$f":"EM3*EN3","v":{"$error":"#VALUE!"}}]
[{"$f":"MID(A1,4,1)","v":""},{"$f":"A4","v":""},2048,{"$f":"B4*C4","v":{"$error":"#VALUE!"}},null,{"$f":"MID(F1,4,1)","v":""},{"$f":"F4","v":""},2048,{"$f":"G4*H4","v":{"$error":"#VALUE!"}},null,{"$f":"MID($K1,4,1)","v":""},{"$f":"K4","v":""},2048,{"$error":"#VALUE!"},null,null,{"$f":"MID(Q1,4,1)","v":""},{"$f":"Q4","v":""},2048,{"$error":"#VALUE!"},null,null,{"$f":"MID(W1,4,1)","v":""},{"$f":"W4","v":""},2048,{"$error":"#VALUE!"},null,null,{"$f":"MID(AC1,4,1)","v":""},{"$f":"AC4","v":""},2048,{"$error":"#VALUE!"},null,null,{"$f":"MID(AI1,4,1)","v":""},{"$f":"AI4","v":""},2048,{"$error":"#VALUE!"},null,{"$f":"MID(AN1,4,1)","v":""},{"$f":"AN4","v":""},2048,{"$f":"AO4*AP4","v":{"$error":"#VALUE!"}},null,null,{"$f":"MID(AT1,4,1)","v":""},{"$f":"AT4","v":""},2048,{"$f":"AU4*AV4","v":{"$error":"#VALUE!"}},null,null,{"$f":"MID(AZ1,4,1)","v":""},{"$f":"AZ4","v":""},2048,{"$f":"BA4*BB4","v":{"$error":"#VALUE!"}},null,null,{"$f":"MID(BF1,4,1)","v":""},{"$f":"BF4","v":""},2048,{"$f":"BG4*BH4","v":{"$error":"#VALUE!"}},null,null,{"$f":"MID(BL1,4,1)","v":""},{"$f":"BL4","v":""},2048,{"$f":"BM4*BN4","v":{"$error":"#VALUE!"}},null,null,{"$f":"MID(BR1,4,1)","v":""},{"$f":"BR4","v":""},2048,{"$f":"BS4*BT4","v":{"$error":"#VALUE!"}},null,null,{"$f":"MID(BX1,4,1)","v":""},{"$f":"BX4","v":""},2048,{"$f":"BY4*BZ4","v":{"$error":"#VALUE!"}},null,null,{"$f":"MID(CD1,4,1)","v":""},{"$f":"CD4","v":""},2048,{"$f":"CE4*CF4","v":{"$error":"#VALUE!"}},null,null,{"$f":"MID(CJ1,4,1)","v":""},{"$f":"CJ4","v":""},2048,{"$f":"CK4*CL4","v":{"$error":"#VALUE!"}},null,null,{"$f":"MID(CP1,4,1)","v":""},{"$f":"CP4","v":""},2048,{"$f":"CQ4*CR4","v":{"$error":"#VALUE!"}},null,null,{"$f":"MID(CV1,4,1)","v":""},{"$f":"CV4","v":""},2048,{"$f":"CW4*CX4","v":{"$error":"#VALUE!"}},null,null,{"$f":"MID(DB1,4,1)","v":""},{"$f":"DB4","v":""},2048,{"$f":"DC4*DD4","v":{"$error":"#VALUE!"}},null,null,{"$f":"MID(DH1,4,1)","v":""},{"$f":"DH4","v":""},2048,{"$f":"DI4*DJ4","v":{"$error":"#VALUE!"}},null,null,{"$f":"MID(DN1,4,1)","v":""},{"$f":"DN4","v":""},2048,{"$f":"DO4*DP4","v":{"$error":"#VALUE!"}},null,null,{"$f":"MID(DT1,4,1)","v":""},{"$f":"DT4","v":""},2048,{"$f":"DU4*DV4","v":{"$error":"#VALUE!"}},null,null,{"$f":"MID(DZ1,4,1)","v":""},{"$f":"DZ4","v":""},2048,{"$f":"EA4*EB4","v":{"$error":"#VALUE!"}},null,null,{"$f":"MID(EF1,4,1)","v":""},{"$f":"EF4","v":""},2048,{"$f":"EG4*EH4","v":{"$error":"#VALUE!"}},null,null,{"$f":"MID(EL1,4,1)","v":""},{"$f":"EL4","v":""},2048,{"$f":"EM4*EN4","v":{"$error":"#VALUE!"}}]
[{"$f":"MID(A1,5,1)","v":""},{"$f":"A5","v":""},1024,{"$error":"#VALUE!"},null,{"$f":"MID(F1,5,1)","v":""},{"$f":"F5","v":""},1024,{"$error":"#VALUE!"},null,{"$f":"MID($K1,5,1)","v":""},"",1024,{"$error":"#VALUE!"},null,null,{"$f":"MID(Q1,5,1)","v":""},"",1024,{"$error":"#VALUE!"},null,null,{"$f":"MID(W1,5,1)","v":""},"",1024,{"$error":"#VALUE!"},null,null,{"$f":"MID(AC1,5,1)","v":""},"",1024,{"$error":"#VALUE!"},null,null,{"$f":"MID(AI1,5,1)","v":""},"",1024,{"$error":"#VALUE!"},null,{"$f":"MID(AN1,5,1)","v":""},{"$f":"AN5","v":""},1024,{"$error":"#VALUE!"},null,null,{"$f":"MID(AT1,5,1)","v":""},{"$f":"AT5","v":""},1024,{"$error":"#VALUE!"},null,null,{"$f":"MID(AZ1,5,1)","v":""},{"$f":"AZ5","v":""},1024,{"$error":"#VALUE!"},null,null,{"$f":"MID(BF1,5,1)","v":""},{"$f":"BF5","v":""},1024,{"$error":"#VALUE!"},null,null,{"$f":"MID(BL1,5,1)","v":""},{"$f":"BL5","v":""},1024,{"$error":"#VALUE!"},null,null,{"$f":"MID(BR1,5,1)","v":""},{"$f":"BR5","v":""},1024,{"$error":"#VALUE!"},null,null,{"$f":"MID(BX1,5,1)","v":""},{"$f":"BX5","v":""},1024,{"$error":"#VALUE!"},null,null,{"$f":"MID(CD1,5,1)","v":""},{"$f":"CD5","v":""},1024,{"$error":"#VALUE!"},null,null,{"$f":"MID(CJ1,5,1)","v":""},{"$f":"CJ5","v":""},1024,{"$error":"#VALUE!"},null,null,{"$f":"MID(CP1,5,1)","v":""},{"$f":"CP5","v":""},1024,{"$error":"#VALUE!"},null,null,{"$f":"MID(CV1,5,1)","v":""},{"$f":"CV5","v":""},1024,{"$error":"#VALUE!"},null,null,{"$f":"MID(DB1,5,1)","v":""},{"$f":"DB5","v":""},1024,{"$error":"#VALUE!"},null,null,{"$f":"MID(DH1,5,1)","v":""},{"$f":"DH5","v":""},1024,{"$error":"#VALUE!"},null,null,{"$f":"MID(DN1,5,1)","v":""},{"$f":"DN5","v":""},1024,{"$error":"#VALUE!"},null,null,{"$f":"MID(DT1,5,1)","v":""},{"$f":"DT5","v":""},1024,{"$error":"#VALUE!"},null,null,{"$f":"MID(DZ1,5,1)","v":""},{"$f":"DZ5","v":""},1024,{"$error":"#VALUE!"},null,null,{"$f":"MID(EF1,5,1)","v":""},{"$f":"EF5","v":""},1024,{"$error":"#VALUE!"},null,null,{"$f":"MID(EL1,5,1)","v":""},{"$f":"EL5","v":""},1024,{"$error":"#VALUE!"}]
[{"$f":"MID(A1,6,1)","v":""},"",512,{"$error":"#VALUE!"},null,{"$f":"MID(F1,6,1)","v":""},"",512,{"$error":"#VALUE!"},null,{"$f":"MID($K1,6,1)","v":""},"",512,{"$error":"#VALUE!"},null,null,{"$f":"MID(Q1,6,1)","v":""},"",512,{"$error":"#VALUE!"},null,null,{"$f":"MID(W1,6,1)","v":""},"",512,{"$error":"#VALUE!"},null,null,{"$f":"MID(AC1,6,1)","v":""},"",512,{"$error":"#VALUE!"},null,null,{"$f":"MID(AI1,6,1)","v":""},"",512,{"$error":"#VALUE!"},null,{"$f":"MID(AN1,6,1)","v":""},"",512,{"$error":"#VALUE!"},null,null,{"$f":"MID(AT1,6,1)","v":""},"",512,{"$error":"#VALUE!"},null,null,{"$f":"MID(AZ1,6,1)","v":""},"",512,{"$error":"#VALUE!"},null,null,{"$f":"MID(BF1,6,1)","v":""},"",512,{"$error":"#VALUE!"},null,null,{"$f":"MID(BL1,6,1)","v":""},"",512,{"$error":"#VALUE!"},null,null,{"$f":"MID(BR1,6,1)","v":""},"",512,{"$error":"#VALUE!"},null,null,{"$f":"MID(BX1,6,1)","v":""},"",512,{"$error":"#VALUE!"},null,null,{"$f":"MID(CD1,6,1)","v":""},"",512,{"$error":"#VALUE!"},null,null,{"$f":"MID(CJ1,6,1)","v":""},"",512,{"$error":"#VALUE!"},null,null,{"$f":"MID(CP1,6,1)","v":""},"",512,{"$error":"#VALUE!"},null,null,{"$f":"MID(CV1,6,1)","v":""},"",512,{"$error":"#VALUE!"},null,null,{"$f":"MID(DB1,6,1)","v":""},"",512,{"$error":"#VALUE!"},null,null,{"$f":"MID(DH1,6,1)","v":""},"",512,{"$error":"#VALUE!"},null,null,{"$f":"MID(DN1,6,1)","v":""},"",512,{"$error":"#VALUE!"},null,null,{"$f":"MID(DT1,6,1)","v":""},"",512,{"$error":"#VALUE!"},null,null,{"$f":"MID(DZ1,6,1)","v":""},"",512,{"$error":"#VALUE!"},null,null,{"$f":"MID(EF1,6,1)","v":""},"",512,{"$error":"#VALUE!"},null,null,{"$f":"MID(EL1,6,1)","v":""},"",512,{"$error":"#VALUE!"}]
[{"$f":"MID(A1,7,1)","v":""},"",256,{"$error":"#VALUE!"},null,{"$f":"MID(F1,7,1)","v":""},"",256,{"$error":"#VALUE!"},null,{"$f":"MID($K1,7,1)","v":""},"",256,{"$error":"#VALUE!"},null,null,{"$f":"MID(Q1,7,1)","v":""},"",256,{"$error":"#VALUE!"},null,null,{"$f":"MID(W1,7,1)","v":""},"",256,{"$error":"#VALUE!"},null,null,{"$f":"MID(AC1,7,1)","v":""},"",256,{"$error":"#VALUE!"},null,null,{"$f":"MID(AI1,7,1)","v":""},"",256,{"$error":"#VALUE!"},null,{"$f":"MID(AN1,7,1)","v":""},"",256,{"$error":"#VALUE!"},null,null,{"$f":"MID(AT1,7,1)","v":""},"",256,{"$error":"#VALUE!"},null,null,{"$f":"MID(AZ1,7,1)","v":""},"",256,{"$error":"#VALUE!"},null,null,{"$f":"MID(BF1,7,1)","v":""},"",256,{"$error":"#VALUE!"},null,null,{"$f":"MID(BL1,7,1)","v":""},"",256,{"$error":"#VALUE!"},null,null,{"$f":"MID(BR1,7,1)","v":""},"",256,{"$error":"#VALUE!"},null,null,{"$f":"MID(BX1,7,1)","v":""},"",256,{"$error":"#VALUE!"},null,null,{"$f":"MID(CD1,7,1)","v":""},"",256,{"$error":"#VALUE!"},null,null,{"$f":"MID(CJ1,7,1)","v":""},"",256,{"$error":"#VALUE!"},null,null,{"$f":"MID(CP1,7,1)","v":""},"",256,{"$error":"#VALUE!"},null,null,{"$f":"MID(CV1,7,1)","v":""},"",256,{"$error":"#VALUE!"},null,null,{"$f":"MID(DB1,7,1)","v":""},"",256,{"$error":"#VALUE!"},null,null,{"$f":"MID(DH1,7,1)","v":""},"",256,{"$error":"#VALUE!"},null,null,{"$f":"MID(DN1,7,1)","v":""},"",256,{"$error":"#VALUE!"},null,null,{"$f":"MID(DT1,7,1)","v":""},"",256,{"$error":"#VALUE!"},null,null,{"$f":"MID(DZ1,7,1)","v":""},"",256,{"$error":"#VALUE!"},null,null,{"$f":"MID(EF1,7,1)","v":""},"",256,{"$error":"#VALUE!"},null,null,{"$f":"MID(EL1,7,1)","v":""},"",256,{"$error":"#VALUE!"}]
[{"$f":"MID(A1,8,1)","v":""},"",128,{"$error":"#VALUE!"},null,{"$f":"MID(F1,8,1)","v":""},"",128,{"$error":"#VALUE!"},null,{"$f":"MID($K1,8,1)","v":""},"",128,{"$error":"#VALUE!"},null,null,{"$f":"MID(Q1,8,1)","v":""},"",128,{"$error":"#VALUE!"},null,null,{"$f":"MID(W1,8,1)","v":""},"",128,{"$error":"#VALUE!"},null,null,{"$f":"MID(AC1,8,1)","v":""},"",128,{"$error":"#VALUE!"},null,null,{"$f":"MID(AI1,8,1)","v":""},"",128,{"$error":"#VALUE!"},null,{"$f":"MID(AN1,8,1)","v":""},"",128,{"$error":"#VALUE!"},null,null,{"$f":"MID(AT1,8,1)","v":""},"",128,{"$error":"#VALUE!"},null,null,{"$f":"MID(AZ1,8,1)","v":""},"",128,{"$error":"#VALUE!"},null,null,{"$f":"MID(BF1,8,1)","v":""},"",128,{"$error":"#VALUE!"},null,null,{"$f":"MID(BL1,8,1)","v":""},"",128,{"$error":"#VALUE!"},null,null,{"$f":"MID(BR1,8,1)","v":""},"",128,{"$error":"#VALUE!"},null,null,{"$f":"MID(BX1,8,1)","v":""},"",128,{"$error":"#VALUE!"},null,null,{"$f":"MID(CD1,8,1)","v":""},"",128,{"$error":"#VALUE!"},null,null,{"$f":"MID(CJ1,8,1)","v":""},"",128,{"$error":"#VALUE!"},null,null,{"$f":"MID(CP1,8,1)","v":""},"",128,{"$error":"#VALUE!"},null,null,{"$f":"MID(CV1,8,1)","v":""},"",128,{"$error":"#VALUE!"},null,null,{"$f":"MID(DB1,8,1)","v":""},"",128,{"$error":"#VALUE!"},null,null,{"$f":"MID(DH1,8,1)","v":""},"",128,{"$error":"#VALUE!"},null,null,{"$f":"MID(DN1,8,1)","v":""},"",128,{"$error":"#VALUE!"},null,null,{"$f":"MID(DT1,8,1)","v":""},"",128,{"$error":"#VALUE!"},null,null,{"$f":"MID(DZ1,8,1)","v":""},"",128,{"$error":"#VALUE!"},null,null,{"$f":"MID(EF1,8,1)","v":""},"",128,{"$error":"#VALUE!"},null,null,{"$f":"MID(EL1,8,1)","v":""},"",128,{"$error":"#VALUE!"}]
[{"$f":"MID(A1,9,1)","v":""},"",64,{"$error":"#VALUE!"},null,{"$f":"MID(F1,9,1)","v":""},"",64,{"$error":"#VALUE!"},null,{"$f":"MID($K1,9,1)","v":""},"",64,{"$error":"#VALUE!"},null,null,{"$f":"MID(Q1,9,1)","v":""},"",64,{"$error":"#VALUE!"},null,null,{"$f":"MID(W1,9,1)","v":""},"",64,{"$error":"#VALUE!"},null,null,{"$f":"MID(AC1,9,1)","v":""},"",64,{"$error":"#VALUE!"},null,null,{"$f":"MID(AI1,9,1)","v":""},"",64,{"$error":"#VALUE!"},null,{"$f":"MID(AN1,9,1)","v":""},"",64,{"$error":"#VALUE!"},null,null,{"$f":"MID(AT1,9,1)","v":""},"",64,{"$error":"#VALUE!"},null,null,{"$f":"MID(AZ1,9,1)","v":""},"",64,{"$error":"#VALUE!"},null,null,{"$f":"MID(BF1,9,1)","v":""},"",64,{"$error":"#VALUE!"},null,null,{"$f":"MID(BL1,9,1)","v":""},"",64,{"$error":"#VALUE!"},null,null,{"$f":"MID(BR1,9,1)","v":""},"",64,{"$error":"#VALUE!"},null,null,{"$f":"MID(BX1,9,1)","v":""},"",64,{"$error":"#VALUE!"},null,null,{"$f":"MID(CD1,9,1)","v":""},"",64,{"$error":"#VALUE!"},null,null,{"$f":"MID(CJ1,9,1)","v":""},"",64,{"$error":"#VALUE!"},null,null,{"$f":"MID(CP1,9,1)","v":""},"",64,{"$error":"#VALUE!"},null,null,{"$f":"MID(CV1,9,1)","v":""},"",64,{"$error":"#VALUE!"},null,null,{"$f":"MID(DB1,9,1)","v":""},"",64,{"$error":"#VALUE!"},null,null,{"$f":"MID(DH1,9,1)","v":""},"",64,{"$error":"#VALUE!"},null,null,{"$f":"MID(DN1,9,1)","v":""},"",64,{"$error":"#VALUE!"},null,null,{"$f":"MID(DT1,9,1)","v":""},"",64,{"$error":"#VALUE!"},null,null,{"$f":"MID(DZ1,9,1)","v":""},"",64,{"$error":"#VALUE!"},null,null,{"$f":"MID(EF1,9,1)","v":""},"",64,{"$error":"#VALUE!"},null,null,{"$f":"MID(EL1,9,1)","v":""},"",64,{"$error":"#VALUE!"}]
[{"$f":"MID(A1,10,1)","v":""},"",32,{"$error":"#VALUE!"},null,{"$f":"MID(F1,10,1)","v":""},"",32,{"$error":"#VALUE!"},null,{"$f":"MID($K1,10,1)","v":""},"",32,{"$error":"#VALUE!"},null,null,{"$f":"MID(Q1,10,1)","v":""},"",32,{"$error":"#VALUE!"},null,null,{"$f":"MID(W1,10,1)","v":""},"",32,{"$error":"#VALUE!"},null,null,{"$f":"MID(AC1,10,1)","v":""},"",32,{"$error":"#VALUE!"},null,null,{"$f":"MID(AI1,10,1)","v":""},"",32,{"$error":"#VALUE!"},null,{"$f":"MID(AN1,10,1)","v":""},"",32,{"$error":"#VALUE!"},null,null,{"$f":"MID(AT1,10,1)","v":""},"",32,{"$error":"#VALUE!"},null,null,{"$f":"MID(AZ1,10,1)","v":""},"",32,{"$error":"#VALUE!"},null,null,{"$f":"MID(BF1,10,1)","v":""},"",32,{"$error":"#VALUE!"},null,null,{"$f":"MID(BL1,10,1)","v":""},"",32,{"$error":"#VALUE!"},null,null,{"$f":"MID(BR1,10,1)","v":""},"",32,{"$error":"#VALUE!"},null,null,{"$f":"MID(BX1,10,1)","v":""},"",32,{"$error":"#VALUE!"},null,null,{"$f":"MID(CD1,10,1)","v":""},"",32,{"$error":"#VALUE!"},null,null,{"$f":"MID(CJ1,10,1)","v":""},"",32,{"$error":"#VALUE!"},null,null,{"$f":"MID(CP1,10,1)","v":""},"",32,{"$error":"#VALUE!"},null,null,{"$f":"MID(CV1,10,1)","v":""},"",32,{"$error":"#VALUE!"},null,null,{"$f":"MID(DB1,10,1)","v":""},"",32,{"$error":"#VALUE!"},null,null,{"$f":"MID(DH1,10,1)","v":""},"",32,{"$error":"#VALUE!"},null,null,{"$f":"MID(DN1,10,1)","v":""},"",32,{"$error":"#VALUE!"},null,null,{"$f":"MID(DT1,10,1)","v":""},"",32,{"$error":"#VALUE!"},null,null,{"$f":"MID(DZ1,10,1)","v":""},"",32,{"$error":"#VALUE!"},null,null,{"$f":"MID(EF1,10,1)","v":""},"",32,{"$error":"#VALUE!"},null,null,{"$f":"MID(EL1,10,1)","v":""},"",32,{"$error":"#VALUE!"}]
[{"$f":"MID(A1,11,1)","v":""},"",16,{"$error":"#VALUE!"},null,{"$f":"MID(F1,11,1)","v":""},"",16,{"$error":"#VALUE!"},null,{"$f":"MID($K1,11,1)","v":""},"",16,{"$error":"#VALUE!"},null,null,{"$f":"MID(Q1,11,1)","v":""},"",16,{"$error":"#VALUE!"},null,null,{"$f":"MID(W1,11,1)","v":""},"",16,{"$error":"#VALUE!"},null,null,{"$f":"MID(AC1,11,1)","v":""},"",16,{"$error":"#VALUE!"},null,null,{"$f":"MID(AI1,11,1)","v":""},"",16,{"$error":"#VALUE!"},null,{"$f":"MID(AN1,11,1)","v":""},"",16,{"$error":"#VALUE!"},null,null,{"$f":"MID(AT1,11,1)","v":""},"",16,{"$error":"#VALUE!"},null,null,{"$f":"MID(AZ1,11,1)","v":""},"",16,{"$error":"#VALUE!"},null,null,{"$f":"MID(BF1,11,1)","v":""},"",16,{"$error":"#VALUE!"},null,null,{"$f":"MID(BL1,11,1)","v":""},"",16,{"$error":"#VALUE!"},null,null,{"$f":"MID(BR1,11,1)","v":""},"",16,{"$error":"#VALUE!"},null,null,{"$f":"MID(BX1,11,1)","v":""},"",16,{"$error":"#VALUE!"},null,null,{"$f":"MID(CD1,11,1)","v":""},"",16,{"$error":"#VALUE!"},null,null,{"$f":"MID(CJ1,11,1)","v":""},"",16,{"$error":"#VALUE!"},null,null,{"$f":"MID(CP1,11,1)","v":""},"",16,{"$error":"#VALUE!"},null,null,{"$f":"MID(CV1,11,1)","v":""},"",16,{"$error":"#VALUE!"},null,null,{"$f":"MID(DB1,11,1)","v":""},"",16,{"$error":"#VALUE!"},null,null,{"$f":"MID(DH1,11,1)","v":""},"",16,{"$error":"#VALUE!"},null,null,{"$f":"MID(DN1,11,1)","v":""},"",16,{"$error":"#VALUE!"},null,null,{"$f":"MID(DT1,11,1)","v":""},"",16,{"$error":"#VALUE!"},null,null,{"$f":"MID(DZ1,11,1)","v":""},"",16,{"$error":"#VALUE!"},null,null,{"$f":"MID(EF1,11,1)","v":""},"",16,{"$error":"#VALUE!"},null,null,{"$f":"MID(EL1,11,1)","v":""},"",16,{"$error":"#VALUE!"}]
[{"$f":"MID(A1,12,1)","v":""},"",8,{"$error":"#VALUE!"},null,{"$f":"MID(F1,12,1)","v":""},"",8,{"$error":"#VALUE!"},null,{"$f":"MID($K1,12,1)","v":""},"",8,{"$error":"#VALUE!"},null,null,{"$f":"MID(Q1,12,1)","v":""},"",8,{"$error":"#VALUE!"},null,null,{"$f":"MID(W1,12,1)","v":""},"",8,{"$error":"#VALUE!"},null,null,{"$f":"MID(AC1,12,1)","v":""},"",8,{"$error":"#VALUE!"},null,null,{"$f":"MID(AI1,12,1)","v":""},"",8,{"$error":"#VALUE!"},null,{"$f":"MID(AN1,12,1)","v":""},"",8,{"$error":"#VALUE!"},null,null,{"$f":"MID(AT1,12,1)","v":""},"",8,{"$error":"#VALUE!"},null,null,{"$f":"MID(AZ1,12,1)","v":""},"",8,{"$error":"#VALUE!"},null,null,{"$f":"MID(BF1,12,1)","v":""},"",8,{"$error":"#VALUE!"},null,null,{"$f":"MID(BL1,12,1)","v":""},"",8,{"$error":"#VALUE!"},null,null,{"$f":"MID(BR1,12,1)","v":""},"",8,{"$error":"#VALUE!"},null,null,{"$f":"MID(BX1,12,1)","v":""},"",8,{"$error":"#VALUE!"},null,null,{"$f":"MID(CD1,12,1)","v":""},"",8,{"$error":"#VALUE!"},null,null,{"$f":"MID(CJ1,12,1)","v":""},"",8,{"$error":"#VALUE!"},null,null,{"$f":"MID(CP1,12,1)","v":""},"",8,{"$error":"#VALUE!"},null,null,{"$f":"MID(CV1,12,1)","v":""},"",8,{"$error":"#VALUE!"},null,null,{"$f":"MID(DB1,12,1)","v":""},"",8,{"$error":"#VALUE!"},null,null,{"$f":"MID(DH1,12,1)","v":""},"",8,{"$error":"#VALUE!"},null,null,{"$f":"MID(DN1,12,1)","v":""},"",8,{"$error":"#VALUE!"},null,null,{"$f":"MID(DT1,12,1)","v":""},"",8,{"$error":"#VALUE!"},null,null,{"$f":"MID(DZ1,12,1)","v":""},"",8,{"$error":"#VALUE!"},null,null,{"$f":"MID(EF1,12,1)","v":""},"",8,{"$error":"#VALUE!"},null,null,{"$f":"MID(EL1,12,1)","v":""},"",8,{"$error":"#VALUE!"}]
[{"$f":"MID(A1,13,1)","v":""},"",4,{"$error":"#VALUE!"},null,{"$f":"MID(F1,13,1)","v":""},"",4,{"$error":"#VALUE!"},null,{"$f":"MID($K1,13,1)","v":""},"",4,{"$error":"#VALUE!"},null,null,{"$f":"MID(Q1,13,1)","v":""},"",4,{"$error":"#VALUE!"},null,null,{"$f":"MID(W1,13,1)","v":""},"",4,{"$error":"#VALUE!"},null,null,{"$f":"MID(AC1,13,1)","v":""},"",4,{"$error":"#VALUE!"},null,null,{"$f":"MID(AI1,13,1)","v":""},"",4,{"$error":"#VALUE!"},null,{"$f":"MID(AN1,13,1)","v":""},"",4,{"$error":"#VALUE!"},null,null,{"$f":"MID(AT1,13,1)","v":""},"",4,{"$error":"#VALUE!"},null,null,{"$f":"MID(AZ1,13,1)","v":""},"",4,{"$error":"#VALUE!"},null,null,{"$f":"MID(BF1,13,1)","v":""},"",4,{"$error":"#VALUE!"},null,null,{"$f":"MID(BL1,13,1)","v":""},"",4,{"$error":"#VALUE!"},null,null,{"$f":"MID(BR1,13,1)","v":""},"",4,{"$error":"#VALUE!"},null,null,{"$f":"MID(BX1,13,1)","v":""},"",4,{"$error":"#VALUE!"},null,null,{"$f":"MID(CD1,13,1)","v":""},"",4,{"$error":"#VALUE!"},null,null,{"$f":"MID(CJ1,13,1)","v":""},"",4,{"$error":"#VALUE!"},null,null,{"$f":"MID(CP1,13,1)","v":""},"",4,{"$error":"#VALUE!"},null,null,{"$f":"MID(CV1,13,1)","v":""},"",4,{"$error":"#VALUE!"},null,null,{"$f":"MID(DB1,13,1)","v":""},"",4,{"$error":"#VALUE!"},null,null,{"$f":"MID(DH1,13,1)","v":""},"",4,{"$error":"#VALUE!"},null,null,{"$f":"MID(DN1,13,1)","v":""},"",4,{"$error":"#VALUE!"},null,null,{"$f":"MID(DT1,13,1)","v":""},"",4,{"$error":"#VALUE!"},null,null,{"$f":"MID(DZ1,13,1)","v":""},"",4,{"$error":"#VALUE!"},null,null,{"$f":"MID(EF1,13,1)","v":""},"",4,{"$error":"#VALUE!"},null,null,{"$f":"MID(EL1,13,1)","v":""},"",4,{"$error":"#VALUE!"}]
[{"$f":"MID(A1,14,1)","v":""},"",2,{"$error":"#VALUE!"},null,{"$f":"MID(F1,14,1)","v":""},"",2,{"$error":"#VALUE!"},null,{"$f":"MID($K1,14,1)","v":""},"",2,{"$error":"#VALUE!"},null,null,{"$f":"MID(Q1,14,1)","v":""},"",2,{"$error":"#VALUE!"},null,null,{"$f":"MID(W1,14,1)","v":""},"",2,{"$error":"#VALUE!"},null,null,{"$f":"MID(AC1,14,1)","v":""},"",2,{"$error":"#VALUE!"},null,null,{"$f":"MID(AI1,14,1)","v":""},"",2,{"$error":"#VALUE!"},null,{"$f":"MID(AN1,14,1)","v":""},"",2,{"$error":"#VALUE!"},null,null,{"$f":"MID(AT1,14,1)","v":""},"",2,{"$error":"#VALUE!"},null,null,{"$f":"MID(AZ1,14,1)","v":""},"",2,{"$error":"#VALUE!"},null,null,{"$f":"MID(BF1,14,1)","v":""},"",2,{"$error":"#VALUE!"},null,null,{"$f":"MID(BL1,14,1)","v":""},"",2,{"$error":"#VALUE!"},null,null,{"$f":"MID(BR1,14,1)","v":""},"",2,{"$error":"#VALUE!"},null,null,{"$f":"MID(BX1,14,1)","v":""},"",2,{"$error":"#VALUE!"},null,null,{"$f":"MID(CD1,14,1)","v":""},"",2,{"$error":"#VALUE!"},null,null,{"$f":"MID(CJ1,14,1)","v":""},"",2,{"$error":"#VALUE!"},null,null,{"$f":"MID(CP1,14,1)","v":""},"",2,{"$error":"#VALUE!"},null,null,{"$f":"MID(CV1,14,1)","v":""},"",2,{"$error":"#VALUE!"},null,null,{"$f":"MID(DB1,14,1)","v":""},"",2,{"$error":"#VALUE!"},null,null,{"$f":"MID(DH1,14,1)","v":""},"",2,{"$error":"#VALUE!"},null,null,{"$f":"MID(DN1,14,1)","v":""},"",2,{"$error":"#VALUE!"},null,null,{"$f":"MID(DT1,14,1)","v":""},"",2,{"$error":"#VALUE!"},null,null,{"$f":"MID(DZ1,14,1)","v":""},"",2,{"$error":"#VALUE!"},null,null,{"$f":"MID(EF1,14,1)","v":""},"",2,{"$error":"#VALUE!"},null,null,{"$f":"MID(EL1,14,1)","v":""},"",2,{"$error":"#VALUE!"}]
["Blocker Line"]
["Blocker Line",{"$f":"SUM(D2:D14)","v":{"$error":"#N/A"}},{"$f":"B16/37","v":{"$error":"#N/A"}},null,null,null,{"$f":"SUM(I2:I14)","v":{"$error":"#N/A"}},{"$f":"G16/37","v":{"$error":"#N/A"}},null,null,null,{"$f":"SUM(N2:N14)","v":{"$error":"#N/A"}},{"$f":"L16/37","v":{"$error":"#N/A"}},null,null,null,null,{"$f":"SUM(T2:T14)","v":{"$error":"#N/A"}},{"$f":"R16/37","v":{"$error":"#N/A"}},null,null,null,null,{"$f":"SUM(Z2:Z14)","v":{"$error":"#N/A"}},{"$f":"X16/37","v":{"$error":"#N/A"}},null,null,null,null,{"$f":"SUM(AF2:AF14)","v":{"$error":"#N/A"}},{"$f":"AD16/37","v":{"$error":"#N/A"}},null,null,null,null,{"$f":"SUM(AL2:AL14)","v":{"$error":"#N/A"}},{"$f":"AJ16/37","v":{"$error":"#N/A"}},null,null,null,{"$f":"SUM(AQ2:AQ14)","v":{"$error":"#N/A"}},{"$f":"AO16/37","v":{"$error":"#N/A"}},null,null,null,null,{"$f":"SUM(AW2:AW14)","v":{"$error":"#N/A"}},{"$f":"AU16/37","v":{"$error":"#N/A"}},null,null,null,null,{"$f":"SUM(BC2:BC14)","v":{"$error":"#N/A"}},{"$f":"BA16/37","v":{"$error":"#N/A"}},null,null,null,null,{"$f":"SUM(BI2:BI14)","v":{"$error":"#N/A"}},{"$f":"BG16/37","v":{"$error":"#N/A"}},null,null,null,null,{"$f":"SUM(BO2:BO14)","v":{"$error":"#N/A"}},{"$f":"BM16/37","v":{"$error":"#N/A"}},null,null,null,null,{"$f":"SUM(BU2:BU14)","v":{"$error":"#N/A"}},{"$f":"BS16/37","v":{"$error":"#N/A"}},null,null,null,null,{"$f":"SUM(CA2:CA14)","v":{"$error":"#N/A"}},{"$f":"BY16/37","v":{"$error":"#N/A"}},null,null,null,null,{"$f":"SUM(CG2:CG14)","v":{"$error":"#N/A"}},{"$f":"CE16/37","v":{"$error":"#N/A"}},null,null,null,null,{"$f":"SUM(CM2:CM14)","v":{"$error":"#N/A"}},{"$f":"CK16/37","v":{"$error":"#N/A"}},null,null,null,null,{"$f":"SUM(CS2:CS14)","v":{"$error":"#N/A"}},{"$f":"CQ16/37","v":{"$error":"#N/A"}},null,null,null,null,{"$f":"SUM(CY2:CY14)","v":{"$error":"#N/A"}},{"$f":"CW16/37","v":{"$error":"#N/A"}},null,null,null,null,{"$f":"SUM(DE2:DE14)","v":{"$error":"#N/A"}},{"$f":"DC16/37","v":{"$error":"#N/A"}},null,null,null,null,{"$f":"SUM(DK2:DK14)","v":{"$error":"#N/A"}},{"$f":"DI16/37","v":{"$error":"#N/A"}},null,null,null,null,{"$f":"SUM(DQ2:DQ14)","v":{"$error":"#N/A"}},{"$f":"DO16/37","v":{"$error":"#N/A"}},null,null,null,null,{"$f":"SUM(DW2:DW14)","v":{"$error":"#N/A"}},{"$f":"DU16/37","v":{"$error":"#N/A"}},null,null,null,null,{"$f":"SUM(EC2:EC14)","v":{"$error":"#N/A"}},{"$f":"EA16/37","v":{"$error":"#N/A"}},null,null,null,null,{"$f":"SUM(EI2:EI14)","v":{"$error":"#N/A"}},{"$f":"EG16/37","v":{"$error":"#N/A"}},null,null,null,null,{"$f":"SUM(EO2:EO14)","v":{"$error":"#N/A"}},{"$f":"EM16/37","v":{"$error":"#N/A"}}]
["Blocker Line",null,{"$f":"ROUNDDOWN(C16, 0)","v":{"$error":"#N/A"}},null,null,null,null,{"$f":"ROUNDDOWN(H16, 0)","v":{"$error":"#N/A"}},null,null,null,null,{"$f":"ROUNDDOWN(M16, 0)","v":{"$error":"#N/A"}},null,null,null,null,null,{"$f":"ROUNDDOWN(S16, 0)","v":{"$error":"#N/A"}},null,null,null,null,null,{"$f":"ROUNDDOWN(Y16, 0)","v":{"$error":"#N/A"}},null,null,null,null,null,{"$f":"ROUNDDOWN(AE16, 0)","v":{"$error":"#N/A"}},null,null,null,null,null,{"$f":"ROUNDDOWN(AK16, 0)","v":{"$error":"#N/A"}},null,null,null,null,{"$f":"ROUNDDOWN(AP16, 0)","v":{"$error":"#N/A"}},null,null,null,null,null,{"$f":"ROUNDDOWN(AV16, 0)","v":{"$error":"#N/A"}},null,null,null,null,null,{"$f":"ROUNDDOWN(BB16, 0)","v":{"$error":"#N/A"}},null,null,null,null,null,{"$f":"ROUNDDOWN(BH16, 0)","v":{"$error":"#N/A"}},null,null,null,null,null,{"$f":"ROUNDDOWN(BN16, 0)","v":{"$error":"#N/A"}},null,null,null,null,null,{"$f":"ROUNDDOWN(BT16, 0)","v":{"$error":"#N/A"}},null,null,null,null,null,{"$f":"ROUNDDOWN(BZ16, 0)","v":{"$error":"#N/A"}},null,null,null,null,null,{"$f":"ROUNDDOWN(CF16, 0)","v":{"$error":"#N/A"}},null,null,null,null,null,{"$f":"ROUNDDOWN(CL16, 0)","v":{"$error":"#N/A"}},null,null,null,null,null,{"$f":"ROUNDDOWN(CR16, 0)","v":{"$error":"#N/A"}},null,null,null,null,null,{"$f":"ROUNDDOWN(CX16, 0)","v":{"$error":"#N/A"}},null,null,null,null,null,{"$f":"ROUNDDOWN(DD16, 0)","v":{"$error":"#N/A"}},null,null,null,null,null,{"$f":"ROUNDDOWN(DJ16, 0)","v":{"$error":"#N/A"}},null,null,null,null,null,{"$f":"ROUNDDOWN(DP16, 0)","v":{"$error":"#N/A"}},null,null,null,null,null,{"$f":"ROUNDDOWN(DV16, 0)","v":{"$error":"#N/A"}},null,null,null,null,null,{"$f":"ROUNDDOWN(EB16, 0)","v":{"$error":"#N/A"}},null,null,null,null,null,{"$f":"ROUNDDOWN(EH16, 0)","v":{"$error":"#N/A"}},null,null,null,null,null,{"$f":"ROUNDDOWN(EN16, 0)","v":{"$error":"#N/A"}}]
["Blocker Line",{"$f":"C17*37","v":{"$error":"#N/A"}},null,null,null,null,{"$f":"H17*37","v":{"$error":"#N/A"}},null,null,null,null,{"$f":"M17*37","v":{"$error":"#N/A"}},null,null,null,null,null,{"$f":"S17*37","v":{"$error":"#N/A"}},null,null,null,null,null,{"$f":"Y17*37","v":{"$error":"#N/A"}},null,null,null,null,null,{"$f":"AE17*37","v":{"$error":"#N/A"}},null,null,null,null,null,{"$f":"AK17*37","v":{"$error":"#N/A"}},null,null,null,null,{"$f":"AP17*37","v":{"$error":"#N/A"}},null,null,null,null,null,{"$f":"AV17*37","v":{"$error":"#N/A"}},null,null,null,null,null,{"$f":"BB17*37","v":{"$error":"#N/A"}},null,null,null,null,null,{"$f":"BH17*37","v":{"$error":"#N/A"}},null,null,null,null,null,{"$f":"BN17*37","v":{"$error":"#N/A"}},null,null,null,null,null,{"$f":"BT17*37","v":{"$error":"#N/A"}},null,null,null,null,null,{"$f":"BZ17*37","v":{"$error":"#N/A"}},null,null,null,null,null,{"$f":"CF17*37","v":{"$error":"#N/A"}},null,null,null,null,null,{"$f":"CL17*37","v":{"$error":"#N/A"}},null,null,null,null,null,{"$f":"CR17*37","v":{"$error":"#N/A"}},null,null,null,null,null,{"$f":"CX17*37","v":{"$error":"#N/A"}},null,null,null,null,null,{"$f":"DD17*37","v":{"$error":"#N/A"}},null,null,null,null,null,{"$f":"DJ17*37","v":{"$error":"#N/A"}},null,null,null,null,null,{"$f":"DP17*37","v":{"$error":"#N/A"}},null,null,null,null,null,{"$f":"DV17*37","v":{"$error":"#N/A"}},null,null,null,null,null,{"$f":"EB17*37","v":{"$error":"#N/A"}},null,null,null,null,null,{"$f":"EH17*37","v":{"$error":"#N/A"}},null,null,null,null,null,{"$f":"EN17*37","v":{"$error":"#N/A"}}]
["Blocker Line"]
["Blocker Line",{"$f":"B16-B18","v":{"$error":"#N/A"}},null,{"$f":"CONCATENATE(UPPER(MID(A1,2,4)),\" \",UPPER(MID(A1,6,3)),\" \",UPPER(MID(A1,9,3)),\" \",UPPER(MID(A1,12,3)),\" \",UPPER(MID(C23,1,1)))","v":{"$error":"#N/A"}},null,null,{"$f":"G16-G18","v":{"$error":"#N/A"}},null,{"$f":"CONCATENATE(UPPER(MID(F1,2,4)),\" \",UPPER(MID(F1,6,3)),\" \",UPPER(MID(F1,9,3)),\" \",UPPER(MID(F1,12,3)),\" \",UPPER(MID(H23,1,1)))","v":{"$error":"#N/A"}},null,null,{"$f":"L16-L18","v":{"$error":"#N/A"}},null,{"$f":"CONCATENATE(UPPER(MID(K1,2,4)),\" \",UPPER(MID(K1,6,3)),\" \",UPPER(MID(K1,9,3)),\" \",UPPER(MID(K1,12,3)),\" \",UPPER(MID(M23,1,1)))","v":{"$error":"#N/A"}},null,null,null,{"$f":"R16-R18","v":{"$error":"#N/A"}},null,{"$f":"CONCATENATE(UPPER(MID(Q1,2,4)),\" \",UPPER(MID(Q1,6,3)),\" \",UPPER(MID(Q1,9,3)),\" \",UPPER(MID(Q1,12,3)),\" \",UPPER(MID(S23,1,1)))","v":{"$error":"#N/A"}},null,null,null,{"$f":"X16-X18","v":{"$error":"#N/A"}},null,{"$f":"CONCATENATE(UPPER(MID(W1,2,4)),\" \",UPPER(MID(W1,6,3)),\" \",UPPER(MID(W1,9,3)),\" \",UPPER(MID(W1,12,3)),\" \",UPPER(MID(Y23,1,1)))","v":{"$error":"#N/A"}},null,null,null,{"$f":"AD16-AD18","v":{"$error":"#N/A"}},null,{"$f":"CONCATENATE(UPPER(MID(AC1,2,4)),\" \",UPPER(MID(AC1,6,3)),\" \",UPPER(MID(AC1,9,3)),\" \",UPPER(MID(AC1,12,3)),\" \",UPPER(MID(AE23,1,1)))","v":{"$error":"#N/A"}},null,null,null,{"$f":"AJ16-AJ18","v":{"$error":"#N/A"}},null,{"$f":"CONCATENATE(UPPER(MID(AI1,2,4)),\" \",UPPER(MID(AI1,6,3)),\" \",UPPER(MID(AI1,9,3)),\" \",UPPER(MID(AI1,12,3)),\" \",UPPER(MID(AK23,1,1)))","v":{"$error":"#N/A"}},null,null,{"$f":"AO16-AO18","v":{"$error":"#N/A"}},null,{"$f":"CONCATENATE(UPPER(MID(AN1,2,4)),\" \",UPPER(MID(AN1,6,3)),\" \",UPPER(MID(AN1,9,3)),\" \",UPPER(MID(AN1,12,3)),\" \",UPPER(MID(AP23,1,1)))","v":{"$error":"#N/A"}},null,null,null,{"$f":"AU16-AU18","v":{"$error":"#N/A"}},null,{"$f":"CONCATENATE(UPPER(MID(AT1,2,4)),\" \",UPPER(MID(AT1,6,3)),\" \",UPPER(MID(AT1,9,3)),\" \",UPPER(MID(AT1,12,3)),\" \",UPPER(MID(AV23,1,1)))","v":{"$error":"#N/A"}},null,null,null,{"$f":"BA16-BA18","v":{"$error":"#N/A"}},null,{"$f":"CONCATENATE(UPPER(MID(AZ1,2,4)),\" \",UPPER(MID(AZ1,6,3)),\" \",UPPER(MID(AZ1,9,3)),\" \",UPPER(MID(AZ1,12,3)),\" \",UPPER(MID(BB23,1,1)))","v":{"$error":"#N/A"}},null,null,null,{"$f":"BG16-BG18","v":{"$error":"#N/A"}},null,{"$f":"CONCATENATE(UPPER(MID(BF1,2,4)),\" \",UPPER(MID(BF1,6,3)),\" \",UPPER(MID(BF1,9,3)),\" \",UPPER(MID(BF1,12,3)),\" \",UPPER(MID(BH23,1,1)))","v":{"$error":"#N/A"}},null,null,null,{"$f":"BM16-BM18","v":{"$error":"#N/A"}},null,{"$f":"CONCATENATE(UPPER(MID(BL1,2,4)),\" \",UPPER(MID(BL1,6,3)),\" \",UPPER(MID(BL1,9,3)),\" \",UPPER(MID(BL1,12,3)),\" \",UPPER(MID(BN23,1,1)))","v":{"$error":"#N/A"}},null,null,null,{"$f":"BS16-BS18","v":{"$error":"#N/A"}},null,{"$f":"CONCATENATE(UPPER(MID(BR1,2,4)),\" \",UPPER(MID(BR1,6,3)),\" \",UPPER(MID(BR1,9,3)),\" \",UPPER(MID(BR1,12,3)),\" \",UPPER(MID(BT23,1,1)))","v":{"$error":"#N/A"}},null,null,null,{"$f":"BY16-BY18","v":{"$error":"#N/A"}},null,{"$f":"CONCATENATE(UPPER(MID(BX1,2,4)),\" \",UPPER(MID(BX1,6,3)),\" \",UPPER(MID(BX1,9,3)),\" \",UPPER(MID(BX1,12,3)),\" \",UPPER(MID(BZ23,1,1)))","v":{"$error":"#N/A"}},null,null,null,{"$f":"CE16-CE18","v":{"$error":"#N/A"}},null,{"$f":"CONCATENATE(UPPER(MID(CD1,2,4)),\" \",UPPER(MID(CD1,6,3)),\" \",UPPER(MID(CD1,9,3)),\" \",UPPER(MID(CD1,12,3)),\" \",UPPER(MID(CF23,1,1)))","v":{"$error":"#N/A"}},null,null,null,{"$f":"CK16-CK18","v":{"$error":"#N/A"}},null,{"$f":"CONCATENATE(UPPER(MID(CJ1,2,4)),\" \",UPPER(MID(CJ1,6,3)),\" \",UPPER(MID(CJ1,9,3)),\" \",UPPER(MID(CJ1,12,3)),\" \",UPPER(MID(CL23,1,1)))","v":{"$error":"#N/A"}},null,null,null,{"$f":"CQ16-CQ18","v":{"$error":"#N/A"}},null,{"$f":"CONCATENATE(UPPER(MID(CP1,2,4)),\" \",UPPER(MID(CP1,6,3)),\" \",UPPER(MID(CP1,9,3)),\" \",UPPER(MID(CP1,12,3)),\" \",UPPER(MID(CR23,1,1)))","v":{"$error":"#N/A"}},null,null,null,{"$f":"CW16-CW18","v":{"$error":"#N/A"}},null,{"$f":"CONCATENATE(UPPER(MID(CV1,2,4)),\" \",UPPER(MID(CV1,6,3)),\" \",UPPER(MID(CV1,9,3)),\" \",UPPER(MID(CV1,12,3)),\" \",UPPER(MID(CX23,1,1)))","v":{"$error":"#N/A"}},null,null,null,{"$f":"DC16-DC18","v":{"$error":"#N/A"}},null,{"$f":"CONCATENATE(UPPER(MID(DB1,2,4)),\" \",UPPER(MID(DB1,6,3)),\" \",UPPER(MID(DB1,9,3)),\" \",UPPER(MID(DB1,12,3)),\" \",UPPER(MID(DD23,1,1)))","v":{"$error":"#N/A"}},null,null,null,{"$f":"DI16-DI18","v":{"$error":"#N/A"}},null,{"$f":"CONCATENATE(UPPER(MID(DH1,2,4)),\" \",UPPER(MID(DH1,6,3)),\" \",UPPER(MID(DH1,9,3)),\" \",UPPER(MID(DH1,12,3)),\" \",UPPER(MID(DJ23,1,1)))","v":{"$error":"#N/A"}},null,null,null,{"$f":"DO16-DO18","v":{"$error":"#N/A"}},null,{"$f":"CONCATENATE(UPPER(MID(DN1,2,4)),\" \",UPPER(MID(DN1,6,3)),\" \",UPPER(MID(DN1,9,3)),\" \",UPPER(MID(DN1,12,3)),\" \",UPPER(MID(DP23,1,1)))","v":{"$error":"#N/A"}},null,null,null,{"$f":"DU16-DU18","v":{"$error":"#N/A"}},null,{"$f":"CONCATENATE(UPPER(MID(DT1,2,4)),\" \",UPPER(MID(DT1,6,3)),\" \",UPPER(MID(DT1,9,3)),\" \",UPPER(MID(DT1,12,3)),\" \",UPPER(MID(DV23,1,1)))","v":{"$error":"#N/A"}},null,null,null,{"$f":"EA16-EA18","v":{"$error":"#N/A"}},null,{"$f":"CONCATENATE(UPPER(MID(DZ1,2,4)),\" \",UPPER(MID(DZ1,6,3)),\" \",UPPER(MID(DZ1,9,3)),\" \",UPPER(MID(DZ1,12,3)),\" \",UPPER(MID(EB23,1,1)))","v":{"$error":"#N/A"}},null,null,null,{"$f":"EG16-EG18","v":{"$error":"#N/A"}},null,{"$f":"CONCATENATE(UPPER(MID(EF1,2,4)),\" \",UPPER(MID(EF1,6,3)),\" \",UPPER(MID(EF1,9,3)),\" \",UPPER(MID(EF1,12,3)),\" \",UPPER(MID(EH23,1,1)))","v":{"$error":"#N/A"}},null,null,null,{"$f":"EM16-EM18","v":{"$error":"#N/A"}},null,{"$f":"CONCATENATE(UPPER(MID(EL1,2,4)),\" \",UPPER(MID(EL1,6,3)),\" \",UPPER(MID(EL1,9,3)),\" \",UPPER(MID(EL1,12,3)),\" \",UPPER(MID(EN23,1,1)))","v":{"$error":"#N/A"}}]
["Blocker Line",null,null,{"$f":"LOOKUP(B1, Reference!$G2:$H9)","v":{"$error":"#VALUE!"}},null,null,null,null,{"$f":"LOOKUP(G1, Reference!$G2:$H9)","v":{"$error":"#VALUE!"}},null,null,null,null,{"$f":"LOOKUP(L1, Reference!$G2:$H9)","v":{"$error":"#VALUE!"}},null,null,null,null,null,{"$f":"LOOKUP(R1, Reference!$G2:$H9)","v":{"$error":"#VALUE!"}},null,null,null,null,null,{"$f":"LOOKUP(X1, Reference!$G2:$H9)","v":{"$error":"#VALUE!"}},null,null,null,null,null,{"$f":"LOOKUP(AD1, Reference!$G2:$H9)","v":{"$error":"#VALUE!"}},null,null,null,null,null,{"$f":"LOOKUP(AJ1, Reference!$G2:$H9)","v":{"$error":"#VALUE!"}},null,null,null,null,{"$f":"LOOKUP(AO1, Reference!$G2:$H9)","v":{"$error":"#VALUE!"}},null,null,null,null,null,{"$f":"LOOKUP(AU1, Reference!$G2:$H9)","v":{"$error":"#VALUE!"}},null,null,null,null,null,{"$f":"LOOKUP(BA1, Reference!$G2:$H9)","v":{"$error":"#VALUE!"}},null,null,null,null,null,{"$f":"LOOKUP(BG1, Reference!$G2:$H9)","v":{"$error":"#VALUE!"}},null,null,null,null,null,{"$f":"LOOKUP(BM1, Reference!$G2:$H9)","v":{"$error":"#VALUE!"}},null,null,null,null,null,{"$f":"LOOKUP(BS1, Reference!$G2:$H9)","v":{"$error":"#VALUE!"}},null,null,null,null,null,{"$f":"LOOKUP(BY1, Reference!$G2:$H9)","v":{"$error":"#VALUE!"}},null,null,null,null,null,{"$f":"LOOKUP(CE1, Reference!$G2:$H9)","v":{"$error":"#VALUE!"}},null,null,null,null,null,{"$f":"LOOKUP(CK1, Reference!$G2:$H9)","v":{"$error":"#VALUE!"}},null,null,null,null,null,{"$f":"LOOKUP(CQ1, Reference!$G2:$H9)","v":{"$error":"#VALUE!"}},null,null,null,null,null,{"$f":"LOOKUP(CW1, Reference!$G2:$H9)","v":{"$error":"#VALUE!"}},null,null,null,null,null,{"$f":"LOOKUP(DC1, Reference!$G2:$H9)","v":{"$error":"#VALUE!"}},null,null,null,null,null,{"$f":"LOOKUP(DI1, Reference!$G2:$H9)","v":{"$error":"#VALUE!"}},null,null,null,null,null,{"$f":"LOOKUP(DO1, Reference!$G2:$H9)","v":{"$error":"#VALUE!"}},null,null,null,null,null,{"$f":"LOOKUP(DU1, Reference!$G2:$H9)","v":{"$error":"#VALUE!"}},null,null,null,null,null,{"$f":"LOOKUP(EA1, Reference!$G2:$H9)","v":{"$error":"#VALUE!"}},null,null,null,null,null,{"$f":"LOOKUP(EG1, Reference!$G2:$H9)","v":{"$error":"#VALUE!"}},null,null,null,null,null,{"$f":"LOOKUP(EM1, Reference!$G2:$H9)","v":{"$error":"#VALUE!"}}]
["Blocker Line",{"$f":"38-B20","v":{"$error":"#N/A"}},null,{"$f":"LOOKUP(C1, Reference!$M1:$N325)","v":{"$error":"#N/A"}},null,null,{"$f":"38-G20","v":{"$error":"#N/A"}},null,{"$f":"LOOKUP(H1, Reference!$M1:$N325)","v":{"$error":"#N/A"}},null,null,{"$f":"38-L20","v":{"$error":"#N/A"}},null,{"$f":"LOOKUP(M1, Reference!$M1:$N325)","v":{"$error":"#N/A"}},null,null,null,{"$f":"38-R20","v":{"$error":"#N/A"}},null,{"$f":"LOOKUP(S1, Reference!$M1:$N325)","v":{"$error":"#N/A"}},null,null,null,{"$f":"38-X20","v":{"$error":"#N/A"}},null,{"$f":"LOOKUP(Y1, Reference!$M1:$N325)","v":{"$error":"#N/A"}},null,null,null,{"$f":"38-AD20","v":{"$error":"#N/A"}},null,{"$f":"LOOKUP(AE1, Reference!$M1:$N325)","v":{"$error":"#N/A"}},null,null,null,{"$f":"38-AJ20","v":{"$error":"#N/A"}},null,{"$f":"LOOKUP(AK1, Reference!$M1:$N325)","v":{"$error":"#N/A"}},null,null,{"$f":"38-AO20","v":{"$error":"#N/A"}},null,{"$f":"LOOKUP(AP1, Reference!$M1:$N325)","v":{"$error":"#N/A"}},null,null,null,{"$f":"38-AU20","v":{"$error":"#N/A"}},null,{"$f":"LOOKUP(AV1, Reference!$M1:$N325)","v":{"$error":"#N/A"}},null,null,null,{"$f":"38-BA20","v":{"$error":"#N/A"}},null,{"$f":"LOOKUP(BB1, Reference!$M1:$N325)","v":{"$error":"#N/A"}},null,null,null,{"$f":"38-BG20","v":{"$error":"#N/A"}},null,{"$f":"LOOKUP(BH1, Reference!$M1:$N325)","v":{"$error":"#N/A"}},null,null,null,{"$f":"38-BM20","v":{"$error":"#N/A"}},null,{"$f":"LOOKUP(BN1, Reference!$M1:$N325)","v":{"$error":"#N/A"}},null,null,null,{"$f":"38-BS20","v":{"$error":"#N/A"}},null,{"$f":"LOOKUP(BT1, Reference!$M1:$N325)","v":{"$error":"#N/A"}},null,null,null,{"$f":"38-BY20","v":{"$error":"#N/A"}},null,{"$f":"LOOKUP(BZ1, Reference!$M1:$N325)","v":{"$error":"#N/A"}},null,null,null,{"$f":"38-CE20","v":{"$error":"#N/A"}},null,{"$f":"LOOKUP(CF1, Reference!$M1:$N325)","v":{"$error":"#N/A"}},null,null,null,{"$f":"38-CK20","v":{"$error":"#N/A"}},null,{"$f":"LOOKUP(CL1, Reference!$M1:$N325)","v":{"$error":"#N/A"}},null,null,null,{"$f":"38-CQ20","v":{"$error":"#N/A"}},null,{"$f":"LOOKUP(CR1, Reference!$M1:$N325)","v":{"$error":"#N/A"}},null,null,null,{"$f":"38-CW20","v":{"$error":"#N/A"}},null,{"$f":"LOOKUP(CX1, Reference!$M1:$N325)","v":{"$error":"#N/A"}},null,null,null,{"$f":"38-DC20","v":{"$error":"#N/A"}},null,{"$f":"LOOKUP(DD1, Reference!$M1:$N325)","v":{"$error":"#N/A"}},null,null,null,{"$f":"38-DI20","v":{"$error":"#N/A"}},null,{"$f":"LOOKUP(DJ1, Reference!$M1:$N325)","v":{"$error":"#N/A"}},null,null,null,{"$f":"38-DO20","v":{"$error":"#N/A"}},null,{"$f":"LOOKUP(DP1, Reference!$M1:$N325)","v":{"$error":"#N/A"}},null,null,null,{"$f":"38-DU20","v":{"$error":"#N/A"}},null,{"$f":"LOOKUP(DV1, Reference!$M1:$N325)","v":{"$error":"#N/A"}},null,null,null,{"$f":"38-EA20","v":{"$error":"#N/A"}},null,{"$f":"LOOKUP(EB1, Reference!$M1:$N325)","v":{"$error":"#N/A"}},null,null,null,{"$f":"38-EG20","v":{"$error":"#N/A"}},null,{"$f":"LOOKUP(EH1, Reference!$M1:$N325)","v":{"$error":"#N/A"}},null,null,null,{"$f":"38-EM20","v":{"$error":"#N/A"}},null,{"$f":"LOOKUP(EN1, Reference!$M1:$N325)","v":{"$error":"#N/A"}}]
["Blocker Line",{"$f":"B22+60","v":{"$error":"#N/A"}},{"$f":"LOOKUP(B22, Reference!$A2:$B40)","v":{"$error":"#N/A"}},{"$f":"IF(LEN(D26)=10,DATE(IF(0+(MID(D26,4,2))<30,2000,1900)+MID(D26,4,2),1,MID(D26,6,3)),DATE(IF(0+(MID(D26,3,2))<30,2000,1900)+MID(D26,3,2),1,MID(D26,5,3)))","v":{"$error":"#VALUE!"}},null,null,{"$f":"G22+60","v":{"$error":"#N/A"}},{"$f":"LOOKUP(G22, Reference!$A2:$B40)","v":{"$error":"#N/A"}},{"$f":"IF(LEN(D27)=10,DATE(IF(0+(MID(D27,4,2))<30,2000,1900)+MID(D27,4,2),1,MID(D27,6,3)),DATE(IF(0+(MID(D27,3,2))<30,2000,1900)+MID(D27,3,2),1,MID(D27,5,3)))","v":{"$error":"#VALUE!"}},null,null,{"$f":"L22+60","v":{"$error":"#N/A"}},{"$f":"LOOKUP(L22, Reference!$A2:$B40)","v":{"$error":"#N/A"}},{"$f":"IF(LEN(D28)=10,DATE(IF(0+(MID(D28,4,2))<30,2000,1900)+MID(D28,4,2),1,MID(D28,6,3)),DATE(IF(0+(MID(D28,3,2))<30,2000,1900)+MID(D28,3,2),1,MID(D28,5,3)))","v":{"$error":"#VALUE!"}},null,null,null,{"$f":"R22+60","v":{"$error":"#N/A"}},{"$f":"LOOKUP(R22, Reference!$A2:$B40)","v":{"$error":"#N/A"}},{"$f":"IF(LEN(D29)=10,DATE(IF(0+(MID(D29,4,2))<30,2000,1900)+MID(D29,4,2),1,MID(D29,6,3)),DATE(IF(0+(MID(D29,3,2))<30,2000,1900)+MID(D29,3,2),1,MID(D29,5,3)))","v":{"$error":"#VALUE!"}},null,null,null,{"$f":"X22+60","v":{"$error":"#N/A"}},{"$f":"LOOKUP(X22, Reference!$A2:$B40)","v":{"$error":"#N/A"}},{"$f":"IF(LEN(D30)=10,DATE(IF(0+(MID(D30,4,2))<30,2000,1900)+MID(D30,4,2),1,MID(D30,6,3)),DATE(IF(0+(MID(D30,3,2))<30,2000,1900)+MID(D30,3,2),1,MID(D30,5,3)))","v":{"$error":"#VALUE!"}},null,null,null,{"$f":"AD22+60","v":{"$error":"#N/A"}},{"$f":"LOOKUP(AD22, Reference!$A2:$B40)","v":{"$error":"#N/A"}},{"$f":"IF(LEN(D31)=10,DATE(IF(0+(MID(D31,4,2))<30,2000,1900)+MID(D31,4,2),1,MID(D31,6,3)),DATE(IF(0+(MID(D31,3,2))<30,2000,1900)+MID(D31,3,2),1,MID(D31,5,3)))","v":{"$error":"#VALUE!"}},null,null,null,{"$f":"AJ22+60","v":{"$error":"#N/A"}},{"$f":"LOOKUP(AJ22, Reference!$A2:$B40)","v":{"$error":"#N/A"}},{"$f":"IF(LEN(D32)=10,DATE(IF(0+(MID(D32,4,2))<30,2000,1900)+MID(D32,4,2),1,MID(D32,6,3)),DATE(IF(0+(MID(D32,3,2))<30,2000,1900)+MID(D32,3,2),1,MID(D32,5,3)))","v":{"$error":"#VALUE!"}},null,null,{"$f":"AO22+60","v":{"$error":"#N/A"}},{"$f":"LOOKUP(AO22, Reference!$A2:$B40)","v":{"$error":"#N/A"}},{"$f":"IF(LEN(D33)=10,DATE(IF(0+(MID(D33,4,2))<30,2000,1900)+MID(D33,4,2),1,MID(D33,6,3)),DATE(IF(0+(MID(D33,3,2))<30,2000,1900)+MID(D33,3,2),1,MID(D33,5,3)))","v":{"$error":"#VALUE!"}},null,null,null,{"$f":"AU22+60","v":{"$error":"#N/A"}},{"$f":"LOOKUP(AU22, Reference!$A2:$B40)","v":{"$error":"#N/A"}},{"$f":"IF(LEN(D34)=10,DATE(IF(0+(MID(D34,4,2))<30,2000,1900)+MID(D34,4,2),1,MID(D34,6,3)),DATE(IF(0+(MID(D34,3,2))<30,2000,1900)+MID(D34,3,2),1,MID(D34,5,3)))","v":{"$error":"#VALUE!"}},null,null,null,{"$f":"BA22+60","v":{"$error":"#N/A"}},{"$f":"LOOKUP(BA22, Reference!$A2:$B40)","v":{"$error":"#N/A"}},{"$f":"IF(LEN(D35)=10,DATE(IF(0+(MID(D35,4,2))<30,2000,1900)+MID(D35,4,2),1,MID(D35,6,3)),DATE(IF(0+(MID(D35,3,2))<30,2000,1900)+MID(D35,3,2),1,MID(D35,5,3)))","v":{"$error":"#VALUE!"}},null,null,null,{"$f":"BG22+60","v":{"$error":"#N/A"}},{"$f":"LOOKUP(BG22, Reference!$A2:$B40)","v":{"$error":"#N/A"}},{"$f":"IF(LEN(D36)=10,DATE(IF(0+(MID(D36,4,2))<30,2000,1900)+MID(D36,4,2),1,MID(D36,6,3)),DATE(IF(0+(MID(D36,3,2))<30,2000,1900)+MID(D36,3,2),1,MID(D36,5,3)))","v":{"$error":"#VALUE!"}},null,null,null,{"$f":"BM22+60","v":{"$error":"#N/A"}},{"$f":"LOOKUP(BM22, Reference!$A2:$B40)","v":{"$error":"#N/A"}},{"$f":"IF(LEN(D37)=10,DATE(IF(0+(MID(D37,4,2))<30,2000,1900)+MID(D37,4,2),1,MID(D37,6,3)),DATE(IF(0+(MID(D37,3,2))<30,2000,1900)+MID(D37,3,2),1,MID(D37,5,3)))","v":{"$error":"#VALUE!"}},null,null,null,{"$f":"BS22+60","v":{"$error":"#N/A"}},{"$f":"LOOKUP(BS22, Reference!$A2:$B40)","v":{"$error":"#N/A"}},{"$f":"IF(LEN(D38)=10,DATE(IF(0+(MID(D38,4,2))<30,2000,1900)+MID(D38,4,2),1,MID(D38,6,3)),DATE(IF(0+(MID(D38,3,2))<30,2000,1900)+MID(D38,3,2),1,MID(D38,5,3)))","v":{"$error":"#VALUE!"}},null,null,null,{"$f":"BY22+60","v":{"$error":"#N/A"}},{"$f":"LOOKUP(BY22, Reference!$A2:$B40)","v":{"$error":"#N/A"}},{"$f":"IF(LEN(D39)=10,DATE(IF(0+(MID(D39,4,2))<30,2000,1900)+MID(D39,4,2),1,MID(D39,6,3)),DATE(IF(0+(MID(D39,3,2))<30,2000,1900)+MID(D39,3,2),1,MID(D39,5,3)))","v":{"$error":"#VALUE!"}},null,null,null,{"$f":"CE22+60","v":{"$error":"#N/A"}},{"$f":"LOOKUP(CE22, Reference!$A2:$B40)","v":{"$error":"#N/A"}},{"$f":"IF(LEN(D40)=10,DATE(IF(0+(MID(D40,4,2))<30,2000,1900)+MID(D40,4,2),1,MID(D40,6,3)),DATE(IF(0+(MID(D40,3,2))<30,2000,1900)+MID(D40,3,2),1,MID(D40,5,3)))","v":{"$error":"#VALUE!"}},null,null,null,{"$f":"CK22+60","v":{"$error":"#N/A"}},{"$f":"LOOKUP(CK22, Reference!$A2:$B40)","v":{"$error":"#N/A"}},{"$f":"IF(LEN(D41)=10,DATE(IF(0+(MID(D41,4,2))<30,2000,1900)+MID(D41,4,2),1,MID(D41,6,3)),DATE(IF(0+(MID(D41,3,2))<30,2000,1900)+MID(D41,3,2),1,MID(D41,5,3)))","v":{"$error":"#VALUE!"}},null,null,null,{"$f":"CQ22+60","v":{"$error":"#N/A"}},{"$f":"LOOKUP(CQ22, Reference!$A2:$B40)","v":{"$error":"#N/A"}},{"$f":"IF(LEN(D42)=10,DATE(IF(0+(MID(D42,4,2))<30,2000,1900)+MID(D42,4,2),1,MID(D42,6,3)),DATE(IF(0+(MID(D42,3,2))<30,2000,1900)+MID(D42,3,2),1,MID(D42,5,3)))","v":{"$error":"#VALUE!"}},null,null,null,{"$f":"CW22+60","v":{"$error":"#N/A"}},{"$f":"LOOKUP(CW22, Reference!$A2:$B40)","v":{"$error":"#N/A"}},{"$f":"IF(LEN(D43)=10,DATE(IF(0+(MID(D43,4,2))<30,2000,1900)+MID(D43,4,2),1,MID(D43,6,3)),DATE(IF(0+(MID(D43,3,2))<30,2000,1900)+MID(D43,3,2),1,MID(D43,5,3)))","v":{"$error":"#VALUE!"}},null,null,null,{"$f":"DC22+60","v":{"$error":"#N/A"}},{"$f":"LOOKUP(DC22, Reference!$A2:$B40)","v":{"$error":"#N/A"}},{"$f":"IF(LEN(D44)=10,DATE(IF(0+(MID(D44,4,2))<30,2000,1900)+MID(D44,4,2),1,MID(D44,6,3)),DATE(IF(0+(MID(D44,3,2))<30,2000,1900)+MID(D44,3,2),1,MID(D44,5,3)))","v":{"$error":"#VALUE!"}},null,null,null,{"$f":"DI22+60","v":{"$error":"#N/A"}},{"$f":"LOOKUP(DI22, Reference!$A2:$B40)","v":{"$error":"#N/A"}},{"$f":"IF(LEN(D45)=10,DATE(IF(0+(MID(D45,4,2))<30,2000,1900)+MID(D45,4,2),1,MID(D45,6,3)),DATE(IF(0+(MID(D45,3,2))<30,2000,1900)+MID(D45,3,2),1,MID(D45,5,3)))","v":{"$error":"#VALUE!"}},null,null,null,{"$f":"DO22+60","v":{"$error":"#N/A"}},{"$f":"LOOKUP(DO22, Reference!$A2:$B40)","v":{"$error":"#N/A"}},{"$f":"IF(LEN(D46)=10,DATE(IF(0+(MID(D46,4,2))<30,2000,1900)+MID(D46,4,2),1,MID(D46,6,3)),DATE(IF(0+(MID(D46,3,2))<30,2000,1900)+MID(D46,3,2),1,MID(D46,5,3)))","v":{"$error":"#VALUE!"}},null,null,null,{"$f":"DU22+60","v":{"$error":"#N/A"}},{"$f":"LOOKUP(DU22, Reference!$A2:$B40)","v":{"$error":"#N/A"}},{"$f":"IF(LEN(D47)=10,DATE(IF(0+(MID(D47,4,2))<30,2000,1900)+MID(D47,4,2),1,MID(D47,6,3)),DATE(IF(0+(MID(D47,3,2))<30,2000,1900)+MID(D47,3,2),1,MID(D47,5,3)))","v":{"$error":"#VALUE!"}},null,null,null,{"$f":"EA22+60","v":{"$error":"#N/A"}},{"$f":"LOOKUP(EA22, Reference!$A2:$B40)","v":{"$error":"#N/A"}},{"$f":"IF(LEN(D48)=10,DATE(IF(0+(MID(D48,4,2))<30,2000,1900)+MID(D48,4,2),1,MID(D48,6,3)),DATE(IF(0+(MID(D48,3,2))<30,2000,1900)+MID(D48,3,2),1,MID(D48,5,3)))","v":{"$error":"#VALUE!"}},null,null,null,{"$f":"EG22+60","v":{"$error":"#N/A"}},{"$f":"LOOKUP(EG22, Reference!$A2:$B40)","v":{"$error":"#N/A"}},{"$f":"IF(LEN(D49)=10,DATE(IF(0+(MID(D49,4,2))<30,2000,1900)+MID(D49,4,2),1,MID(D49,6,3)),DATE(IF(0+(MID(D49,3,2))<30,2000,1900)+MID(D49,3,2),1,MID(D49,5,3)))","v":{"$error":"#VALUE!"}},null,null,null,{"$f":"EM22+60","v":{"$error":"#N/A"}},{"$f":"LOOKUP(EM22, Reference!$A2:$B40)","v":{"$error":"#N/A"}},{"$f":"IF(LEN(D50)=10,DATE(IF(0+(MID(D50,4,2))<30,2000,1900)+MID(D50,4,2),1,MID(D50,6,3)),DATE(IF(0+(MID(D50,3,2))<30,2000,1900)+MID(D50,3,2),1,MID(D50,5,3)))","v":{"$error":"#VALUE!"}}]
["Blocker Line"]
["Unit Number","Unit Group","Product","Expiry",null,null,"Returned","Credit Code"]
[]
[]
[]
[]
[]
[]
[null,null,null,null,null,null,null,null,null,null,null,null,null,null," "]

{"sheet":"Upload","index":12,"n_rows":29,"n_cols":42,"rows_kept":29,"cut":false,"hidden":true,"merged":[]}
["ELECTRONIC",null,null,null,null,null,null,null,null,null,null,null,null,null,"MANUAL",null,null,null,null,null,null,null,null,null,null,null,null,null,"TRANSPORT"]
["Cust Number","ISBT 128 Unit Number or Delivery Note Number for ADH","Product ","Group","Expiry Date","Month","Year","Returned","CSM Informed","Credit Code","Comments","Email",null,null,"Cust Number","ISBT 128 Unit Number or Delivery Note Number for ADH","Product ","Group","Expiry Date","Month","Year","Returned","CSM Informed","Credit Code","Comments","Email",null,null,"Cust Number","ISBT 128 Unit Number or Delivery Note Number for ADH","Product ","Group","Expiry Date","Month","Year","Returned","Credit Code","CSM Informed","Comments","Email",null,"macroselect"]
[{"$f":"IF(B3=\"\",\"\",IF(ISERROR(MAINPAGE!$D$8),\"#N/A\",MAINPAGE!$C$8))","v":""},{"$f":"IF(ISERROR(ELECTRONIC!$B2),\"\",SUBSTITUTE(ELECTRONIC!$B2,\" \",\"\"))","v":""},{"$f":"IF(B3=\"\",\"\",VLOOKUP(ELECTRONIC!$C2,Reference!N:P,3,FALSE))","v":""},{"$f":"IF(B3=\"\",\"\",VLOOKUP(ELECTRONIC!$E2,Reference!H:J,3,FALSE))","v":""},{"$f":"IF(B3=\"\",\"\",ELECTRONIC!$D2)","v":""},{"$f":"IF(B3=\"\",\"\",MAINPAGE!$C$10)","v":""},{"$f":"IF(B3=\"\",\"\",MAINPAGE!$D$10)","v":""},{"$f":"IF(B3=\"\",\"\",ELECTRONIC!$F2)","v":""},{"$f":"IF(B3=\"\",\"\",ELECTRONIC!$G2)","v":""},{"$f":"IF(B3=\"\",\"\",ELECTRONIC!$H2)","v":""},{"$f":"IF(B3=\"\",\"\",IF(ELECTRONIC!$I2=\"\",\"\",ELECTRONIC!$I2))","v":""},{"$f":"IF(B3=\"\",\"\",MAINPAGE!$C$12)","v":""},null,null,{"$f":"IF(P3=\"\",\"\",IF(ISERROR(MAINPAGE!$D$8),\"#N/A\",MAINPAGE!$C$8))","v":""},{"$f":"IF(MANUAL!$D2=\"\",\"\",UPPER(MANUAL!$D2))","v":""},{"$f":"IF(P3=\"\",\"\",VLOOKUP(MANUAL!$C2,Reference!O:P,2,FALSE))","v":""},{"$f":"IF(P3=\"\",\"\",MANUAL!$G2)","v":""},{"$f":"IF(P3=\"\",\"\",MANUAL!$F2)","v":""},{"$f":"IF(P3=\"\",\"\",MAINPAGE!$C$10)","v":""},{"$f":"IF(P3=\"\",\"\",MAINPAGE!$D$10)","v":""},{"$f":"IF(P3=\"\",\"\",MANUAL!$H2)","v":""},{"$f":"IF(P3=\"\",\"\",MANUAL!$I2)","v":""},{"$f":"IF(P3=\"\",\"\",MANUAL!$J2)","v":""},{"$f":"IF(P3=\"\",\"\",IF(MANUAL!$K2=\"\",\"\",MANUAL!$K2))","v":""},{"$f":"IF(P3=\"\",\"\",MAINPAGE!$C$12)","v":""},null,null,{"$f":"IF(AD3=\"\",\"\",MAINPAGE!$C$8)","v":""},{"$f":"IF(TRANSPORT!$B2=\"\",\"\",UPPER(TRANSPORT!$B2))","v":""},null,null,null,null,null,null,{"$f":"IF(TRANSPORT!$D2=\"Ad hoc Credit\",\"ADH\",IF(TRANSPORT!$D2=\"Click and Collect credit\",\"COL\",\"\"))","v":""},{"$f":"IF(AD3=\"\",\"\",IF(TRANSPORT!$E2=\"\",\"\",TRANSPORT!$E2))","v":""},{"$f":"IF(AD3=\"\",\"\",IF(TRANSPORT!$F2=\"\",\"\",TRANSPORT!$F2))","v":""},{"$f":"IF(AD3=\"\",\"\",MAINPAGE!$C$12)","v":""},null,{"$f":"IF(OR(LEN(B3)>0,LEN(P3)>0,LEN(AD3)>0),1,\"\")","v":""}]
[{"$f":"IF(B4=\"\",\"\",IF(ISERROR(MAINPAGE!$D$8),\"#N/A\",MAINPAGE!$C$8))","v":""},{"$f":"IF(ISERROR(ELECTRONIC!$B3),\"\",SUBSTITUTE(ELECTRONIC!$B3,\" \",\"\"))","v":""},{"$f":"IF(B4=\"\",\"\",VLOOKUP(ELECTRONIC!$C3,Reference!N:P,3,FALSE))","v":""},{"$f":"IF(B4=\"\",\"\",VLOOKUP(ELECTRONIC!$E3,Reference!H:J,3,FALSE))","v":""},{"$f":"IF(B4=\"\",\"\",ELECTRONIC!$D3)","v":""},{"$f":"IF(B4=\"\",\"\",MAINPAGE!$C$10)","v":""},{"$f":"IF(B4=\"\",\"\",MAINPAGE!$D$10)","v":""},{"$f":"IF(B4=\"\",\"\",ELECTRONIC!$F3)","v":""},{"$f":"IF(B4=\"\",\"\",ELECTRONIC!$G3)","v":""},{"$f":"IF(B4=\"\",\"\",ELECTRONIC!$H3)","v":""},{"$f":"IF(B4=\"\",\"\",IF(ELECTRONIC!$I3=\"\",\"\",ELECTRONIC!$I3))","v":""},{"$f":"IF(B4=\"\",\"\",MAINPAGE!$C$12)","v":""},null,null,{"$f":"IF(P4=\"\",\"\",IF(ISERROR(MAINPAGE!$D$8),\"#N/A\",MAINPAGE!$C$8))","v":""},{"$f":"IF(MANUAL!$D3=\"\",\"\",UPPER(MANUAL!$D3))","v":""},{"$f":"IF(P4=\"\",\"\",VLOOKUP(MANUAL!$C3,Reference!O:P,2,FALSE))","v":""},{"$f":"IF(P4=\"\",\"\",MANUAL!$G3)","v":""},{"$f":"IF(P4=\"\",\"\",MANUAL!$F3)","v":""},{"$f":"IF(P4=\"\",\"\",MAINPAGE!$C$10)","v":""},{"$f":"IF(P4=\"\",\"\",MAINPAGE!$D$10)","v":""},{"$f":"IF(P4=\"\",\"\",MANUAL!$H3)","v":""},{"$f":"IF(P4=\"\",\"\",MANUAL!$I3)","v":""},{"$f":"IF(P4=\"\",\"\",MANUAL!$J3)","v":""},{"$f":"IF(P4=\"\",\"\",IF(MANUAL!$K3=\"\",\"\",MANUAL!$K3))","v":""},{"$f":"IF(P4=\"\",\"\",MAINPAGE!$C$12)","v":""},null,null,{"$f":"IF(AD4=\"\",\"\",MAINPAGE!$C$8)","v":""},{"$f":"IF(TRANSPORT!$B3=\"\",\"\",UPPER(TRANSPORT!$B3))","v":""},null,null,null,null,null,null,{"$f":"IF(TRANSPORT!$D3=\"Ad hoc Credit\",\"ADH\",IF(TRANSPORT!$D3=\"Click and Collect credit\",\"COL\",\"\"))","v":""},{"$f":"IF(AD4=\"\",\"\",IF(TRANSPORT!$E3=\"\",\"\",TRANSPORT!$E3))","v":""},{"$f":"IF(AD4=\"\",\"\",IF(TRANSPORT!$F3=\"\",\"\",TRANSPORT!$F3))","v":""},{"$f":"IF(AD4=\"\",\"\",MAINPAGE!$C$12)","v":""},null,{"$f":"IF(OR(LEN(B4)>0,LEN(P4)>0,LEN(AD4)>0),1,\"\")","v":""}]
[{"$f":"IF(B5=\"\",\"\",IF(ISERROR(MAINPAGE!$D$8),\"#N/A\",MAINPAGE!$C$8))","v":""},{"$f":"IF(ISERROR(ELECTRONIC!$B4),\"\",SUBSTITUTE(ELECTRONIC!$B4,\" \",\"\"))","v":""},{"$f":"IF(B5=\"\",\"\",VLOOKUP(ELECTRONIC!$C4,Reference!N:P,3,FALSE))","v":""},{"$f":"IF(B5=\"\",\"\",VLOOKUP(ELECTRONIC!$E4,Reference!H:J,3,FALSE))","v":""},{"$f":"IF(B5=\"\",\"\",ELECTRONIC!$D4)","v":""},{"$f":"IF(B5=\"\",\"\",MAINPAGE!$C$10)","v":""},{"$f":"IF(B5=\"\",\"\",MAINPAGE!$D$10)","v":""},{"$f":"IF(B5=\"\",\"\",ELECTRONIC!$F4)","v":""},{"$f":"IF(B5=\"\",\"\",ELECTRONIC!$G4)","v":""},{"$f":"IF(B5=\"\",\"\",ELECTRONIC!$H4)","v":""},{"$f":"IF(B5=\"\",\"\",IF(ELECTRONIC!$I4=\"\",\"\",ELECTRONIC!$I4))","v":""},{"$f":"IF(B5=\"\",\"\",MAINPAGE!$C$12)","v":""},null,null,{"$f":"IF(P5=\"\",\"\",IF(ISERROR(MAINPAGE!$D$8),\"#N/A\",MAINPAGE!$C$8))","v":""},{"$f":"IF(MANUAL!$D4=\"\",\"\",UPPER(MANUAL!$D4))","v":""},{"$f":"IF(P5=\"\",\"\",VLOOKUP(MANUAL!$C4,Reference!O:P,2,FALSE))","v":""},{"$f":"IF(P5=\"\",\"\",MANUAL!$G4)","v":""},{"$f":"IF(P5=\"\",\"\",MANUAL!$F4)","v":""},{"$f":"IF(P5=\"\",\"\",MAINPAGE!$C$10)","v":""},{"$f":"IF(P5=\"\",\"\",MAINPAGE!$D$10)","v":""},{"$f":"IF(P5=\"\",\"\",MANUAL!$H4)","v":""},{"$f":"IF(P5=\"\",\"\",MANUAL!$I4)","v":""},{"$f":"IF(P5=\"\",\"\",MANUAL!$J4)","v":""},{"$f":"IF(P5=\"\",\"\",IF(MANUAL!$K4=\"\",\"\",MANUAL!$K4))","v":""},{"$f":"IF(P5=\"\",\"\",MAINPAGE!$C$12)","v":""},null,null,{"$f":"IF(AD5=\"\",\"\",MAINPAGE!$C$8)","v":""},{"$f":"IF(TRANSPORT!$B4=\"\",\"\",UPPER(TRANSPORT!$B4))","v":""},null,null,null,null,null,null,{"$f":"IF(TRANSPORT!$D4=\"Ad hoc Credit\",\"ADH\",IF(TRANSPORT!$D4=\"Click and Collect credit\",\"COL\",\"\"))","v":""},{"$f":"IF(AD5=\"\",\"\",IF(TRANSPORT!$E4=\"\",\"\",TRANSPORT!$E4))","v":""},{"$f":"IF(AD5=\"\",\"\",IF(TRANSPORT!$F4=\"\",\"\",TRANSPORT!$F4))","v":""},{"$f":"IF(AD5=\"\",\"\",MAINPAGE!$C$12)","v":""},null,""]
[{"$f":"IF(B6=\"\",\"\",IF(ISERROR(MAINPAGE!$D$8),\"#N/A\",MAINPAGE!$C$8))","v":""},{"$f":"IF(ISERROR(ELECTRONIC!$B5),\"\",SUBSTITUTE(ELECTRONIC!$B5,\" \",\"\"))","v":""},{"$f":"IF(B6=\"\",\"\",VLOOKUP(ELECTRONIC!$C5,Reference!N:P,3,FALSE))","v":""},{"$f":"IF(B6=\"\",\"\",VLOOKUP(ELECTRONIC!$E5,Reference!H:J,3,FALSE))","v":""},{"$f":"IF(B6=\"\",\"\",ELECTRONIC!$D5)","v":""},{"$f":"IF(B6=\"\",\"\",MAINPAGE!$C$10)","v":""},{"$f":"IF(B6=\"\",\"\",MAINPAGE!$D$10)","v":""},{"$f":"IF(B6=\"\",\"\",ELECTRONIC!$F5)","v":""},{"$f":"IF(B6=\"\",\"\",ELECTRONIC!$G5)","v":""},{"$f":"IF(B6=\"\",\"\",ELECTRONIC!$H5)","v":""},{"$f":"IF(B6=\"\",\"\",IF(ELECTRONIC!$I5=\"\",\"\",ELECTRONIC!$I5))","v":""},{"$f":"IF(B6=\"\",\"\",MAINPAGE!$C$12)","v":""},null,null,{"$f":"IF(P6=\"\",\"\",IF(ISERROR(MAINPAGE!$D$8),\"#N/A\",MAINPAGE!$C$8))","v":""},{"$f":"IF(MANUAL!$D5=\"\",\"\",UPPER(MANUAL!$D5))","v":""},{"$f":"IF(P6=\"\",\"\",VLOOKUP(MANUAL!$C5,Reference!O:P,2,FALSE))","v":""},{"$f":"IF(P6=\"\",\"\",MANUAL!$G5)","v":""},{"$f":"IF(P6=\"\",\"\",MANUAL!$F5)","v":""},{"$f":"IF(P6=\"\",\"\",MAINPAGE!$C$10)","v":""},{"$f":"IF(P6=\"\",\"\",MAINPAGE!$D$10)","v":""},{"$f":"IF(P6=\"\",\"\",MANUAL!$H5)","v":""},{"$f":"IF(P6=\"\",\"\",MANUAL!$I5)","v":""},{"$f":"IF(P6=\"\",\"\",MANUAL!$J5)","v":""},{"$f":"IF(P6=\"\",\"\",IF(MANUAL!$K5=\"\",\"\",MANUAL!$K5))","v":""},{"$f":"IF(P6=\"\",\"\",MAINPAGE!$C$12)","v":""},null,null,{"$f":"IF(AD6=\"\",\"\",MAINPAGE!$C$8)","v":""},{"$f":"IF(TRANSPORT!$B5=\"\",\"\",UPPER(TRANSPORT!$B5))","v":""},null,null,null,null,null,null,{"$f":"IF(TRANSPORT!$D5=\"Ad hoc Credit\",\"ADH\",IF(TRANSPORT!$D5=\"Click and Collect credit\",\"COL\",\"\"))","v":""},{"$f":"IF(AD6=\"\",\"\",IF(TRANSPORT!$E5=\"\",\"\",TRANSPORT!$E5))","v":""},{"$f":"IF(AD6=\"\",\"\",IF(TRANSPORT!$F5=\"\",\"\",TRANSPORT!$F5))","v":""},{"$f":"IF(AD6=\"\",\"\",MAINPAGE!$C$12)","v":""},null,""]
[{"$f":"IF(B7=\"\",\"\",IF(ISERROR(MAINPAGE!$D$8),\"#N/A\",MAINPAGE!$C$8))","v":""},{"$f":"IF(ISERROR(ELECTRONIC!$B6),\"\",SUBSTITUTE(ELECTRONIC!$B6,\" \",\"\"))","v":""},{"$f":"IF(B7=\"\",\"\",VLOOKUP(ELECTRONIC!$C6,Reference!N:P,3,FALSE))","v":""},{"$f":"IF(B7=\"\",\"\",VLOOKUP(ELECTRONIC!$E6,Reference!H:J,3,FALSE))","v":""},{"$f":"IF(B7=\"\",\"\",ELECTRONIC!$D6)","v":""},{"$f":"IF(B7=\"\",\"\",MAINPAGE!$C$10)","v":""},{"$f":"IF(B7=\"\",\"\",MAINPAGE!$D$10)","v":""},{"$f":"IF(B7=\"\",\"\",ELECTRONIC!$F6)","v":""},{"$f":"IF(B7=\"\",\"\",ELECTRONIC!$G6)","v":""},{"$f":"IF(B7=\"\",\"\",ELECTRONIC!$H6)","v":""},{"$f":"IF(B7=\"\",\"\",IF(ELECTRONIC!$I6=\"\",\"\",ELECTRONIC!$I6))","v":""},{"$f":"IF(B7=\"\",\"\",MAINPAGE!$C$12)","v":""},null,null,{"$f":"IF(P7=\"\",\"\",IF(ISERROR(MAINPAGE!$D$8),\"#N/A\",MAINPAGE!$C$8))","v":""},{"$f":"IF(MANUAL!$D6=\"\",\"\",UPPER(MANUAL!$D6))","v":""},{"$f":"IF(P7=\"\",\"\",VLOOKUP(MANUAL!$C6,Reference!O:P,2,FALSE))","v":""},{"$f":"IF(P7=\"\",\"\",MANUAL!$G6)","v":""},{"$f":"IF(P7=\"\",\"\",MANUAL!$F6)","v":""},{"$f":"IF(P7=\"\",\"\",MAINPAGE!$C$10)","v":""},{"$f":"IF(P7=\"\",\"\",MAINPAGE!$D$10)","v":""},{"$f":"IF(P7=\"\",\"\",MANUAL!$H6)","v":""},{"$f":"IF(P7=\"\",\"\",MANUAL!$I6)","v":""},{"$f":"IF(P7=\"\",\"\",MANUAL!$J6)","v":""},{"$f":"IF(P7=\"\",\"\",IF(MANUAL!$K6=\"\",\"\",MANUAL!$K6))","v":""},{"$f":"IF(P7=\"\",\"\",MAINPAGE!$C$12)","v":""},null,null,{"$f":"IF(AD7=\"\",\"\",MAINPAGE!$C$8)","v":""},{"$f":"IF(TRANSPORT!$B6=\"\",\"\",UPPER(TRANSPORT!$B6))","v":""},null,null,null,null,null,null,{"$f":"IF(TRANSPORT!$D6=\"Ad hoc Credit\",\"ADH\",IF(TRANSPORT!$D6=\"Click and Collect credit\",\"COL\",\"\"))","v":""},{"$f":"IF(AD7=\"\",\"\",IF(TRANSPORT!$E6=\"\",\"\",TRANSPORT!$E6))","v":""},{"$f":"IF(AD7=\"\",\"\",IF(TRANSPORT!$F6=\"\",\"\",TRANSPORT!$F6))","v":""},{"$f":"IF(AD7=\"\",\"\",MAINPAGE!$C$12)","v":""},null,""]
[{"$f":"IF(B8=\"\",\"\",IF(ISERROR(MAINPAGE!$D$8),\"#N/A\",MAINPAGE!$C$8))","v":""},{"$f":"IF(ISERROR(ELECTRONIC!$B7),\"\",SUBSTITUTE(ELECTRONIC!$B7,\" \",\"\"))","v":""},{"$f":"IF(B8=\"\",\"\",VLOOKUP(ELECTRONIC!$C7,Reference!N:P,3,FALSE))","v":""},{"$f":"IF(B8=\"\",\"\",VLOOKUP(ELECTRONIC!$E7,Reference!H:J,3,FALSE))","v":""},{"$f":"IF(B8=\"\",\"\",ELECTRONIC!$D7)","v":""},{"$f":"IF(B8=\"\",\"\",MAINPAGE!$C$10)","v":""},{"$f":"IF(B8=\"\",\"\",MAINPAGE!$D$10)","v":""},{"$f":"IF(B8=\"\",\"\",ELECTRONIC!$F7)","v":""},{"$f":"IF(B8=\"\",\"\",ELECTRONIC!$G7)","v":""},{"$f":"IF(B8=\"\",\"\",ELECTRONIC!$H7)","v":""},{"$f":"IF(B8=\"\",\"\",IF(ELECTRONIC!$I7=\"\",\"\",ELECTRONIC!$I7))","v":""},{"$f":"IF(B8=\"\",\"\",MAINPAGE!$C$12)","v":""},null,null,{"$f":"IF(P8=\"\",\"\",IF(ISERROR(MAINPAGE!$D$8),\"#N/A\",MAINPAGE!$C$8))","v":""},{"$f":"IF(MANUAL!$D7=\"\",\"\",UPPER(MANUAL!$D7))","v":""},{"$f":"IF(P8=\"\",\"\",VLOOKUP(MANUAL!$C7,Reference!O:P,2,FALSE))","v":""},{"$f":"IF(P8=\"\",\"\",MANUAL!$G7)","v":""},{"$f":"IF(P8=\"\",\"\",MANUAL!$F7)","v":""},{"$f":"IF(P8=\"\",\"\",MAINPAGE!$C$10)","v":""},{"$f":"IF(P8=\"\",\"\",MAINPAGE!$D$10)","v":""},{"$f":"IF(P8=\"\",\"\",MANUAL!$H7)","v":""},{"$f":"IF(P8=\"\",\"\",MANUAL!$I7)","v":""},{"$f":"IF(P8=\"\",\"\",MANUAL!$J7)","v":""},{"$f":"IF(P8=\"\",\"\",IF(MANUAL!$K7=\"\",\"\",MANUAL!$K7))","v":""},{"$f":"IF(P8=\"\",\"\",MAINPAGE!$C$12)","v":""},null,null,{"$f":"IF(AD8=\"\",\"\",MAINPAGE!$C$8)","v":""},{"$f":"IF(TRANSPORT!$B7=\"\",\"\",UPPER(TRANSPORT!$B7))","v":""},null,null,null,null,null,null,{"$f":"IF(TRANSPORT!$D7=\"Ad hoc Credit\",\"ADH\",IF(TRANSPORT!$D7=\"Click and Collect credit\",\"COL\",\"\"))","v":""},{"$f":"IF(AD8=\"\",\"\",IF(TRANSPORT!$E7=\"\",\"\",TRANSPORT!$E7))","v":""},{"$f":"IF(AD8=\"\",\"\",IF(TRANSPORT!$F7=\"\",\"\",TRANSPORT!$F7))","v":""},{"$f":"IF(AD8=\"\",\"\",MAINPAGE!$C$12)","v":""},null,""]
[{"$f":"IF(B9=\"\",\"\",IF(ISERROR(MAINPAGE!$D$8),\"#N/A\",MAINPAGE!$C$8))","v":""},{"$f":"IF(ISERROR(ELECTRONIC!$B8),\"\",SUBSTITUTE(ELECTRONIC!$B8,\" \",\"\"))","v":""},{"$f":"IF(B9=\"\",\"\",VLOOKUP(ELECTRONIC!$C8,Reference!N:P,3,FALSE))","v":""},{"$f":"IF(B9=\"\",\"\",VLOOKUP(ELECTRONIC!$E8,Reference!H:J,3,FALSE))","v":""},{"$f":"IF(B9=\"\",\"\",ELECTRONIC!$D8)","v":""},{"$f":"IF(B9=\"\",\"\",MAINPAGE!$C$10)","v":""},{"$f":"IF(B9=\"\",\"\",MAINPAGE!$D$10)","v":""},{"$f":"IF(B9=\"\",\"\",ELECTRONIC!$F8)","v":""},{"$f":"IF(B9=\"\",\"\",ELECTRONIC!$G8)","v":""},{"$f":"IF(B9=\"\",\"\",ELECTRONIC!$H8)","v":""},{"$f":"IF(B9=\"\",\"\",IF(ELECTRONIC!$I8=\"\",\"\",ELECTRONIC!$I8))","v":""},{"$f":"IF(B9=\"\",\"\",MAINPAGE!$C$12)","v":""},null,null,{"$f":"IF(P9=\"\",\"\",IF(ISERROR(MAINPAGE!$D$8),\"#N/A\",MAINPAGE!$C$8))","v":""},{"$f":"IF(MANUAL!$D8=\"\",\"\",UPPER(MANUAL!$D8))","v":""},{"$f":"IF(P9=\"\",\"\",VLOOKUP(MANUAL!$C8,Reference!O:P,2,FALSE))","v":""},{"$f":"IF(P9=\"\",\"\",MANUAL!$G8)","v":""},{"$f":"IF(P9=\"\",\"\",MANUAL!$F8)","v":""},{"$f":"IF(P9=\"\",\"\",MAINPAGE!$C$10)","v":""},{"$f":"IF(P9=\"\",\"\",MAINPAGE!$D$10)","v":""},{"$f":"IF(P9=\"\",\"\",MANUAL!$H8)","v":""},{"$f":"IF(P9=\"\",\"\",MANUAL!$I8)","v":""},{"$f":"IF(P9=\"\",\"\",MANUAL!$J8)","v":""},{"$f":"IF(P9=\"\",\"\",IF(MANUAL!$K8=\"\",\"\",MANUAL!$K8))","v":""},{"$f":"IF(P9=\"\",\"\",MAINPAGE!$C$12)","v":""},null,null,{"$f":"IF(AD9=\"\",\"\",MAINPAGE!$C$8)","v":""},{"$f":"IF(TRANSPORT!$B8=\"\",\"\",UPPER(TRANSPORT!$B8))","v":""},null,null,null,null,null,null,{"$f":"IF(TRANSPORT!$D8=\"Ad hoc Credit\",\"ADH\",IF(TRANSPORT!$D8=\"Click and Collect credit\",\"COL\",\"\"))","v":""},{"$f":"IF(AD9=\"\",\"\",IF(TRANSPORT!$E8=\"\",\"\",TRANSPORT!$E8))","v":""},{"$f":"IF(AD9=\"\",\"\",IF(TRANSPORT!$F8=\"\",\"\",TRANSPORT!$F8))","v":""},{"$f":"IF(AD9=\"\",\"\",MAINPAGE!$C$12)","v":""},null,""]
[{"$f":"IF(B10=\"\",\"\",IF(ISERROR(MAINPAGE!$D$8),\"#N/A\",MAINPAGE!$C$8))","v":""},{"$f":"IF(ISERROR(ELECTRONIC!$B9),\"\",SUBSTITUTE(ELECTRONIC!$B9,\" \",\"\"))","v":""},{"$f":"IF(B10=\"\",\"\",VLOOKUP(ELECTRONIC!$C9,Reference!N:P,3,FALSE))","v":""},{"$f":"IF(B10=\"\",\"\",VLOOKUP(ELECTRONIC!$E9,Reference!H:J,3,FALSE))","v":""},{"$f":"IF(B10=\"\",\"\",ELECTRONIC!$D9)","v":""},{"$f":"IF(B10=\"\",\"\",MAINPAGE!$C$10)","v":""},{"$f":"IF(B10=\"\",\"\",MAINPAGE!$D$10)","v":""},{"$f":"IF(B10=\"\",\"\",ELECTRONIC!$F9)","v":""},{"$f":"IF(B10=\"\",\"\",ELECTRONIC!$G9)","v":""},{"$f":"IF(B10=\"\",\"\",ELECTRONIC!$H9)","v":""},{"$f":"IF(B10=\"\",\"\",IF(ELECTRONIC!$I9=\"\",\"\",ELECTRONIC!$I9))","v":""},{"$f":"IF(B10=\"\",\"\",MAINPAGE!$C$12)","v":""},null,null,{"$f":"IF(P10=\"\",\"\",IF(ISERROR(MAINPAGE!$D$8),\"#N/A\",MAINPAGE!$C$8))","v":""},{"$f":"IF(MANUAL!$D9=\"\",\"\",UPPER(MANUAL!$D9))","v":""},{"$f":"IF(P10=\"\",\"\",VLOOKUP(MANUAL!$C9,Reference!O:P,2,FALSE))","v":""},{"$f":"IF(P10=\"\",\"\",MANUAL!$G9)","v":""},{"$f":"IF(P10=\"\",\"\",MANUAL!$F9)","v":""},{"$f":"IF(P10=\"\",\"\",MAINPAGE!$C$10)","v":""},{"$f":"IF(P10=\"\",\"\",MAINPAGE!$D$10)","v":""},{"$f":"IF(P10=\"\",\"\",MANUAL!$H9)","v":""},{"$f":"IF(P10=\"\",\"\",MANUAL!$I9)","v":""},{"$f":"IF(P10=\"\",\"\",MANUAL!$J9)","v":""},{"$f":"IF(P10=\"\",\"\",IF(MANUAL!$K9=\"\",\"\",MANUAL!$K9))","v":""},{"$f":"IF(P10=\"\",\"\",MAINPAGE!$C$12)","v":""},null,null,{"$f":"IF(AD10=\"\",\"\",MAINPAGE!$C$8)","v":""},{"$f":"IF(TRANSPORT!$B9=\"\",\"\",UPPER(TRANSPORT!$B9))","v":""},null,null,null,null,null,null,{"$f":"IF(TRANSPORT!$D9=\"Ad hoc Credit\",\"ADH\",IF(TRANSPORT!$D9=\"Click and Collect credit\",\"COL\",\"\"))","v":""},{"$f":"IF(AD10=\"\",\"\",IF(TRANSPORT!$E9=\"\",\"\",TRANSPORT!$E9))","v":""},{"$f":"IF(AD10=\"\",\"\",IF(TRANSPORT!$F9=\"\",\"\",TRANSPORT!$F9))","v":""},{"$f":"IF(AD10=\"\",\"\",MAINPAGE!$C$12)","v":""},null,""]
[{"$f":"IF(B11=\"\",\"\",IF(ISERROR(MAINPAGE!$D$8),\"#N/A\",MAINPAGE!$C$8))","v":""},{"$f":"IF(ISERROR(ELECTRONIC!$B10),\"\",SUBSTITUTE(ELECTRONIC!$B10,\" \",\"\"))","v":""},{"$f":"IF(B11=\"\",\"\",VLOOKUP(ELECTRONIC!$C10,Reference!N:P,3,FALSE))","v":""},{"$f":"IF(B11=\"\",\"\",VLOOKUP(ELECTRONIC!$E10,Reference!H:J,3,FALSE))","v":""},{"$f":"IF(B11=\"\",\"\",ELECTRONIC!$D10)","v":""},{"$f":"IF(B11=\"\",\"\",MAINPAGE!$C$10)","v":""},{"$f":"IF(B11=\"\",\"\",MAINPAGE!$D$10)","v":""},{"$f":"IF(B11=\"\",\"\",ELECTRONIC!$F10)","v":""},{"$f":"IF(B11=\"\",\"\",ELECTRONIC!$G10)","v":""},{"$f":"IF(B11=\"\",\"\",ELECTRONIC!$H10)","v":""},{"$f":"IF(B11=\"\",\"\",IF(ELECTRONIC!$I10=\"\",\"\",ELECTRONIC!$I10))","v":""},{"$f":"IF(B11=\"\",\"\",MAINPAGE!$C$12)","v":""},null,null,{"$f":"IF(P11=\"\",\"\",IF(ISERROR(MAINPAGE!$D$8),\"#N/A\",MAINPAGE!$C$8))","v":""},{"$f":"IF(MANUAL!$D10=\"\",\"\",UPPER(MANUAL!$D10))","v":""},{"$f":"IF(P11=\"\",\"\",VLOOKUP(MANUAL!$C10,Reference!O:P,2,FALSE))","v":""},{"$f":"IF(P11=\"\",\"\",MANUAL!$G10)","v":""},{"$f":"IF(P11=\"\",\"\",MANUAL!$F10)","v":""},{"$f":"IF(P11=\"\",\"\",MAINPAGE!$C$10)","v":""},{"$f":"IF(P11=\"\",\"\",MAINPAGE!$D$10)","v":""},{"$f":"IF(P11=\"\",\"\",MANUAL!$H10)","v":""},{"$f":"IF(P11=\"\",\"\",MANUAL!$I10)","v":""},{"$f":"IF(P11=\"\",\"\",MANUAL!$J10)","v":""},{"$f":"IF(P11=\"\",\"\",IF(MANUAL!$K10=\"\",\"\",MANUAL!$K10))","v":""},{"$f":"IF(P11=\"\",\"\",MAINPAGE!$C$12)","v":""},null,null,{"$f":"IF(AD11=\"\",\"\",MAINPAGE!$C$8)","v":""},{"$f":"IF(TRANSPORT!$B10=\"\",\"\",UPPER(TRANSPORT!$B10))","v":""},null,null,null,null,null,null,{"$f":"IF(TRANSPORT!$D10=\"Ad hoc Credit\",\"ADH\",IF(TRANSPORT!$D10=\"Click and Collect credit\",\"COL\",\"\"))","v":""},{"$f":"IF(AD11=\"\",\"\",IF(TRANSPORT!$E10=\"\",\"\",TRANSPORT!$E10))","v":""},{"$f":"IF(AD11=\"\",\"\",IF(TRANSPORT!$F10=\"\",\"\",TRANSPORT!$F10))","v":""},{"$f":"IF(AD11=\"\",\"\",MAINPAGE!$C$12)","v":""},null,""]
[{"$f":"IF(B12=\"\",\"\",IF(ISERROR(MAINPAGE!$D$8),\"#N/A\",MAINPAGE!$C$8))","v":""},{"$f":"IF(ISERROR(ELECTRONIC!$B11),\"\",SUBSTITUTE(ELECTRONIC!$B11,\" \",\"\"))","v":""},{"$f":"IF(B12=\"\",\"\",VLOOKUP(ELECTRONIC!$C11,Reference!N:P,3,FALSE))","v":""},{"$f":"IF(B12=\"\",\"\",VLOOKUP(ELECTRONIC!$E11,Reference!H:J,3,FALSE))","v":""},{"$f":"IF(B12=\"\",\"\",ELECTRONIC!$D11)","v":""},{"$f":"IF(B12=\"\",\"\",MAINPAGE!$C$10)","v":""},{"$f":"IF(B12=\"\",\"\",MAINPAGE!$D$10)","v":""},{"$f":"IF(B12=\"\",\"\",ELECTRONIC!$F11)","v":""},{"$f":"IF(B12=\"\",\"\",ELECTRONIC!$G11)","v":""},{"$f":"IF(B12=\"\",\"\",ELECTRONIC!$H11)","v":""},{"$f":"IF(B12=\"\",\"\",IF(ELECTRONIC!$I11=\"\",\"\",ELECTRONIC!$I11))","v":""},{"$f":"IF(B12=\"\",\"\",MAINPAGE!$C$12)","v":""},null,null,{"$f":"IF(P12=\"\",\"\",IF(ISERROR(MAINPAGE!$D$8),\"#N/A\",MAINPAGE!$C$8))","v":""},{"$f":"IF(MANUAL!$D11=\"\",\"\",UPPER(MANUAL!$D11))","v":""},{"$f":"IF(P12=\"\",\"\",VLOOKUP(MANUAL!$C11,Reference!O:P,2,FALSE))","v":""},{"$f":"IF(P12=\"\",\"\",MANUAL!$G11)","v":""},{"$f":"IF(P12=\"\",\"\",MANUAL!$F11)","v":""},{"$f":"IF(P12=\"\",\"\",MAINPAGE!$C$10)","v":""},{"$f":"IF(P12=\"\",\"\",MAINPAGE!$D$10)","v":""},{"$f":"IF(P12=\"\",\"\",MANUAL!$H11)","v":""},{"$f":"IF(P12=\"\",\"\",MANUAL!$I11)","v":""},{"$f":"IF(P12=\"\",\"\",MANUAL!$J11)","v":""},{"$f":"IF(P12=\"\",\"\",IF(MANUAL!$K11=\"\",\"\",MANUAL!$K11))","v":""},{"$f":"IF(P12=\"\",\"\",MAINPAGE!$C$12)","v":""},null,null,{"$f":"IF(AD12=\"\",\"\",MAINPAGE!$C$8)","v":""},{"$f":"IF(TRANSPORT!$B11=\"\",\"\",UPPER(TRANSPORT!$B11))","v":""},null,null,null,null,null,null,{"$f":"IF(TRANSPORT!$D11=\"Ad hoc Credit\",\"ADH\",IF(TRANSPORT!$D11=\"Click and Collect credit\",\"COL\",\"\"))","v":""},{"$f":"IF(AD12=\"\",\"\",IF(TRANSPORT!$E11=\"\",\"\",TRANSPORT!$E11))","v":""},{"$f":"IF(AD12=\"\",\"\",IF(TRANSPORT!$F11=\"\",\"\",TRANSPORT!$F11))","v":""},{"$f":"IF(AD12=\"\",\"\",MAINPAGE!$C$12)","v":""},null,""]
[{"$f":"IF(B13=\"\",\"\",IF(ISERROR(MAINPAGE!$D$8),\"#N/A\",MAINPAGE!$C$8))","v":""},{"$f":"IF(ISERROR(ELECTRONIC!$B12),\"\",SUBSTITUTE(ELECTRONIC!$B12,\" \",\"\"))","v":""},{"$f":"IF(B13=\"\",\"\",VLOOKUP(ELECTRONIC!$C12,Reference!N:P,3,FALSE))","v":""},{"$f":"IF(B13=\"\",\"\",VLOOKUP(ELECTRONIC!$E12,Reference!H:J,3,FALSE))","v":""},{"$f":"IF(B13=\"\",\"\",ELECTRONIC!$D12)","v":""},{"$f":"IF(B13=\"\",\"\",MAINPAGE!$C$10)","v":""},{"$f":"IF(B13=\"\",\"\",MAINPAGE!$D$10)","v":""},{"$f":"IF(B13=\"\",\"\",ELECTRONIC!$F12)","v":""},{"$f":"IF(B13=\"\",\"\",ELECTRONIC!$G12)","v":""},{"$f":"IF(B13=\"\",\"\",ELECTRONIC!$H12)","v":""},{"$f":"IF(B13=\"\",\"\",IF(ELECTRONIC!$I12=\"\",\"\",ELECTRONIC!$I12))","v":""},{"$f":"IF(B13=\"\",\"\",MAINPAGE!$C$12)","v":""},null,null,{"$f":"IF(P13=\"\",\"\",IF(ISERROR(MAINPAGE!$D$8),\"#N/A\",MAINPAGE!$C$8))","v":""},{"$f":"IF(MANUAL!$D12=\"\",\"\",UPPER(MANUAL!$D12))","v":""},{"$f":"IF(P13=\"\",\"\",VLOOKUP(MANUAL!$C12,Reference!O:P,2,FALSE))","v":""},{"$f":"IF(P13=\"\",\"\",MANUAL!$G12)","v":""},{"$f":"IF(P13=\"\",\"\",MANUAL!$F12)","v":""},{"$f":"IF(P13=\"\",\"\",MAINPAGE!$C$10)","v":""},{"$f":"IF(P13=\"\",\"\",MAINPAGE!$D$10)","v":""},{"$f":"IF(P13=\"\",\"\",MANUAL!$H12)","v":""},{"$f":"IF(P13=\"\",\"\",MANUAL!$I12)","v":""},{"$f":"IF(P13=\"\",\"\",MANUAL!$J12)","v":""},{"$f":"IF(P13=\"\",\"\",IF(MANUAL!$K12=\"\",\"\",MANUAL!$K12))","v":""},{"$f":"IF(P13=\"\",\"\",MAINPAGE!$C$12)","v":""},null,null,{"$f":"IF(AD13=\"\",\"\",MAINPAGE!$C$8)","v":""},{"$f":"IF(TRANSPORT!$B12=\"\",\"\",UPPER(TRANSPORT!$B12))","v":""},null,null,null,null,null,null,{"$f":"IF(TRANSPORT!$D12=\"Ad hoc Credit\",\"ADH\",IF(TRANSPORT!$D12=\"Click and Collect credit\",\"COL\",\"\"))","v":""},{"$f":"IF(AD13=\"\",\"\",IF(TRANSPORT!$E12=\"\",\"\",TRANSPORT!$E12))","v":""},{"$f":"IF(AD13=\"\",\"\",IF(TRANSPORT!$F12=\"\",\"\",TRANSPORT!$F12))","v":""},{"$f":"IF(AD13=\"\",\"\",MAINPAGE!$C$12)","v":""},null,""]
[{"$f":"IF(B14=\"\",\"\",IF(ISERROR(MAINPAGE!$D$8),\"#N/A\",MAINPAGE!$C$8))","v":""},{"$f":"IF(ISERROR(ELECTRONIC!$B13),\"\",SUBSTITUTE(ELECTRONIC!$B13,\" \",\"\"))","v":""},{"$f":"IF(B14=\"\",\"\",VLOOKUP(ELECTRONIC!$C13,Reference!N:P,3,FALSE))","v":""},{"$f":"IF(B14=\"\",\"\",VLOOKUP(ELECTRONIC!$E13,Reference!H:J,3,FALSE))","v":""},{"$f":"IF(B14=\"\",\"\",ELECTRONIC!$D13)","v":""},{"$f":"IF(B14=\"\",\"\",MAINPAGE!$C$10)","v":""},{"$f":"IF(B14=\"\",\"\",MAINPAGE!$D$10)","v":""},{"$f":"IF(B14=\"\",\"\",ELECTRONIC!$F13)","v":""},{"$f":"IF(B14=\"\",\"\",ELECTRONIC!$G13)","v":""},{"$f":"IF(B14=\"\",\"\",ELECTRONIC!$H13)","v":""},{"$f":"IF(B14=\"\",\"\",IF(ELECTRONIC!$I13=\"\",\"\",ELECTRONIC!$I13))","v":""},{"$f":"IF(B14=\"\",\"\",MAINPAGE!$C$12)","v":""},null,null,{"$f":"IF(P14=\"\",\"\",IF(ISERROR(MAINPAGE!$D$8),\"#N/A\",MAINPAGE!$C$8))","v":""},{"$f":"IF(MANUAL!$D13=\"\",\"\",UPPER(MANUAL!$D13))","v":""},{"$f":"IF(P14=\"\",\"\",VLOOKUP(MANUAL!$C13,Reference!O:P,2,FALSE))","v":""},{"$f":"IF(P14=\"\",\"\",MANUAL!$G13)","v":""},{"$f":"IF(P14=\"\",\"\",MANUAL!$F13)","v":""},{"$f":"IF(P14=\"\",\"\",MAINPAGE!$C$10)","v":""},{"$f":"IF(P14=\"\",\"\",MAINPAGE!$D$10)","v":""},{"$f":"IF(P14=\"\",\"\",MANUAL!$H13)","v":""},{"$f":"IF(P14=\"\",\"\",MANUAL!$I13)","v":""},{"$f":"IF(P14=\"\",\"\",MANUAL!$J13)","v":""},{"$f":"IF(P14=\"\",\"\",IF(MANUAL!$K13=\"\",\"\",MANUAL!$K13))","v":""},{"$f":"IF(P14=\"\",\"\",MAINPAGE!$C$12)","v":""},null,null,{"$f":"IF(AD14=\"\",\"\",MAINPAGE!$C$8)","v":""},{"$f":"IF(TRANSPORT!$B13=\"\",\"\",UPPER(TRANSPORT!$B13))","v":""},null,null,null,null,null,null,{"$f":"IF(TRANSPORT!$D13=\"Ad hoc Credit\",\"ADH\",IF(TRANSPORT!$D13=\"Click and Collect credit\",\"COL\",\"\"))","v":""},{"$f":"IF(AD14=\"\",\"\",IF(TRANSPORT!$E13=\"\",\"\",TRANSPORT!$E13))","v":""},{"$f":"IF(AD14=\"\",\"\",IF(TRANSPORT!$F13=\"\",\"\",TRANSPORT!$F13))","v":""},{"$f":"IF(AD14=\"\",\"\",MAINPAGE!$C$12)","v":""},null,""]
[{"$f":"IF(B15=\"\",\"\",IF(ISERROR(MAINPAGE!$D$8),\"#N/A\",MAINPAGE!$C$8))","v":""},{"$f":"IF(ISERROR(ELECTRONIC!$B14),\"\",SUBSTITUTE(ELECTRONIC!$B14,\" \",\"\"))","v":""},{"$f":"IF(B15=\"\",\"\",VLOOKUP(ELECTRONIC!$C14,Reference!N:P,3,FALSE))","v":""},{"$f":"IF(B15=\"\",\"\",VLOOKUP(ELECTRONIC!$E14,Reference!H:J,3,FALSE))","v":""},{"$f":"IF(B15=\"\",\"\",ELECTRONIC!$D14)","v":""},{"$f":"IF(B15=\"\",\"\",MAINPAGE!$C$10)","v":""},{"$f":"IF(B15=\"\",\"\",MAINPAGE!$D$10)","v":""},{"$f":"IF(B15=\"\",\"\",ELECTRONIC!$F14)","v":""},{"$f":"IF(B15=\"\",\"\",ELECTRONIC!$G14)","v":""},{"$f":"IF(B15=\"\",\"\",ELECTRONIC!$H14)","v":""},{"$f":"IF(B15=\"\",\"\",IF(ELECTRONIC!$I14=\"\",\"\",ELECTRONIC!$I14))","v":""},{"$f":"IF(B15=\"\",\"\",MAINPAGE!$C$12)","v":""},null,null,{"$f":"IF(P15=\"\",\"\",IF(ISERROR(MAINPAGE!$D$8),\"#N/A\",MAINPAGE!$C$8))","v":""},{"$f":"IF(MANUAL!$D14=\"\",\"\",UPPER(MANUAL!$D14))","v":""},{"$f":"IF(P15=\"\",\"\",VLOOKUP(MANUAL!$C14,Reference!O:P,2,FALSE))","v":""},{"$f":"IF(P15=\"\",\"\",MANUAL!$G14)","v":""},{"$f":"IF(P15=\"\",\"\",MANUAL!$F14)","v":""},{"$f":"IF(P15=\"\",\"\",MAINPAGE!$C$10)","v":""},{"$f":"IF(P15=\"\",\"\",MAINPAGE!$D$10)","v":""},{"$f":"IF(P15=\"\",\"\",MANUAL!$H14)","v":""},{"$f":"IF(P15=\"\",\"\",MANUAL!$I14)","v":""},{"$f":"IF(P15=\"\",\"\",MANUAL!$J14)","v":""},{"$f":"IF(P15=\"\",\"\",IF(MANUAL!$K14=\"\",\"\",MANUAL!$K14))","v":""},{"$f":"IF(P15=\"\",\"\",MAINPAGE!$C$12)","v":""},null,null,{"$f":"IF(AD15=\"\",\"\",MAINPAGE!$C$8)","v":""},{"$f":"IF(TRANSPORT!$B14=\"\",\"\",UPPER(TRANSPORT!$B14))","v":""},null,null,null,null,null,null,{"$f":"IF(TRANSPORT!$D14=\"Ad hoc Credit\",\"ADH\",IF(TRANSPORT!$D14=\"Click and Collect credit\",\"COL\",\"\"))","v":""},{"$f":"IF(AD15=\"\",\"\",IF(TRANSPORT!$E14=\"\",\"\",TRANSPORT!$E14))","v":""},{"$f":"IF(AD15=\"\",\"\",IF(TRANSPORT!$F14=\"\",\"\",TRANSPORT!$F14))","v":""},{"$f":"IF(AD15=\"\",\"\",MAINPAGE!$C$12)","v":""},null,""]
[{"$f":"IF(B16=\"\",\"\",IF(ISERROR(MAINPAGE!$D$8),\"#N/A\",MAINPAGE!$C$8))","v":""},{"$f":"IF(ISERROR(ELECTRONIC!$B15),\"\",SUBSTITUTE(ELECTRONIC!$B15,\" \",\"\"))","v":""},{"$f":"IF(B16=\"\",\"\",VLOOKUP(ELECTRONIC!$C15,Reference!N:P,3,FALSE))","v":""},{"$f":"IF(B16=\"\",\"\",VLOOKUP(ELECTRONIC!$E15,Reference!H:J,3,FALSE))","v":""},{"$f":"IF(B16=\"\",\"\",ELECTRONIC!$D15)","v":""},{"$f":"IF(B16=\"\",\"\",MAINPAGE!$C$10)","v":""},{"$f":"IF(B16=\"\",\"\",MAINPAGE!$D$10)","v":""},{"$f":"IF(B16=\"\",\"\",ELECTRONIC!$F15)","v":""},{"$f":"IF(B16=\"\",\"\",ELECTRONIC!$G15)","v":""},{"$f":"IF(B16=\"\",\"\",ELECTRONIC!$H15)","v":""},{"$f":"IF(B16=\"\",\"\",IF(ELECTRONIC!$I15=\"\",\"\",ELECTRONIC!$I15))","v":""},{"$f":"IF(B16=\"\",\"\",MAINPAGE!$C$12)","v":""},null,null,{"$f":"IF(P16=\"\",\"\",IF(ISERROR(MAINPAGE!$D$8),\"#N/A\",MAINPAGE!$C$8))","v":""},{"$f":"IF(MANUAL!$D15=\"\",\"\",UPPER(MANUAL!$D15))","v":""},{"$f":"IF(P16=\"\",\"\",VLOOKUP(MANUAL!$C15,Reference!O:P,2,FALSE))","v":""},{"$f":"IF(P16=\"\",\"\",MANUAL!$G15)","v":""},{"$f":"IF(P16=\"\",\"\",MANUAL!$F15)","v":""},{"$f":"IF(P16=\"\",\"\",MAINPAGE!$C$10)","v":""},{"$f":"IF(P16=\"\",\"\",MAINPAGE!$D$10)","v":""},{"$f":"IF(P16=\"\",\"\",MANUAL!$H15)","v":""},{"$f":"IF(P16=\"\",\"\",MANUAL!$I15)","v":""},{"$f":"IF(P16=\"\",\"\",MANUAL!$J15)","v":""},{"$f":"IF(P16=\"\",\"\",IF(MANUAL!$K15=\"\",\"\",MANUAL!$K15))","v":""},{"$f":"IF(P16=\"\",\"\",MAINPAGE!$C$12)","v":""},null,null,{"$f":"IF(AD16=\"\",\"\",MAINPAGE!$C$8)","v":""},{"$f":"IF(TRANSPORT!$B15=\"\",\"\",UPPER(TRANSPORT!$B15))","v":""},null,null,null,null,null,null,{"$f":"IF(TRANSPORT!$D15=\"Ad hoc Credit\",\"ADH\",IF(TRANSPORT!$D15=\"Click and Collect credit\",\"COL\",\"\"))","v":""},{"$f":"IF(AD16=\"\",\"\",IF(TRANSPORT!$E15=\"\",\"\",TRANSPORT!$E15))","v":""},{"$f":"IF(AD16=\"\",\"\",IF(TRANSPORT!$F15=\"\",\"\",TRANSPORT!$F15))","v":""},{"$f":"IF(AD16=\"\",\"\",MAINPAGE!$C$12)","v":""},null,""]
[{"$f":"IF(B17=\"\",\"\",IF(ISERROR(MAINPAGE!$D$8),\"#N/A\",MAINPAGE!$C$8))","v":""},{"$f":"IF(ISERROR(ELECTRONIC!$B16),\"\",SUBSTITUTE(ELECTRONIC!$B16,\" \",\"\"))","v":""},{"$f":"IF(B17=\"\",\"\",VLOOKUP(ELECTRONIC!$C16,Reference!N:P,3,FALSE))","v":""},{"$f":"IF(B17=\"\",\"\",VLOOKUP(ELECTRONIC!$E16,Reference!H:J,3,FALSE))","v":""},{"$f":"IF(B17=\"\",\"\",ELECTRONIC!$D16)","v":""},{"$f":"IF(B17=\"\",\"\",MAINPAGE!$C$10)","v":""},{"$f":"IF(B17=\"\",\"\",MAINPAGE!$D$10)","v":""},{"$f":"IF(B17=\"\",\"\",ELECTRONIC!$F16)","v":""},{"$f":"IF(B17=\"\",\"\",ELECTRONIC!$G16)","v":""},{"$f":"IF(B17=\"\",\"\",ELECTRONIC!$H16)","v":""},{"$f":"IF(B17=\"\",\"\",IF(ELECTRONIC!$I16=\"\",\"\",ELECTRONIC!$I16))","v":""},{"$f":"IF(B17=\"\",\"\",MAINPAGE!$C$12)","v":""},null,null,{"$f":"IF(P17=\"\",\"\",IF(ISERROR(MAINPAGE!$D$8),\"#N/A\",MAINPAGE!$C$8))","v":""},{"$f":"IF(MANUAL!$D16=\"\",\"\",UPPER(MANUAL!$D16))","v":""},{"$f":"IF(P17=\"\",\"\",VLOOKUP(MANUAL!$C16,Reference!O:P,2,FALSE))","v":""},{"$f":"IF(P17=\"\",\"\",MANUAL!$G16)","v":""},{"$f":"IF(P17=\"\",\"\",MANUAL!$F16)","v":""},{"$f":"IF(P17=\"\",\"\",MAINPAGE!$C$10)","v":""},{"$f":"IF(P17=\"\",\"\",MAINPAGE!$D$10)","v":""},{"$f":"IF(P17=\"\",\"\",MANUAL!$H16)","v":""},{"$f":"IF(P17=\"\",\"\",MANUAL!$I16)","v":""},{"$f":"IF(P17=\"\",\"\",MANUAL!$J16)","v":""},{"$f":"IF(P17=\"\",\"\",IF(MANUAL!$K16=\"\",\"\",MANUAL!$K16))","v":""},{"$f":"IF(P17=\"\",\"\",MAINPAGE!$C$12)","v":""},null,null,{"$f":"IF(AD17=\"\",\"\",MAINPAGE!$C$8)","v":""},{"$f":"IF(TRANSPORT!$B16=\"\",\"\",UPPER(TRANSPORT!$B16))","v":""},null,null,null,null,null,null,{"$f":"IF(TRANSPORT!$D16=\"Ad hoc Credit\",\"ADH\",IF(TRANSPORT!$D16=\"Click and Collect credit\",\"COL\",\"\"))","v":""},{"$f":"IF(AD17=\"\",\"\",IF(TRANSPORT!$E16=\"\",\"\",TRANSPORT!$E16))","v":""},{"$f":"IF(AD17=\"\",\"\",IF(TRANSPORT!$F16=\"\",\"\",TRANSPORT!$F16))","v":""},{"$f":"IF(AD17=\"\",\"\",MAINPAGE!$C$12)","v":""},null,""]
[{"$f":"IF(B18=\"\",\"\",IF(ISERROR(MAINPAGE!$D$8),\"#N/A\",MAINPAGE!$C$8))","v":""},{"$f":"IF(ISERROR(ELECTRONIC!$B17),\"\",SUBSTITUTE(ELECTRONIC!$B17,\" \",\"\"))","v":""},{"$f":"IF(B18=\"\",\"\",VLOOKUP(ELECTRONIC!$C17,Reference!N:P,3,FALSE))","v":""},{"$f":"IF(B18=\"\",\"\",VLOOKUP(ELECTRONIC!$E17,Reference!H:J,3,FALSE))","v":""},{"$f":"IF(B18=\"\",\"\",ELECTRONIC!$D17)","v":""},{"$f":"IF(B18=\"\",\"\",MAINPAGE!$C$10)","v":""},{"$f":"IF(B18=\"\",\"\",MAINPAGE!$D$10)","v":""},{"$f":"IF(B18=\"\",\"\",ELECTRONIC!$F17)","v":""},{"$f":"IF(B18=\"\",\"\",ELECTRONIC!$G17)","v":""},{"$f":"IF(B18=\"\",\"\",ELECTRONIC!$H17)","v":""},{"$f":"IF(B18=\"\",\"\",IF(ELECTRONIC!$I17=\"\",\"\",ELECTRONIC!$I17))","v":""},{"$f":"IF(B18=\"\",\"\",MAINPAGE!$C$12)","v":""},null,null,{"$f":"IF(P18=\"\",\"\",IF(ISERROR(MAINPAGE!$D$8),\"#N/A\",MAINPAGE!$C$8))","v":""},{"$f":"IF(MANUAL!$D17=\"\",\"\",UPPER(MANUAL!$D17))","v":""},{"$f":"IF(P18=\"\",\"\",VLOOKUP(MANUAL!$C17,Reference!O:P,2,FALSE))","v":""},{"$f":"IF(P18=\"\",\"\",MANUAL!$G17)","v":""},{"$f":"IF(P18=\"\",\"\",MANUAL!$F17)","v":""},{"$f":"IF(P18=\"\",\"\",MAINPAGE!$C$10)","v":""},{"$f":"IF(P18=\"\",\"\",MAINPAGE!$D$10)","v":""},{"$f":"IF(P18=\"\",\"\",MANUAL!$H17)","v":""},{"$f":"IF(P18=\"\",\"\",MANUAL!$I17)","v":""},{"$f":"IF(P18=\"\",\"\",MANUAL!$J17)","v":""},{"$f":"IF(P18=\"\",\"\",IF(MANUAL!$K17=\"\",\"\",MANUAL!$K17))","v":""},{"$f":"IF(P18=\"\",\"\",MAINPAGE!$C$12)","v":""},null,null,{"$f":"IF(AD18=\"\",\"\",MAINPAGE!$C$8)","v":""},{"$f":"IF(TRANSPORT!$B17=\"\",\"\",UPPER(TRANSPORT!$B17))","v":""},null,null,null,null,null,null,{"$f":"IF(TRANSPORT!$D17=\"Ad hoc Credit\",\"ADH\",IF(TRANSPORT!$D17=\"Click and Collect credit\",\"COL\",\"\"))","v":""},{"$f":"IF(AD18=\"\",\"\",IF(TRANSPORT!$E17=\"\",\"\",TRANSPORT!$E17))","v":""},{"$f":"IF(AD18=\"\",\"\",IF(TRANSPORT!$F17=\"\",\"\",TRANSPORT!$F17))","v":""},{"$f":"IF(AD18=\"\",\"\",MAINPAGE!$C$12)","v":""},null,""]
[{"$f":"IF(B19=\"\",\"\",IF(ISERROR(MAINPAGE!$D$8),\"#N/A\",MAINPAGE!$C$8))","v":""},{"$f":"IF(ISERROR(ELECTRONIC!$B18),\"\",SUBSTITUTE(ELECTRONIC!$B18,\" \",\"\"))","v":""},{"$f":"IF(B19=\"\",\"\",VLOOKUP(ELECTRONIC!$C18,Reference!N:P,3,FALSE))","v":""},{"$f":"IF(B19=\"\",\"\",VLOOKUP(ELECTRONIC!$E18,Reference!H:J,3,FALSE))","v":""},{"$f":"IF(B19=\"\",\"\",ELECTRONIC!$D18)","v":""},{"$f":"IF(B19=\"\",\"\",MAINPAGE!$C$10)","v":""},{"$f":"IF(B19=\"\",\"\",MAINPAGE!$D$10)","v":""},{"$f":"IF(B19=\"\",\"\",ELECTRONIC!$F18)","v":""},{"$f":"IF(B19=\"\",\"\",ELECTRONIC!$G18)","v":""},{"$f":"IF(B19=\"\",\"\",ELECTRONIC!$H18)","v":""},{"$f":"IF(B19=\"\",\"\",IF(ELECTRONIC!$I18=\"\",\"\",ELECTRONIC!$I18))","v":""},{"$f":"IF(B19=\"\",\"\",MAINPAGE!$C$12)","v":""},null,null,{"$f":"IF(P19=\"\",\"\",IF(ISERROR(MAINPAGE!$D$8),\"#N/A\",MAINPAGE!$C$8))","v":""},{"$f":"IF(MANUAL!$D18=\"\",\"\",UPPER(MANUAL!$D18))","v":""},{"$f":"IF(P19=\"\",\"\",VLOOKUP(MANUAL!$C18,Reference!O:P,2,FALSE))","v":""},{"$f":"IF(P19=\"\",\"\",MANUAL!$G18)","v":""},{"$f":"IF(P19=\"\",\"\",MANUAL!$F18)","v":""},{"$f":"IF(P19=\"\",\"\",MAINPAGE!$C$10)","v":""},{"$f":"IF(P19=\"\",\"\",MAINPAGE!$D$10)","v":""},{"$f":"IF(P19=\"\",\"\",MANUAL!$H18)","v":""},{"$f":"IF(P19=\"\",\"\",MANUAL!$I18)","v":""},{"$f":"IF(P19=\"\",\"\",MANUAL!$J18)","v":""},{"$f":"IF(P19=\"\",\"\",IF(MANUAL!$K18=\"\",\"\",MANUAL!$K18))","v":""},{"$f":"IF(P19=\"\",\"\",MAINPAGE!$C$12)","v":""},null,null,{"$f":"IF(AD19=\"\",\"\",MAINPAGE!$C$8)","v":""},{"$f":"IF(TRANSPORT!$B18=\"\",\"\",UPPER(TRANSPORT!$B18))","v":""},null,null,null,null,null,null,{"$f":"IF(TRANSPORT!$D18=\"Ad hoc Credit\",\"ADH\",IF(TRANSPORT!$D18=\"Click and Collect credit\",\"COL\",\"\"))","v":""},{"$f":"IF(AD19=\"\",\"\",IF(TRANSPORT!$E18=\"\",\"\",TRANSPORT!$E18))","v":""},{"$f":"IF(AD19=\"\",\"\",IF(TRANSPORT!$F18=\"\",\"\",TRANSPORT!$F18))","v":""},{"$f":"IF(AD19=\"\",\"\",MAINPAGE!$C$12)","v":""},null,""]
[{"$f":"IF(B20=\"\",\"\",IF(ISERROR(MAINPAGE!$D$8),\"#N/A\",MAINPAGE!$C$8))","v":""},{"$f":"IF(ISERROR(ELECTRONIC!$B19),\"\",SUBSTITUTE(ELECTRONIC!$B19,\" \",\"\"))","v":""},{"$f":"IF(B20=\"\",\"\",VLOOKUP(ELECTRONIC!$C19,Reference!N:P,3,FALSE))","v":""},{"$f":"IF(B20=\"\",\"\",VLOOKUP(ELECTRONIC!$E19,Reference!H:J,3,FALSE))","v":""},{"$f":"IF(B20=\"\",\"\",ELECTRONIC!$D19)","v":""},{"$f":"IF(B20=\"\",\"\",MAINPAGE!$C$10)","v":""},{"$f":"IF(B20=\"\",\"\",MAINPAGE!$D$10)","v":""},{"$f":"IF(B20=\"\",\"\",ELECTRONIC!$F19)","v":""},{"$f":"IF(B20=\"\",\"\",ELECTRONIC!$G19)","v":""},{"$f":"IF(B20=\"\",\"\",ELECTRONIC!$H19)","v":""},{"$f":"IF(B20=\"\",\"\",IF(ELECTRONIC!$I19=\"\",\"\",ELECTRONIC!$I19))","v":""},{"$f":"IF(B20=\"\",\"\",MAINPAGE!$C$12)","v":""},null,null,{"$f":"IF(P20=\"\",\"\",IF(ISERROR(MAINPAGE!$D$8),\"#N/A\",MAINPAGE!$C$8))","v":""},{"$f":"IF(MANUAL!$D19=\"\",\"\",UPPER(MANUAL!$D19))","v":""},{"$f":"IF(P20=\"\",\"\",VLOOKUP(MANUAL!$C19,Reference!O:P,2,FALSE))","v":""},{"$f":"IF(P20=\"\",\"\",MANUAL!$G19)","v":""},{"$f":"IF(P20=\"\",\"\",MANUAL!$F19)","v":""},{"$f":"IF(P20=\"\",\"\",MAINPAGE!$C$10)","v":""},{"$f":"IF(P20=\"\",\"\",MAINPAGE!$D$10)","v":""},{"$f":"IF(P20=\"\",\"\",MANUAL!$H19)","v":""},{"$f":"IF(P20=\"\",\"\",MANUAL!$I19)","v":""},{"$f":"IF(P20=\"\",\"\",MANUAL!$J19)","v":""},{"$f":"IF(P20=\"\",\"\",IF(MANUAL!$K19=\"\",\"\",MANUAL!$K19))","v":""},{"$f":"IF(P20=\"\",\"\",MAINPAGE!$C$12)","v":""},null,null,{"$f":"IF(AD20=\"\",\"\",MAINPAGE!$C$8)","v":""},{"$f":"IF(TRANSPORT!$B19=\"\",\"\",UPPER(TRANSPORT!$B19))","v":""},null,null,null,null,null,null,{"$f":"IF(TRANSPORT!$D19=\"Ad hoc Credit\",\"ADH\",IF(TRANSPORT!$D19=\"Click and Collect credit\",\"COL\",\"\"))","v":""},{"$f":"IF(AD20=\"\",\"\",IF(TRANSPORT!$E19=\"\",\"\",TRANSPORT!$E19))","v":""},{"$f":"IF(AD20=\"\",\"\",IF(TRANSPORT!$F19=\"\",\"\",TRANSPORT!$F19))","v":""},{"$f":"IF(AD20=\"\",\"\",MAINPAGE!$C$12)","v":""},null,""]
[{"$f":"IF(B21=\"\",\"\",IF(ISERROR(MAINPAGE!$D$8),\"#N/A\",MAINPAGE!$C$8))","v":""},{"$f":"IF(ISERROR(ELECTRONIC!$B20),\"\",SUBSTITUTE(ELECTRONIC!$B20,\" \",\"\"))","v":""},{"$f":"IF(B21=\"\",\"\",VLOOKUP(ELECTRONIC!$C20,Reference!N:P,3,FALSE))","v":""},{"$f":"IF(B21=\"\",\"\",VLOOKUP(ELECTRONIC!$E20,Reference!H:J,3,FALSE))","v":""},{"$f":"IF(B21=\"\",\"\",ELECTRONIC!$D20)","v":""},{"$f":"IF(B21=\"\",\"\",MAINPAGE!$C$10)","v":""},{"$f":"IF(B21=\"\",\"\",MAINPAGE!$D$10)","v":""},{"$f":"IF(B21=\"\",\"\",ELECTRONIC!$F20)","v":""},{"$f":"IF(B21=\"\",\"\",ELECTRONIC!$G20)","v":""},{"$f":"IF(B21=\"\",\"\",ELECTRONIC!$H20)","v":""},{"$f":"IF(B21=\"\",\"\",IF(ELECTRONIC!$I20=\"\",\"\",ELECTRONIC!$I20))","v":""},{"$f":"IF(B21=\"\",\"\",MAINPAGE!$C$12)","v":""},null,null,{"$f":"IF(P21=\"\",\"\",IF(ISERROR(MAINPAGE!$D$8),\"#N/A\",MAINPAGE!$C$8))","v":""},{"$f":"IF(MANUAL!$D20=\"\",\"\",UPPER(MANUAL!$D20))","v":""},{"$f":"IF(P21=\"\",\"\",VLOOKUP(MANUAL!$C20,Reference!O:P,2,FALSE))","v":""},{"$f":"IF(P21=\"\",\"\",MANUAL!$G20)","v":""},{"$f":"IF(P21=\"\",\"\",MANUAL!$F20)","v":""},{"$f":"IF(P21=\"\",\"\",MAINPAGE!$C$10)","v":""},{"$f":"IF(P21=\"\",\"\",MAINPAGE!$D$10)","v":""},{"$f":"IF(P21=\"\",\"\",MANUAL!$H20)","v":""},{"$f":"IF(P21=\"\",\"\",MANUAL!$I20)","v":""},{"$f":"IF(P21=\"\",\"\",MANUAL!$J20)","v":""},{"$f":"IF(P21=\"\",\"\",IF(MANUAL!$K20=\"\",\"\",MANUAL!$K20))","v":""},{"$f":"IF(P21=\"\",\"\",MAINPAGE!$C$12)","v":""},null,null,{"$f":"IF(AD21=\"\",\"\",MAINPAGE!$C$8)","v":""},{"$f":"IF(TRANSPORT!$B20=\"\",\"\",UPPER(TRANSPORT!$B20))","v":""},null,null,null,null,null,null,{"$f":"IF(TRANSPORT!$D20=\"Ad hoc Credit\",\"ADH\",IF(TRANSPORT!$D20=\"Click and Collect credit\",\"COL\",\"\"))","v":""},{"$f":"IF(AD21=\"\",\"\",IF(TRANSPORT!$E20=\"\",\"\",TRANSPORT!$E20))","v":""},{"$f":"IF(AD21=\"\",\"\",IF(TRANSPORT!$F20=\"\",\"\",TRANSPORT!$F20))","v":""},{"$f":"IF(AD21=\"\",\"\",MAINPAGE!$C$12)","v":""},null,""]
[{"$f":"IF(B22=\"\",\"\",IF(ISERROR(MAINPAGE!$D$8),\"#N/A\",MAINPAGE!$C$8))","v":""},{"$f":"IF(ISERROR(ELECTRONIC!$B21),\"\",SUBSTITUTE(ELECTRONIC!$B21,\" \",\"\"))","v":""},{"$f":"IF(B22=\"\",\"\",VLOOKUP(ELECTRONIC!$C21,Reference!N:P,3,FALSE))","v":""},{"$f":"IF(B22=\"\",\"\",VLOOKUP(ELECTRONIC!$E21,Reference!H:J,3,FALSE))","v":""},{"$f":"IF(B22=\"\",\"\",ELECTRONIC!$D21)","v":""},{"$f":"IF(B22=\"\",\"\",MAINPAGE!$C$10)","v":""},{"$f":"IF(B22=\"\",\"\",MAINPAGE!$D$10)","v":""},{"$f":"IF(B22=\"\",\"\",ELECTRONIC!$F21)","v":""},{"$f":"IF(B22=\"\",\"\",ELECTRONIC!$G21)","v":""},{"$f":"IF(B22=\"\",\"\",ELECTRONIC!$H21)","v":""},{"$f":"IF(B22=\"\",\"\",IF(ELECTRONIC!$I21=\"\",\"\",ELECTRONIC!$I21))","v":""},{"$f":"IF(B22=\"\",\"\",MAINPAGE!$C$12)","v":""},null,null,{"$f":"IF(P22=\"\",\"\",IF(ISERROR(MAINPAGE!$D$8),\"#N/A\",MAINPAGE!$C$8))","v":""},{"$f":"IF(MANUAL!$D21=\"\",\"\",UPPER(MANUAL!$D21))","v":""},{"$f":"IF(P22=\"\",\"\",VLOOKUP(MANUAL!$C21,Reference!O:P,2,FALSE))","v":""},{"$f":"IF(P22=\"\",\"\",MANUAL!$G21)","v":""},{"$f":"IF(P22=\"\",\"\",MANUAL!$F21)","v":""},{"$f":"IF(P22=\"\",\"\",MAINPAGE!$C$10)","v":""},{"$f":"IF(P22=\"\",\"\",MAINPAGE!$D$10)","v":""},{"$f":"IF(P22=\"\",\"\",MANUAL!$H21)","v":""},{"$f":"IF(P22=\"\",\"\",MANUAL!$I21)","v":""},{"$f":"IF(P22=\"\",\"\",MANUAL!$J21)","v":""},{"$f":"IF(P22=\"\",\"\",IF(MANUAL!$K21=\"\",\"\",MANUAL!$K21))","v":""},{"$f":"IF(P22=\"\",\"\",MAINPAGE!$C$12)","v":""},null,null,{"$f":"IF(AD22=\"\",\"\",MAINPAGE!$C$8)","v":""},{"$f":"IF(TRANSPORT!$B21=\"\",\"\",UPPER(TRANSPORT!$B21))","v":""},null,null,null,null,null,null,{"$f":"IF(TRANSPORT!$D21=\"Ad hoc Credit\",\"ADH\",IF(TRANSPORT!$D21=\"Click and Collect credit\",\"COL\",\"\"))","v":""},{"$f":"IF(AD22=\"\",\"\",IF(TRANSPORT!$E21=\"\",\"\",TRANSPORT!$E21))","v":""},{"$f":"IF(AD22=\"\",\"\",IF(TRANSPORT!$F21=\"\",\"\",TRANSPORT!$F21))","v":""},{"$f":"IF(AD22=\"\",\"\",MAINPAGE!$C$12)","v":""},null,""]
[{"$f":"IF(B23=\"\",\"\",IF(ISERROR(MAINPAGE!$D$8),\"#N/A\",MAINPAGE!$C$8))","v":""},{"$f":"IF(ISERROR(ELECTRONIC!$B22),\"\",SUBSTITUTE(ELECTRONIC!$B22,\" \",\"\"))","v":""},{"$f":"IF(B23=\"\",\"\",VLOOKUP(ELECTRONIC!$C22,Reference!N:P,3,FALSE))","v":""},{"$f":"IF(B23=\"\",\"\",VLOOKUP(ELECTRONIC!$E22,Reference!H:J,3,FALSE))","v":""},{"$f":"IF(B23=\"\",\"\",ELECTRONIC!$D22)","v":""},{"$f":"IF(B23=\"\",\"\",MAINPAGE!$C$10)","v":""},{"$f":"IF(B23=\"\",\"\",MAINPAGE!$D$10)","v":""},{"$f":"IF(B23=\"\",\"\",ELECTRONIC!$F22)","v":""},{"$f":"IF(B23=\"\",\"\",ELECTRONIC!$G22)","v":""},{"$f":"IF(B23=\"\",\"\",ELECTRONIC!$H22)","v":""},{"$f":"IF(B23=\"\",\"\",IF(ELECTRONIC!$I22=\"\",\"\",ELECTRONIC!$I22))","v":""},{"$f":"IF(B23=\"\",\"\",MAINPAGE!$C$12)","v":""},null,null,{"$f":"IF(P23=\"\",\"\",IF(ISERROR(MAINPAGE!$D$8),\"#N/A\",MAINPAGE!$C$8))","v":""},{"$f":"IF(MANUAL!$D22=\"\",\"\",UPPER(MANUAL!$D22))","v":""},{"$f":"IF(P23=\"\",\"\",VLOOKUP(MANUAL!$C22,Reference!O:P,2,FALSE))","v":""},{"$f":"IF(P23=\"\",\"\",MANUAL!$G22)","v":""},{"$f":"IF(P23=\"\",\"\",MANUAL!$F22)","v":""},{"$f":"IF(P23=\"\",\"\",MAINPAGE!$C$10)","v":""},{"$f":"IF(P23=\"\",\"\",MAINPAGE!$D$10)","v":""},{"$f":"IF(P23=\"\",\"\",MANUAL!$H22)","v":""},{"$f":"IF(P23=\"\",\"\",MANUAL!$I22)","v":""},{"$f":"IF(P23=\"\",\"\",MANUAL!$J22)","v":""},{"$f":"IF(P23=\"\",\"\",IF(MANUAL!$K22=\"\",\"\",MANUAL!$K22))","v":""},{"$f":"IF(P23=\"\",\"\",MAINPAGE!$C$12)","v":""},null,null,{"$f":"IF(AD23=\"\",\"\",MAINPAGE!$C$8)","v":""},{"$f":"IF(TRANSPORT!$B22=\"\",\"\",UPPER(TRANSPORT!$B22))","v":""},null,null,null,null,null,null,{"$f":"IF(TRANSPORT!$D22=\"Ad hoc Credit\",\"ADH\",IF(TRANSPORT!$D22=\"Click and Collect credit\",\"COL\",\"\"))","v":""},{"$f":"IF(AD23=\"\",\"\",IF(TRANSPORT!$E22=\"\",\"\",TRANSPORT!$E22))","v":""},{"$f":"IF(AD23=\"\",\"\",IF(TRANSPORT!$F22=\"\",\"\",TRANSPORT!$F22))","v":""},{"$f":"IF(AD23=\"\",\"\",MAINPAGE!$C$12)","v":""},null,""]
[{"$f":"IF(B24=\"\",\"\",IF(ISERROR(MAINPAGE!$D$8),\"#N/A\",MAINPAGE!$C$8))","v":""},{"$f":"IF(ISERROR(ELECTRONIC!$B23),\"\",SUBSTITUTE(ELECTRONIC!$B23,\" \",\"\"))","v":""},{"$f":"IF(B24=\"\",\"\",VLOOKUP(ELECTRONIC!$C23,Reference!N:P,3,FALSE))","v":""},{"$f":"IF(B24=\"\",\"\",VLOOKUP(ELECTRONIC!$E23,Reference!H:J,3,FALSE))","v":""},{"$f":"IF(B24=\"\",\"\",ELECTRONIC!$D23)","v":""},{"$f":"IF(B24=\"\",\"\",MAINPAGE!$C$10)","v":""},{"$f":"IF(B24=\"\",\"\",MAINPAGE!$D$10)","v":""},{"$f":"IF(B24=\"\",\"\",ELECTRONIC!$F23)","v":""},{"$f":"IF(B24=\"\",\"\",ELECTRONIC!$G23)","v":""},{"$f":"IF(B24=\"\",\"\",ELECTRONIC!$H23)","v":""},{"$f":"IF(B24=\"\",\"\",IF(ELECTRONIC!$I23=\"\",\"\",ELECTRONIC!$I23))","v":""},{"$f":"IF(B24=\"\",\"\",MAINPAGE!$C$12)","v":""},null,null,{"$f":"IF(P24=\"\",\"\",IF(ISERROR(MAINPAGE!$D$8),\"#N/A\",MAINPAGE!$C$8))","v":""},{"$f":"IF(MANUAL!$D23=\"\",\"\",UPPER(MANUAL!$D23))","v":""},{"$f":"IF(P24=\"\",\"\",VLOOKUP(MANUAL!$C23,Reference!O:P,2,FALSE))","v":""},{"$f":"IF(P24=\"\",\"\",MANUAL!$G23)","v":""},{"$f":"IF(P24=\"\",\"\",MANUAL!$F23)","v":""},{"$f":"IF(P24=\"\",\"\",MAINPAGE!$C$10)","v":""},{"$f":"IF(P24=\"\",\"\",MAINPAGE!$D$10)","v":""},{"$f":"IF(P24=\"\",\"\",MANUAL!$H23)","v":""},{"$f":"IF(P24=\"\",\"\",MANUAL!$I23)","v":""},{"$f":"IF(P24=\"\",\"\",MANUAL!$J23)","v":""},{"$f":"IF(P24=\"\",\"\",IF(MANUAL!$K23=\"\",\"\",MANUAL!$K23))","v":""},{"$f":"IF(P24=\"\",\"\",MAINPAGE!$C$12)","v":""},null,null,{"$f":"IF(AD24=\"\",\"\",MAINPAGE!$C$8)","v":""},{"$f":"IF(TRANSPORT!$B23=\"\",\"\",UPPER(TRANSPORT!$B23))","v":""},null,null,null,null,null,null,{"$f":"IF(TRANSPORT!$D23=\"Ad hoc Credit\",\"ADH\",IF(TRANSPORT!$D23=\"Click and Collect credit\",\"COL\",\"\"))","v":""},{"$f":"IF(AD24=\"\",\"\",IF(TRANSPORT!$E23=\"\",\"\",TRANSPORT!$E23))","v":""},{"$f":"IF(AD24=\"\",\"\",IF(TRANSPORT!$F23=\"\",\"\",TRANSPORT!$F23))","v":""},{"$f":"IF(AD24=\"\",\"\",MAINPAGE!$C$12)","v":""},null,""]
[{"$f":"IF(B25=\"\",\"\",IF(ISERROR(MAINPAGE!$D$8),\"#N/A\",MAINPAGE!$C$8))","v":""},{"$f":"IF(ISERROR(ELECTRONIC!$B24),\"\",SUBSTITUTE(ELECTRONIC!$B24,\" \",\"\"))","v":""},{"$f":"IF(B25=\"\",\"\",VLOOKUP(ELECTRONIC!$C24,Reference!N:P,3,FALSE))","v":""},{"$f":"IF(B25=\"\",\"\",VLOOKUP(ELECTRONIC!$E24,Reference!H:J,3,FALSE))","v":""},{"$f":"IF(B25=\"\",\"\",ELECTRONIC!$D24)","v":""},{"$f":"IF(B25=\"\",\"\",MAINPAGE!$C$10)","v":""},{"$f":"IF(B25=\"\",\"\",MAINPAGE!$D$10)","v":""},{"$f":"IF(B25=\"\",\"\",ELECTRONIC!$F24)","v":""},{"$f":"IF(B25=\"\",\"\",ELECTRONIC!$G24)","v":""},{"$f":"IF(B25=\"\",\"\",ELECTRONIC!$H24)","v":""},{"$f":"IF(B25=\"\",\"\",IF(ELECTRONIC!$I24=\"\",\"\",ELECTRONIC!$I24))","v":""},{"$f":"IF(B25=\"\",\"\",MAINPAGE!$C$12)","v":""},null,null,{"$f":"IF(P25=\"\",\"\",IF(ISERROR(MAINPAGE!$D$8),\"#N/A\",MAINPAGE!$C$8))","v":""},{"$f":"IF(MANUAL!$D24=\"\",\"\",UPPER(MANUAL!$D24))","v":""},{"$f":"IF(P25=\"\",\"\",VLOOKUP(MANUAL!$C24,Reference!O:P,2,FALSE))","v":""},{"$f":"IF(P25=\"\",\"\",MANUAL!$G24)","v":""},{"$f":"IF(P25=\"\",\"\",MANUAL!$F24)","v":""},{"$f":"IF(P25=\"\",\"\",MAINPAGE!$C$10)","v":""},{"$f":"IF(P25=\"\",\"\",MAINPAGE!$D$10)","v":""},{"$f":"IF(P25=\"\",\"\",MANUAL!$H24)","v":""},{"$f":"IF(P25=\"\",\"\",MANUAL!$I24)","v":""},{"$f":"IF(P25=\"\",\"\",MANUAL!$J24)","v":""},{"$f":"IF(P25=\"\",\"\",IF(MANUAL!$K24=\"\",\"\",MANUAL!$K24))","v":""},{"$f":"IF(P25=\"\",\"\",MAINPAGE!$C$12)","v":""},null,null,{"$f":"IF(AD25=\"\",\"\",MAINPAGE!$C$8)","v":""},{"$f":"IF(TRANSPORT!$B24=\"\",\"\",UPPER(TRANSPORT!$B24))","v":""},null,null,null,null,null,null,{"$f":"IF(TRANSPORT!$D24=\"Ad hoc Credit\",\"ADH\",IF(TRANSPORT!$D24=\"Click and Collect credit\",\"COL\",\"\"))","v":""},{"$f":"IF(AD25=\"\",\"\",IF(TRANSPORT!$E24=\"\",\"\",TRANSPORT!$E24))","v":""},{"$f":"IF(AD25=\"\",\"\",IF(TRANSPORT!$F24=\"\",\"\",TRANSPORT!$F24))","v":""},{"$f":"IF(AD25=\"\",\"\",MAINPAGE!$C$12)","v":""},null,""]
[{"$f":"IF(B26=\"\",\"\",IF(ISERROR(MAINPAGE!$D$8),\"#N/A\",MAINPAGE!$C$8))","v":""},{"$f":"IF(ISERROR(ELECTRONIC!$B25),\"\",SUBSTITUTE(ELECTRONIC!$B25,\" \",\"\"))","v":""},{"$f":"IF(B26=\"\",\"\",VLOOKUP(ELECTRONIC!$C25,Reference!N:P,3,FALSE))","v":""},{"$f":"IF(B26=\"\",\"\",VLOOKUP(ELECTRONIC!$E25,Reference!H:J,3,FALSE))","v":""},{"$f":"IF(B26=\"\",\"\",ELECTRONIC!$D25)","v":""},{"$f":"IF(B26=\"\",\"\",MAINPAGE!$C$10)","v":""},{"$f":"IF(B26=\"\",\"\",MAINPAGE!$D$10)","v":""},{"$f":"IF(B26=\"\",\"\",ELECTRONIC!$F25)","v":""},{"$f":"IF(B26=\"\",\"\",ELECTRONIC!$G25)","v":""},{"$f":"IF(B26=\"\",\"\",ELECTRONIC!$H25)","v":""},{"$f":"IF(B26=\"\",\"\",IF(ELECTRONIC!$I25=\"\",\"\",ELECTRONIC!$I25))","v":""},{"$f":"IF(B26=\"\",\"\",MAINPAGE!$C$12)","v":""},null,null,{"$f":"IF(P26=\"\",\"\",IF(ISERROR(MAINPAGE!$D$8),\"#N/A\",MAINPAGE!$C$8))","v":""},{"$f":"IF(MANUAL!$D25=\"\",\"\",UPPER(MANUAL!$D25))","v":""},{"$f":"IF(P26=\"\",\"\",VLOOKUP(MANUAL!$C25,Reference!O:P,2,FALSE))","v":""},{"$f":"IF(P26=\"\",\"\",MANUAL!$G25)","v":""},{"$f":"IF(P26=\"\",\"\",MANUAL!$F25)","v":""},{"$f":"IF(P26=\"\",\"\",MAINPAGE!$C$10)","v":""},{"$f":"IF(P26=\"\",\"\",MAINPAGE!$D$10)","v":""},{"$f":"IF(P26=\"\",\"\",MANUAL!$H25)","v":""},{"$f":"IF(P26=\"\",\"\",MANUAL!$I25)","v":""},{"$f":"IF(P26=\"\",\"\",MANUAL!$J25)","v":""},{"$f":"IF(P26=\"\",\"\",IF(MANUAL!$K25=\"\",\"\",MANUAL!$K25))","v":""},{"$f":"IF(P26=\"\",\"\",MAINPAGE!$C$12)","v":""},null,null,{"$f":"IF(AD26=\"\",\"\",MAINPAGE!$C$8)","v":""},{"$f":"IF(TRANSPORT!$B25=\"\",\"\",UPPER(TRANSPORT!$B25))","v":""},null,null,null,null,null,null,{"$f":"IF(TRANSPORT!$D25=\"Ad hoc Credit\",\"ADH\",IF(TRANSPORT!$D25=\"Click and Collect credit\",\"COL\",\"\"))","v":""},{"$f":"IF(AD26=\"\",\"\",IF(TRANSPORT!$E25=\"\",\"\",TRANSPORT!$E25))","v":""},{"$f":"IF(AD26=\"\",\"\",IF(TRANSPORT!$F25=\"\",\"\",TRANSPORT!$F25))","v":""},{"$f":"IF(AD26=\"\",\"\",MAINPAGE!$C$12)","v":""},null,""]
[{"$f":"IF(B27=\"\",\"\",IF(ISERROR(MAINPAGE!$D$8),\"#N/A\",MAINPAGE!$C$8))","v":""},{"$f":"IF(ISERROR(ELECTRONIC!$B26),\"\",SUBSTITUTE(ELECTRONIC!$B26,\" \",\"\"))","v":""},{"$f":"IF(B27=\"\",\"\",VLOOKUP(ELECTRONIC!$C26,Reference!N:P,3,FALSE))","v":""},{"$f":"IF(B27=\"\",\"\",VLOOKUP(ELECTRONIC!$E26,Reference!H:J,3,FALSE))","v":""},{"$f":"IF(B27=\"\",\"\",ELECTRONIC!$D26)","v":""},{"$f":"IF(B27=\"\",\"\",MAINPAGE!$C$10)","v":""},{"$f":"IF(B27=\"\",\"\",MAINPAGE!$D$10)","v":""},{"$f":"IF(B27=\"\",\"\",ELECTRONIC!$F26)","v":""},{"$f":"IF(B27=\"\",\"\",ELECTRONIC!$G26)","v":""},{"$f":"IF(B27=\"\",\"\",ELECTRONIC!$H26)","v":""},{"$f":"IF(B27=\"\",\"\",IF(ELECTRONIC!$I26=\"\",\"\",ELECTRONIC!$I26))","v":""},{"$f":"IF(B27=\"\",\"\",MAINPAGE!$C$12)","v":""},null,null,{"$f":"IF(P27=\"\",\"\",IF(ISERROR(MAINPAGE!$D$8),\"#N/A\",MAINPAGE!$C$8))","v":""},{"$f":"IF(MANUAL!$D26=\"\",\"\",UPPER(MANUAL!$D26))","v":""},{"$f":"IF(P27=\"\",\"\",VLOOKUP(MANUAL!$C26,Reference!O:P,2,FALSE))","v":""},{"$f":"IF(P27=\"\",\"\",MANUAL!$G26)","v":""},{"$f":"IF(P27=\"\",\"\",MANUAL!$F26)","v":""},{"$f":"IF(P27=\"\",\"\",MAINPAGE!$C$10)","v":""},{"$f":"IF(P27=\"\",\"\",MAINPAGE!$D$10)","v":""},{"$f":"IF(P27=\"\",\"\",MANUAL!$H26)","v":""},{"$f":"IF(P27=\"\",\"\",MANUAL!$I26)","v":""},{"$f":"IF(P27=\"\",\"\",MANUAL!$J26)","v":""},{"$f":"IF(P27=\"\",\"\",IF(MANUAL!$K26=\"\",\"\",MANUAL!$K26))","v":""},{"$f":"IF(P27=\"\",\"\",MAINPAGE!$C$12)","v":""},null,null,{"$f":"IF(AD27=\"\",\"\",MAINPAGE!$C$8)","v":""},{"$f":"IF(TRANSPORT!$B26=\"\",\"\",UPPER(TRANSPORT!$B26))","v":""},null,null,null,null,null,null,{"$f":"IF(TRANSPORT!$D26=\"Ad hoc Credit\",\"ADH\",IF(TRANSPORT!$D26=\"Click and Collect credit\",\"COL\",\"\"))","v":""},{"$f":"IF(AD27=\"\",\"\",IF(TRANSPORT!$E26=\"\",\"\",TRANSPORT!$E26))","v":""},{"$f":"IF(AD27=\"\",\"\",IF(TRANSPORT!$F26=\"\",\"\",TRANSPORT!$F26))","v":""},{"$f":"IF(AD27=\"\",\"\",MAINPAGE!$C$12)","v":""},null,""]
[null,null,null,null,null,null,null,null,null,null,null,null,null,null,{"$f":"IF(P28=\"\",\"\",IF(ISERROR(MAINPAGE!$D$8),\"#N/A\",MAINPAGE!$C$8))","v":""},{"$f":"IF(MANUAL!$D33=\"\",\"\",UPPER(MANUAL!$D33))","v":""},{"$f":"IF(P28=\"\",\"\",VLOOKUP(MANUAL!$C33,Reference!O:P,2,FALSE))","v":""},{"$f":"IF(P28=\"\",\"\",MANUAL!$G33)","v":""},{"$f":"IF(P28=\"\",\"\",MANUAL!$F33)","v":""},{"$f":"IF(P28=\"\",\"\",MAINPAGE!$C$10)","v":""},{"$f":"IF(P28=\"\",\"\",MAINPAGE!$D$10)","v":""},{"$f":"IF(P28=\"\",\"\",MANUAL!$H33)","v":""},null,{"$f":"IF(P28=\"\",\"\",MANUAL!$J33)","v":""},{"$f":"IF(P28=\"\",\"\",IF(MANUAL!$K33=\"\",\"\",MANUAL!$K33))","v":""},{"$f":"IF(P28=\"\",\"\",MAINPAGE!$C$12)","v":""},null,null,null,null,null,null,null,null,null,null,null,null,null,null,null,""]
[null,null,null,null,null,null,null,null,null,null,null,null,null,null,{"$f":"IF(P29=\"\",\"\",IF(ISERROR(MAINPAGE!$D$8),\"#N/A\",MAINPAGE!$C$8))","v":""},{"$f":"IF(MANUAL!$D34=\"\",\"\",UPPER(MANUAL!$D34))","v":""},{"$f":"IF(P29=\"\",\"\",VLOOKUP(MANUAL!$C34,Reference!O:P,2,FALSE))","v":""},{"$f":"IF(P29=\"\",\"\",MANUAL!$G34)","v":""},{"$f":"IF(P29=\"\",\"\",MANUAL!$F34)","v":""},{"$f":"IF(P29=\"\",\"\",MAINPAGE!$C$10)","v":""},{"$f":"IF(P29=\"\",\"\",MAINPAGE!$D$10)","v":""},{"$f":"IF(P29=\"\",\"\",MANUAL!$H34)","v":""},null,{"$f":"IF(P29=\"\",\"\",MANUAL!$J34)","v":""},{"$f":"IF(P29=\"\",\"\",IF(MANUAL!$K34=\"\",\"\",MANUAL!$K34))","v":""},{"$f":"IF(P29=\"\",\"\",MAINPAGE!$C$12)","v":""},null,null,null,null,null,null,null,null,null,null,null,null,null,null,null,""]

{"sheet":"UnitManual","index":13,"n_rows":52,"n_cols":157,"rows_kept":52,"cut":false,"hidden":true,"merged":[]}
[{"$f":"A26","v":""},null,null,null,null,{"$f":"A27","v":""},null,null,null,null,{"$f":"A28","v":""},null,null,null,null,null,{"$f":"A29","v":""},null,null,null,null,null,{"$f":"A30","v":""},null,null,null,null,null,{"$f":"A31","v":""},null,null,null,null,null,{"$f":"A32","v":""},null,null,null,null,{"$f":"A33","v":""},null,null,null,null,null,{"$f":"A34","v":""},null,null,null,null,null,{"$f":"$A35","v":""},null,null,null,null,null,{"$f":"$A36","v":""},null,null,null,null,null,{"$f":"$A37","v":""},null,null,null,null,null,{"$f":"$A38","v":""},null,null,null,null,null,{"$f":"$A39","v":""},null,null,null,null,null,{"$f":"$A40","v":""},null,null,null,null,null,{"$f":"$A41","v":""},null,null,null,null,null,{"$f":"$A42","v":""},null,null,null,null,null,{"$f":"$A43","v":""},null,null,null,null,null,{"$f":"$A44","v":""},null,null,null,null,null,{"$f":"$A45","v":""},null,null,null,null,null,{"$f":"$A46","v":""},null,null,null,null,null,{"$f":"$A47","v":""},null,null,null,null,null,{"$f":"$A48","v":""},null,null,null,null,null,{"$f":"$A49","v":""},null,null,null,null,null,{"$f":"$A50","v":""},null,null,null,null,null,{"$f":"$A51","v":""},null,null,null,null,null,{"$f":"$A52","v":""}]
[{"$f":"MID(A1,1,1)","v":""},{"$f":"LOOKUP(A2, Reference!$C12:$D36)","v":{"$error":"#N/A"}},8192,{"$f":"B2*C2","v":{"$error":"#N/A"}},null,{"$f":"MID(F1,1,1)","v":""},{"$f":"LOOKUP(F2, Reference!$C12:$D36)","v":{"$error":"#N/A"}},8192,{"$f":"G2*H2","v":{"$error":"#N/A"}},null,{"$f":"MID(K1,1,1)","v":""},{"$f":"LOOKUP(K2, Reference!$C12:$D36)","v":{"$error":"#N/A"}},8192,{"$f":"L2*M2","v":{"$error":"#N/A"}},null,null,{"$f":"MID(Q1,1,1)","v":""},{"$f":"LOOKUP(Q2, Reference!$C12:$D36)","v":{"$error":"#N/A"}},8192,{"$f":"R2*S2","v":{"$error":"#N/A"}},null,null,{"$f":"MID(W1,1,1)","v":""},{"$f":"LOOKUP(W2, Reference!$C12:$D36)","v":{"$error":"#N/A"}},8192,{"$f":"X2*Y2","v":{"$error":"#N/A"}},null,null,{"$f":"MID(AC1,1,1)","v":""},{"$f":"LOOKUP(AC2, Reference!$C12:$D36)","v":{"$error":"#N/A"}},8192,{"$f":"AD2*AE2","v":{"$error":"#N/A"}},null,null,{"$f":"MID(AI1,1,1)","v":""},{"$f":"LOOKUP(AI2, Reference!$C12:$D36)","v":{"$error":"#N/A"}},8192,{"$f":"AJ2*AK2","v":{"$error":"#N/A"}},null,{"$f":"MID(AN1,1,1)","v":""},{"$f":"LOOKUP(AN2, Reference!$C12:$D36)","v":{"$error":"#N/A"}},8192,{"$f":"AO2*AP2","v":{"$error":"#N/A"}},null,null,{"$f":"MID(AT1,1,1)","v":""},{"$f":"LOOKUP(AT2, Reference!$C12:$D36)","v":{"$error":"#N/A"}},8192,{"$f":"AU2*AV2","v":{"$error":"#N/A"}},null,null,{"$f":"MID(AZ1,1,1)","v":""},{"$f":"LOOKUP(AZ2, Reference!$C12:$D36)","v":{"$error":"#N/A"}},8192,{"$f":"BA2*BB2","v":{"$error":"#N/A"}},null,null,{"$f":"MID(BF1,1,1)","v":""},{"$f":"LOOKUP(BF2, Reference!$C12:$D36)","v":{"$error":"#N/A"}},8192,{"$f":"BG2*BH2","v":{"$error":"#N/A"}},null,null,{"$f":"MID(BL1,1,1)","v":""},{"$f":"LOOKUP(BL2, Reference!$C12:$D36)","v":{"$error":"#N/A"}},8192,{"$f":"BM2*BN2","v":{"$error":"#N/A"}},null,null,{"$f":"MID(BR1,1,1)","v":""},{"$f":"LOOKUP(BR2, Reference!$C12:$D36)","v":{"$error":"#N/A"}},8192,{"$f":"BS2*BT2","v":{"$error":"#N/A"}},null,null,{"$f":"MID(BX1,1,1)","v":""},{"$f":"LOOKUP(BX2, Reference!$C12:$D36)","v":{"$error":"#N/A"}},8192,{"$f":"BY2*BZ2","v":{"$error":"#N/A"}},null,null,{"$f":"MID(CD1,1,1)","v":""},{"$f":"LOOKUP(CD2, Reference!$C12:$D36)","v":{"$error":"#N/A"}},8192,{"$f":"CE2*CF2","v":{"$error":"#N/A"}},null,null,{"$f":"MID(CJ1,1,1)","v":""},{"$f":"LOOKUP(CJ2, Reference!$C12:$D36)","v":{"$error":"#N/A"}},8192,{"$f":"CK2*CL2","v":{"$error":"#N/A"}},null,null,{"$f":"MID(CP1,1,1)","v":""},{"$f":"LOOKUP(CP2, Reference!$C12:$D36)","v":{"$error":"#N/A"}},8192,{"$f":"CQ2*CR2","v":{"$error":"#N/A"}},null,null,{"$f":"MID(CV1,1,1)","v":""},{"$f":"LOOKUP(CV2, Reference!$C12:$D36)","v":{"$error":"#N/A"}},8192,{"$f":"CW2*CX2","v":{"$error":"#N/A"}},null,null,{"$f":"MID(DB1,1,1)","v":""},{"$f":"LOOKUP(DB2, Reference!$C12:$D36)","v":{"$error":"#N/A"}},8192,{"$f":"DC2*DD2","v":{"$error":"#N/A"}},null,null,{"$f":"MID(DH1,1,1)","v":""},{"$f":"LOOKUP(DH2, Reference!$C12:$D36)","v":{"$error":"#N/A"}},8192,{"$f":"DI2*DJ2","v":{"$error":"#N/A"}},null,null,{"$f":"MID(DN1,1,1)","v":""},{"$f":"LOOKUP(DN2, Reference!$C12:$D36)","v":{"$error":"#N/A"}},8192,{"$f":"DO2*DP2","v":{"$error":"#N/A"}},null,null,{"$f":"MID(DT1,1,1)","v":""},{"$f":"LOOKUP(DT2, Reference!$C12:$D36)","v":{"$error":"#N/A"}},8192,{"$f":"DU2*DV2","v":{"$error":"#N/A"}},null,null,{"$f":"MID(DZ1,1,1)","v":""},{"$f":"LOOKUP(DZ2, Reference!$C12:$D36)","v":{"$error":"#N/A"}},8192,{"$f":"EA2*EB2","v":{"$error":"#N/A"}},null,null,{"$f":"MID(EF1,1,1)","v":""},{"$f":"LOOKUP(EF2, Reference!$C12:$D36)","v":{"$error":"#N/A"}},8192,{"$f":"EG2*EH2","v":{"$error":"#N/A"}},null,null,{"$f":"MID(EL1,1,1)","v":""},{"$f":"LOOKUP(EL2, Reference!$C12:$D36)","v":{"$error":"#N/A"}},8192,{"$f":"EM2*EN2","v":{"$error":"#N/A"}},null,null,{"$f":"MID(ER1,1,1)","v":""},{"$f":"LOOKUP(ER2, Reference!$C12:$D36)","v":{"$error":"#N/A"}},8192,{"$f":"ES2*ET2","v":{"$error":"#N/A"}},null,null,{"$f":"MID(EX1,1,1)","v":""},{"$f":"LOOKUP(EX2, Reference!$C12:$D36)","v":{"$error":"#N/A"}},8192,{"$f":"EY2*EZ2","v":{"$error":"#N/A"}}]
[{"$f":"MID(A1,2,1)","v":""},{"$f":"A3","v":""},4096,{"$f":"B3*C3","v":{"$error":"#VALUE!"}},null,{"$f":"MID(F1,2,1)","v":""},{"$f":"F3","v":""},4096,{"$f":"G3*H3","v":{"$error":"#VALUE!"}},null,{"$f":"MID(K1,2,1)","v":""},{"$f":"K3","v":""},4096,{"$f":"L3*M3","v":{"$error":"#VALUE!"}},null,null,{"$f":"MID(Q1,2,1)","v":""},{"$f":"Q3","v":""},4096,{"$f":"R3*S3","v":{"$error":"#VALUE!"}},null,null,{"$f":"MID(W1,2,1)","v":""},{"$f":"W3","v":""},4096,{"$f":"X3*Y3","v":{"$error":"#VALUE!"}},null,null,{"$f":"MID(AC1,2,1)","v":""},{"$f":"AC3","v":""},4096,{"$f":"AD3*AE3","v":{"$error":"#VALUE!"}},null,null,{"$f":"MID(AI1,2,1)","v":""},{"$f":"AI3","v":""},4096,{"$f":"AJ3*AK3","v":{"$error":"#VALUE!"}},null,{"$f":"MID(AN1,2,1)","v":""},{"$f":"AN3","v":""},4096,{"$f":"AO3*AP3","v":{"$error":"#VALUE!"}},null,null,{"$f":"MID(AT1,2,1)","v":""},{"$f":"AT3","v":""},4096,{"$f":"AU3*AV3","v":{"$error":"#VALUE!"}},null,null,{"$f":"MID(AZ1,2,1)","v":""},{"$f":"AZ3","v":""},4096,{"$f":"BA3*BB3","v":{"$error":"#VALUE!"}},null,null,{"$f":"MID(BF1,2,1)","v":""},{"$f":"BF3","v":""},4096,{"$f":"BG3*BH3","v":{"$error":"#VALUE!"}},null,null,{"$f":"MID(BL1,2,1)","v":""},{"$f":"BL3","v":""},4096,{"$f":"BM3*BN3","v":{"$error":"#VALUE!"}},null,null,{"$f":"MID(BR1,2,1)","v":""},{"$f":"BR3","v":""},4096,{"$f":"BS3*BT3","v":{"$error":"#VALUE!"}},null,null,{"$f":"MID(BX1,2,1)","v":""},{"$f":"BX3","v":""},4096,{"$f":"BY3*BZ3","v":{"$error":"#VALUE!"}},null,null,{"$f":"MID(CD1,2,1)","v":""},{"$f":"CD3","v":""},4096,{"$f":"CE3*CF3","v":{"$error":"#VALUE!"}},null,null,{"$f":"MID(CJ1,2,1)","v":""},{"$f":"CJ3","v":""},4096,{"$f":"CK3*CL3","v":{"$error":"#VALUE!"}},null,null,{"$f":"MID(CP1,2,1)","v":""},{"$f":"CP3","v":""},4096,{"$f":"CQ3*CR3","v":{"$error":"#VALUE!"}},null,null,{"$f":"MID(CV1,2,1)","v":""},{"$f":"CV3","v":""},4096,{"$f":"CW3*CX3","v":{"$error":"#VALUE!"}},null,null,{"$f":"MID(DB1,2,1)","v":""},{"$f":"DB3","v":""},4096,{"$f":"DC3*DD3","v":{"$error":"#VALUE!"}},null,null,{"$f":"MID(DH1,2,1)","v":""},{"$f":"DH3","v":""},4096,{"$f":"DI3*DJ3","v":{"$error":"#VALUE!"}},null,null,{"$f":"MID(DN1,2,1)","v":""},{"$f":"DN3","v":""},4096,{"$f":"DO3*DP3","v":{"$error":"#VALUE!"}},null,null,{"$f":"MID(DT1,2,1)","v":""},{"$f":"DT3","v":""},4096,{"$f":"DU3*DV3","v":{"$error":"#VALUE!"}},null,null,{"$f":"MID(DZ1,2,1)","v":""},{"$f":"DZ3","v":""},4096,{"$f":"EA3*EB3","v":{"$error":"#VALUE!"}},null,null,{"$f":"MID(EF1,2,1)","v":""},{"$f":"EF3","v":""},4096,{"$f":"EG3*EH3","v":{"$error":"#VALUE!"}},null,null,{"$f":"MID(EL1,2,1)","v":""},{"$f":"EL3","v":""},4096,{"$f":"EM3*EN3","v":{"$error":"#VALUE!"}},null,null,{"$f":"MID(ER1,2,1)","v":""},{"$f":"ER3","v":""},4096,{"$f":"ES3*ET3","v":{"$error":"#VALUE!"}},null,null,{"$f":"MID(EX1,2,1)","v":""},{"$f":"EX3","v":""},4096,{"$f":"EY3*EZ3","v":{"$error":"#VALUE!"}}]
[{"$f":"MID(A1,3,1)","v":""},{"$f":"A4","v":""},2048,{"$f":"B4*C4","v":{"$error":"#VALUE!"}},null,{"$f":"MID(F1,3,1)","v":""},{"$f":"F4","v":""},2048,{"$f":"G4*H4","v":{"$error":"#VALUE!"}},null,{"$f":"MID(K1,3,1)","v":""},{"$f":"K4","v":""},2048,{"$error":"#VALUE!"},null,null,{"$f":"MID(Q1,3,1)","v":""},{"$f":"Q4","v":""},2048,{"$error":"#VALUE!"},null,null,{"$f":"MID(W1,3,1)","v":""},{"$f":"W4","v":""},2048,{"$error":"#VALUE!"},null,null,{"$f":"MID(AC1,3,1)","v":""},{"$f":"AC4","v":""},2048,{"$error":"#VALUE!"},null,null,{"$f":"MID(AI1,3,1)","v":""},{"$f":"AI4","v":""},2048,{"$error":"#VALUE!"},null,{"$f":"MID(AN1,3,1)","v":""},{"$f":"AN4","v":""},2048,{"$f":"AO4*AP4","v":{"$error":"#VALUE!"}},null,null,{"$f":"MID(AT1,3,1)","v":""},{"$f":"AT4","v":""},2048,{"$f":"AU4*AV4","v":{"$error":"#VALUE!"}},null,null,{"$f":"MID(AZ1,3,1)","v":""},{"$f":"AZ4","v":""},2048,{"$f":"BA4*BB4","v":{"$error":"#VALUE!"}},null,null,{"$f":"MID(BF1,3,1)","v":""},{"$f":"BF4","v":""},2048,{"$f":"BG4*BH4","v":{"$error":"#VALUE!"}},null,null,{"$f":"MID(BL1,3,1)","v":""},{"$f":"BL4","v":""},2048,{"$f":"BM4*BN4","v":{"$error":"#VALUE!"}},null,null,{"$f":"MID(BR1,3,1)","v":""},{"$f":"BR4","v":""},2048,{"$f":"BS4*BT4","v":{"$error":"#VALUE!"}},null,null,{"$f":"MID(BX1,3,1)","v":""},{"$f":"BX4","v":""},2048,{"$f":"BY4*BZ4","v":{"$error":"#VALUE!"}},null,null,{"$f":"MID(CD1,3,1)","v":""},{"$f":"CD4","v":""},2048,{"$f":"CE4*CF4","v":{"$error":"#VALUE!"}},null,null,{"$f":"MID(CJ1,3,1)","v":""},{"$f":"CJ4","v":""},2048,{"$f":"CK4*CL4","v":{"$error":"#VALUE!"}},null,null,{"$f":"MID(CP1,3,1)","v":""},{"$f":"CP4","v":""},2048,{"$f":"CQ4*CR4","v":{"$error":"#VALUE!"}},null,null,{"$f":"MID(CV1,3,1)","v":""},{"$f":"CV4","v":""},2048,{"$f":"CW4*CX4","v":{"$error":"#VALUE!"}},null,null,{"$f":"MID(DB1,3,1)","v":""},{"$f":"DB4","v":""},2048,{"$f":"DC4*DD4","v":{"$error":"#VALUE!"}},null,null,{"$f":"MID(DH1,3,1)","v":""},{"$f":"DH4","v":""},2048,{"$f":"DI4*DJ4","v":{"$error":"#VALUE!"}},null,null,{"$f":"MID(DN1,3,1)","v":""},{"$f":"DN4","v":""},2048,{"$f":"DO4*DP4","v":{"$error":"#VALUE!"}},null,null,{"$f":"MID(DT1,3,1)","v":""},{"$f":"DT4","v":""},2048,{"$f":"DU4*DV4","v":{"$error":"#VALUE!"}},null,null,{"$f":"MID(DZ1,3,1)","v":""},{"$f":"DZ4","v":""},2048,{"$f":"EA4*EB4","v":{"$error":"#VALUE!"}},null,null,{"$f":"MID(EF1,3,1)","v":""},{"$f":"EF4","v":""},2048,{"$f":"EG4*EH4","v":{"$error":"#VALUE!"}},null,null,{"$f":"MID(EL1,3,1)","v":""},{"$f":"EL4","v":""},2048,{"$f":"EM4*EN4","v":{"$error":"#VALUE!"}},null,null,{"$f":"MID(ER1,3,1)","v":""},{"$f":"ER4","v":""},2048,{"$f":"ES4*ET4","v":{"$error":"#VALUE!"}},null,null,{"$f":"MID(EX1,3,1)","v":""},{"$f":"EX4","v":""},2048,{"$f":"EY4*EZ4","v":{"$error":"#VALUE!"}}]
[{"$f":"MID(A1,4,1)","v":""},{"$f":"A5","v":""},1024,{"$error":"#VALUE!"},null,{"$f":"MID(F1,4,1)","v":""},{"$f":"F5","v":""},1024,{"$error":"#VALUE!"},null,{"$f":"MID(K1,4,1)","v":""},"",1024,{"$error":"#VALUE!"},null,null,{"$f":"MID(Q1,4,1)","v":""},"",1024,{"$error":"#VALUE!"},null,null,{"$f":"MID(W1,4,1)","v":""},"",1024,{"$error":"#VALUE!"},null,null,{"$f":"MID(AC1,4,1)","v":""},"",1024,{"$error":"#VALUE!"},null,null,{"$f":"MID(AI1,4,1)","v":""},"",1024,{"$error":"#VALUE!"},null,{"$f":"MID(AN1,4,1)","v":""},{"$f":"AN5","v":""},1024,{"$error":"#VALUE!"},null,null,{"$f":"MID(AT1,4,1)","v":""},{"$f":"AT5","v":""},1024,{"$error":"#VALUE!"},null,null,{"$f":"MID(AZ1,4,1)","v":""},{"$f":"AZ5","v":""},1024,{"$error":"#VALUE!"},null,null,{"$f":"MID(BF1,4,1)","v":""},{"$f":"BF5","v":""},1024,{"$error":"#VALUE!"},null,null,{"$f":"MID(BL1,4,1)","v":""},{"$f":"BL5","v":""},1024,{"$error":"#VALUE!"},null,null,{"$f":"MID(BR1,4,1)","v":""},{"$f":"BR5","v":""},1024,{"$error":"#VALUE!"},null,null,{"$f":"MID(BX1,4,1)","v":""},{"$f":"BX5","v":""},1024,{"$error":"#VALUE!"},null,null,{"$f":"MID(CD1,4,1)","v":""},{"$f":"CD5","v":""},1024,{"$error":"#VALUE!"},null,null,{"$f":"MID(CJ1,4,1)","v":""},{"$f":"CJ5","v":""},1024,{"$error":"#VALUE!"},null,null,{"$f":"MID(CP1,4,1)","v":""},{"$f":"CP5","v":""},1024,{"$error":"#VALUE!"},null,null,{"$f":"MID(CV1,4,1)","v":""},{"$f":"CV5","v":""},1024,{"$error":"#VALUE!"},null,null,{"$f":"MID(DB1,4,1)","v":""},{"$f":"DB5","v":""},1024,{"$error":"#VALUE!"},null,null,{"$f":"MID(DH1,4,1)","v":""},{"$f":"DH5","v":""},1024,{"$error":"#VALUE!"},null,null,{"$f":"MID(DN1,4,1)","v":""},{"$f":"DN5","v":""},1024,{"$error":"#VALUE!"},null,null,{"$f":"MID(DT1,4,1)","v":""},{"$f":"DT5","v":""},1024,{"$error":"#VALUE!"},null,null,{"$f":"MID(DZ1,4,1)","v":""},{"$f":"DZ5","v":""},1024,{"$error":"#VALUE!"},null,null,{"$f":"MID(EF1,4,1)","v":""},{"$f":"EF5","v":""},1024,{"$error":"#VALUE!"},null,null,{"$f":"MID(EL1,4,1)","v":""},{"$f":"EL5","v":""},1024,{"$error":"#VALUE!"},null,null,{"$f":"MID(ER1,4,1)","v":""},{"$f":"ER5","v":""},1024,{"$error":"#VALUE!"},null,null,{"$f":"MID(EX1,4,1)","v":""},{"$f":"EX5","v":""},1024,{"$error":"#VALUE!"}]
[{"$f":"MID(A1,5,1)","v":""},"",512,{"$error":"#VALUE!"},null,{"$f":"MID(F1,5,1)","v":""},"",512,{"$error":"#VALUE!"},null,{"$f":"MID(K1,5,1)","v":""},"",512,{"$error":"#VALUE!"},null,null,{"$f":"MID(Q1,5,1)","v":""},"",512,{"$error":"#VALUE!"},null,null,{"$f":"MID(W1,5,1)","v":""},"",512,{"$error":"#VALUE!"},null,null,{"$f":"MID(AC1,5,1)","v":""},"",512,{"$error":"#VALUE!"},null,null,{"$f":"MID(AI1,5,1)","v":""},"",512,{"$error":"#VALUE!"},null,{"$f":"MID(AN1,5,1)","v":""},"",512,{"$error":"#VALUE!"},null,null,{"$f":"MID(AT1,5,1)","v":""},"",512,{"$error":"#VALUE!"},null,null,{"$f":"MID(AZ1,5,1)","v":""},"",512,{"$error":"#VALUE!"},null,null,{"$f":"MID(BF1,5,1)","v":""},"",512,{"$error":"#VALUE!"},null,null,{"$f":"MID(BL1,5,1)","v":""},"",512,{"$error":"#VALUE!"},null,null,{"$f":"MID(BR1,5,1)","v":""},"",512,{"$error":"#VALUE!"},null,null,{"$f":"MID(BX1,5,1)","v":""},"",512,{"$error":"#VALUE!"},null,null,{"$f":"MID(CD1,5,1)","v":""},"",512,{"$error":"#VALUE!"},null,null,{"$f":"MID(CJ1,5,1)","v":""},"",512,{"$error":"#VALUE!"},null,null,{"$f":"MID(CP1,5,1)","v":""},"",512,{"$error":"#VALUE!"},null,null,{"$f":"MID(CV1,5,1)","v":""},"",512,{"$error":"#VALUE!"},null,null,{"$f":"MID(DB1,5,1)","v":""},"",512,{"$error":"#VALUE!"},null,null,{"$f":"MID(DH1,5,1)","v":""},"",512,{"$error":"#VALUE!"},null,null,{"$f":"MID(DN1,5,1)","v":""},"",512,{"$error":"#VALUE!"},null,null,{"$f":"MID(DT1,5,1)","v":""},"",512,{"$error":"#VALUE!"},null,null,{"$f":"MID(DZ1,5,1)","v":""},"",512,{"$error":"#VALUE!"},null,null,{"$f":"MID(EF1,5,1)","v":""},"",512,{"$error":"#VALUE!"},null,null,{"$f":"MID(EL1,5,1)","v":""},"",512,{"$error":"#VALUE!"},null,null,{"$f":"MID(ER1,5,1)","v":""},"",512,{"$error":"#VALUE!"},null,null,{"$f":"MID(EX1,5,1)","v":""},"",512,{"$error":"#VALUE!"}]
[{"$f":"MID(A1,6,1)","v":""},"",256,{"$error":"#VALUE!"},null,{"$f":"MID(F1,6,1)","v":""},"",256,{"$error":"#VALUE!"},null,{"$f":"MID(K1,6,1)","v":""},"",256,{"$error":"#VALUE!"},null,null,{"$f":"MID(Q1,6,1)","v":""},"",256,{"$error":"#VALUE!"},null,null,{"$f":"MID(W1,6,1)","v":""},"",256,{"$error":"#VALUE!"},null,null,{"$f":"MID(AC1,6,1)","v":""},"",256,{"$error":"#VALUE!"},null,null,{"$f":"MID(AI1,6,1)","v":""},"",256,{"$error":"#VALUE!"},null,{"$f":"MID(AN1,6,1)","v":""},"",256,{"$error":"#VALUE!"},null,null,{"$f":"MID(AT1,6,1)","v":""},"",256,{"$error":"#VALUE!"},null,null,{"$f":"MID(AZ1,6,1)","v":""},"",256,{"$error":"#VALUE!"},null,null,{"$f":"MID(BF1,6,1)","v":""},"",256,{"$error":"#VALUE!"},null,null,{"$f":"MID(BL1,6,1)","v":""},"",256,{"$error":"#VALUE!"},null,null,{"$f":"MID(BR1,6,1)","v":""},"",256,{"$error":"#VALUE!"},null,null,{"$f":"MID(BX1,6,1)","v":""},"",256,{"$error":"#VALUE!"},null,null,{"$f":"MID(CD1,6,1)","v":""},"",256,{"$error":"#VALUE!"},null,null,{"$f":"MID(CJ1,6,1)","v":""},"",256,{"$error":"#VALUE!"},null,null,{"$f":"MID(CP1,6,1)","v":""},"",256,{"$error":"#VALUE!"},null,null,{"$f":"MID(CV1,6,1)","v":""},"",256,{"$error":"#VALUE!"},null,null,{"$f":"MID(DB1,6,1)","v":""},"",256,{"$error":"#VALUE!"},null,null,{"$f":"MID(DH1,6,1)","v":""},"",256,{"$error":"#VALUE!"},null,null,{"$f":"MID(DN1,6,1)","v":""},"",256,{"$error":"#VALUE!"},null,null,{"$f":"MID(DT1,6,1)","v":""},"",256,{"$error":"#VALUE!"},null,null,{"$f":"MID(DZ1,6,1)","v":""},"",256,{"$error":"#VALUE!"},null,null,{"$f":"MID(EF1,6,1)","v":""},"",256,{"$error":"#VALUE!"},null,null,{"$f":"MID(EL1,6,1)","v":""},"",256,{"$error":"#VALUE!"},null,null,{"$f":"MID(ER1,6,1)","v":""},"",256,{"$error":"#VALUE!"},null,null,{"$f":"MID(EX1,6,1)","v":""},"",256,{"$error":"#VALUE!"}]
[{"$f":"MID(A1,7,1)","v":""},"",128,{"$error":"#VALUE!"},null,{"$f":"MID(F1,7,1)","v":""},"",128,{"$error":"#VALUE!"},null,{"$f":"MID(K1,7,1)","v":""},"",128,{"$error":"#VALUE!"},null,null,{"$f":"MID(Q1,7,1)","v":""},"",128,{"$error":"#VALUE!"},null,null,{"$f":"MID(W1,7,1)","v":""},"",128,{"$error":"#VALUE!"},null,null,{"$f":"MID(AC1,7,1)","v":""},"",128,{"$error":"#VALUE!"},null,null,{"$f":"MID(AI1,7,1)","v":""},"",128,{"$error":"#VALUE!"},null,{"$f":"MID(AN1,7,1)","v":""},"",128,{"$error":"#VALUE!"},null,null,{"$f":"MID(AT1,7,1)","v":""},"",128,{"$error":"#VALUE!"},null,null,{"$f":"MID(AZ1,7,1)","v":""},"",128,{"$error":"#VALUE!"},null,null,{"$f":"MID(BF1,7,1)","v":""},"",128,{"$error":"#VALUE!"},null,null,{"$f":"MID(BL1,7,1)","v":""},"",128,{"$error":"#VALUE!"},null,null,{"$f":"MID(BR1,7,1)","v":""},"",128,{"$error":"#VALUE!"},null,null,{"$f":"MID(BX1,7,1)","v":""},"",128,{"$error":"#VALUE!"},null,null,{"$f":"MID(CD1,7,1)","v":""},"",128,{"$error":"#VALUE!"},null,null,{"$f":"MID(CJ1,7,1)","v":""},"",128,{"$error":"#VALUE!"},null,null,{"$f":"MID(CP1,7,1)","v":""},"",128,{"$error":"#VALUE!"},null,null,{"$f":"MID(CV1,7,1)","v":""},"",128,{"$error":"#VALUE!"},null,null,{"$f":"MID(DB1,7,1)","v":""},"",128,{"$error":"#VALUE!"},null,null,{"$f":"MID(DH1,7,1)","v":""},"",128,{"$error":"#VALUE!"},null,null,{"$f":"MID(DN1,7,1)","v":""},"",128,{"$error":"#VALUE!"},null,null,{"$f":"MID(DT1,7,1)","v":""},"",128,{"$error":"#VALUE!"},null,null,{"$f":"MID(DZ1,7,1)","v":""},"",128,{"$error":"#VALUE!"},null,null,{"$f":"MID(EF1,7,1)","v":""},"",128,{"$error":"#VALUE!"},null,null,{"$f":"MID(EL1,7,1)","v":""},"",128,{"$error":"#VALUE!"},null,null,{"$f":"MID(ER1,7,1)","v":""},"",128,{"$error":"#VALUE!"},null,null,{"$f":"MID(EX1,7,1)","v":""},"",128,{"$error":"#VALUE!"}]
[{"$f":"MID(A1,8,1)","v":""},"",64,{"$error":"#VALUE!"},null,{"$f":"MID(F1,8,1)","v":""},"",64,{"$error":"#VALUE!"},null,{"$f":"MID(K1,8,1)","v":""},"",64,{"$error":"#VALUE!"},null,null,{"$f":"MID(Q1,8,1)","v":""},"",64,{"$error":"#VALUE!"},null,null,{"$f":"MID(W1,8,1)","v":""},"",64,{"$error":"#VALUE!"},null,null,{"$f":"MID(AC1,8,1)","v":""},"",64,{"$error":"#VALUE!"},null,null,{"$f":"MID(AI1,8,1)","v":""},"",64,{"$error":"#VALUE!"},null,{"$f":"MID(AN1,8,1)","v":""},"",64,{"$error":"#VALUE!"},null,null,{"$f":"MID(AT1,8,1)","v":""},"",64,{"$error":"#VALUE!"},null,null,{"$f":"MID(AZ1,8,1)","v":""},"",64,{"$error":"#VALUE!"},null,null,{"$f":"MID(BF1,8,1)","v":""},"",64,{"$error":"#VALUE!"},null,null,{"$f":"MID(BL1,8,1)","v":""},"",64,{"$error":"#VALUE!"},null,null,{"$f":"MID(BR1,8,1)","v":""},"",64,{"$error":"#VALUE!"},null,null,{"$f":"MID(BX1,8,1)","v":""},"",64,{"$error":"#VALUE!"},null,null,{"$f":"MID(CD1,8,1)","v":""},"",64,{"$error":"#VALUE!"},null,null,{"$f":"MID(CJ1,8,1)","v":""},"",64,{"$error":"#VALUE!"},null,null,{"$f":"MID(CP1,8,1)","v":""},"",64,{"$error":"#VALUE!"},null,null,{"$f":"MID(CV1,8,1)","v":""},"",64,{"$error":"#VALUE!"},null,null,{"$f":"MID(DB1,8,1)","v":""},"",64,{"$error":"#VALUE!"},null,null,{"$f":"MID(DH1,8,1)","v":""},"",64,{"$error":"#VALUE!"},null,null,{"$f":"MID(DN1,8,1)","v":""},"",64,{"$error":"#VALUE!"},null,null,{"$f":"MID(DT1,8,1)","v":""},"",64,{"$error":"#VALUE!"},null,null,{"$f":"MID(DZ1,8,1)","v":""},"",64,{"$error":"#VALUE!"},null,null,{"$f":"MID(EF1,8,1)","v":""},"",64,{"$error":"#VALUE!"},null,null,{"$f":"MID(EL1,8,1)","v":""},"",64,{"$error":"#VALUE!"},null,null,{"$f":"MID(ER1,8,1)","v":""},"",64,{"$error":"#VALUE!"},null,null,{"$f":"MID(EX1,8,1)","v":""},"",64,{"$error":"#VALUE!"}]
[{"$f":"MID(A1,9,1)","v":""},"",32,{"$error":"#VALUE!"},null,{"$f":"MID(F1,9,1)","v":""},"",32,{"$error":"#VALUE!"},null,{"$f":"MID(K1,9,1)","v":""},"",32,{"$error":"#VALUE!"},null,null,{"$f":"MID(Q1,9,1)","v":""},"",32,{"$error":"#VALUE!"},null,null,{"$f":"MID(W1,9,1)","v":""},"",32,{"$error":"#VALUE!"},null,null,{"$f":"MID(AC1,9,1)","v":""},"",32,{"$error":"#VALUE!"},null,null,{"$f":"MID(AI1,9,1)","v":""},"",32,{"$error":"#VALUE!"},null,{"$f":"MID(AN1,9,1)","v":""},"",32,{"$error":"#VALUE!"},null,null,{"$f":"MID(AT1,9,1)","v":""},"",32,{"$error":"#VALUE!"},null,null,{"$f":"MID(AZ1,9,1)","v":""},"",32,{"$error":"#VALUE!"},null,null,{"$f":"MID(BF1,9,1)","v":""},"",32,{"$error":"#VALUE!"},null,null,{"$f":"MID(BL1,9,1)","v":""},"",32,{"$error":"#VALUE!"},null,null,{"$f":"MID(BR1,9,1)","v":""},"",32,{"$error":"#VALUE!"},null,null,{"$f":"MID(BX1,9,1)","v":""},"",32,{"$error":"#VALUE!"},null,null,{"$f":"MID(CD1,9,1)","v":""},"",32,{"$error":"#VALUE!"},null,null,{"$f":"MID(CJ1,9,1)","v":""},"",32,{"$error":"#VALUE!"},null,null,{"$f":"MID(CP1,9,1)","v":""},"",32,{"$error":"#VALUE!"},null,null,{"$f":"MID(CV1,9,1)","v":""},"",32,{"$error":"#VALUE!"},null,null,{"$f":"MID(DB1,9,1)","v":""},"",32,{"$error":"#VALUE!"},null,null,{"$f":"MID(DH1,9,1)","v":""},"",32,{"$error":"#VALUE!"},null,null,{"$f":"MID(DN1,9,1)","v":""},"",32,{"$error":"#VALUE!"},null,null,{"$f":"MID(DT1,9,1)","v":""},"",32,{"$error":"#VALUE!"},null,null,{"$f":"MID(DZ1,9,1)","v":""},"",32,{"$error":"#VALUE!"},null,null,{"$f":"MID(EF1,9,1)","v":""},"",32,{"$error":"#VALUE!"},null,null,{"$f":"MID(EL1,9,1)","v":""},"",32,{"$error":"#VALUE!"},null,null,{"$f":"MID(ER1,9,1)","v":""},"",32,{"$error":"#VALUE!"},null,null,{"$f":"MID(EX1,9,1)","v":""},"",32,{"$error":"#VALUE!"}]
[{"$f":"MID(A1,10,1)","v":""},"",16,{"$error":"#VALUE!"},null,{"$f":"MID(F1,10,1)","v":""},"",16,{"$error":"#VALUE!"},null,{"$f":"MID(K1,10,1)","v":""},"",16,{"$error":"#VALUE!"},null,null,{"$f":"MID(Q1,10,1)","v":""},"",16,{"$error":"#VALUE!"},null,null,{"$f":"MID(W1,10,1)","v":""},"",16,{"$error":"#VALUE!"},null,null,{"$f":"MID(AC1,10,1)","v":""},"",16,{"$error":"#VALUE!"},null,null,{"$f":"MID(AI1,10,1)","v":""},"",16,{"$error":"#VALUE!"},null,{"$f":"MID(AN1,10,1)","v":""},"",16,{"$error":"#VALUE!"},null,null,{"$f":"MID(AT1,10,1)","v":""},"",16,{"$error":"#VALUE!"},null,null,{"$f":"MID(AZ1,10,1)","v":""},"",16,{"$error":"#VALUE!"},null,null,{"$f":"MID(BF1,10,1)","v":""},"",16,{"$error":"#VALUE!"},null,null,{"$f":"MID(BL1,10,1)","v":""},"",16,{"$error":"#VALUE!"},null,null,{"$f":"MID(BR1,10,1)","v":""},"",16,{"$error":"#VALUE!"},null,null,{"$f":"MID(BX1,10,1)","v":""},"",16,{"$error":"#VALUE!"},null,null,{"$f":"MID(CD1,10,1)","v":""},"",16,{"$error":"#VALUE!"},null,null,{"$f":"MID(CJ1,10,1)","v":""},"",16,{"$error":"#VALUE!"},null,null,{"$f":"MID(CP1,10,1)","v":""},"",16,{"$error":"#VALUE!"},null,null,{"$f":"MID(CV1,10,1)","v":""},"",16,{"$error":"#VALUE!"},null,null,{"$f":"MID(DB1,10,1)","v":""},"",16,{"$error":"#VALUE!"},null,null,{"$f":"MID(DH1,10,1)","v":""},"",16,{"$error":"#VALUE!"},null,null,{"$f":"MID(DN1,10,1)","v":""},"",16,{"$error":"#VALUE!"},null,null,{"$f":"MID(DT1,10,1)","v":""},"",16,{"$error":"#VALUE!"},null,null,{"$f":"MID(DZ1,10,1)","v":""},"",16,{"$error":"#VALUE!"},null,null,{"$f":"MID(EF1,10,1)","v":""},"",16,{"$error":"#VALUE!"},null,null,{"$f":"MID(EL1,10,1)","v":""},"",16,{"$error":"#VALUE!"},null,null,{"$f":"MID(ER1,10,1)","v":""},"",16,{"$error":"#VALUE!"},null,null,{"$f":"MID(EX1,10,1)","v":""},"",16,{"$error":"#VALUE!"}]
[{"$f":"MID(A1,11,1)","v":""},"",8,{"$error":"#VALUE!"},null,{"$f":"MID(F1,11,1)","v":""},"",8,{"$error":"#VALUE!"},null,{"$f":"MID(K1,11,1)","v":""},"",8,{"$error":"#VALUE!"},null,null,{"$f":"MID(Q1,11,1)","v":""},"",8,{"$error":"#VALUE!"},null,null,{"$f":"MID(W1,11,1)","v":""},"",8,{"$error":"#VALUE!"},null,null,{"$f":"MID(AC1,11,1)","v":""},"",8,{"$error":"#VALUE!"},null,null,{"$f":"MID(AI1,11,1)","v":""},"",8,{"$error":"#VALUE!"},null,{"$f":"MID(AN1,11,1)","v":""},"",8,{"$error":"#VALUE!"},null,null,{"$f":"MID(AT1,11,1)","v":""},"",8,{"$error":"#VALUE!"},null,null,{"$f":"MID(AZ1,11,1)","v":""},"",8,{"$error":"#VALUE!"},null,null,{"$f":"MID(BF1,11,1)","v":""},"",8,{"$error":"#VALUE!"},null,null,{"$f":"MID(BL1,11,1)","v":""},"",8,{"$error":"#VALUE!"},null,null,{"$f":"MID(BR1,11,1)","v":""},"",8,{"$error":"#VALUE!"},null,null,{"$f":"MID(BX1,11,1)","v":""},"",8,{"$error":"#VALUE!"},null,null,{"$f":"MID(CD1,11,1)","v":""},"",8,{"$error":"#VALUE!"},null,null,{"$f":"MID(CJ1,11,1)","v":""},"",8,{"$error":"#VALUE!"},null,null,{"$f":"MID(CP1,11,1)","v":""},"",8,{"$error":"#VALUE!"},null,null,{"$f":"MID(CV1,11,1)","v":""},"",8,{"$error":"#VALUE!"},null,null,{"$f":"MID(DB1,11,1)","v":""},"",8,{"$error":"#VALUE!"},null,null,{"$f":"MID(DH1,11,1)","v":""},"",8,{"$error":"#VALUE!"},null,null,{"$f":"MID(DN1,11,1)","v":""},"",8,{"$error":"#VALUE!"},null,null,{"$f":"MID(DT1,11,1)","v":""},"",8,{"$error":"#VALUE!"},null,null,{"$f":"MID(DZ1,11,1)","v":""},"",8,{"$error":"#VALUE!"},null,null,{"$f":"MID(EF1,11,1)","v":""},"",8,{"$error":"#VALUE!"},null,null,{"$f":"MID(EL1,11,1)","v":""},"",8,{"$error":"#VALUE!"},null,null,{"$f":"MID(ER1,11,1)","v":""},"",8,{"$error":"#VALUE!"},null,null,{"$f":"MID(EX1,11,1)","v":""},"",8,{"$error":"#VALUE!"}]
[{"$f":"MID(A1,12,1)","v":""},"",4,{"$error":"#VALUE!"},null,{"$f":"MID(F1,12,1)","v":""},"",4,{"$error":"#VALUE!"},null,{"$f":"MID(K1,12,1)","v":""},"",4,{"$error":"#VALUE!"},null,null,{"$f":"MID(Q1,12,1)","v":""},"",4,{"$error":"#VALUE!"},null,null,{"$f":"MID(W1,12,1)","v":""},"",4,{"$error":"#VALUE!"},null,null,{"$f":"MID(AC1,12,1)","v":""},"",4,{"$error":"#VALUE!"},null,null,{"$f":"MID(AI1,12,1)","v":""},"",4,{"$error":"#VALUE!"},null,{"$f":"MID(AN1,12,1)","v":""},"",4,{"$error":"#VALUE!"},null,null,{"$f":"MID(AT1,12,1)","v":""},"",4,{"$error":"#VALUE!"},null,null,{"$f":"MID(AZ1,12,1)","v":""},"",4,{"$error":"#VALUE!"},null,null,{"$f":"MID(BF1,12,1)","v":""},"",4,{"$error":"#VALUE!"},null,null,{"$f":"MID(BL1,12,1)","v":""},"",4,{"$error":"#VALUE!"},null,null,{"$f":"MID(BR1,12,1)","v":""},"",4,{"$error":"#VALUE!"},null,null,{"$f":"MID(BX1,12,1)","v":""},"",4,{"$error":"#VALUE!"},null,null,{"$f":"MID(CD1,12,1)","v":""},"",4,{"$error":"#VALUE!"},null,null,{"$f":"MID(CJ1,12,1)","v":""},"",4,{"$error":"#VALUE!"},null,null,{"$f":"MID(CP1,12,1)","v":""},"",4,{"$error":"#VALUE!"},null,null,{"$f":"MID(CV1,12,1)","v":""},"",4,{"$error":"#VALUE!"},null,null,{"$f":"MID(DB1,12,1)","v":""},"",4,{"$error":"#VALUE!"},null,null,{"$f":"MID(DH1,12,1)","v":""},"",4,{"$error":"#VALUE!"},null,null,{"$f":"MID(DN1,12,1)","v":""},"",4,{"$error":"#VALUE!"},null,null,{"$f":"MID(DT1,12,1)","v":""},"",4,{"$error":"#VALUE!"},null,null,{"$f":"MID(DZ1,12,1)","v":""},"",4,{"$error":"#VALUE!"},null,null,{"$f":"MID(EF1,12,1)","v":""},"",4,{"$error":"#VALUE!"},null,null,{"$f":"MID(EL1,12,1)","v":""},"",4,{"$error":"#VALUE!"},null,null,{"$f":"MID(ER1,12,1)","v":""},"",4,{"$error":"#VALUE!"},null,null,{"$f":"MID(EX1,12,1)","v":""},"",4,{"$error":"#VALUE!"}]
[{"$f":"MID(A1,13,1)","v":""},"",2,{"$f":"B14*C14","v":{"$error":"#VALUE!"}},null,{"$f":"MID(F1,13,1)","v":""},"",2,{"$error":"#VALUE!"},null,{"$f":"MID(K1,13,1)","v":""},"",2,{"$error":"#VALUE!"},null,null,{"$f":"MID(Q1,13,1)","v":""},"",2,{"$error":"#VALUE!"},null,null,{"$f":"MID(W1,13,1)","v":""},"",2,{"$error":"#VALUE!"},null,null,{"$f":"MID(AC1,13,1)","v":""},"",2,{"$error":"#VALUE!"},null,null,{"$f":"MID(AI1,13,1)","v":""},"",2,{"$error":"#VALUE!"},null,{"$f":"MID(AN1,13,1)","v":""},"",2,{"$error":"#VALUE!"},null,null,{"$f":"MID(AT1,13,1)","v":""},"",2,{"$error":"#VALUE!"},null,null,{"$f":"MID(AZ1,13,1)","v":""},"",2,{"$error":"#VALUE!"},null,null,{"$f":"MID(BF1,13,1)","v":""},"",2,{"$error":"#VALUE!"},null,null,{"$f":"MID(BL1,13,1)","v":""},"",2,{"$error":"#VALUE!"},null,null,{"$f":"MID(BR1,13,1)","v":""},"",2,{"$error":"#VALUE!"},null,null,{"$f":"MID(BX1,13,1)","v":""},"",2,{"$error":"#VALUE!"},null,null,{"$f":"MID(CD1,13,1)","v":""},"",2,{"$error":"#VALUE!"},null,null,{"$f":"MID(CJ1,13,1)","v":""},"",2,{"$error":"#VALUE!"},null,null,{"$f":"MID(CP1,13,1)","v":""},"",2,{"$error":"#VALUE!"},null,null,{"$f":"MID(CV1,13,1)","v":""},"",2,{"$error":"#VALUE!"},null,null,{"$f":"MID(DB1,13,1)","v":""},"",2,{"$error":"#VALUE!"},null,null,{"$f":"MID(DH1,13,1)","v":""},"",2,{"$error":"#VALUE!"},null,null,{"$f":"MID(DN1,13,1)","v":""},"",2,{"$error":"#VALUE!"},null,null,{"$f":"MID(DT1,13,1)","v":""},"",2,{"$error":"#VALUE!"},null,null,{"$f":"MID(DZ1,13,1)","v":""},"",2,{"$error":"#VALUE!"},null,null,{"$f":"MID(EF1,13,1)","v":""},"",2,{"$error":"#VALUE!"},null,null,{"$f":"MID(EL1,13,1)","v":""},"",2,{"$error":"#VALUE!"},null,null,{"$f":"MID(ER1,13,1)","v":""},"",2,{"$error":"#VALUE!"},null,null,{"$f":"MID(EX1,13,1)","v":""},"",2,{"$error":"#VALUE!"}]
["Blocker Line"]
["Blocker Line",{"$f":"SUM(D2:D14)","v":{"$error":"#N/A"}},{"$f":"B16/37","v":{"$error":"#N/A"}},null,null,null,{"$f":"SUM(I2:I14)","v":{"$error":"#N/A"}},{"$f":"G16/37","v":{"$error":"#N/A"}},null,null,null,{"$f":"SUM(N2:N14)","v":{"$error":"#N/A"}},{"$f":"L16/37","v":{"$error":"#N/A"}},null,null,null,null,{"$f":"SUM(T2:T14)","v":{"$error":"#N/A"}},{"$f":"R16/37","v":{"$error":"#N/A"}},null,null,null,null,{"$f":"SUM(Z2:Z14)","v":{"$error":"#N/A"}},{"$f":"X16/37","v":{"$error":"#N/A"}},null,null,null,null,{"$f":"SUM(AF2:AF14)","v":{"$error":"#N/A"}},{"$f":"AD16/37","v":{"$error":"#N/A"}},null,null,null,null,{"$f":"SUM(AL2:AL14)","v":{"$error":"#N/A"}},{"$f":"AJ16/37","v":{"$error":"#N/A"}},null,null,null,{"$f":"SUM(AQ2:AQ14)","v":{"$error":"#N/A"}},{"$f":"AO16/37","v":{"$error":"#N/A"}},null,null,null,null,{"$f":"SUM(AW2:AW14)","v":{"$error":"#N/A"}},{"$f":"AU16/37","v":{"$error":"#N/A"}},null,null,null,null,{"$f":"SUM(BC2:BC14)","v":{"$error":"#N/A"}},{"$f":"BA16/37","v":{"$error":"#N/A"}},null,null,null,null,{"$f":"SUM(BI2:BI14)","v":{"$error":"#N/A"}},{"$f":"BG16/37","v":{"$error":"#N/A"}},null,null,null,null,{"$f":"SUM(BO2:BO14)","v":{"$error":"#N/A"}},{"$f":"BM16/37","v":{"$error":"#N/A"}},null,null,null,null,{"$f":"SUM(BU2:BU14)","v":{"$error":"#N/A"}},{"$f":"BS16/37","v":{"$error":"#N/A"}},null,null,null,null,{"$f":"SUM(CA2:CA14)","v":{"$error":"#N/A"}},{"$f":"BY16/37","v":{"$error":"#N/A"}},null,null,null,null,{"$f":"SUM(CG2:CG14)","v":{"$error":"#N/A"}},{"$f":"CE16/37","v":{"$error":"#N/A"}},null,null,null,null,{"$f":"SUM(CM2:CM14)","v":{"$error":"#N/A"}},{"$f":"CK16/37","v":{"$error":"#N/A"}},null,null,null,null,{"$f":"SUM(CS2:CS14)","v":{"$error":"#N/A"}},{"$f":"CQ16/37","v":{"$error":"#N/A"}},null,null,null,null,{"$f":"SUM(CY2:CY14)","v":{"$error":"#N/A"}},{"$f":"CW16/37","v":{"$error":"#N/A"}},null,null,null,null,{"$f":"SUM(DE2:DE14)","v":{"$error":"#N/A"}},{"$f":"DC16/37","v":{"$error":"#N/A"}},null,null,null,null,{"$f":"SUM(DK2:DK14)","v":{"$error":"#N/A"}},{"$f":"DI16/37","v":{"$error":"#N/A"}},null,null,null,null,{"$f":"SUM(DQ2:DQ14)","v":{"$error":"#N/A"}},{"$f":"DO16/37","v":{"$error":"#N/A"}},null,null,null,null,{"$f":"SUM(DW2:DW14)","v":{"$error":"#N/A"}},{"$f":"DU16/37","v":{"$error":"#N/A"}},null,null,null,null,{"$f":"SUM(EC2:EC14)","v":{"$error":"#N/A"}},{"$f":"EA16/37","v":{"$error":"#N/A"}},null,null,null,null,{"$f":"SUM(EI2:EI14)","v":{"$error":"#N/A"}},{"$f":"EG16/37","v":{"$error":"#N/A"}},null,null,null,null,{"$f":"SUM(EO2:EO14)","v":{"$error":"#N/A"}},{"$f":"EM16/37","v":{"$error":"#N/A"}},null,null,null,null,{"$f":"SUM(EU2:EU14)","v":{"$error":"#N/A"}},{"$f":"ES16/37","v":{"$error":"#N/A"}},null,null,null,null,{"$f":"SUM(FA2:FA14)","v":{"$error":"#N/A"}},{"$f":"EY16/37","v":{"$error":"#N/A"}}]
["Blocker Line",null,{"$f":"ROUNDDOWN(C16, 0)","v":{"$error":"#N/A"}},null,null,null,null,{"$f":"ROUNDDOWN(H16, 0)","v":{"$error":"#N/A"}},null,null,null,null,{"$f":"ROUNDDOWN(M16, 0)","v":{"$error":"#N/A"}},null,null,null,null,null,{"$f":"ROUNDDOWN(S16, 0)","v":{"$error":"#N/A"}},null,null,null,null,null,{"$f":"ROUNDDOWN(Y16, 0)","v":{"$error":"#N/A"}},null,null,null,null,null,{"$f":"ROUNDDOWN(AE16, 0)","v":{"$error":"#N/A"}},null,null,null,null,null,{"$f":"ROUNDDOWN(AK16, 0)","v":{"$error":"#N/A"}},null,null,null,null,{"$f":"ROUNDDOWN(AP16, 0)","v":{"$error":"#N/A"}},null,null,null,null,null,{"$f":"ROUNDDOWN(AV16, 0)","v":{"$error":"#N/A"}},null,null,null,null,null,{"$f":"ROUNDDOWN(BB16, 0)","v":{"$error":"#N/A"}},null,null,null,null,null,{"$f":"ROUNDDOWN(BH16, 0)","v":{"$error":"#N/A"}},null,null,null,null,null,{"$f":"ROUNDDOWN(BN16, 0)","v":{"$error":"#N/A"}},null,null,null,null,null,{"$f":"ROUNDDOWN(BT16, 0)","v":{"$error":"#N/A"}},null,null,null,null,null,{"$f":"ROUNDDOWN(BZ16, 0)","v":{"$error":"#N/A"}},null,null,null,null,null,{"$f":"ROUNDDOWN(CF16, 0)","v":{"$error":"#N/A"}},null,null,null,null,null,{"$f":"ROUNDDOWN(CL16, 0)","v":{"$error":"#N/A"}},null,null,null,null,null,{"$f":"ROUNDDOWN(CR16, 0)","v":{"$error":"#N/A"}},null,null,null,null,null,{"$f":"ROUNDDOWN(CX16, 0)","v":{"$error":"#N/A"}},null,null,null,null,null,{"$f":"ROUNDDOWN(DD16, 0)","v":{"$error":"#N/A"}},null,null,null,null,null,{"$f":"ROUNDDOWN(DJ16, 0)","v":{"$error":"#N/A"}},null,null,null,null,null,{"$f":"ROUNDDOWN(DP16, 0)","v":{"$error":"#N/A"}},null,null,null,null,null,{"$f":"ROUNDDOWN(DV16, 0)","v":{"$error":"#N/A"}},null,null,null,null,null,{"$f":"ROUNDDOWN(EB16, 0)","v":{"$error":"#N/A"}},null,null,null,null,null,{"$f":"ROUNDDOWN(EH16, 0)","v":{"$error":"#N/A"}},null,null,null,null,null,{"$f":"ROUNDDOWN(EN16, 0)","v":{"$error":"#N/A"}},null,null,null,null,null,{"$f":"ROUNDDOWN(ET16, 0)","v":{"$error":"#N/A"}},null,null,null,null,null,{"$f":"ROUNDDOWN(EZ16, 0)","v":{"$error":"#N/A"}}]
["Blocker Line",{"$f":"C17*37","v":{"$error":"#N/A"}},null,null,null,null,{"$f":"H17*37","v":{"$error":"#N/A"}},null,null,null,null,{"$f":"M17*37","v":{"$error":"#N/A"}},null,null,null,null,null,{"$f":"S17*37","v":{"$error":"#N/A"}},null,null,null,null,null,{"$f":"Y17*37","v":{"$error":"#N/A"}},null,null,null,null,null,{"$f":"AE17*37","v":{"$error":"#N/A"}},null,null,null,null,null,{"$f":"AK17*37","v":{"$error":"#N/A"}},null,null,null,null,{"$f":"AP17*37","v":{"$error":"#N/A"}},null,null,null,null,null,{"$f":"AV17*37","v":{"$error":"#N/A"}},null,null,null,null,null,{"$f":"BB17*37","v":{"$error":"#N/A"}},null,null,null,null,null,{"$f":"BH17*37","v":{"$error":"#N/A"}},null,null,null,null,null,{"$f":"BN17*37","v":{"$error":"#N/A"}},null,null,null,null,null,{"$f":"BT17*37","v":{"$error":"#N/A"}},null,null,null,null,null,{"$f":"BZ17*37","v":{"$error":"#N/A"}},null,null,null,null,null,{"$f":"CF17*37","v":{"$error":"#N/A"}},null,null,null,null,null,{"$f":"CL17*37","v":{"$error":"#N/A"}},null,null,null,null,null,{"$f":"CR17*37","v":{"$error":"#N/A"}},null,null,null,null,null,{"$f":"CX17*37","v":{"$error":"#N/A"}},null,null,null,null,null,{"$f":"DD17*37","v":{"$error":"#N/A"}},null,null,null,null,null,{"$f":"DJ17*37","v":{"$error":"#N/A"}},null,null,null,null,null,{"$f":"DP17*37","v":{"$error":"#N/A"}},null,null,null,null,null,{"$f":"DV17*37","v":{"$error":"#N/A"}},null,null,null,null,null,{"$f":"EB17*37","v":{"$error":"#N/A"}},null,null,null,null,null,{"$f":"EH17*37","v":{"$error":"#N/A"}},null,null,null,null,null,{"$f":"EN17*37","v":{"$error":"#N/A"}},null,null,null,null,null,{"$f":"ET17*37","v":{"$error":"#N/A"}},null,null,null,null,null,{"$f":"EZ17*37","v":{"$error":"#N/A"}}]
["Blocker Line"]
["Blocker Line",{"$f":"B16-B18","v":{"$error":"#N/A"}},null,{"$f":"CONCATENATE(UPPER(MID(A1,2,4)),\" \",UPPER(MID(A1,6,3)),\" \",UPPER(MID(A1,9,3)),\" \",UPPER(MID(A1,12,3)),\" \",UPPER(MID(C23,1,1)))","v":{"$error":"#N/A"}},null,null,{"$f":"G16-G18","v":{"$error":"#N/A"}},null,{"$f":"CONCATENATE(UPPER(MID(F1,2,4)),\" \",UPPER(MID(F1,6,3)),\" \",UPPER(MID(F1,9,3)),\" \",UPPER(MID(F1,12,3)),\" \",UPPER(MID(H23,1,1)))","v":{"$error":"#N/A"}},null,null,{"$f":"L16-L18","v":{"$error":"#N/A"}},null,{"$f":"CONCATENATE(UPPER(MID(K1,2,4)),\" \",UPPER(MID(K1,6,3)),\" \",UPPER(MID(K1,9,3)),\" \",UPPER(MID(K1,12,3)),\" \",UPPER(MID(M23,1,1)))","v":{"$error":"#N/A"}},null,null,null,{"$f":"R16-R18","v":{"$error":"#N/A"}},null,{"$f":"CONCATENATE(UPPER(MID(Q1,2,4)),\" \",UPPER(MID(Q1,6,3)),\" \",UPPER(MID(Q1,9,3)),\" \",UPPER(MID(Q1,12,3)),\" \",UPPER(MID(S23,1,1)))","v":{"$error":"#N/A"}},null,null,null,{"$f":"X16-X18","v":{"$error":"#N/A"}},null,{"$f":"CONCATENATE(UPPER(MID(W1,2,4)),\" \",UPPER(MID(W1,6,3)),\" \",UPPER(MID(W1,9,3)),\" \",UPPER(MID(W1,12,3)),\" \",UPPER(MID(Y23,1,1)))","v":{"$error":"#N/A"}},null,null,null,{"$f":"AD16-AD18","v":{"$error":"#N/A"}},null,{"$f":"CONCATENATE(UPPER(MID(AC1,2,4)),\" \",UPPER(MID(AC1,6,3)),\" \",UPPER(MID(AC1,9,3)),\" \",UPPER(MID(AC1,12,3)),\" \",UPPER(MID(AE23,1,1)))","v":{"$error":"#N/A"}},null,null,null,{"$f":"AJ16-AJ18","v":{"$error":"#N/A"}},null,{"$f":"CONCATENATE(UPPER(MID(AI1,2,4)),\" \",UPPER(MID(AI1,6,3)),\" \",UPPER(MID(AI1,9,3)),\" \",UPPER(MID(AI1,12,3)),\" \",UPPER(MID(AK23,1,1)))","v":{"$error":"#N/A"}},null,null,{"$f":"AO16-AO18","v":{"$error":"#N/A"}},null,{"$f":"CONCATENATE(UPPER(MID(AN1,2,4)),\" \",UPPER(MID(AN1,6,3)),\" \",UPPER(MID(AN1,9,3)),\" \",UPPER(MID(AN1,12,3)),\" \",UPPER(MID(AP23,1,1)))","v":{"$error":"#N/A"}},null,null,null,{"$f":"AU16-AU18","v":{"$error":"#N/A"}},null,{"$f":"CONCATENATE(UPPER(MID(AT1,2,4)),\" \",UPPER(MID(AT1,6,3)),\" \",UPPER(MID(AT1,9,3)),\" \",UPPER(MID(AT1,12,3)),\" \",UPPER(MID(AV23,1,1)))","v":{"$error":"#N/A"}},null,null,null,{"$f":"BA16-BA18","v":{"$error":"#N/A"}},null,{"$f":"CONCATENATE(UPPER(MID(AZ1,2,4)),\" \",UPPER(MID(AZ1,6,3)),\" \",UPPER(MID(AZ1,9,3)),\" \",UPPER(MID(AZ1,12,3)),\" \",UPPER(MID(BB23,1,1)))","v":{"$error":"#N/A"}},null,null,null,{"$f":"BG16-BG18","v":{"$error":"#N/A"}},null,{"$f":"CONCATENATE(UPPER(MID(BF1,2,4)),\" \",UPPER(MID(BF1,6,3)),\" \",UPPER(MID(BF1,9,3)),\" \",UPPER(MID(BF1,12,3)),\" \",UPPER(MID(BH23,1,1)))","v":{"$error":"#N/A"}},null,null,null,{"$f":"BM16-BM18","v":{"$error":"#N/A"}},null,{"$f":"CONCATENATE(UPPER(MID(BL1,2,4)),\" \",UPPER(MID(BL1,6,3)),\" \",UPPER(MID(BL1,9,3)),\" \",UPPER(MID(BL1,12,3)),\" \",UPPER(MID(BN23,1,1)))","v":{"$error":"#N/A"}},null,null,null,{"$f":"BS16-BS18","v":{"$error":"#N/A"}},null,{"$f":"CONCATENATE(UPPER(MID(BR1,2,4)),\" \",UPPER(MID(BR1,6,3)),\" \",UPPER(MID(BR1,9,3)),\" \",UPPER(MID(BR1,12,3)),\" \",UPPER(MID(BT23,1,1)))","v":{"$error":"#N/A"}},null,null,null,{"$f":"BY16-BY18","v":{"$error":"#N/A"}},null,{"$f":"CONCATENATE(UPPER(MID(BX1,2,4)),\" \",UPPER(MID(BX1,6,3)),\" \",UPPER(MID(BX1,9,3)),\" \",UPPER(MID(BX1,12,3)),\" \",UPPER(MID(BZ23,1,1)))","v":{"$error":"#N/A"}},null,null,null,{"$f":"CE16-CE18","v":{"$error":"#N/A"}},null,{"$f":"CONCATENATE(UPPER(MID(CD1,2,4)),\" \",UPPER(MID(CD1,6,3)),\" \",UPPER(MID(CD1,9,3)),\" \",UPPER(MID(CD1,12,3)),\" \",UPPER(MID(CF23,1,1)))","v":{"$error":"#N/A"}},null,null,null,{"$f":"CK16-CK18","v":{"$error":"#N/A"}},null,{"$f":"CONCATENATE(UPPER(MID(CJ1,2,4)),\" \",UPPER(MID(CJ1,6,3)),\" \",UPPER(MID(CJ1,9,3)),\" \",UPPER(MID(CJ1,12,3)),\" \",UPPER(MID(CL23,1,1)))","v":{"$error":"#N/A"}},null,null,null,{"$f":"CQ16-CQ18","v":{"$error":"#N/A"}},null,{"$f":"CONCATENATE(UPPER(MID(CP1,2,4)),\" \",UPPER(MID(CP1,6,3)),\" \",UPPER(MID(CP1,9,3)),\" \",UPPER(MID(CP1,12,3)),\" \",UPPER(MID(CR23,1,1)))","v":{"$error":"#N/A"}},null,null,null,{"$f":"CW16-CW18","v":{"$error":"#N/A"}},null,{"$f":"CONCATENATE(UPPER(MID(CV1,2,4)),\" \",UPPER(MID(CV1,6,3)),\" \",UPPER(MID(CV1,9,3)),\" \",UPPER(MID(CV1,12,3)),\" \",UPPER(MID(CX23,1,1)))","v":{"$error":"#N/A"}},null,null,null,{"$f":"DC16-DC18","v":{"$error":"#N/A"}},null,{"$f":"CONCATENATE(UPPER(MID(DB1,2,4)),\" \",UPPER(MID(DB1,6,3)),\" \",UPPER(MID(DB1,9,3)),\" \",UPPER(MID(DB1,12,3)),\" \",UPPER(MID(DD23,1,1)))","v":{"$error":"#N/A"}},null,null,null,{"$f":"DI16-DI18","v":{"$error":"#N/A"}},null,{"$f":"CONCATENATE(UPPER(MID(DH1,2,4)),\" \",UPPER(MID(DH1,6,3)),\" \",UPPER(MID(DH1,9,3)),\" \",UPPER(MID(DH1,12,3)),\" \",UPPER(MID(DJ23,1,1)))","v":{"$error":"#N/A"}},null,null,null,{"$f":"DO16-DO18","v":{"$error":"#N/A"}},null,{"$f":"CONCATENATE(UPPER(MID(DN1,2,4)),\" \",UPPER(MID(DN1,6,3)),\" \",UPPER(MID(DN1,9,3)),\" \",UPPER(MID(DN1,12,3)),\" \",UPPER(MID(DP23,1,1)))","v":{"$error":"#N/A"}},null,null,null,{"$f":"DU16-DU18","v":{"$error":"#N/A"}},null,{"$f":"CONCATENATE(UPPER(MID(DT1,2,4)),\" \",UPPER(MID(DT1,6,3)),\" \",UPPER(MID(DT1,9,3)),\" \",UPPER(MID(DT1,12,3)),\" \",UPPER(MID(DV23,1,1)))","v":{"$error":"#N/A"}},null,null,null,{"$f":"EA16-EA18","v":{"$error":"#N/A"}},null,{"$f":"CONCATENATE(UPPER(MID(DZ1,2,4)),\" \",UPPER(MID(DZ1,6,3)),\" \",UPPER(MID(DZ1,9,3)),\" \",UPPER(MID(DZ1,12,3)),\" \",UPPER(MID(EB23,1,1)))","v":{"$error":"#N/A"}},null,null,null,{"$f":"EG16-EG18","v":{"$error":"#N/A"}},null,{"$f":"CONCATENATE(UPPER(MID(EF1,2,4)),\" \",UPPER(MID(EF1,6,3)),\" \",UPPER(MID(EF1,9,3)),\" \",UPPER(MID(EF1,12,3)),\" \",UPPER(MID(EH23,1,1)))","v":{"$error":"#N/A"}},null,null,null,{"$f":"EM16-EM18","v":{"$error":"#N/A"}},null,{"$f":"CONCATENATE(UPPER(MID(EL1,2,4)),\" \",UPPER(MID(EL1,6,3)),\" \",UPPER(MID(EL1,9,3)),\" \",UPPER(MID(EL1,12,3)),\" \",UPPER(MID(EN23,1,1)))","v":{"$error":"#N/A"}},null,null,null,{"$f":"ES16-ES18","v":{"$error":"#N/A"}},null,{"$f":"CONCATENATE(UPPER(MID(ER1,2,4)),\" \",UPPER(MID(ER1,6,3)),\" \",UPPER(MID(ER1,9,3)),\" \",UPPER(MID(ER1,12,3)),\" \",UPPER(MID(ET23,1,1)))","v":{"$error":"#N/A"}},null,null,null,{"$f":"EY16-EY18","v":{"$error":"#N/A"}},null,{"$f":"CONCATENATE(UPPER(MID(EX1,2,4)),\" \",UPPER(MID(EX1,6,3)),\" \",UPPER(MID(EX1,9,3)),\" \",UPPER(MID(EX1,12,3)),\" \",UPPER(MID(EZ23,1,1)))","v":{"$error":"#N/A"}}]
["Blocker Line"]
["Blocker Line",{"$f":"38-B20","v":{"$error":"#N/A"}},null,null,null,null,{"$f":"38-G20","v":{"$error":"#N/A"}},null,null,null,null,{"$f":"38-L20","v":{"$error":"#N/A"}},null,null,null,null,null,{"$f":"38-R20","v":{"$error":"#N/A"}},null,null,null,null,null,{"$f":"38-X20","v":{"$error":"#N/A"}},null,null,null,null,null,{"$f":"38-AD20","v":{"$error":"#N/A"}},null,null,null,null,null,{"$f":"38-AJ20","v":{"$error":"#N/A"}},null,null,null,null,{"$f":"38-AO20","v":{"$error":"#N/A"}},null,null,null,null,null,{"$f":"38-AU20","v":{"$error":"#N/A"}},null,null,null,null,null,{"$f":"38-BA20","v":{"$error":"#N/A"}},null,null,null,null,null,{"$f":"38-BG20","v":{"$error":"#N/A"}},null,null,null,null,null,{"$f":"38-BM20","v":{"$error":"#N/A"}},null,null,null,null,null,{"$f":"38-BS20","v":{"$error":"#N/A"}},null,null,null,null,null,{"$f":"38-BY20","v":{"$error":"#N/A"}},null,null,null,null,null,{"$f":"38-CE20","v":{"$error":"#N/A"}},null,null,null,null,null,{"$f":"38-CK20","v":{"$error":"#N/A"}},null,null,null,null,null,{"$f":"38-CQ20","v":{"$error":"#N/A"}},null,null,null,null,null,{"$f":"38-CW20","v":{"$error":"#N/A"}},null,null,null,null,null,{"$f":"38-DC20","v":{"$error":"#N/A"}},null,null,null,null,null,{"$f":"38-DI20","v":{"$error":"#N/A"}},null,null,null,null,null,{"$f":"38-DO20","v":{"$error":"#N/A"}},null,null,null,null,null,{"$f":"38-DU20","v":{"$error":"#N/A"}},null,null,null,null,null,{"$f":"38-EA20","v":{"$error":"#N/A"}},null,null,null,null,null,{"$f":"38-EG20","v":{"$error":"#N/A"}},null,null,null,null,null,{"$f":"38-EM20","v":{"$error":"#N/A"}},null,null,null,null,null,{"$f":"38-ES20","v":{"$error":"#N/A"}},null,null,null,null,null,{"$f":"38-EY20","v":{"$error":"#N/A"}}]
["Blocker Line",{"$f":"B22+60","v":{"$error":"#N/A"}},{"$f":"LOOKUP(B22, Reference!$A2:$B40)","v":{"$error":"#N/A"}},null,null,null,{"$f":"G22+60","v":{"$error":"#N/A"}},{"$f":"LOOKUP(G22, Reference!$A2:$B40)","v":{"$error":"#N/A"}},null,null,null,{"$f":"L22+60","v":{"$error":"#N/A"}},{"$f":"LOOKUP(L22, Reference!$A2:$B40)","v":{"$error":"#N/A"}},null,null,null,null,{"$f":"R22+60","v":{"$error":"#N/A"}},{"$f":"LOOKUP(R22, Reference!$A2:$B40)","v":{"$error":"#N/A"}},null,null,null,null,{"$f":"X22+60","v":{"$error":"#N/A"}},{"$f":"LOOKUP(X22, Reference!$A2:$B40)","v":{"$error":"#N/A"}},null,null,null,null,{"$f":"AD22+60","v":{"$error":"#N/A"}},{"$f":"LOOKUP(AD22, Reference!$A2:$B40)","v":{"$error":"#N/A"}},null,null,null,null,{"$f":"AJ22+60","v":{"$error":"#N/A"}},{"$f":"LOOKUP(AJ22, Reference!$A2:$B40)","v":{"$error":"#N/A"}},null,null,null,{"$f":"AO22+60","v":{"$error":"#N/A"}},{"$f":"LOOKUP(AO22, Reference!$A2:$B40)","v":{"$error":"#N/A"}},null,null,null,null,{"$f":"AU22+60","v":{"$error":"#N/A"}},{"$f":"LOOKUP(AU22, Reference!$A2:$B40)","v":{"$error":"#N/A"}},null,null,null,null,{"$f":"BA22+60","v":{"$error":"#N/A"}},{"$f":"LOOKUP(BA22, Reference!$A2:$B40)","v":{"$error":"#N/A"}},null,null,null,null,{"$f":"BG22+60","v":{"$error":"#N/A"}},{"$f":"LOOKUP(BG22, Reference!$A2:$B40)","v":{"$error":"#N/A"}},null,null,null,null,{"$f":"BM22+60","v":{"$error":"#N/A"}},{"$f":"LOOKUP(BM22, Reference!$A2:$B40)","v":{"$error":"#N/A"}},null,null,null,null,{"$f":"BS22+60","v":{"$error":"#N/A"}},{"$f":"LOOKUP(BS22, Reference!$A2:$B40)","v":{"$error":"#N/A"}},null,null,null,null,{"$f":"BY22+60","v":{"$error":"#N/A"}},{"$f":"LOOKUP(BY22, Reference!$A2:$B40)","v":{"$error":"#N/A"}},null,null,null,null,{"$f":"CE22+60","v":{"$error":"#N/A"}},{"$f":"LOOKUP(CE22, Reference!$A2:$B40)","v":{"$error":"#N/A"}},null,null,null,null,{"$f":"CK22+60","v":{"$error":"#N/A"}},{"$f":"LOOKUP(CK22, Reference!$A2:$B40)","v":{"$error":"#N/A"}},null,null,null,null,{"$f":"CQ22+60","v":{"$error":"#N/A"}},{"$f":"LOOKUP(CQ22, Reference!$A2:$B40)","v":{"$error":"#N/A"}},null,null,null,null,{"$f":"CW22+60","v":{"$error":"#N/A"}},{"$f":"LOOKUP(CW22, Reference!$A2:$B40)","v":{"$error":"#N/A"}},null,null,null,null,{"$f":"DC22+60","v":{"$error":"#N/A"}},{"$f":"LOOKUP(DC22, Reference!$A2:$B40)","v":{"$error":"#N/A"}},null,null,null,null,{"$f":"DI22+60","v":{"$error":"#N/A"}},{"$f":"LOOKUP(DI22, Reference!$A2:$B40)","v":{"$error":"#N/A"}},null,null,null,null,{"$f":"DO22+60","v":{"$error":"#N/A"}},{"$f":"LOOKUP(DO22, Reference!$A2:$B40)","v":{"$error":"#N/A"}},null,null,null,null,{"$f":"DU22+60","v":{"$error":"#N/A"}},{"$f":"LOOKUP(DU22, Reference!$A2:$B40)","v":{"$error":"#N/A"}},null,null,null,null,{"$f":"EA22+60","v":{"$error":"#N/A"}},{"$f":"LOOKUP(EA22, Reference!$A2:$B40)","v":{"$error":"#N/A"}},null,null,null,null,{"$f":"EG22+60","v":{"$error":"#N/A"}},{"$f":"LOOKUP(EG22, Reference!$A2:$B40)","v":{"$error":"#N/A"}},null,null,null,null,{"$f":"EM22+60","v":{"$error":"#N/A"}},{"$f":"LOOKUP(EM22, Reference!$A2:$B40)","v":{"$error":"#N/A"}},null,null,null,null,{"$f":"ES22+60","v":{"$error":"#N/A"}},{"$f":"LOOKUP(ES22, Reference!$A2:$B40)","v":{"$error":"#N/A"}},null,null,null,null,{"$f":"EY22+60","v":{"$error":"#N/A"}},{"$f":"LOOKUP(EY22, Reference!$A2:$B40)","v":{"$error":"#N/A"}}]
["Blocker Line"]
["Unit Number","Unit Group","Product","Expiry"]
[{"$f":"IF(MANUAL!D2=\"\",\"\",MANUAL!D2)","v":""}]
[{"$f":"IF(MANUAL!D3=\"\",\"\",MANUAL!D3)","v":""},null,null,null,null,null,null,null,null,null,null,null,null,null,null,null,null,null,null,null,null,null,null,null,null,null,null,null,null,null,null,null,null,null,null,null,null,null,null,null,null,null,null,null,null,null,null,null,null,null,null,null,null,null,null,null,null,null,null,null,null,null,null,null,null,null,null,null,null,null,null,null,null,null,null,null,null,null,null,null,null,null,null,null,null,null,null,null,null,null,null,null,null,null,null,null,null,null,null,null,null,null,null,null,null,null,null,null,null,null,null,null,null,null,null,null,null,null,null,null,null,null,null,null,null,null,null,null,null,null,null,null,null,null,null,null,null,null,null,null,null,null,null,null,null,null,null,null,"for manual entry rows 33 & 34",null,null,null,null,null,"for manual entry rows 33 & 34"]
[{"$f":"IF(MANUAL!D4=\"\",\"\",MANUAL!D4)","v":""}]
[{"$f":"IF(MANUAL!D5=\"\",\"\",MANUAL!D5)","v":""}]
[{"$f":"IF(MANUAL!D6=\"\",\"\",MANUAL!D6)","v":""}]
[{"$f":"IF(MANUAL!D7=\"\",\"\",MANUAL!D7)","v":""}]
[{"$f":"IF(MANUAL!D8=\"\",\"\",MANUAL!D8)","v":""},null,null,null,null,null,null,null,null,null,null,null,null,null," "]
[{"$f":"IF(MANUAL!D9=\"\",\"\",MANUAL!D9)","v":""}]
[{"$f":"IF(MANUAL!D10=\"\",\"\",MANUAL!D10)","v":""}]
[{"$f":"IF(MANUAL!D11=\"\",\"\",MANUAL!D11)","v":""}]
[{"$f":"IF(MANUAL!D12=\"\",\"\",MANUAL!D12)","v":""}]
[{"$f":"IF(MANUAL!D13=\"\",\"\",MANUAL!D13)","v":""}]
[{"$f":"IF(MANUAL!D14=\"\",\"\",MANUAL!D14)","v":""}]
[{"$f":"IF(MANUAL!D15=\"\",\"\",MANUAL!D15)","v":""}]
[{"$f":"IF(MANUAL!D16=\"\",\"\",MANUAL!D16)","v":""}]
[{"$f":"IF(MANUAL!D17=\"\",\"\",MANUAL!D17)","v":""}]
[{"$f":"IF(MANUAL!D18=\"\",\"\",MANUAL!D18)","v":""}]
[{"$f":"IF(MANUAL!D19=\"\",\"\",MANUAL!D19)","v":""}]
[{"$f":"IF(MANUAL!D20=\"\",\"\",MANUAL!D20)","v":""}]
[{"$f":"IF(MANUAL!D21=\"\",\"\",MANUAL!D21)","v":""}]
[{"$f":"IF(MANUAL!D22=\"\",\"\",MANUAL!D22)","v":""}]
[{"$f":"IF(MANUAL!D23=\"\",\"\",MANUAL!D23)","v":""}]
[{"$f":"IF(MANUAL!D24=\"\",\"\",MANUAL!D24)","v":""}]
[{"$f":"IF(MANUAL!D25=\"\",\"\",MANUAL!D25)","v":""}]
[{"$f":"IF(MANUAL!D26=\"\",\"\",MANUAL!D26)","v":""}]
[{"$f":"IF(MANUAL!D33=\"\",\"\",MANUAL!D33)","v":""},null,null,null,null,"for manual entry"]
[{"$f":"IF(MANUAL!D34=\"\",\"\",MANUAL!D34)","v":""},null,null,null,null,"for manual entry"]

{"sheet":"ProdList","index":14,"n_rows":41,"n_cols":29,"rows_kept":41,"cut":false,"hidden":true,"merged":[]}
["Cryo",54260,"Cryo LD MB Treated and Removed","CRYO  (NON UK) METHYLENE BLUE REMOVED (LF31)","LF31",null,"FFP",18300,"FFP LD","FRESH FROZEN PLASMA  LD (LF15)","LF15",null,"Platelet",54289,"Platelets Apheresis Leucodeplete Extended Lif  Pack 1","PLATELETS APHERESIS LD  EXTENDED LIFE PACK 1 (0451)","0451",null,"RBC",4333,"Red Cells AD LD","RED CELLS IN ADDITIVE SOLUTION  LD (0054)","0054",null,"Gran",46435,"GRANULOCYTES APHERESIS  IRRADIATED  DO NOT AGITATE","GRANULOCYTES APHERESIS  IRRADIATED  DO NOT AGITATE (G352)","G352"]
["Cryo",54487,"CRYO (NON UK) MB REMOVED PACK 1","CRYO (NON UK) MB REMOVED PACK 1 (LF33)","LF33",null,"FFP",18320,"FFP LD","FRESH FROZEN PLASMA  LD (L553)","L553",null,"Platelet",54290,"Platelets Apheresis Leucodeplete Extended Lif  Pack 2","PLATELETS APHERESIS LD  EXTENDED LIFE PACK 2 (0452)","0452",null,"RBC",44333,"Red Cells AS LD IRR","RED CELLS IN ADDITIVE SOLUTION  LD, IRRADIATED (G054)","G054",null,"Gran",46460,"LEUCOCYTES, BUFFY COAT  IRRADIATED","LEUCOCYTES, BUFFY COAT  IRRADIATED (G351)","G351"]
["Cryo",54488,"CRYO (NON UK) MB REMOVED PACK 2","CRYO (NON UK) MB REMOVED PACK 2 (LF34)","LF34",null,"FFP",18321,"FFP LD PK1","FRESH FROZEN PLASMA  LD PK1 (L554)","L554",null,"Platelet",54291,"Platelets Apheresis Leucodeplete Extended Lif  Pack 3","PLATELETS APHERESIS LD  EXTENDED LIFE PACK 3 (0453)","0453",null,"RBC",56830,"Red Cells AS LD PK1","RED CELLS IN ADDITIVE SOLN  LD NEO PCK1 (0B21)","0B21",null,"Gran",54395,"POOLED GRANS PAS IRR","POOLED GRANS PAS IRR (G355)","G355"]
["Cryo",54489,"CRYO (NON UK) MB REMOVED PACK 3","CRYO (NON UK) MB REMOVED PACK 3 (LF35)","LF35",null,"FFP",18322,"FFP LD PK2","FRESH FROZEN PLASMA  LD PK2 (L555)","L555",null,"Platelet",54293,"Platelets Apheresis Leucodeplete Extended Lif  Irradiated Pack 1","PLATELETS APHERESIS LD  EXTENDED LIFE IRRAD PCK 1 (G451)","G451",null,"RBC",56831,"Red Cells AS LD PK2","RED CELLS IN ADDITIVE SOLN  LD NEO PCK2 (0B22)","0B22"]
["Cryo",54483,"CRYO POOLED (NON UK) MB REMOVED","CRYO POOLED (NON UK) MB REMOVED (LF54)","LF54",null,"FFP",54271,"FFP PAED MBTR NON UK PK1","FFP PAED USE  MB TREATED/REMOVED LD, NON-UK (LF74)","LF74",null,"Platelet",54294,"Platelets Apheresis Leucodeplete Extended Lif  Irradiated Pack 2","PLATELETS APHERESIS LD  EXTENDED LIFE IRRAD PCK 2 (G452)","G452",null,"RBC",56832,"Red Cells AS LD PK3","RED CELLS IN ADDITIVE SOLN  LD NEO PCK3 (0B23)","0B23"]
["Cryo",10170,"Cryo LD","CRYOPRECIPITATE  LD (L531)","L531",null,"FFP",54272,"FFP PAED MBTR NON UK PK2","FFP PAED USE  MB TREATED/REMOVED LD, NON-UK PCK 1 (LF71)","LF71",null,"Platelet",54295,"Platelets Apheresis Leucodeplete Extended Lif  Irradiated Pack 3","PLATELETS APHERESIS LD  EXTENDED LIFE IRRAD PCK 3 (G453)","G453",null,"RBC",56833,"Red Cells AS LD PK4","RED CELLS IN ADDITIVE SOLN  LD NEO PCK4 (0B24)","0B24"]
["Cryo",10190,"Cryo Pooled LD","LD POOLED CRYO (L571)","L571",null,"FFP",54273,"FFP PAED MBTR NON UK PK3","FFP PAED USE  MB TREATED/REMOVED LD, NON-UK PCK 2 (LF72)","LF72",null,"Platelet",54246,"Plts APH AS","PLATELETS APHERESIS IN  ADDITIVE SOLUTION (0429)","0429",null,"RBC",56834,"Red Cells AS LD PK5","RED CELLS IN ADDITIVE SOLN  LD NEO PCK5 (0B25)","0B25"]
["Cryo ",29981,"Cryo LD Neontal use (UK) ","CRYOPRECIPITATE FOR NEONATES, LD (L534)","L534",null,"FFP",54274,"FFP PAED MBTR NON UK PK4","FFP PAED USE  MB TREATED/REMOVED LD, NON-UK PCK 3 (LF73)","LF73",null,"Platelet",54243,"Plts APH AS Pk1","PLATELETS APHERESIS IN  ADDITIVE SOLUTION LD PCK 1 (0421)","0421",null,"RBC",56835,"Red Cells AS LD PK6","RED CELLS IN ADDITIVE SOLN  LD NEO PCK6 (0B26)","0B26"]
[null,null,null,null,null,null,"FFP",82910,"FFP Paed MBTR PK1","FFP  PAED USE  MB TREATED/REMOVED LD (LF53)","LF53",null,"Platelet",54244,"Plts APH AS Pk2","PLATELETS APHERESIS IN  ADDITIVE SOLUTION LD PCK 2 (0422)","0422",null,"RBC",46830,"Red Cells AS LD IRR PK1","RED CELLS IN ADDITIVE SOLUTION  LD, IRR NEO PCK1 (GB21)","GB21"]
[null,null,null,null,null,null,"FFP",54275,"FFP NEONATAL MBTR NON UK ","FFP NEO USE  MB TREATED/REMOVED LD, NON-UK, PCK1 (LF81)","LF81",null,"Platelet",54245,"Plts APH AS Pk3","PLATELETS APHERESIS IN  ADDITIVE SOLUTION LD PCK 3 (0423)","0423",null,"RBC",46831,"Red Cells AS LD IRR PK2","RED CELLS IN ADDITIVE SOLUTION  LD, IRR NEO PCK2 (GB22)","GB22"]
[null,null,null,null,null,null,"FFP",54276,"FFP NEONATAL MBTR NON UK PK2","FFP NEO USE  MB TREATED/REMOVED LD, NON-UK, PCK2 (LF82)","LF82",null,"Platelet",54233,"Plts APH AS IRR PK1","PLATELETS APHERESIS IN ADDITIVE  SOLN IRR LD PCK 1 (G421)","G421",null,"RBC",46832,"Red Cells AS LD IRR PK3","RED CELLS IN ADDITIVE SOLUTION  LD, IRR NEO PCK3 (GB23)","GB23"]
[null,null,null,null,null,null,"FFP",54277,"FFP NEONATAL MBTR NON UK PK3","FFP NEO USE  MB TREATED/REMOVED LD, NON-UK, PCK3 (LF83)","LF83",null,"Platelet",54234,"Plts APH AS IRR PK2","PLATELETS APHERESIS IN ADDITIVE  SOLN IRR LD PCK 2 (G422)","G422",null,"RBC",46833,"Red Cells AS LD IRR PK4","RED CELLS IN ADDITIVE SOLUTION  LD, IRR NEO PCK4 (GB24)","GB24"]
[null,null,null,null,null,null,"FFP",54278,"FFP NEONATAL MBTR NON UK PK4","FFP NEO USE  MB TREATED/REMOVED LD, NON-UK, PCK4 (LF84)","LF84",null,"Platelet",54235,"Plts APH AS IRR PK3","PLATELETS APHERESIS IN ADDITIVE  SOLN IRR LD PCK 3 (G423)","G423",null,"RBC",46834,"Red Cells AS LD IRR PK5","RED CELLS IN ADDITIVE SOLUTION  LD, IRR NEO PCK5 (GB25)","GB25"]
[null,null,null,null,null,null,"FFP",54279,"FFP NEONATAL MBTR NON UK PK5","FFP NEO USE  MB TREATED/REMOVED LD, NON-UK, PCK5 (LF85)","LF85",null,"Platelet",54236,"Plts APH AS IRR","PLATELETS APHERESIS IN ADDITIVE  SOLUTION IRRAD LD (G429)","G429",null,"RBC",46835,"Red Cells AS LD IRR PK6","RED CELLS IN ADDITIVE SOLUTION  LD, IRR NEO PCK6 (GB26)","GB26"]
[null,null,null,null,null,null,"FFP",54280,"FFP NEONATAL MBTR NON UK PK6","FFP NEO USE  MB TREATED/REMOVED LD, NON-UK, PCK6 (LF86)","LF86",null,"Platelet",54288,"Platelets Apheresis Leucodeplete Extended Lif","PLATELETS APHERESIS LD  EXTENDED LIFE (0459)","0459",null,"RBC",54481,"Red Cells AS LD","RED CELLS IN ADDITIVE SOLUTION FOR PAEDIATRIC USE (0X25)","0X25"]
[null,null,null,null,null,null,"FFP",54281,"FFP NEONATAL MBTR NON UK PK7","FFP NEO USE  MB TREATED/REMOVED LD, NON-UK, PCK7 (LF87)","LF87",null,"Platelet",54292,"Platelets Apheresis Leucodeplete Extended Lif  Irradiated","PLATELETS APHERESIS LD  EXTENDED LIFE IRRADIATED (G459)","G459",null,"RBC",54482,"RED CELLS IN SAG M FOR PAEDIATRIC USE, IRRAD","RED CELLS IN SAG M FOR PAEDIATRIC USE, IRRAD (GX25)","GX25"]
[null,null,null,null,null,null,"FFP",54282,"FFP NEONATAL MBTR NON UK PK8","FFP NEO USE  MB TREATED/REMOVED LD, NON-UK, PCK8 (LF88)","LF88",null,"Platelet",54237,"Plts Pool AS IRR PK","PLATELETS POOLED IN ADDITIVE  SOLN  IRRADIATED LD (G383)","G383",null,"RBC",54263,"RED CELLS THAWED/ WASHED  CLOSED SYSTEM PREPN","RED CELLS THAWED/ WASHED  CLOSED SYSTEM PREPN (0072)","0072"]
[null,null,null,null,null,null,"FFP",54283,"FFP NEONATAL MBTR NON UK PK9","FFP NEO USE  MB TREATED/REMOVED LD, NON-UK, PCK9 (LF89)","LF89",null,"Platelet",54247,"Plts Pool AS","PLATELETS POOLED IN ADDITIVE  SOLUTION LD (0383)","0383",null,"RBC",40350,"Red Cells CPD IRR","RED CELLS (CPD)  IRRADIATED LD (GX22)","GX22"]
[null,null,null,null,null,null,"FFP",54284,"FFP NEONATAL MBTR NON UK PKA","FFP NEONATAL USE  MB TREATED/REMOVED LD NONUKPK10 (LF91)","LF91",null,"Platelet",12789,"Plts Pool LD Ext Life","PLATELETS POOLED LD  EXTENDED LIFE (L376)","L376",null,"RBC",4454,"Red Cells CPD LD","RED CELLS (CPD)  LD (0053)","0053"]
[null,null,null,null,null,null,"FFP",54285,"FFP NEONATAL MBTR NON UK PKB","FFP NEONATAL USE  MB TREATED/REMOVED LD NONUKPK11 (LF92)","LF92",null,"Platelet",54296,"Plts Pool LD/EL Irradiated","PLATELETS POOLED LD  EXTENDED LIFE IRRADIATED (G376)","G376",null,"RBC",40018,"Red Cells CPD LD IRR","RED CELLS (CPD)  LD, IRRADIATED (GY35)","GY35"]
[null,null,null,null,null,null,"FFP",54286,"FFP NEONATAL MBTR NON UK PKC","FFP NEONATAL USE  MB TREATED/REMOVED LD NONUKPK12 (LF93)","LF93",null,"Platelet",54421,"Plts APH LD PL/AD Soln Mix EL","PLT APH OA/PL EXT SINGLE (0449)","0449",null,"RBC",46531,"RED CELLS IN SAGM, Washed, Manual Prep","RED CELLS IN SAGM, Washed, Manual Prep (0076)","0076"]
[null,null,null,null,null,null,"FFP",69601,"FFP NEONATAL PK 1","FFP NEONATAL PACK 1 (LP81)","LP81",null,"Platelet",54478,"Plts Pooled LD PL/AD Sol Mix EL Irradiated","PLT POOL A/P I EXT L (GE83)","GE83",null,"RBC",46532,"RED CELLS IN SAGM, Washed, IRR, Manual Prep","RED CELLS IN SAGM, Wshed, IRR, Manual Prep (G076)","G076"]
[null,null,null,null,null,null,"FFP",69602,"FFP NEONATAL PK2","FFP NEONATAL PACK 2 (LP82)","LP82",null,"Platelet",54449,"Plts APH LD PL/AD Soln Mix Irradiated E","PLTS APH O/P I EXT S (G449)","G449"]
[null,null,null,null,null,null,"FFP",69603,"FFP NEONATAL PK 3","FFP NEONATAL PACK 3 (LP83)","LP83",null,"Platelet",30031,"Plts Neo LD PL/AD Sol Pack1","PLTS NEO LD PL/AD SOL 1 (0S11)","0S11"]
[null,null,null,null,null,null,"FFP",69604,"FFP NEONATAL PK 4","FFP NEONATAL PACK 4 (LP84)","LP84",null,"Platelet",30032,"Plts Neo LD PL/AD Sol Pack2","PLTS NEO LD PL/AD SOL 2 (0S12)","0S12"]
[null,null,null,null,null,null,"FFP",59711,"FFP NEONATAL PK 5","FFP NEONATAL PACK 5 (LP85)","LP85",null,"Platelet",30033,"Plts Neo LD PL/AD Sol Pack3","PLTS NEO LD PL/AD SOL 3 (0S13)","0S13"]
[null,null,null,null,null,null,"FFP",59712,"FFP NEONATAL PK 6","FFP NEONATAL PACK 6 (LP86)","LP86",null,"Platelet",30034,"Plts Neo LD PL/AD Sol Pack4","PLTS NEO LD PL/AD SOL 4 (0S14)","0S14"]
[null,null,null,null,null,null,"FFP",59713,"FFP NEONATAL PK 7","FFP NEONATAL PACK 7 (LP87)","LP87",null,"Platelet",30035,"Plts Neo LD PL/AD Sol Pack5","PLTS NEO LD PL/AD SOL 5 (0S15)","0S15"]
[null,null,null,null,null,null,"FFP",59714,"FFP NEONATAL PK 8","FFP NEONATAL PACK 8 (LP88)","LP88",null,"Platelet",30036,"Plts Neo LD PL/AD Sol Pack6","PLTS NEO LD PL/AD SOL 6 (0S16)","0S16"]
[null,null,null,null,null,null,"FFP",59715,"FFP NEONATAL PK 9","FFP NEONATAL PACK 9 (LP89)","LP89",null,"Platelet",30037,"Plts Neo LD PL/AD Sol Pack7","PLTS NEO LD PL/AD SOL 7 (0S17)","0S17"]
[null,null,null,null,null,null,"FFP",59716,"FFP NEONATAL PK 10","FFP NEONATAL PACK 10 (LP91)","LP91",null,"Platelet",30038,"Plts Neo LD PL/AD Sol Pack8","PLTS NEO LD PL/AD SOL 8 (0S18)","0S18"]
[null,null,null,null,null,null,"FFP",59717,"FFP NEONATAL PK 11","FFP NEONATAL PACK 11 (LP92)","LP92",null,"Platelet",30051,"Plts Neo LD PL/AD Irraditaed Pack1","PLTS NEO LD PL/AD IRRADIATED 1 (GS11)","GS11"]
[null,null,null,null,null,null,"FFP",59718,"FFP NEONATAL PK 12","FFP NEONATAL PACK 12 (LP93)","LP93",null,"Platelet",30052,"Plts Neo LD PL/AD Irraditaed Pack2","PLTS NEO LD PL/AD IRRADIATED 2 (GS12)","GS12"]
[null,null,null,null,null,null,null,null,null,null,null,null,"Platelet",30053,"Plts Neo LD PL/AD Irraditaed Pack3","PLTS NEO LD PL/AD IRRADIATED 3 (GS13)","GS13"]
[null,null,null,null,null,null,null,null,null,null,null,null,"Platelet",30054,"Plts Neo LD PL/AD Irraditaed Pack4","PLTS NEO LD PL/AD IRRADIATED 4 (GS14)","GS14"]
[null,null,null,null,null,null,null,null,null,null,null,null,"Platelet",30055,"Plts Neo LD PL/AD Irraditaed Pack5","PLTS NEO LD PL/AD IRRADIATED 5 (GS15)","GS15"]
[null,null,null,null,null,null,null,null,null,null,null,null,"Platelet",30056,"Plts Neo LD PL/AD Irraditaed Pack6","PLTS NEO LD PL/AD IRRADIATED 6 (GS16)","GS16"]
[null,null,null,null,null,null,null,null,null,null,null,null,"Platelet",30057,"Plts Neo LD PL/AD Irraditaed Pack7","PLTS NEO LD PL/AD IRRADIATED 7 (GS17)","GS17"]
[null,null,null,null,null,null,null,null,null,null,null,null,"Platelet",30058,"Plts Neo LD PL/AD Irraditaed Pack8","PLTS NEO LD PL/AD IRRADIATED 8 (GS18)","GS18"]
[null,null,null,null,null,null,null,null,null,null,null,null,"Platelet",42964,"Plts HyperConc IR","PLATELETS  HYPERCONCENTRATED, IRRADIATED LD (GN81)","GN81"]
[null,null,null,null,null,null,null,null,null,null,null,null,"Platelet",null,"Plts Pool AP Ext Life","PLTS POOL A/P EXT LI (0E83)","0E83"]